Workbook

Sheet Menu
B1: Click the top left cell in any tab to return Home
B2: Weekly Reports | C2: Useful Info | D2: Admin (Weekly) | E2: Admin (Other)
B3: League Table | C3: Pics for Publication | D3: Add Matches | E3: Calculations
B4: Weekly Results | C4: Prizes - Summary | D4: Add Predictions | E4: Entrants
B5: Cup Draw | C5: Prizes - Divisional Splits | D5: Add Predictions (double-week) | E5: Last Season Places
B6: Season Diary | C6: FAQ | D6: 1-2-3 Pivot | E6: Brought Forward
B7: Current Week Fixtures | C7: Sample Bets | D7: Top Picks | E7: End of Season Finance
B8: Current Week Predictions | D8: Cup Draw Raw | E8: Mini Leagues

Sheet Table
A1: Div | B1: Place Prize | C1: Promotion | D1: Pos | E1: Div | F1: Player | G1: Total Score | H1: Total correct | I1: Week Score | J1: Week Correct | K1: Brought Forward | L1: League Place Prize | M1: Weekly Prizes | N1: Cup Prize | O1: Total Prize | P1: Season Balance
A2: Division A | B2: =CONCATENATE(E2,D2) -> A1 | D2: 1 | E2: A | F2: Stephen Barr | G2: =INDEX(Weekly!F:F,MATCH($F2,Weekly!$E:$E,0)) -> 15.89536364 | H2: =INDEX(Weekly!G:G,MATCH($F2,Weekly!$E:$E,0)) -> 3 | I2: =INDEX(Weekly!H:H,MATCH($F2,Weekly!$E:$E,0)) -> 15.89536364 | J2: =INDEX(Weekly!I:I,MATCH($F2,Weekly!$E:$E,0)) -> 3 | K2: =INDEX(Weekly!J:J,MATCH($F2,Weekly!$E:$E,0)) -> 11.18 | L2: =INDEX(Prizes!F:F,MATCH($B2,Prizes!A:A,0)) -> 127.575 | M2: =INDEX(Weekly!K:K,MATCH($F2,Weekly!$E:$E,0)) -> 10 | N2: =INDEX(Weekly!L:L,MATCH($F2,Weekly!$E:$E,0)) -> 0 | O2: =INDEX(Weekly!N:N,MATCH($F2,Weekly!$E:$E,0)) -> 137.575 | P2: =O2+K2 -> 148.755
B3: =CONCATENATE(E3,D3) -> A2 | D3: 2 | E3: A | F3: Steve Baxter | G3: =INDEX(Weekly!F:F,MATCH($F3,Weekly!$E:$E,0)) -> 7.808928571 | H3: =INDEX(Weekly!G:G,MATCH($F3,Weekly!$E:$E,0)) -> 3 | I3: =INDEX(Weekly!H:H,MATCH($F3,Weekly!$E:$E,0)) -> 7.808928571 | J3: =INDEX(Weekly!I:I,MATCH($F3,Weekly!$E:$E,0)) -> 3 | K3: =INDEX(Weekly!J:J,MATCH($F3,Weekly!$E:$E,0)) -> 26.25 | L3: =INDEX(Prizes!F:F,MATCH($B3,Prizes!A:A,0)) -> 91.125 | M3: =INDEX(Weekly!K:K,MATCH($F3,Weekly!$E:$E,0)) -> 5 | N3: =INDEX(Weekly!L:L,MATCH($F3,Weekly!$E:$E,0)) -> 0 | O3: =INDEX(Weekly!N:N,MATCH($F3,Weekly!$E:$E,0)) -> 96.125 | P3: =O3+K3 -> 122.375
B4: A3 | D4: 3 | E4: A | F4: Paul Fairhurst | G4: =INDEX(Weekly!F:F,MATCH($F4,Weekly!$E:$E,0)) -> 3.954 | H4: =INDEX(Weekly!G:G,MATCH($F4,Weekly!$E:$E,0)) -> 2 | I4: =INDEX(Weekly!H:H,MATCH($F4,Weekly!$E:$E,0)) -> 3.954 | J4: =INDEX(Weekly!I:I,MATCH($F4,Weekly!$E:$E,0)) -> 2 | K4: =INDEX(Weekly!J:J,MATCH($F4,Weekly!$E:$E,0)) -> 151.355 | L4: =INDEX(Prizes!F:F,MATCH($B4,Prizes!A:A,0)) -> 65.61 | M4: =INDEX(Weekly!K:K,MATCH($F4,Weekly!$E:$E,0)) -> 0 | N4: =INDEX(Weekly!L:L,MATCH($F4,Weekly!$E:$E,0)) -> 0 | O4: =INDEX(Weekly!N:N,MATCH($F4,Weekly!$E:$E,0)) -> 65.61 | P4: =O4+K4 -> 216.965 | S4: Promotion and Relegation Key
B5: A4 | D5: 4 | E5: A | F5: Mike Penk | G5: =INDEX(Weekly!F:F,MATCH($F5,Weekly!$E:$E,0)) -> 2.933333333 | H5: =INDEX(Weekly!G:G,MATCH($F5,Weekly!$E:$E,0)) -> 2 | I5: =INDEX(Weekly!H:H,MATCH($F5,Weekly!$E:$E,0)) -> 2.933333333 | J5: =INDEX(Weekly!I:I,MATCH($F5,Weekly!$E:$E,0)) -> 2 | K5: =INDEX(Weekly!J:J,MATCH($F5,Weekly!$E:$E,0)) -> 0.055 | L5: =INDEX(Prizes!F:F,MATCH($B5,Prizes!A:A,0)) -> 43.74 | M5: =INDEX(Weekly!K:K,MATCH($F5,Weekly!$E:$E,0)) -> 0 | N5: =INDEX(Weekly!L:L,MATCH($F5,Weekly!$E:$E,0)) -> 0 | O5: =INDEX(Weekly!N:N,MATCH($F5,Weekly!$E:$E,0)) -> 43.74 | P5: =O5+K5 -> 43.795 | S5: No change
B6: A5 | D6: 5 | E6: A | F6: Alick Rocca | G6: =INDEX(Weekly!F:F,MATCH($F6,Weekly!$E:$E,0)) -> 1.163636364 | H6: =INDEX(Weekly!G:G,MATCH($F6,Weekly!$E:$E,0)) -> 2 | I6: =INDEX(Weekly!H:H,MATCH($F6,Weekly!$E:$E,0)) -> 1.163636364 | J6: =INDEX(Weekly!I:I,MATCH($F6,Weekly!$E:$E,0)) -> 2 | K6: =INDEX(Weekly!J:J,MATCH($F6,Weekly!$E:$E,0)) -> 206.965 | L6: =INDEX(Prizes!F:F,MATCH($B6,Prizes!A:A,0)) -> 25.515 | M6: =INDEX(Weekly!K:K,MATCH($F6,Weekly!$E:$E,0)) -> 0 | N6: =INDEX(Weekly!L:L,MATCH($F6,Weekly!$E:$E,0)) -> 0 | O6: =INDEX(Weekly!N:N,MATCH($F6,Weekly!$E:$E,0)) -> 25.515 | P6: =O6+K6 -> 232.48 | S6: Promoted to Division above
B7: A6 | D7: 6 | E7: A | F7: Mal Stott | G7: =INDEX(Weekly!F:F,MATCH($F7,Weekly!$E:$E,0)) -> -0.5333333333 | H7: =INDEX(Weekly!G:G,MATCH($F7,Weekly!$E:$E,0)) -> 2 | I7: =INDEX(Weekly!H:H,MATCH($F7,Weekly!$E:$E,0)) -> -0.5333333333 | J7: =INDEX(Weekly!I:I,MATCH($F7,Weekly!$E:$E,0)) -> 2 | K7: =INDEX(Weekly!J:J,MATCH($F7,Weekly!$E:$E,0)) -> -20 | L7: =INDEX(Prizes!F:F,MATCH($B7,Prizes!A:A,0)) -> 10.935 | M7: =INDEX(Weekly!K:K,MATCH($F7,Weekly!$E:$E,0)) -> 0 | N7: =INDEX(Weekly!L:L,MATCH($F7,Weekly!$E:$E,0)) -> 0 | O7: =INDEX(Weekly!N:N,MATCH($F7,Weekly!$E:$E,0)) -> 10.935 | P7: =O7+K7 -> -9.065 | S7: Relegated to Division below
B8: A7 | D8: 7 | E8: A | F8: Phil Miller | G8: =INDEX(Weekly!F:F,MATCH($F8,Weekly!$E:$E,0)) -> -1.7 | H8: =INDEX(Weekly!G:G,MATCH($F8,Weekly!$E:$E,0)) -> 2 | I8: =INDEX(Weekly!H:H,MATCH($F8,Weekly!$E:$E,0)) -> -1.7 | J8: =INDEX(Weekly!I:I,MATCH($F8,Weekly!$E:$E,0)) -> 2 | K8: =INDEX(Weekly!J:J,MATCH($F8,Weekly!$E:$E,0)) -> 51.265 | L8: =INDEX(Prizes!F:F,MATCH($B8,Prizes!A:A,0)) -> 0 | M8: =INDEX(Weekly!K:K,MATCH($F8,Weekly!$E:$E,0)) -> 0 | N8: =INDEX(Weekly!L:L,MATCH($F8,Weekly!$E:$E,0)) -> 0 | O8: =INDEX(Weekly!N:N,MATCH($F8,Weekly!$E:$E,0)) -> 0 | P8: =O8+K8 -> 51.265 | S8: Best two up to Div A, Worst two down to Div B
B9: A8 | D9: 8 | E9: A | F9: Gareth Powell | G9: =INDEX(Weekly!F:F,MATCH($F9,Weekly!$E:$E,0)) -> -4.95 | H9: =INDEX(Weekly!G:G,MATCH($F9,Weekly!$E:$E,0)) -> 1 | I9: =INDEX(Weekly!H:H,MATCH($F9,Weekly!$E:$E,0)) -> -4.95 | J9: =INDEX(Weekly!I:I,MATCH($F9,Weekly!$E:$E,0)) -> 1 | K9: =INDEX(Weekly!J:J,MATCH($F9,Weekly!$E:$E,0)) -> -28.25 | L9: =INDEX(Prizes!F:F,MATCH($B9,Prizes!A:A,0)) -> 0 | M9: =INDEX(Weekly!K:K,MATCH($F9,Weekly!$E:$E,0)) -> 0 | N9: =INDEX(Weekly!L:L,MATCH($F9,Weekly!$E:$E,0)) -> 0 | O9: =INDEX(Weekly!N:N,MATCH($F9,Weekly!$E:$E,0)) -> 0 | P9: =O9+K9 -> -28.25 | S9: Best two up to Div B, Worst two down to Div C
B10: A9 | C10: Play-off | D10: 9 | E10: A | F10: Barry Birchall | G10: =INDEX(Weekly!F:F,MATCH($F10,Weekly!$E:$E,0)) -> -5.22 | H10: =INDEX(Weekly!G:G,MATCH($F10,Weekly!$E:$E,0)) -> 1 | I10: =INDEX(Weekly!H:H,MATCH($F10,Weekly!$E:$E,0)) -> -5.22 | J10: =INDEX(Weekly!I:I,MATCH($F10,Weekly!$E:$E,0)) -> 1 | K10: =INDEX(Weekly!J:J,MATCH($F10,Weekly!$E:$E,0)) -> -20 | L10: =INDEX(Prizes!F:F,MATCH($B10,Prizes!A:A,0)) -> 0 | M10: =INDEX(Weekly!K:K,MATCH($F10,Weekly!$E:$E,0)) -> 0 | N10: =INDEX(Weekly!L:L,MATCH($F10,Weekly!$E:$E,0)) -> 0 | O10: =INDEX(Weekly!N:N,MATCH($F10,Weekly!$E:$E,0)) -> 0 | P10: =O10+K10 -> -20 | S10: Best two up to Div C, Worst two down to Div D
B11: A10 | C11: Play-off | D11: 10 | E11: A | F11: Nigel Heyes | G11: =INDEX(Weekly!F:F,MATCH($F11,Weekly!$E:$E,0)) -> -5.22 | H11: =INDEX(Weekly!G:G,MATCH($F11,Weekly!$E:$E,0)) -> 1 | I11: =INDEX(Weekly!H:H,MATCH($F11,Weekly!$E:$E,0)) -> -5.22 | J11: =INDEX(Weekly!I:I,MATCH($F11,Weekly!$E:$E,0)) -> 1 | K11: =INDEX(Weekly!J:J,MATCH($F11,Weekly!$E:$E,0)) -> 63.75 | L11: =INDEX(Prizes!F:F,MATCH($B11,Prizes!A:A,0)) -> 0 | M11: =INDEX(Weekly!K:K,MATCH($F11,Weekly!$E:$E,0)) -> 0 | N11: =INDEX(Weekly!L:L,MATCH($F11,Weekly!$E:$E,0)) -> 0 | O11: =INDEX(Weekly!N:N,MATCH($F11,Weekly!$E:$E,0)) -> 0 | P11: =O11+K11 -> 63.75
B12: A11 | C12: ↓ | D12: 11 | E12: A | F12: Andy Charleston | G12: =INDEX(Weekly!F:F,MATCH($F12,Weekly!$E:$E,0)) -> -5.73 | H12: =INDEX(Weekly!G:G,MATCH($F12,Weekly!$E:$E,0)) -> 1 | I12: =INDEX(Weekly!H:H,MATCH($F12,Weekly!$E:$E,0)) -> -5.73 | J12: =INDEX(Weekly!I:I,MATCH($F12,Weekly!$E:$E,0)) -> 1 | K12: =INDEX(Weekly!J:J,MATCH($F12,Weekly!$E:$E,0)) -> 65.35 | L12: =INDEX(Prizes!F:F,MATCH($B12,Prizes!A:A,0)) -> 0 | M12: =INDEX(Weekly!K:K,MATCH($F12,Weekly!$E:$E,0)) -> 0 | N12: =INDEX(Weekly!L:L,MATCH($F12,Weekly!$E:$E,0)) -> 0 | O12: =INDEX(Weekly!N:N,MATCH($F12,Weekly!$E:$E,0)) -> 0 | P12: =O12+K12 -> 65.35
B13: A12 | C13: ↓ | D13: 12 | E13: A | F13: Chris Luck | G13: =INDEX(Weekly!F:F,MATCH($F13,Weekly!$E:$E,0)) -> -7 | H13: =INDEX(Weekly!G:G,MATCH($F13,Weekly!$E:$E,0)) -> 0 | I13: =INDEX(Weekly!H:H,MATCH($F13,Weekly!$E:$E,0)) -> -7 | J13: =INDEX(Weekly!I:I,MATCH($F13,Weekly!$E:$E,0)) -> 0 | K13: =INDEX(Weekly!J:J,MATCH($F13,Weekly!$E:$E,0)) -> 147.985 | L13: =INDEX(Prizes!F:F,MATCH($B13,Prizes!A:A,0)) -> 0 | M13: =INDEX(Weekly!K:K,MATCH($F13,Weekly!$E:$E,0)) -> 0 | N13: =INDEX(Weekly!L:L,MATCH($F13,Weekly!$E:$E,0)) -> 0 | O13: =INDEX(Weekly!N:N,MATCH($F13,Weekly!$E:$E,0)) -> 0 | P13: =O13+K13 -> 147.985
B14: A13 | C14: ↓ | D14: 13 | E14: A | F14: Stephen Troop | G14: =INDEX(Weekly!F:F,MATCH($F14,Weekly!$E:$E,0)) -> -7 | H14: =INDEX(Weekly!G:G,MATCH($F14,Weekly!$E:$E,0)) -> 0 | I14: =INDEX(Weekly!H:H,MATCH($F14,Weekly!$E:$E,0)) -> -7 | J14: =INDEX(Weekly!I:I,MATCH($F14,Weekly!$E:$E,0)) -> 0 | K14: =INDEX(Weekly!J:J,MATCH($F14,Weekly!$E:$E,0)) -> 44.845 | L14: =INDEX(Prizes!F:F,MATCH($B14,Prizes!A:A,0)) -> 0 | M14: =INDEX(Weekly!K:K,MATCH($F14,Weekly!$E:$E,0)) -> 0 | N14: =INDEX(Weekly!L:L,MATCH($F14,Weekly!$E:$E,0)) -> 0 | O14: =INDEX(Weekly!N:N,MATCH($F14,Weekly!$E:$E,0)) -> 0 | P14: =O14+K14 -> 44.845
B15: A14 | C15: ↓ | D15: 14 | E15: A | F15: Kevin Carter | G15: =INDEX(Weekly!F:F,MATCH($F15,Weekly!$E:$E,0)) -> -7 | H15: =INDEX(Weekly!G:G,MATCH($F15,Weekly!$E:$E,0)) -> 0 | I15: =INDEX(Weekly!H:H,MATCH($F15,Weekly!$E:$E,0)) -> -7 | J15: =INDEX(Weekly!I:I,MATCH($F15,Weekly!$E:$E,0)) -> 0 | K15: =INDEX(Weekly!J:J,MATCH($F15,Weekly!$E:$E,0)) -> 14.545 | L15: =INDEX(Prizes!F:F,MATCH($B15,Prizes!A:A,0)) -> 0 | M15: =INDEX(Weekly!K:K,MATCH($F15,Weekly!$E:$E,0)) -> 0 | N15: =INDEX(Weekly!L:L,MATCH($F15,Weekly!$E:$E,0)) -> 0 | O15: =INDEX(Weekly!N:N,MATCH($F15,Weekly!$E:$E,0)) -> 0 | P15: =O15+K15 -> 14.545
B16: A15 | C16: ↓ | D16: 15 | E16: A | F16: Ste Bentley | G16: =INDEX(Weekly!F:F,MATCH($F16,Weekly!$E:$E,0)) -> -7 | H16: =INDEX(Weekly!G:G,MATCH($F16,Weekly!$E:$E,0)) -> 0 | I16: =INDEX(Weekly!H:H,MATCH($F16,Weekly!$E:$E,0)) -> -7 | J16: =INDEX(Weekly!I:I,MATCH($F16,Weekly!$E:$E,0)) -> 0 | K16: =INDEX(Weekly!J:J,MATCH($F16,Weekly!$E:$E,0)) -> -28.97 | L16: =INDEX(Prizes!F:F,MATCH($B16,Prizes!A:A,0)) -> 0 | M16: =INDEX(Weekly!K:K,MATCH($F16,Weekly!$E:$E,0)) -> 0 | N16: =INDEX(Weekly!L:L,MATCH($F16,Weekly!$E:$E,0)) -> 0 | O16: =INDEX(Weekly!N:N,MATCH($F16,Weekly!$E:$E,0)) -> 0 | P16: =O16+K16 -> -28.97
B17: A16 | C17: ↓ | D17: 16 | E17: A | F17: Pete Baron | G17: =INDEX(Weekly!F:F,MATCH($F17,Weekly!$E:$E,0)) -> -7 | H17: =INDEX(Weekly!G:G,MATCH($F17,Weekly!$E:$E,0)) -> 0 | I17: =INDEX(Weekly!H:H,MATCH($F17,Weekly!$E:$E,0)) -> -7 | J17: =INDEX(Weekly!I:I,MATCH($F17,Weekly!$E:$E,0)) -> 0 | K17: =INDEX(Weekly!J:J,MATCH($F17,Weekly!$E:$E,0)) -> -25 | L17: =INDEX(Prizes!F:F,MATCH($B17,Prizes!A:A,0)) -> 0 | M17: =INDEX(Weekly!K:K,MATCH($F17,Weekly!$E:$E,0)) -> 0 | N17: =INDEX(Weekly!L:L,MATCH($F17,Weekly!$E:$E,0)) -> 0 | O17: =INDEX(Weekly!N:N,MATCH($F17,Weekly!$E:$E,0)) -> 0 | P17: =O17+K17 -> -25
A18: Division B | B18: B1 | C18: ↑ | D18: 1 | E18: B | F18: Alfie Davies | G18: =INDEX(Weekly!F:F,MATCH($F18,Weekly!$E:$E,0)) -> 13.22597403 | H18: =INDEX(Weekly!G:G,MATCH($F18,Weekly!$E:$E,0)) -> 3 | I18: =INDEX(Weekly!H:H,MATCH($F18,Weekly!$E:$E,0)) -> 13.22597403 | J18: =INDEX(Weekly!I:I,MATCH($F18,Weekly!$E:$E,0)) -> 3 | K18: =INDEX(Weekly!J:J,MATCH($F18,Weekly!$E:$E,0)) -> -20 | L18: =INDEX(Prizes!F:F,MATCH($B18,Prizes!A:A,0)) -> 85.05 | M18: =INDEX(Weekly!K:K,MATCH($F18,Weekly!$E:$E,0)) -> 5 | N18: =INDEX(Weekly!L:L,MATCH($F18,Weekly!$E:$E,0)) -> 0 | O18: =INDEX(Weekly!N:N,MATCH($F18,Weekly!$E:$E,0)) -> 90.05 | P18: =O18+K18 -> 70.05
B19: B2 | C19: ↑ | D19: 2 | E19: B | F19: Alan Rogers | G19: =INDEX(Weekly!F:F,MATCH($F19,Weekly!$E:$E,0)) -> 9.4375 | H19: =INDEX(Weekly!G:G,MATCH($F19,Weekly!$E:$E,0)) -> 2 | I19: =INDEX(Weekly!H:H,MATCH($F19,Weekly!$E:$E,0)) -> 9.4375 | J19: =INDEX(Weekly!I:I,MATCH($F19,Weekly!$E:$E,0)) -> 2 | K19: =INDEX(Weekly!J:J,MATCH($F19,Weekly!$E:$E,0)) -> -15.515 | L19: =INDEX(Prizes!F:F,MATCH($B19,Prizes!A:A,0)) -> 60.75 | M19: =INDEX(Weekly!K:K,MATCH($F19,Weekly!$E:$E,0)) -> 5 | N19: =INDEX(Weekly!L:L,MATCH($F19,Weekly!$E:$E,0)) -> 0 | O19: =INDEX(Weekly!N:N,MATCH($F19,Weekly!$E:$E,0)) -> 65.75 | P19: =O19+K19 -> 50.235
B20: B3 | C20: ↑ | D20: 3 | E20: B | F20: Kei Lok Ma | G20: =INDEX(Weekly!F:F,MATCH($F20,Weekly!$E:$E,0)) -> 7.265 | H20: =INDEX(Weekly!G:G,MATCH($F20,Weekly!$E:$E,0)) -> 2 | I20: =INDEX(Weekly!H:H,MATCH($F20,Weekly!$E:$E,0)) -> 7.265 | J20: =INDEX(Weekly!I:I,MATCH($F20,Weekly!$E:$E,0)) -> 2 | K20: =INDEX(Weekly!J:J,MATCH($F20,Weekly!$E:$E,0)) -> 45.32 | L20: =INDEX(Prizes!F:F,MATCH($B20,Prizes!A:A,0)) -> 43.74 | M20: =INDEX(Weekly!K:K,MATCH($F20,Weekly!$E:$E,0)) -> 0 | N20: =INDEX(Weekly!L:L,MATCH($F20,Weekly!$E:$E,0)) -> 0 | O20: =INDEX(Weekly!N:N,MATCH($F20,Weekly!$E:$E,0)) -> 43.74 | P20: =O20+K20 -> 89.06
B21: B4 | C21: ↑ | D21: 4 | E21: B | F21: Tom Robinson | G21: =INDEX(Weekly!F:F,MATCH($F21,Weekly!$E:$E,0)) -> 3.954 | H21: =INDEX(Weekly!G:G,MATCH($F21,Weekly!$E:$E,0)) -> 2 | I21: =INDEX(Weekly!H:H,MATCH($F21,Weekly!$E:$E,0)) -> 3.954 | J21: =INDEX(Weekly!I:I,MATCH($F21,Weekly!$E:$E,0)) -> 2 | K21: =INDEX(Weekly!J:J,MATCH($F21,Weekly!$E:$E,0)) -> 47.775 | L21: =INDEX(Prizes!F:F,MATCH($B21,Prizes!A:A,0)) -> 29.16 | M21: =INDEX(Weekly!K:K,MATCH($F21,Weekly!$E:$E,0)) -> 0 | N21: =INDEX(Weekly!L:L,MATCH($F21,Weekly!$E:$E,0)) -> 0 | O21: =INDEX(Weekly!N:N,MATCH($F21,Weekly!$E:$E,0)) -> 29.16 | P21: =O21+K21 -> 76.935
B22: B5 | C22: ↑ | D22: 5 | E22: B | F22: Graham Miller | G22: =INDEX(Weekly!F:F,MATCH($F22,Weekly!$E:$E,0)) -> 3.48 | H22: =INDEX(Weekly!G:G,MATCH($F22,Weekly!$E:$E,0)) -> 2 | I22: =INDEX(Weekly!H:H,MATCH($F22,Weekly!$E:$E,0)) -> 3.48 | J22: =INDEX(Weekly!I:I,MATCH($F22,Weekly!$E:$E,0)) -> 2 | K22: =INDEX(Weekly!J:J,MATCH($F22,Weekly!$E:$E,0)) -> 13.74 | L22: =INDEX(Prizes!F:F,MATCH($B22,Prizes!A:A,0)) -> 17.01 | M22: =INDEX(Weekly!K:K,MATCH($F22,Weekly!$E:$E,0)) -> 0 | N22: =INDEX(Weekly!L:L,MATCH($F22,Weekly!$E:$E,0)) -> 0 | O22: =INDEX(Weekly!N:N,MATCH($F22,Weekly!$E:$E,0)) -> 17.01 | P22: =O22+K22 -> 30.75
B23: B6 | C23: ↑ | D23: 6 | E23: B | F23: Mo Sudell | G23: =INDEX(Weekly!F:F,MATCH($F23,Weekly!$E:$E,0)) -> -4.5 | H23: =INDEX(Weekly!G:G,MATCH($F23,Weekly!$E:$E,0)) -> 1 | I23: =INDEX(Weekly!H:H,MATCH($F23,Weekly!$E:$E,0)) -> -4.5 | J23: =INDEX(Weekly!I:I,MATCH($F23,Weekly!$E:$E,0)) -> 1 | K23: =INDEX(Weekly!J:J,MATCH($F23,Weekly!$E:$E,0)) -> 33.375 | L23: =INDEX(Prizes!F:F,MATCH($B23,Prizes!A:A,0)) -> 7.29 | M23: =INDEX(Weekly!K:K,MATCH($F23,Weekly!$E:$E,0)) -> 0 | N23: =INDEX(Weekly!L:L,MATCH($F23,Weekly!$E:$E,0)) -> 0 | O23: =INDEX(Weekly!N:N,MATCH($F23,Weekly!$E:$E,0)) -> 7.29 | P23: =O23+K23 -> 40.665
B24: B7 | C24: Play-off | D24: 7 | E24: B | F24: Lennie Bow | G24: =INDEX(Weekly!F:F,MATCH($F24,Weekly!$E:$E,0)) -> -4.846153846 | H24: =INDEX(Weekly!G:G,MATCH($F24,Weekly!$E:$E,0)) -> 1 | I24: =INDEX(Weekly!H:H,MATCH($F24,Weekly!$E:$E,0)) -> -4.846153846 | J24: =INDEX(Weekly!I:I,MATCH($F24,Weekly!$E:$E,0)) -> 1 | K24: =INDEX(Weekly!J:J,MATCH($F24,Weekly!$E:$E,0)) -> 93.55 | L24: =INDEX(Prizes!F:F,MATCH($B24,Prizes!A:A,0)) -> 0 | M24: =INDEX(Weekly!K:K,MATCH($F24,Weekly!$E:$E,0)) -> 0 | N24: =INDEX(Weekly!L:L,MATCH($F24,Weekly!$E:$E,0)) -> 0 | O24: =INDEX(Weekly!N:N,MATCH($F24,Weekly!$E:$E,0)) -> 0 | P24: =O24+K24 -> 93.55
B25: B8 | C25: Play-off | D25: 8 | E25: B | F25: Paul Fiddler | G25: =INDEX(Weekly!F:F,MATCH($F25,Weekly!$E:$E,0)) -> -4.95 | H25: =INDEX(Weekly!G:G,MATCH($F25,Weekly!$E:$E,0)) -> 1 | I25: =INDEX(Weekly!H:H,MATCH($F25,Weekly!$E:$E,0)) -> -4.95 | J25: =INDEX(Weekly!I:I,MATCH($F25,Weekly!$E:$E,0)) -> 1 | K25: =INDEX(Weekly!J:J,MATCH($F25,Weekly!$E:$E,0)) -> -10.93 | L25: =INDEX(Prizes!F:F,MATCH($B25,Prizes!A:A,0)) -> 0 | M25: =INDEX(Weekly!K:K,MATCH($F25,Weekly!$E:$E,0)) -> 0 | N25: =INDEX(Weekly!L:L,MATCH($F25,Weekly!$E:$E,0)) -> 0 | O25: =INDEX(Weekly!N:N,MATCH($F25,Weekly!$E:$E,0)) -> 0 | P25: =O25+K25 -> -10.93
B26: B9 | C26: Play-off | D26: 9 | E26: B | F26: Dave Orrell | G26: =INDEX(Weekly!F:F,MATCH($F26,Weekly!$E:$E,0)) -> -5.090909091 | H26: =INDEX(Weekly!G:G,MATCH($F26,Weekly!$E:$E,0)) -> 1 | I26: =INDEX(Weekly!H:H,MATCH($F26,Weekly!$E:$E,0)) -> -5.090909091 | J26: =INDEX(Weekly!I:I,MATCH($F26,Weekly!$E:$E,0)) -> 1 | K26: =INDEX(Weekly!J:J,MATCH($F26,Weekly!$E:$E,0)) -> -11.37 | L26: =INDEX(Prizes!F:F,MATCH($B26,Prizes!A:A,0)) -> 0 | M26: =INDEX(Weekly!K:K,MATCH($F26,Weekly!$E:$E,0)) -> 0 | N26: =INDEX(Weekly!L:L,MATCH($F26,Weekly!$E:$E,0)) -> 0 | O26: =INDEX(Weekly!N:N,MATCH($F26,Weekly!$E:$E,0)) -> 0 | P26: =O26+K26 -> -11.37
B27: B10 | C27: Play-off | D27: 10 | E27: B | F27: Steve Carter | G27: =INDEX(Weekly!F:F,MATCH($F27,Weekly!$E:$E,0)) -> -5.181818182 | H27: =INDEX(Weekly!G:G,MATCH($F27,Weekly!$E:$E,0)) -> 1 | I27: =INDEX(Weekly!H:H,MATCH($F27,Weekly!$E:$E,0)) -> -5.181818182 | J27: =INDEX(Weekly!I:I,MATCH($F27,Weekly!$E:$E,0)) -> 1 | K27: =INDEX(Weekly!J:J,MATCH($F27,Weekly!$E:$E,0)) -> 73.84 | L27: =INDEX(Prizes!F:F,MATCH($B27,Prizes!A:A,0)) -> 0 | M27: =INDEX(Weekly!K:K,MATCH($F27,Weekly!$E:$E,0)) -> 0 | N27: =INDEX(Weekly!L:L,MATCH($F27,Weekly!$E:$E,0)) -> 0 | O27: =INDEX(Weekly!N:N,MATCH($F27,Weekly!$E:$E,0)) -> 0 | P27: =O27+K27 -> 73.84
B28: B11 | C28: ↓ | D28: 11 | E28: B | F28: Andy White | G28: =INDEX(Weekly!F:F,MATCH($F28,Weekly!$E:$E,0)) -> -5.181818182 | H28: =INDEX(Weekly!G:G,MATCH($F28,Weekly!$E:$E,0)) -> 1 | I28: =INDEX(Weekly!H:H,MATCH($F28,Weekly!$E:$E,0)) -> -5.181818182 | J28: =INDEX(Weekly!I:I,MATCH($F28,Weekly!$E:$E,0)) -> 1 | K28: =INDEX(Weekly!J:J,MATCH($F28,Weekly!$E:$E,0)) -> 24.045 | L28: =INDEX(Prizes!F:F,MATCH($B28,Prizes!A:A,0)) -> 0 | M28: =INDEX(Weekly!K:K,MATCH($F28,Weekly!$E:$E,0)) -> 0 | N28: =INDEX(Weekly!L:L,MATCH($F28,Weekly!$E:$E,0)) -> 0 | O28: =INDEX(Weekly!N:N,MATCH($F28,Weekly!$E:$E,0)) -> 0 | P28: =O28+K28 -> 24.045
B29: B12 | C29: ↓ | D29: 12 | E29: B | F29: Mark Saunders | G29: =INDEX(Weekly!F:F,MATCH($F29,Weekly!$E:$E,0)) -> -5.2 | H29: =INDEX(Weekly!G:G,MATCH($F29,Weekly!$E:$E,0)) -> 1 | I29: =INDEX(Weekly!H:H,MATCH($F29,Weekly!$E:$E,0)) -> -5.2 | J29: =INDEX(Weekly!I:I,MATCH($F29,Weekly!$E:$E,0)) -> 1 | K29: =INDEX(Weekly!J:J,MATCH($F29,Weekly!$E:$E,0)) -> 22.66 | L29: =INDEX(Prizes!F:F,MATCH($B29,Prizes!A:A,0)) -> 0 | M29: =INDEX(Weekly!K:K,MATCH($F29,Weekly!$E:$E,0)) -> 0 | N29: =INDEX(Weekly!L:L,MATCH($F29,Weekly!$E:$E,0)) -> 0 | O29: =INDEX(Weekly!N:N,MATCH($F29,Weekly!$E:$E,0)) -> 0 | P29: =O29+K29 -> 22.66
B30: B13 | C30: ↓ | D30: 13 | E30: B | F30: Paul Allen | G30: =INDEX(Weekly!F:F,MATCH($F30,Weekly!$E:$E,0)) -> -5.22 | H30: =INDEX(Weekly!G:G,MATCH($F30,Weekly!$E:$E,0)) -> 1 | I30: =INDEX(Weekly!H:H,MATCH($F30,Weekly!$E:$E,0)) -> -5.22 | J30: =INDEX(Weekly!I:I,MATCH($F30,Weekly!$E:$E,0)) -> 1 | K30: =INDEX(Weekly!J:J,MATCH($F30,Weekly!$E:$E,0)) -> 25.175 | L30: =INDEX(Prizes!F:F,MATCH($B30,Prizes!A:A,0)) -> 0 | M30: =INDEX(Weekly!K:K,MATCH($F30,Weekly!$E:$E,0)) -> 0 | N30: =INDEX(Weekly!L:L,MATCH($F30,Weekly!$E:$E,0)) -> 0 | O30: =INDEX(Weekly!N:N,MATCH($F30,Weekly!$E:$E,0)) -> 0 | P30: =O30+K30 -> 25.175
B31: B14 | C31: ↓ | D31: 14 | E31: B | F31: Chris Griffin | G31: =INDEX(Weekly!F:F,MATCH($F31,Weekly!$E:$E,0)) -> -5.22 | H31: =INDEX(Weekly!G:G,MATCH($F31,Weekly!$E:$E,0)) -> 1 | I31: =INDEX(Weekly!H:H,MATCH($F31,Weekly!$E:$E,0)) -> -5.22 | J31: =INDEX(Weekly!I:I,MATCH($F31,Weekly!$E:$E,0)) -> 1 | K31: =INDEX(Weekly!J:J,MATCH($F31,Weekly!$E:$E,0)) -> -7.94 | L31: =INDEX(Prizes!F:F,MATCH($B31,Prizes!A:A,0)) -> 0 | M31: =INDEX(Weekly!K:K,MATCH($F31,Weekly!$E:$E,0)) -> 0 | N31: =INDEX(Weekly!L:L,MATCH($F31,Weekly!$E:$E,0)) -> 0 | O31: =INDEX(Weekly!N:N,MATCH($F31,Weekly!$E:$E,0)) -> 0 | P31: =O31+K31 -> -7.94
B32: B15 | C32: ↓ | D32: 15 | E32: B | F32: John Evans | G32: =INDEX(Weekly!F:F,MATCH($F32,Weekly!$E:$E,0)) -> -5.333333333 | H32: =INDEX(Weekly!G:G,MATCH($F32,Weekly!$E:$E,0)) -> 1 | I32: =INDEX(Weekly!H:H,MATCH($F32,Weekly!$E:$E,0)) -> -5.333333333 | J32: =INDEX(Weekly!I:I,MATCH($F32,Weekly!$E:$E,0)) -> 1 | K32: =INDEX(Weekly!J:J,MATCH($F32,Weekly!$E:$E,0)) -> 88.13 | L32: =INDEX(Prizes!F:F,MATCH($B32,Prizes!A:A,0)) -> 0 | M32: =INDEX(Weekly!K:K,MATCH($F32,Weekly!$E:$E,0)) -> 0 | N32: =INDEX(Weekly!L:L,MATCH($F32,Weekly!$E:$E,0)) -> 0 | O32: =INDEX(Weekly!N:N,MATCH($F32,Weekly!$E:$E,0)) -> 0 | P32: =O32+K32 -> 88.13
B33: B16 | C33: ↓ | D33: 16 | E33: B | F33: Rob England | G33: =INDEX(Weekly!F:F,MATCH($F33,Weekly!$E:$E,0)) -> -5.857142857 | H33: =INDEX(Weekly!G:G,MATCH($F33,Weekly!$E:$E,0)) -> 1 | I33: =INDEX(Weekly!H:H,MATCH($F33,Weekly!$E:$E,0)) -> -5.857142857 | J33: =INDEX(Weekly!I:I,MATCH($F33,Weekly!$E:$E,0)) -> 1 | K33: =INDEX(Weekly!J:J,MATCH($F33,Weekly!$E:$E,0)) -> -40 | L33: =INDEX(Prizes!F:F,MATCH($B33,Prizes!A:A,0)) -> 0 | M33: =INDEX(Weekly!K:K,MATCH($F33,Weekly!$E:$E,0)) -> 0 | N33: =INDEX(Weekly!L:L,MATCH($F33,Weekly!$E:$E,0)) -> 0 | O33: =INDEX(Weekly!N:N,MATCH($F33,Weekly!$E:$E,0)) -> 0 | P33: =O33+K33 -> -40
A34: Division C | B34: C1 | C34: ↑ | D34: 1 | E34: C | F34: Gareth Fallows | G34: =INDEX(Weekly!F:F,MATCH($F34,Weekly!$E:$E,0)) -> 1.163636364 | H34: =INDEX(Weekly!G:G,MATCH($F34,Weekly!$E:$E,0)) -> 2 | I34: =INDEX(Weekly!H:H,MATCH($F34,Weekly!$E:$E,0)) -> 1.163636364 | J34: =INDEX(Weekly!I:I,MATCH($F34,Weekly!$E:$E,0)) -> 2 | K34: =INDEX(Weekly!J:J,MATCH($F34,Weekly!$E:$E,0)) -> -40 | L34: =INDEX(Prizes!F:F,MATCH($B34,Prizes!A:A,0)) -> 42.525 | M34: =INDEX(Weekly!K:K,MATCH($F34,Weekly!$E:$E,0)) -> 0 | N34: =INDEX(Weekly!L:L,MATCH($F34,Weekly!$E:$E,0)) -> 0 | O34: =INDEX(Weekly!N:N,MATCH($F34,Weekly!$E:$E,0)) -> 42.525 | P34: =O34+K34 -> 2.525
B35: C2 | C35: ↑ | D35: 2 | E35: C | F35: John Robinson | G35: =INDEX(Weekly!F:F,MATCH($F35,Weekly!$E:$E,0)) -> 1.018181818 | H35: =INDEX(Weekly!G:G,MATCH($F35,Weekly!$E:$E,0)) -> 2 | I35: =INDEX(Weekly!H:H,MATCH($F35,Weekly!$E:$E,0)) -> 1.018181818 | J35: =INDEX(Weekly!I:I,MATCH($F35,Weekly!$E:$E,0)) -> 2 | K35: =INDEX(Weekly!J:J,MATCH($F35,Weekly!$E:$E,0)) -> -10.31 | L35: =INDEX(Prizes!F:F,MATCH($B35,Prizes!A:A,0)) -> 30.375 | M35: =INDEX(Weekly!K:K,MATCH($F35,Weekly!$E:$E,0)) -> 0 | N35: =INDEX(Weekly!L:L,MATCH($F35,Weekly!$E:$E,0)) -> 0 | O35: =INDEX(Weekly!N:N,MATCH($F35,Weekly!$E:$E,0)) -> 30.375 | P35: =O35+K35 -> 20.065
B36: C3 | C36: ↑ | D36: 3 | E36: C | F36: Paul Ridgeway | G36: =INDEX(Weekly!F:F,MATCH($F36,Weekly!$E:$E,0)) -> 0.54 | H36: =INDEX(Weekly!G:G,MATCH($F36,Weekly!$E:$E,0)) -> 2 | I36: =INDEX(Weekly!H:H,MATCH($F36,Weekly!$E:$E,0)) -> 0.54 | J36: =INDEX(Weekly!I:I,MATCH($F36,Weekly!$E:$E,0)) -> 2 | K36: =INDEX(Weekly!J:J,MATCH($F36,Weekly!$E:$E,0)) -> -40 | L36: =INDEX(Prizes!F:F,MATCH($B36,Prizes!A:A,0)) -> 21.87 | M36: =INDEX(Weekly!K:K,MATCH($F36,Weekly!$E:$E,0)) -> 0 | N36: =INDEX(Weekly!L:L,MATCH($F36,Weekly!$E:$E,0)) -> 0 | O36: =INDEX(Weekly!N:N,MATCH($F36,Weekly!$E:$E,0)) -> 21.87 | P36: =O36+K36 -> -18.13
B37: C4 | C37: ↑ | D37: 4 | E37: C | F37: Howard Bradley | G37: =INDEX(Weekly!F:F,MATCH($F37,Weekly!$E:$E,0)) -> 0.1333333333 | H37: =INDEX(Weekly!G:G,MATCH($F37,Weekly!$E:$E,0)) -> 2 | I37: =INDEX(Weekly!H:H,MATCH($F37,Weekly!$E:$E,0)) -> 0.1333333333 | J37: =INDEX(Weekly!I:I,MATCH($F37,Weekly!$E:$E,0)) -> 2 | K37: =INDEX(Weekly!J:J,MATCH($F37,Weekly!$E:$E,0)) -> -0.625 | L37: =INDEX(Prizes!F:F,MATCH($B37,Prizes!A:A,0)) -> 14.58 | M37: =INDEX(Weekly!K:K,MATCH($F37,Weekly!$E:$E,0)) -> 0 | N37: =INDEX(Weekly!L:L,MATCH($F37,Weekly!$E:$E,0)) -> 0 | O37: =INDEX(Weekly!N:N,MATCH($F37,Weekly!$E:$E,0)) -> 14.58 | P37: =O37+K37 -> 13.955
B38: C5 | C38: ↑ | D38: 5 | E38: C | F38: Charlie Griffiths | G38: =INDEX(Weekly!F:F,MATCH($F38,Weekly!$E:$E,0)) -> -4.1 | H38: =INDEX(Weekly!G:G,MATCH($F38,Weekly!$E:$E,0)) -> 1 | I38: =INDEX(Weekly!H:H,MATCH($F38,Weekly!$E:$E,0)) -> -4.1 | J38: =INDEX(Weekly!I:I,MATCH($F38,Weekly!$E:$E,0)) -> 1 | K38: =INDEX(Weekly!J:J,MATCH($F38,Weekly!$E:$E,0)) -> -31.355 | L38: =INDEX(Prizes!F:F,MATCH($B38,Prizes!A:A,0)) -> 8.505 | M38: =INDEX(Weekly!K:K,MATCH($F38,Weekly!$E:$E,0)) -> 0 | N38: =INDEX(Weekly!L:L,MATCH($F38,Weekly!$E:$E,0)) -> 0 | O38: =INDEX(Weekly!N:N,MATCH($F38,Weekly!$E:$E,0)) -> 8.505 | P38: =O38+K38 -> -22.85
B39: C6 | C39: ↑ | D39: 6 | E39: C | F39: Gerard Ventom | G39: =INDEX(Weekly!F:F,MATCH($F39,Weekly!$E:$E,0)) -> -4.45 | H39: =INDEX(Weekly!G:G,MATCH($F39,Weekly!$E:$E,0)) -> 1 | I39: =INDEX(Weekly!H:H,MATCH($F39,Weekly!$E:$E,0)) -> -4.45 | J39: =INDEX(Weekly!I:I,MATCH($F39,Weekly!$E:$E,0)) -> 1 | K39: =INDEX(Weekly!J:J,MATCH($F39,Weekly!$E:$E,0)) -> -12.94 | L39: =INDEX(Prizes!F:F,MATCH($B39,Prizes!A:A,0)) -> 3.645 | M39: =INDEX(Weekly!K:K,MATCH($F39,Weekly!$E:$E,0)) -> 0 | N39: =INDEX(Weekly!L:L,MATCH($F39,Weekly!$E:$E,0)) -> 0 | O39: =INDEX(Weekly!N:N,MATCH($F39,Weekly!$E:$E,0)) -> 3.645 | P39: =O39+K39 -> -9.295
B40: C7 | C40: Play-off | D40: 7 | E40: C | F40: Nick Blocksidge | G40: =INDEX(Weekly!F:F,MATCH($F40,Weekly!$E:$E,0)) -> -4.45 | H40: =INDEX(Weekly!G:G,MATCH($F40,Weekly!$E:$E,0)) -> 1 | I40: =INDEX(Weekly!H:H,MATCH($F40,Weekly!$E:$E,0)) -> -4.45 | J40: =INDEX(Weekly!I:I,MATCH($F40,Weekly!$E:$E,0)) -> 1 | K40: =INDEX(Weekly!J:J,MATCH($F40,Weekly!$E:$E,0)) -> -40 | L40: =INDEX(Prizes!F:F,MATCH($B40,Prizes!A:A,0)) -> 0 | M40: =INDEX(Weekly!K:K,MATCH($F40,Weekly!$E:$E,0)) -> 0 | N40: =INDEX(Weekly!L:L,MATCH($F40,Weekly!$E:$E,0)) -> 0 | O40: =INDEX(Weekly!N:N,MATCH($F40,Weekly!$E:$E,0)) -> 0 | P40: =O40+K40 -> -40
B41: C8 | C41: Play-off | D41: 8 | E41: C | F41: Mark Bunn | G41: =INDEX(Weekly!F:F,MATCH($F41,Weekly!$E:$E,0)) -> -4.5 | H41: =INDEX(Weekly!G:G,MATCH($F41,Weekly!$E:$E,0)) -> 1 | I41: =INDEX(Weekly!H:H,MATCH($F41,Weekly!$E:$E,0)) -> -4.5 | J41: =INDEX(Weekly!I:I,MATCH($F41,Weekly!$E:$E,0)) -> 1 | K41: =INDEX(Weekly!J:J,MATCH($F41,Weekly!$E:$E,0)) -> -7.38 | L41: =INDEX(Prizes!F:F,MATCH($B41,Prizes!A:A,0)) -> 0 | M41: =INDEX(Weekly!K:K,MATCH($F41,Weekly!$E:$E,0)) -> 0 | N41: =INDEX(Weekly!L:L,MATCH($F41,Weekly!$E:$E,0)) -> 0 | O41: =INDEX(Weekly!N:N,MATCH($F41,Weekly!$E:$E,0)) -> 0 | P41: =O41+K41 -> -7.38
B42: C9 | C42: Play-off | D42: 9 | E42: C | F42: David Dunn | G42: =INDEX(Weekly!F:F,MATCH($F42,Weekly!$E:$E,0)) -> -5.181818182 | H42: =INDEX(Weekly!G:G,MATCH($F42,Weekly!$E:$E,0)) -> 1 | I42: =INDEX(Weekly!H:H,MATCH($F42,Weekly!$E:$E,0)) -> -5.181818182 | J42: =INDEX(Weekly!I:I,MATCH($F42,Weekly!$E:$E,0)) -> 1 | K42: =INDEX(Weekly!J:J,MATCH($F42,Weekly!$E:$E,0)) -> -55 | L42: =INDEX(Prizes!F:F,MATCH($B42,Prizes!A:A,0)) -> 0 | M42: =INDEX(Weekly!K:K,MATCH($F42,Weekly!$E:$E,0)) -> 0 | N42: =INDEX(Weekly!L:L,MATCH($F42,Weekly!$E:$E,0)) -> 0 | O42: =INDEX(Weekly!N:N,MATCH($F42,Weekly!$E:$E,0)) -> 0 | P42: =O42+K42 -> -55
B43: C10 | C43: Play-off | D43: 10 | E43: C | F43: Antony Robinson | G43: =INDEX(Weekly!F:F,MATCH($F43,Weekly!$E:$E,0)) -> -5.857142857 | H43: =INDEX(Weekly!G:G,MATCH($F43,Weekly!$E:$E,0)) -> 1 | I43: =INDEX(Weekly!H:H,MATCH($F43,Weekly!$E:$E,0)) -> -5.857142857 | J43: =INDEX(Weekly!I:I,MATCH($F43,Weekly!$E:$E,0)) -> 1 | K43: =INDEX(Weekly!J:J,MATCH($F43,Weekly!$E:$E,0)) -> -3.75 | L43: =INDEX(Prizes!F:F,MATCH($B43,Prizes!A:A,0)) -> 0 | M43: =INDEX(Weekly!K:K,MATCH($F43,Weekly!$E:$E,0)) -> 0 | N43: =INDEX(Weekly!L:L,MATCH($F43,Weekly!$E:$E,0)) -> 0 | O43: =INDEX(Weekly!N:N,MATCH($F43,Weekly!$E:$E,0)) -> 0 | P43: =O43+K43 -> -3.75
B44: C11 | C44: ↓ | D44: 11 | E44: C | F44: Martin Molyneux | G44: =INDEX(Weekly!F:F,MATCH($F44,Weekly!$E:$E,0)) -> -7 | H44: =INDEX(Weekly!G:G,MATCH($F44,Weekly!$E:$E,0)) -> 0 | I44: =INDEX(Weekly!H:H,MATCH($F44,Weekly!$E:$E,0)) -> -7 | J44: =INDEX(Weekly!I:I,MATCH($F44,Weekly!$E:$E,0)) -> 0 | K44: =INDEX(Weekly!J:J,MATCH($F44,Weekly!$E:$E,0)) -> -22.495 | L44: =INDEX(Prizes!F:F,MATCH($B44,Prizes!A:A,0)) -> 0 | M44: =INDEX(Weekly!K:K,MATCH($F44,Weekly!$E:$E,0)) -> 0 | N44: =INDEX(Weekly!L:L,MATCH($F44,Weekly!$E:$E,0)) -> 0 | O44: =INDEX(Weekly!N:N,MATCH($F44,Weekly!$E:$E,0)) -> 0 | P44: =O44+K44 -> -22.495
B45: C12 | C45: ↓ | D45: 12 | E45: C | F45: Oscar Jackson | G45: =INDEX(Weekly!F:F,MATCH($F45,Weekly!$E:$E,0)) -> -7 | H45: =INDEX(Weekly!G:G,MATCH($F45,Weekly!$E:$E,0)) -> 0 | I45: =INDEX(Weekly!H:H,MATCH($F45,Weekly!$E:$E,0)) -> -7 | J45: =INDEX(Weekly!I:I,MATCH($F45,Weekly!$E:$E,0)) -> 0 | K45: =INDEX(Weekly!J:J,MATCH($F45,Weekly!$E:$E,0)) -> -30 | L45: =INDEX(Prizes!F:F,MATCH($B45,Prizes!A:A,0)) -> 0 | M45: =INDEX(Weekly!K:K,MATCH($F45,Weekly!$E:$E,0)) -> 0 | N45: =INDEX(Weekly!L:L,MATCH($F45,Weekly!$E:$E,0)) -> 0 | O45: =INDEX(Weekly!N:N,MATCH($F45,Weekly!$E:$E,0)) -> 0 | P45: =O45+K45 -> -30
B46: C13 | C46: ↓ | D46: 13 | E46: C | F46: Chris Townsend | G46: =INDEX(Weekly!F:F,MATCH($F46,Weekly!$E:$E,0)) -> -7 | H46: =INDEX(Weekly!G:G,MATCH($F46,Weekly!$E:$E,0)) -> 0 | I46: =INDEX(Weekly!H:H,MATCH($F46,Weekly!$E:$E,0)) -> -7 | J46: =INDEX(Weekly!I:I,MATCH($F46,Weekly!$E:$E,0)) -> 0 | K46: =INDEX(Weekly!J:J,MATCH($F46,Weekly!$E:$E,0)) -> -26.675 | L46: =INDEX(Prizes!F:F,MATCH($B46,Prizes!A:A,0)) -> 0 | M46: =INDEX(Weekly!K:K,MATCH($F46,Weekly!$E:$E,0)) -> 0 | N46: =INDEX(Weekly!L:L,MATCH($F46,Weekly!$E:$E,0)) -> 0 | O46: =INDEX(Weekly!N:N,MATCH($F46,Weekly!$E:$E,0)) -> 0 | P46: =O46+K46 -> -26.675
B47: C14 | C47: ↓ | D47: 14 | E47: C | F47: Jack Walsh | G47: =INDEX(Weekly!F:F,MATCH($F47,Weekly!$E:$E,0)) -> -7 | H47: =INDEX(Weekly!G:G,MATCH($F47,Weekly!$E:$E,0)) -> 0 | I47: =INDEX(Weekly!H:H,MATCH($F47,Weekly!$E:$E,0)) -> -7 | J47: =INDEX(Weekly!I:I,MATCH($F47,Weekly!$E:$E,0)) -> 0 | K47: =INDEX(Weekly!J:J,MATCH($F47,Weekly!$E:$E,0)) -> 5 | L47: =INDEX(Prizes!F:F,MATCH($B47,Prizes!A:A,0)) -> 0 | M47: =INDEX(Weekly!K:K,MATCH($F47,Weekly!$E:$E,0)) -> 0 | N47: =INDEX(Weekly!L:L,MATCH($F47,Weekly!$E:$E,0)) -> 0 | O47: =INDEX(Weekly!N:N,MATCH($F47,Weekly!$E:$E,0)) -> 0 | P47: =O47+K47 -> 5
B48: C15 | C48: ↓ | D48: 15 | E48: C | F48: Graeme Holmes | G48: =INDEX(Weekly!F:F,MATCH($F48,Weekly!$E:$E,0)) -> -7 | H48: =INDEX(Weekly!G:G,MATCH($F48,Weekly!$E:$E,0)) -> 0 | I48: =INDEX(Weekly!H:H,MATCH($F48,Weekly!$E:$E,0)) -> -7 | J48: =INDEX(Weekly!I:I,MATCH($F48,Weekly!$E:$E,0)) -> 0 | K48: =INDEX(Weekly!J:J,MATCH($F48,Weekly!$E:$E,0)) -> -35 | L48: =INDEX(Prizes!F:F,MATCH($B48,Prizes!A:A,0)) -> 0 | M48: =INDEX(Weekly!K:K,MATCH($F48,Weekly!$E:$E,0)) -> 0 | N48: =INDEX(Weekly!L:L,MATCH($F48,Weekly!$E:$E,0)) -> 0 | O48: =INDEX(Weekly!N:N,MATCH($F48,Weekly!$E:$E,0)) -> 0 | P48: =O48+K48 -> -35
B49: C16 | C49: ↓ | D49: 16 | E49: C | F49: Ben Rosser | G49: =INDEX(Weekly!F:F,MATCH($F49,Weekly!$E:$E,0)) -> -7 | H49: =INDEX(Weekly!G:G,MATCH($F49,Weekly!$E:$E,0)) -> 0 | I49: =INDEX(Weekly!H:H,MATCH($F49,Weekly!$E:$E,0)) -> -7 | J49: =INDEX(Weekly!I:I,MATCH($F49,Weekly!$E:$E,0)) -> 0 | K49: =INDEX(Weekly!J:J,MATCH($F49,Weekly!$E:$E,0)) -> -40 | L49: =INDEX(Prizes!F:F,MATCH($B49,Prizes!A:A,0)) -> 0 | M49: =INDEX(Weekly!K:K,MATCH($F49,Weekly!$E:$E,0)) -> 0 | N49: =INDEX(Weekly!L:L,MATCH($F49,Weekly!$E:$E,0)) -> 0 | O49: =INDEX(Weekly!N:N,MATCH($F49,Weekly!$E:$E,0)) -> 0 | P49: =O49+K49 -> -40
A50: Division D | B50: D1 | C50: ↑ | D50: 1 | E50: D | F50: Martin Tarbuck | G50: =INDEX(Weekly!F:F,MATCH($F50,Weekly!$E:$E,0)) -> -0.9125 | H50: =INDEX(Weekly!G:G,MATCH($F50,Weekly!$E:$E,0)) -> 2 | I50: =INDEX(Weekly!H:H,MATCH($F50,Weekly!$E:$E,0)) -> -0.9125 | J50: =INDEX(Weekly!I:I,MATCH($F50,Weekly!$E:$E,0)) -> 2 | K50: =INDEX(Weekly!J:J,MATCH($F50,Weekly!$E:$E,0)) -> -40 | L50: =INDEX(Prizes!F:F,MATCH($B50,Prizes!A:A,0)) -> 28.35 | M50: =INDEX(Weekly!K:K,MATCH($F50,Weekly!$E:$E,0)) -> 0 | N50: =INDEX(Weekly!L:L,MATCH($F50,Weekly!$E:$E,0)) -> 0 | O50: =INDEX(Weekly!N:N,MATCH($F50,Weekly!$E:$E,0)) -> 28.35 | P50: =O50+K50 -> -11.65
B51: D2 | C51: ↑ | D51: 2 | E51: D | F51: Ian Davies | G51: =INDEX(Weekly!F:F,MATCH($F51,Weekly!$E:$E,0)) -> -3.636363636 | H51: =INDEX(Weekly!G:G,MATCH($F51,Weekly!$E:$E,0)) -> 1 | I51: =INDEX(Weekly!H:H,MATCH($F51,Weekly!$E:$E,0)) -> -3.636363636 | J51: =INDEX(Weekly!I:I,MATCH($F51,Weekly!$E:$E,0)) -> 1 | K51: =INDEX(Weekly!J:J,MATCH($F51,Weekly!$E:$E,0)) -> -35 | L51: =INDEX(Prizes!F:F,MATCH($B51,Prizes!A:A,0)) -> 20.25 | M51: =INDEX(Weekly!K:K,MATCH($F51,Weekly!$E:$E,0)) -> 0 | N51: =INDEX(Weekly!L:L,MATCH($F51,Weekly!$E:$E,0)) -> 0 | O51: =INDEX(Weekly!N:N,MATCH($F51,Weekly!$E:$E,0)) -> 20.25 | P51: =O51+K51 -> -14.75
B52: D3 | C52: ↑ | D52: 3 | E52: D | F52: Sally Williams | G52: =INDEX(Weekly!F:F,MATCH($F52,Weekly!$E:$E,0)) -> -3.7 | H52: =INDEX(Weekly!G:G,MATCH($F52,Weekly!$E:$E,0)) -> 1 | I52: =INDEX(Weekly!H:H,MATCH($F52,Weekly!$E:$E,0)) -> -3.7 | J52: =INDEX(Weekly!I:I,MATCH($F52,Weekly!$E:$E,0)) -> 1 | K52: =INDEX(Weekly!J:J,MATCH($F52,Weekly!$E:$E,0)) -> -20.28 | L52: =INDEX(Prizes!F:F,MATCH($B52,Prizes!A:A,0)) -> 14.58 | M52: =INDEX(Weekly!K:K,MATCH($F52,Weekly!$E:$E,0)) -> 0 | N52: =INDEX(Weekly!L:L,MATCH($F52,Weekly!$E:$E,0)) -> 0 | O52: =INDEX(Weekly!N:N,MATCH($F52,Weekly!$E:$E,0)) -> 14.58 | P52: =O52+K52 -> -5.7
B53: D4 | C53: ↑ | D53: 4 | E53: D | F53: Liam Wah | G53: =INDEX(Weekly!F:F,MATCH($F53,Weekly!$E:$E,0)) -> -3.7 | H53: =INDEX(Weekly!G:G,MATCH($F53,Weekly!$E:$E,0)) -> 1 | I53: =INDEX(Weekly!H:H,MATCH($F53,Weekly!$E:$E,0)) -> -3.7 | J53: =INDEX(Weekly!I:I,MATCH($F53,Weekly!$E:$E,0)) -> 1 | K53: =INDEX(Weekly!J:J,MATCH($F53,Weekly!$E:$E,0)) -> -30 | L53: =INDEX(Prizes!F:F,MATCH($B53,Prizes!A:A,0)) -> 9.72 | M53: =INDEX(Weekly!K:K,MATCH($F53,Weekly!$E:$E,0)) -> 0 | N53: =INDEX(Weekly!L:L,MATCH($F53,Weekly!$E:$E,0)) -> 0 | O53: =INDEX(Weekly!N:N,MATCH($F53,Weekly!$E:$E,0)) -> 9.72 | P53: =O53+K53 -> -20.28
B54: D5 | C54: ↑ | D54: 5 | E54: D | F54: John Ronan | G54: =INDEX(Weekly!F:F,MATCH($F54,Weekly!$E:$E,0)) -> -3.9 | H54: =INDEX(Weekly!G:G,MATCH($F54,Weekly!$E:$E,0)) -> 1 | I54: =INDEX(Weekly!H:H,MATCH($F54,Weekly!$E:$E,0)) -> -3.9 | J54: =INDEX(Weekly!I:I,MATCH($F54,Weekly!$E:$E,0)) -> 1 | K54: =INDEX(Weekly!J:J,MATCH($F54,Weekly!$E:$E,0)) -> -35 | L54: =INDEX(Prizes!F:F,MATCH($B54,Prizes!A:A,0)) -> 5.67 | M54: =INDEX(Weekly!K:K,MATCH($F54,Weekly!$E:$E,0)) -> 0 | N54: =INDEX(Weekly!L:L,MATCH($F54,Weekly!$E:$E,0)) -> 0 | O54: =INDEX(Weekly!N:N,MATCH($F54,Weekly!$E:$E,0)) -> 5.67 | P54: =O54+K54 -> -29.33
B55: D6 | C55: ↑ | D55: 6 | E55: D | F55: Paul Adderley | G55: =INDEX(Weekly!F:F,MATCH($F55,Weekly!$E:$E,0)) -> -4.45 | H55: =INDEX(Weekly!G:G,MATCH($F55,Weekly!$E:$E,0)) -> 1 | I55: =INDEX(Weekly!H:H,MATCH($F55,Weekly!$E:$E,0)) -> -4.45 | J55: =INDEX(Weekly!I:I,MATCH($F55,Weekly!$E:$E,0)) -> 1 | K55: =INDEX(Weekly!J:J,MATCH($F55,Weekly!$E:$E,0)) -> 18.33 | L55: =INDEX(Prizes!F:F,MATCH($B55,Prizes!A:A,0)) -> 2.43 | M55: =INDEX(Weekly!K:K,MATCH($F55,Weekly!$E:$E,0)) -> 0 | N55: =INDEX(Weekly!L:L,MATCH($F55,Weekly!$E:$E,0)) -> 0 | O55: =INDEX(Weekly!N:N,MATCH($F55,Weekly!$E:$E,0)) -> 2.43 | P55: =O55+K55 -> 20.76
B56: D7 | C56: Play-off | D56: 7 | E56: D | F56: Simon Greenhalgh | G56: =INDEX(Weekly!F:F,MATCH($F56,Weekly!$E:$E,0)) -> -4.5 | H56: =INDEX(Weekly!G:G,MATCH($F56,Weekly!$E:$E,0)) -> 1 | I56: =INDEX(Weekly!H:H,MATCH($F56,Weekly!$E:$E,0)) -> -4.5 | J56: =INDEX(Weekly!I:I,MATCH($F56,Weekly!$E:$E,0)) -> 1 | K56: =INDEX(Weekly!J:J,MATCH($F56,Weekly!$E:$E,0)) -> 3.35 | L56: =INDEX(Prizes!F:F,MATCH($B56,Prizes!A:A,0)) -> 0 | M56: =INDEX(Weekly!K:K,MATCH($F56,Weekly!$E:$E,0)) -> 0 | N56: =INDEX(Weekly!L:L,MATCH($F56,Weekly!$E:$E,0)) -> 0 | O56: =INDEX(Weekly!N:N,MATCH($F56,Weekly!$E:$E,0)) -> 0 | P56: =O56+K56 -> 3.35
B57: D8 | C57: Play-off | D57: 8 | E57: D | F57: Chris Bow | G57: =INDEX(Weekly!F:F,MATCH($F57,Weekly!$E:$E,0)) -> -5.090909091 | H57: =INDEX(Weekly!G:G,MATCH($F57,Weekly!$E:$E,0)) -> 1 | I57: =INDEX(Weekly!H:H,MATCH($F57,Weekly!$E:$E,0)) -> -5.090909091 | J57: =INDEX(Weekly!I:I,MATCH($F57,Weekly!$E:$E,0)) -> 1 | K57: =INDEX(Weekly!J:J,MATCH($F57,Weekly!$E:$E,0)) -> -40 | L57: =INDEX(Prizes!F:F,MATCH($B57,Prizes!A:A,0)) -> 0 | M57: =INDEX(Weekly!K:K,MATCH($F57,Weekly!$E:$E,0)) -> 0 | N57: =INDEX(Weekly!L:L,MATCH($F57,Weekly!$E:$E,0)) -> 0 | O57: =INDEX(Weekly!N:N,MATCH($F57,Weekly!$E:$E,0)) -> 0 | P57: =O57+K57 -> -40
B58: D9 | D58: 9 | E58: D | F58: Vinny Topping | G58: =INDEX(Weekly!F:F,MATCH($F58,Weekly!$E:$E,0)) -> -5.2 | H58: =INDEX(Weekly!G:G,MATCH($F58,Weekly!$E:$E,0)) -> 1 | I58: =INDEX(Weekly!H:H,MATCH($F58,Weekly!$E:$E,0)) -> -5.2 | J58: =INDEX(Weekly!I:I,MATCH($F58,Weekly!$E:$E,0)) -> 1 | K58: =INDEX(Weekly!J:J,MATCH($F58,Weekly!$E:$E,0)) -> 55.07 | L58: =INDEX(Prizes!F:F,MATCH($B58,Prizes!A:A,0)) -> 0 | M58: =INDEX(Weekly!K:K,MATCH($F58,Weekly!$E:$E,0)) -> 0 | N58: =INDEX(Weekly!L:L,MATCH($F58,Weekly!$E:$E,0)) -> 0 | O58: =INDEX(Weekly!N:N,MATCH($F58,Weekly!$E:$E,0)) -> 0 | P58: =O58+K58 -> 55.07
B59: D10 | D59: 10 | E59: D | F59: Gareth McGuire | G59: =INDEX(Weekly!F:F,MATCH($F59,Weekly!$E:$E,0)) -> -5.333333333 | H59: =INDEX(Weekly!G:G,MATCH($F59,Weekly!$E:$E,0)) -> 1 | I59: =INDEX(Weekly!H:H,MATCH($F59,Weekly!$E:$E,0)) -> -5.333333333 | J59: =INDEX(Weekly!I:I,MATCH($F59,Weekly!$E:$E,0)) -> 1 | K59: =INDEX(Weekly!J:J,MATCH($F59,Weekly!$E:$E,0)) -> 0 | L59: =INDEX(Prizes!F:F,MATCH($B59,Prizes!A:A,0)) -> 0 | M59: =INDEX(Weekly!K:K,MATCH($F59,Weekly!$E:$E,0)) -> 0 | N59: =INDEX(Weekly!L:L,MATCH($F59,Weekly!$E:$E,0)) -> 0 | O59: =INDEX(Weekly!N:N,MATCH($F59,Weekly!$E:$E,0)) -> 0 | P59: =O59+K59 -> 0
B60: D11 | D60: 11 | E60: D | F60: Lewis Buckley | G60: =INDEX(Weekly!F:F,MATCH($F60,Weekly!$E:$E,0)) -> -5.333333333 | H60: =INDEX(Weekly!G:G,MATCH($F60,Weekly!$E:$E,0)) -> 1 | I60: =INDEX(Weekly!H:H,MATCH($F60,Weekly!$E:$E,0)) -> -5.333333333 | J60: =INDEX(Weekly!I:I,MATCH($F60,Weekly!$E:$E,0)) -> 1 | K60: =INDEX(Weekly!J:J,MATCH($F60,Weekly!$E:$E,0)) -> 0 | L60: =INDEX(Prizes!F:F,MATCH($B60,Prizes!A:A,0)) -> 0 | M60: =INDEX(Weekly!K:K,MATCH($F60,Weekly!$E:$E,0)) -> 0 | N60: =INDEX(Weekly!L:L,MATCH($F60,Weekly!$E:$E,0)) -> 0 | O60: =INDEX(Weekly!N:N,MATCH($F60,Weekly!$E:$E,0)) -> 0 | P60: =O60+K60 -> 0
B61: D12 | D61: 12 | E61: D | F61: Paul Barnes | G61: =INDEX(Weekly!F:F,MATCH($F61,Weekly!$E:$E,0)) -> -7 | H61: =INDEX(Weekly!G:G,MATCH($F61,Weekly!$E:$E,0)) -> 0 | I61: =INDEX(Weekly!H:H,MATCH($F61,Weekly!$E:$E,0)) -> -7 | J61: =INDEX(Weekly!I:I,MATCH($F61,Weekly!$E:$E,0)) -> 0 | K61: =INDEX(Weekly!J:J,MATCH($F61,Weekly!$E:$E,0)) -> -24.33 | L61: =INDEX(Prizes!F:F,MATCH($B61,Prizes!A:A,0)) -> 0 | M61: =INDEX(Weekly!K:K,MATCH($F61,Weekly!$E:$E,0)) -> 0 | N61: =INDEX(Weekly!L:L,MATCH($F61,Weekly!$E:$E,0)) -> 0 | O61: =INDEX(Weekly!N:N,MATCH($F61,Weekly!$E:$E,0)) -> 0 | P61: =O61+K61 -> -24.33
B62: D13 | D62: 13 | E62: D | F62: Aaron Sudell | G62: =INDEX(Weekly!F:F,MATCH($F62,Weekly!$E:$E,0)) -> -7 | H62: =INDEX(Weekly!G:G,MATCH($F62,Weekly!$E:$E,0)) -> 0 | I62: =INDEX(Weekly!H:H,MATCH($F62,Weekly!$E:$E,0)) -> -7 | J62: =INDEX(Weekly!I:I,MATCH($F62,Weekly!$E:$E,0)) -> 0 | K62: =INDEX(Weekly!J:J,MATCH($F62,Weekly!$E:$E,0)) -> -27.57 | L62: =INDEX(Prizes!F:F,MATCH($B62,Prizes!A:A,0)) -> 0 | M62: =INDEX(Weekly!K:K,MATCH($F62,Weekly!$E:$E,0)) -> 0 | N62: =INDEX(Weekly!L:L,MATCH($F62,Weekly!$E:$E,0)) -> 0 | O62: =INDEX(Weekly!N:N,MATCH($F62,Weekly!$E:$E,0)) -> 0 | P62: =O62+K62 -> -27.57
B63: D14 | D63: 14 | E63: D | F63: Dan Baxter | G63: =INDEX(Weekly!F:F,MATCH($F63,Weekly!$E:$E,0)) -> -7 | H63: =INDEX(Weekly!G:G,MATCH($F63,Weekly!$E:$E,0)) -> 0 | I63: =INDEX(Weekly!H:H,MATCH($F63,Weekly!$E:$E,0)) -> -7 | J63: =INDEX(Weekly!I:I,MATCH($F63,Weekly!$E:$E,0)) -> 0 | K63: =INDEX(Weekly!J:J,MATCH($F63,Weekly!$E:$E,0)) -> -35 | L63: =INDEX(Prizes!F:F,MATCH($B63,Prizes!A:A,0)) -> 0 | M63: =INDEX(Weekly!K:K,MATCH($F63,Weekly!$E:$E,0)) -> 0 | N63: =INDEX(Weekly!L:L,MATCH($F63,Weekly!$E:$E,0)) -> 0 | O63: =INDEX(Weekly!N:N,MATCH($F63,Weekly!$E:$E,0)) -> 0 | P63: =O63+K63 -> -35
B64: D15 | D64: 15 | E64: D | F64: Ashley Houghton | G64: =INDEX(Weekly!F:F,MATCH($F64,Weekly!$E:$E,0)) -> -7 | H64: =INDEX(Weekly!G:G,MATCH($F64,Weekly!$E:$E,0)) -> 0 | I64: =INDEX(Weekly!H:H,MATCH($F64,Weekly!$E:$E,0)) -> -7 | J64: =INDEX(Weekly!I:I,MATCH($F64,Weekly!$E:$E,0)) -> 0 | K64: =INDEX(Weekly!J:J,MATCH($F64,Weekly!$E:$E,0)) -> -35 | L64: =INDEX(Prizes!F:F,MATCH($B64,Prizes!A:A,0)) -> 0 | M64: =INDEX(Weekly!K:K,MATCH($F64,Weekly!$E:$E,0)) -> 0 | N64: =INDEX(Weekly!L:L,MATCH($F64,Weekly!$E:$E,0)) -> 0 | O64: =INDEX(Weekly!N:N,MATCH($F64,Weekly!$E:$E,0)) -> 0 | P64: =O64+K64 -> -35
B65: D16 | D65: 16 | E65: D | F65: James Bell | G65: =INDEX(Weekly!F:F,MATCH($F65,Weekly!$E:$E,0)) -> -7 | H65: =INDEX(Weekly!G:G,MATCH($F65,Weekly!$E:$E,0)) -> 0 | I65: =INDEX(Weekly!H:H,MATCH($F65,Weekly!$E:$E,0)) -> -7 | J65: =INDEX(Weekly!I:I,MATCH($F65,Weekly!$E:$E,0)) -> 0 | K65: =INDEX(Weekly!J:J,MATCH($F65,Weekly!$E:$E,0)) -> -35 | L65: =INDEX(Prizes!F:F,MATCH($B65,Prizes!A:A,0)) -> 0 | M65: =INDEX(Weekly!K:K,MATCH($F65,Weekly!$E:$E,0)) -> 0 | N65: =INDEX(Weekly!L:L,MATCH($F65,Weekly!$E:$E,0)) -> 0 | O65: =INDEX(Weekly!N:N,MATCH($F65,Weekly!$E:$E,0)) -> 0 | P65: =O65+K65 -> -35
B66: D17 | D66: 17 | E66: D | F66: Dave Bell | G66: =INDEX(Weekly!F:F,MATCH($F66,Weekly!$E:$E,0)) -> -7 | H66: =INDEX(Weekly!G:G,MATCH($F66,Weekly!$E:$E,0)) -> 0 | I66: =INDEX(Weekly!H:H,MATCH($F66,Weekly!$E:$E,0)) -> -7 | J66: =INDEX(Weekly!I:I,MATCH($F66,Weekly!$E:$E,0)) -> 0 | K66: =INDEX(Weekly!J:J,MATCH($F66,Weekly!$E:$E,0)) -> 0 | L66: =INDEX(Prizes!F:F,MATCH($B66,Prizes!A:A,0)) -> 0 | M66: =INDEX(Weekly!K:K,MATCH($F66,Weekly!$E:$E,0)) -> 0 | N66: =INDEX(Weekly!L:L,MATCH($F66,Weekly!$E:$E,0)) -> 0 | O66: =INDEX(Weekly!N:N,MATCH($F66,Weekly!$E:$E,0)) -> 0 | P66: =O66+K66 -> 0
B67: D18 | D67: 18 | E67: D | F67: Joel Bent | G67: =INDEX(Weekly!F:F,MATCH($F67,Weekly!$E:$E,0)) -> -7 | H67: =INDEX(Weekly!G:G,MATCH($F67,Weekly!$E:$E,0)) -> 0 | I67: =INDEX(Weekly!H:H,MATCH($F67,Weekly!$E:$E,0)) -> -7 | J67: =INDEX(Weekly!I:I,MATCH($F67,Weekly!$E:$E,0)) -> 0 | K67: =INDEX(Weekly!J:J,MATCH($F67,Weekly!$E:$E,0)) -> 0 | L67: =INDEX(Prizes!F:F,MATCH($B67,Prizes!A:A,0)) -> 0 | M67: =INDEX(Weekly!K:K,MATCH($F67,Weekly!$E:$E,0)) -> 0 | N67: =INDEX(Weekly!L:L,MATCH($F67,Weekly!$E:$E,0)) -> 0 | O67: =INDEX(Weekly!N:N,MATCH($F67,Weekly!$E:$E,0)) -> 0 | P67: =O67+K67 -> 0
B68: D19 | D68: 19 | E68: D | F68: Alan White | G68: =INDEX(Weekly!F:F,MATCH($F68,Weekly!$E:$E,0)) -> -7 | H68: =INDEX(Weekly!G:G,MATCH($F68,Weekly!$E:$E,0)) -> 0 | I68: =INDEX(Weekly!H:H,MATCH($F68,Weekly!$E:$E,0)) -> -7 | J68: =INDEX(Weekly!I:I,MATCH($F68,Weekly!$E:$E,0)) -> 0 | K68: =INDEX(Weekly!J:J,MATCH($F68,Weekly!$E:$E,0)) -> 0 | L68: =INDEX(Prizes!F:F,MATCH($B68,Prizes!A:A,0)) -> 0 | M68: =INDEX(Weekly!K:K,MATCH($F68,Weekly!$E:$E,0)) -> 0 | N68: =INDEX(Weekly!L:L,MATCH($F68,Weekly!$E:$E,0)) -> 0 | O68: =INDEX(Weekly!N:N,MATCH($F68,Weekly!$E:$E,0)) -> 0 | P68: =O68+K68 -> 0
B69: D20 | D69: 20 | E69: D | F69: Andy Clucas | G69: =INDEX(Weekly!F:F,MATCH($F69,Weekly!$E:$E,0)) -> -7 | H69: =INDEX(Weekly!G:G,MATCH($F69,Weekly!$E:$E,0)) -> 0 | I69: =INDEX(Weekly!H:H,MATCH($F69,Weekly!$E:$E,0)) -> -7 | J69: =INDEX(Weekly!I:I,MATCH($F69,Weekly!$E:$E,0)) -> 0 | K69: =INDEX(Weekly!J:J,MATCH($F69,Weekly!$E:$E,0)) -> 0 | L69: =INDEX(Prizes!F:F,MATCH($B69,Prizes!A:A,0)) -> 0 | M69: =INDEX(Weekly!K:K,MATCH($F69,Weekly!$E:$E,0)) -> 0 | N69: =INDEX(Weekly!L:L,MATCH($F69,Weekly!$E:$E,0)) -> 0 | O69: =INDEX(Weekly!N:N,MATCH($F69,Weekly!$E:$E,0)) -> 0 | P69: =O69+K69 -> 0
L72: =SUM(L2:L70) -> 810 | M72: =SUM(M2:M70) -> 25 | N72: =SUM(N2:N70) -> 0 | O72: =SUM(O2:O70) -> 835 | P72: =SUM(P2:P70) -> 1187.22

Sheet Fixture
A1: Date | B1: Competition | C1: Odds | D1: Result
A2: =IF(Match!A2="","",Match!A2) -> 2019-08-09 | B2: =IF(Match!C2="","",Match!C2) -> Premier | C2: =IF(Match!S2="","",Match!S2) -> Liverpool v Norwich 1/7 7/1 18/1 | D2: =IF(Match!T2="","",Match!T2) -> Liverpool 4-1 Norwich
A3: =IF(Match!A3="","",Match!A3) -> 2019-08-10 | B3: =IF(Match!C3="","",Match!C3) -> Premier | C3: =IF(Match!S3="","",Match!S3) -> Bournemouth v Sheff U 10/11 13/5 3/1 | D3: =IF(Match!T3="","",Match!T3) -> Bournemouth 1-1 Sheff U
A4: =IF(Match!A4="","",Match!A4) -> 2019-08-10 | B4: =IF(Match!C4="","",Match!C4) -> Premier | C4: =IF(Match!S4="","",Match!S4) -> Burnley v Southampton 31/20 23/10 9/5 | D4: =IF(Match!T4="","",Match!T4) -> Burnley 3-0 Southampton
A5: =IF(Match!A5="","",Match!A5) -> 2019-08-10 | B5: =IF(Match!C5="","",Match!C5) -> Premier | C5: =IF(Match!S5="","",Match!S5) -> Palace v Everton 19/10 23/10 6/4 | D5: =IF(Match!T5="","",Match!T5) -> Palace 0-0 Everton
A6: =IF(Match!A6="","",Match!A6) -> 2019-08-10 | B6: =IF(Match!C6="","",Match!C6) -> Premier | C6: =IF(Match!S6="","",Match!S6) -> Spurs v Villa 27/100 24/5 10/1 | D6: =IF(Match!T6="","",Match!T6) -> Spurs 3-1 Villa
A7: =IF(Match!A7="","",Match!A7) -> 2019-08-10 | B7: =IF(Match!C7="","",Match!C7) -> Premier | C7: =IF(Match!S7="","",Match!S7) -> Watford v Brighton 10/11 12/5 10/3 | D7: =IF(Match!T7="","",Match!T7) -> Watford 0-3 Brighton
A8: =IF(Match!A8="","",Match!A8) -> 2019-08-10 | B8: =IF(Match!C8="","",Match!C8) -> Premier | C8: =IF(Match!S8="","",Match!S8) -> West Ham v Man C 11/1 5/1 1/4 | D8: =IF(Match!T8="","",Match!T8) -> West Ham 0-5 Man C
A9: =IF(Match!A9="","",Match!A9) -> 2019-08-10 | B9: =IF(Match!C9="","",Match!C9) -> Champ | C9: =IF(Match!S9="","",Match!S9) -> Birmingham v Bristol C 27/20 23/10 21/10 | D9: =IF(Match!T9="","",Match!T9) -> Birmingham 1-1 Bristol C
A10: =IF(Match!A10="","",Match!A10) -> 2019-08-10 | B10: =IF(Match!C10="","",Match!C10) -> Champ | C10: =IF(Match!S10="","",Match!S10) -> Cardiff v Luton 78/100 13/5 19/5 | D10: =IF(Match!T10="","",Match!T10) -> Cardiff 2-1 Luton
A11: =IF(Match!A11="","",Match!A11) -> 2019-08-10 | B11: =IF(Match!C11="","",Match!C11) -> Champ | C11: =IF(Match!S11="","",Match!S11) -> Charlton v Stoke 21/10 12/5 13/10 | D11: =IF(Match!T11="","",Match!T11) -> Charlton 3-1 Stoke
A12: =IF(Match!A12="","",Match!A12) -> 2019-08-10 | B12: =IF(Match!C12="","",Match!C12) -> Champ | C12: =IF(Match!S12="","",Match!S12) -> Derby v Swansea 23/20 12/5 12/5 | D12: =IF(Match!T12="","",Match!T12) -> Derby 0-0 Swansea
A13: =IF(Match!A13="","",Match!A13) -> 2019-08-10 | B13: =IF(Match!C13="","",Match!C13) -> Champ | C13: =IF(Match!S13="","",Match!S13) -> Fulham v Blackburn 4/5 11/4 17/5 | D13: =IF(Match!T13="","",Match!T13) -> Fulham 2-0 Blackburn
A14: =IF(Match!A14="","",Match!A14) -> 2019-08-10 | B14: =IF(Match!C14="","",Match!C14) -> Champ | C14: =IF(Match!S14="","",Match!S14) -> Hull v Reading 21/20 12/5 27/10 | D14: =IF(Match!T14="","",Match!T14) -> Hull 2-1 Reading
A15: =IF(Match!A15="","",Match!A15) -> 2019-08-10 | B15: =IF(Match!C15="","",Match!C15) -> Champ | C15: =IF(Match!S15="","",Match!S15) -> Leeds v Forest 7/10 14/5 4/1 | D15: =IF(Match!T15="","",Match!T15) -> Leeds 1-1 Forest
A16: =IF(Match!A16="","",Match!A16) -> 2019-08-10 | B16: =IF(Match!C16="","",Match!C16) -> Champ | C16: =IF(Match!S16="","",Match!S16) -> Middlesbro v Brentford 13/10 12/5 21/10 | D16: =IF(Match!T16="","",Match!T16) -> Middlesbro 0-1 Brentford
A17: =IF(Match!A17="","",Match!A17) -> 2019-08-10 | B17: =IF(Match!C17="","",Match!C17) -> Champ | C17: =IF(Match!S17="","",Match!S17) -> Preston v Wigan 11/10 23/10 27/10 | D17: =IF(Match!T17="","",Match!T17) -> Preston 3-0 Wigan
A18: =IF(Match!A18="","",Match!A18) -> 2019-08-10 | B18: =IF(Match!C18="","",Match!C18) -> Champ | C18: =IF(Match!S18="","",Match!S18) -> QPR v Huddersfield 31/20 23/10 9/5 | D18: =IF(Match!T18="","",Match!T18) -> QPR 1-1 Huddersfield
A19: =IF(Match!A19="","",Match!A19) -> 2019-08-10 | B19: =IF(Match!C19="","",Match!C19) -> Champ | C19: =IF(Match!S19="","",Match!S19) -> Sheff W v Barnsley 21/20 12/5 27/10 | D19: =IF(Match!T19="","",Match!T19) -> Sheff W 2-0 Barnsley
A20: =IF(Match!A20="","",Match!A20) -> 2019-08-10 | B20: =IF(Match!C20="","",Match!C20) -> Champ | C20: =IF(Match!S20="","",Match!S20) -> West Brom v Millwall 7/10 11/4 17/4 | D20: =IF(Match!T20="","",Match!T20) -> West Brom 1-1 Millwall
A21: =IF(Match!A21="","",Match!A21) -> 2019-08-10 | B21: =IF(Match!C21="","",Match!C21) -> League 1 | C21: =IF(Match!S21="","",Match!S21) -> Bristol R v Wycombe 6/5 23/10 21/10 | D21: =IF(Match!T21="","",Match!T21) -> Bristol R 0-0 Wycombe
A22: =IF(Match!A22="","",Match!A22) -> 2019-08-10 | B22: =IF(Match!C22="","",Match!C22) -> League 1 | C22: =IF(Match!S22="","",Match!S22) -> Fleetwood v Wimbledon 10/11 23/10 3/1 | D22: =IF(Match!T22="","",Match!T22) -> Fleetwood 2-1 Wimbledon
A23: =IF(Match!A23="","",Match!A23) -> 2019-08-10 | B23: =IF(Match!C23="","",Match!C23) -> League 1 | C23: =IF(Match!S23="","",Match!S23) -> Gillingham v Burton 13/8 23/10 6/4 | D23: =IF(Match!T23="","",Match!T23) -> Gillingham 1-2 Burton
A24: =IF(Match!A24="","",Match!A24) -> 2019-08-10 | B24: =IF(Match!C24="","",Match!C24) -> League 1 | C24: =IF(Match!S24="","",Match!S24) -> Ipswich v Sunderland 7/5 23/10 9/5 | D24: =IF(Match!T24="","",Match!T24) -> Ipswich 1-1 Sunderland
A25: =IF(Match!A25="","",Match!A25) -> 2019-08-10 | B25: =IF(Match!C25="","",Match!C25) -> League 1 | C25: =IF(Match!S25="","",Match!S25) -> MK Dons v Shrewsbury 15/13 23/10 11/5 | D25: =IF(Match!T25="","",Match!T25) -> MK Dons 1-0 Shrewsbury
A26: =IF(Match!A26="","",Match!A26) -> 2019-08-10 | B26: =IF(Match!C26="","",Match!C26) -> League 1 | C26: =IF(Match!S26="","",Match!S26) -> Oxford v Peterborough 6/4 23/10 13/8 | D26: =IF(Match!T26="","",Match!T26) -> Oxford 1-0 Peterborough
A27: =IF(Match!A27="","",Match!A27) -> 2019-08-10 | B27: =IF(Match!C27="","",Match!C27) -> League 1 | C27: =IF(Match!S27="","",Match!S27) -> Portsmouth v Tranmere 4/6 11/4 18/5 | D27: =IF(Match!T27="","",Match!T27) -> Portsmouth 2-0 Tranmere
A28: =IF(Match!A28="","",Match!A28) -> 2019-08-10 | B28: =IF(Match!C28="","",Match!C28) -> League 1 | C28: =IF(Match!S28="","",Match!S28) -> Rochdale v Doncaster 13/8 23/10 6/4 | D28: =IF(Match!T28="","",Match!T28) -> Rochdale 1-1 Doncaster
A29: =IF(Match!A29="","",Match!A29) -> 2019-08-10 | B29: =IF(Match!C29="","",Match!C29) -> League 1 | C29: =IF(Match!S29="","",Match!S29) -> Rotherham v Lincoln 11/10 23/10 23/10 | D29: =IF(Match!T29="","",Match!T29) -> Rotherham 0-2 Lincoln
A30: =IF(Match!A30="","",Match!A30) -> 2019-08-10 | B30: =IF(Match!C30="","",Match!C30) -> League 1 | C30: =IF(Match!S30="","",Match!S30) -> Southend v Blackpool 13/8 23/10 6/4 | D30: =IF(Match!T30="","",Match!T30) -> Southend 1-3 Blackpool
A31: =IF(Match!A31="","",Match!A31) -> 2019-08-10 | B31: =IF(Match!C31="","",Match!C31) -> League 2 | C31: =IF(Match!S31="","",Match!S31) -> Cambridge v Newport 17/10 5/2 13/8 | D31: =IF(Match!T31="","",Match!T31) -> Cambridge 0-0 Newport
A32: =IF(Match!A32="","",Match!A32) -> 2019-08-10 | B32: =IF(Match!C32="","",Match!C32) -> League 2 | C32: =IF(Match!S32="","",Match!S32) -> Cheltenham v Scunthorpe 15/8 5/2 16/11 | D32: =IF(Match!T32="","",Match!T32) -> Cheltenham 4-1 Scunthorpe
A33: =IF(Match!A33="","",Match!A33) -> 2019-08-10 | B33: =IF(Match!C33="","",Match!C33) -> League 2 | C33: =IF(Match!S33="","",Match!S33) -> Crawley v Salford 23/10 12/5 5/4 | D33: =IF(Match!T33="","",Match!T33) -> Crawley 2-0 Salford
A34: =IF(Match!A34="","",Match!A34) -> 2019-08-10 | B34: =IF(Match!C34="","",Match!C34) -> League 2 | C34: =IF(Match!S34="","",Match!S34) -> Grimsby v Bradford 23/10 5/2 6/5 | D34: =IF(Match!T34="","",Match!T34) -> Grimsby 1-1 Bradford
A35: =IF(Match!A35="","",Match!A35) -> 2019-08-10 | B35: =IF(Match!C35="","",Match!C35) -> League 2 | C35: =IF(Match!S35="","",Match!S35) -> Macclesfield v Orient 2/1 12/5 7/5 | D35: =IF(Match!T35="","",Match!T35) -> Macclesfield 3-0 Orient
A36: =IF(Match!A36="","",Match!A36) -> 2019-08-10 | B36: =IF(Match!C36="","",Match!C36) -> League 2 | C36: =IF(Match!S36="","",Match!S36) -> Mansfield v Morecambe 7/10 3/1 22/5 | D36: =IF(Match!T36="","",Match!T36) -> Mansfield 2-2 Morecambe
A37: =IF(Match!A37="","",Match!A37) -> 2019-08-10 | B37: =IF(Match!C37="","",Match!C37) -> League 2 | C37: =IF(Match!S37="","",Match!S37) -> Oldham v Crewe 7/5 13/5 19/10 | D37: =IF(Match!T37="","",Match!T37) -> Oldham 1-2 Crewe
A38: =IF(Match!A38="","",Match!A38) -> 2019-08-10 | B38: =IF(Match!C38="","",Match!C38) -> League 2 | C38: =IF(Match!S38="","",Match!S38) -> Plymouth v Colchester 23/20 5/2 5/2 | D38: =IF(Match!T38="","",Match!T38) -> Plymouth 1-0 Colchester
A39: =IF(Match!A39="","",Match!A39) -> 2019-08-10 | B39: =IF(Match!C39="","",Match!C39) -> League 2 | C39: =IF(Match!S39="","",Match!S39) -> Port Vale v Northampton 13/8 23/10 9/5 | D39: =IF(Match!T39="","",Match!T39) -> Port Vale 1-1 Northampton
A40: =IF(Match!A40="","",Match!A40) -> 2019-08-10 | B40: =IF(Match!C40="","",Match!C40) -> League 2 | C40: =IF(Match!S40="","",Match!S40) -> Stevenage v Exeter 16/11 5/2 19/10 | D40: =IF(Match!T40="","",Match!T40) -> Stevenage 0-1 Exeter
A41: =IF(Match!A41="","",Match!A41) -> 2019-08-10 | B41: =IF(Match!C41="","",Match!C41) -> League 2 | C41: =IF(Match!S41="","",Match!S41) -> Swindon v Carlisle 21/20 5/2 11/4 | D41: =IF(Match!T41="","",Match!T41) -> Swindon 3-2 Carlisle
A42: =IF(Match!A42="","",Match!A42) -> 2019-08-10 | B42: =IF(Match!C42="","",Match!C42) -> League 2 | C42: =IF(Match!S42="","",Match!S42) -> Walsall v Forest Green 11/8 12/5 21/10 | D42: =IF(Match!T42="","",Match!T42) -> Walsall 1-1 Forest Green
A43: =IF(Match!A43="","",Match!A43) -> 2019-08-11 | B43: =IF(Match!C43="","",Match!C43) -> Premier | C43: =IF(Match!S43="","",Match!S43) -> Leicester v Wolves 13/10 26/11 32/13 | D43: =IF(Match!T43="","",Match!T43) -> Leicester 0-0 Wolves
A44: =IF(Match!A44="","",Match!A44) -> 2019-08-11 | B44: =IF(Match!C44="","",Match!C44) -> Premier | C44: =IF(Match!S44="","",Match!S44) -> Man U v Chelsea 5/4 32/13 13/5 | D44: =IF(Match!T44="","",Match!T44) -> Man U 4-0 Chelsea
A45: =IF(Match!A45="","",Match!A45) -> 2019-08-11 | B45: =IF(Match!C45="","",Match!C45) -> Premier | C45: =IF(Match!S45="","",Match!S45) -> Newcastle v Arsenal 77/19 29/10 9/11 | D45: =IF(Match!T45="","",Match!T45) -> Newcastle 0-1 Arsenal
A46: =IF(Match!A46="","",Match!A46) ->  | B46: =IF(Match!C46="","",Match!C46) ->  | C46: =IF(Match!S46="","",Match!S46) ->  | D46: =IF(Match!T46="","",Match!T46) -> -
A47: =IF(Match!A47="","",Match!A47) ->  | B47: =IF(Match!C47="","",Match!C47) ->  | C47: =IF(Match!S47="","",Match!S47) ->  | D47: =IF(Match!T47="","",Match!T47) -> -

Sheet Weekly
A1: Rank Seas | B1: Rank Wk | C1: Pos L/W | D1: Div | E1: Player | F1: Season Score | G1: Season Correct | H1: Week Score | I1: Week ? of 3 | J1: Brought Forward | K1: Weekly Prizes | L1: Cup Prize | M1: League Place Prize | N1: Total Prize | O1: Balance | P1: W1 | Q1: W1Q | R1: W1P | S1: W2 | T1: W2Q | U1: W2P | V1: W3 | W1: W3Q | X1: W3P | Y1: W4 | Z1: W4Q | AA1: W4P | AB1: W5 | AC1: W5Q | AD1: W5P | AE1: W6 | AF1: W6Q | AG1: W6P | AH1: W7 | AI1: W7Q | AJ1: W7P | AK1: W8 | AL1: W8Q | AM1: W8P | AN1: W9 | AO1: W9Q | AP1: W9P | AQ1: W10 | AR1: W10Q | AS1: W10P | AT1: W11 | AU1: W11Q | AV1: W11P | AW1: W12 | AX1: W12Q | AY1: W12P | AZ1: W13 | BA1: W13Q | BB1: W13P | BC1: W14 | BD1: W14Q | BE1: W14P | BF1: W15 | BG1: W15Q | BH1: W15P | BI1: W16 | BJ1: W16Q | BK1: W16P | BL1: W17 | BM1: W17Q | BN1: W17P | BO1: W18 | BP1: W18Q | BQ1: W18P | BR1: W19 | BS1: W19Q | BT1: W19P | BU1: W20 | BV1: W20Q | BW1: W20P | BX1: Seas | BY1: SeasQ | BZ1: SeasP
A2: =_xlfn.RANK.EQ(F2,totalscores,0) -> 49 | B2: =_xlfn.RANK.EQ(H2,thisweekscore,0) -> 47 | C2: 63 | D2: =INDEX(Players!B:B,MATCH(E2,Players!F:F,0)) -> D | E2: Aaron Sudell | F2: =+P2+S2+V2+Y2+AB2+AE2+AH2+AK2+AN2+AQ2+AT2+AW2+AZ2+BC2+BF2+BI2+BL2+BO2+BR2+BU2 -> -7 | G2: =+Q2+T2+W2+Z2+AC2+AF2+AI2+AL2+AO2+AR2+AU2+AX2+BA2+BD2+BG2+BJ2+BM2+BP2+BS2+BV2 -> 0 | H2: -7 | I2: 0 | J2: =INDEX(Players!A:A,MATCH(E2,Players!F:F,0)) -> -27.57 | K2: =R2+U2+X2+AA2+AD2+AG2+AJ2+AM2+AP2+AS2+AV2+AY2+BB2+BE2+BH2+BK2+BN2+BQ2+BT2+BW2 -> 0 | M2: =INDEX(Table!L:L,MATCH(E2,Table!F:F,0)) -> 0 | N2: =L2+K2+M2 -> 0 | O2: =N2+J2 -> -27.57 | P2: -7 | Q2: 0 | BX2: =BU2+BR2+BO2+BL2+BI2+BF2+BC2+AZ2+AW2+AT2+AQ2+AN2+AK2+AH2+AE2+AB2+Y2+V2+S2+P2 -> -7 | BY2: =BV2+BS2+BP2+BM2+BJ2+BG2+BD2+BA2+AX2+AU2+AR2+AO2+AL2+AI2+AF2+AC2+Z2+W2+T2+Q2 -> 0 | BZ2: =BW2+BT2+BQ2+BN2+BK2+BH2+BE2+BB2+AY2+AV2+AS2+AP2+AM2+AJ2+AG2+AD2+AA2+X2+U2+R2 -> 0
A3: 3 | B3: 3 | C3: 64 | D3: =INDEX(Players!B:B,MATCH(E3,Players!F:F,0)) -> B | E3: Alan Rogers | F3: 9.4375 | G3: 2 | H3: 9.4375 | I3: 2 | J3: =INDEX(Players!A:A,MATCH(E3,Players!F:F,0)) -> -15.515 | K3: =R3+U3+X3+AA3+AD3+AG3+AJ3+AM3+AP3+AS3+AV3+AY3+BB3+BE3+BH3+BK3+BN3+BQ3+BT3+BW3 -> 5 | M3: =INDEX(Table!L:L,MATCH(E3,Table!F:F,0)) -> 60.75 | N3: =L3+K3+M3 -> 65.75 | O3: 50.235 | P3: 9.4375 | Q3: 2 | R3: 5 | BX3: 9.4375 | BY3: 2 | BZ3: 5
A4: 49 | B4: 47 | C4: 18 | D4: =INDEX(Players!B:B,MATCH(E4,Players!F:F,0)) -> D | E4: Alan White | F4: -7 | G4: 0 | H4: -7 | I4: 0 | J4: =INDEX(Players!A:A,MATCH(E4,Players!F:F,0)) -> 0 | K4: 0 | M4: =INDEX(Table!L:L,MATCH(E4,Table!F:F,0)) -> 0 | N4: 0 | O4: 0 | P4: -7 | Q4: 0 | BX4: -7 | BY4: 0 | BZ4: 0
A5: 2 | B5: 2 | C5: 12 | D5: =INDEX(Players!B:B,MATCH(E5,Players!F:F,0)) -> B | E5: Alfie Davies | F5: 13.22597403 | G5: 3 | H5: 13.22597403 | I5: 3 | J5: =INDEX(Players!A:A,MATCH(E5,Players!F:F,0)) -> -20 | K5: 5 | M5: =INDEX(Table!L:L,MATCH(E5,Table!F:F,0)) -> 85.05 | N5: 90.05 | O5: 70.05 | P5: 13.22597403 | Q5: 3 | R5: 5 | BX5: 13.22597403 | BY5: 3 | BZ5: 5
A6: 10 | B6: 9 | C6: 8 | D6: =INDEX(Players!B:B,MATCH(E6,Players!F:F,0)) -> A | E6: Alick Rocca | F6: 1.163636364 | G6: 2 | H6: 1.163636364 | I6: 2 | J6: =INDEX(Players!A:A,MATCH(E6,Players!F:F,0)) -> 206.965 | K6: 0 | M6: =INDEX(Table!L:L,MATCH(E6,Table!F:F,0)) -> 25.515 | N6: 25.515 | O6: 232.48 | P6: 1.163636364 | Q6: 2 | BX6: 1.163636364 | BY6: 2 | BZ6: 0
A7: 46 | B7: 44 | C7: 57 | D7: =INDEX(Players!B:B,MATCH(E7,Players!F:F,0)) -> A | E7: Andy Charleston | F7: -5.73 | G7: 1 | H7: -5.73 | I7: 1 | J7: =INDEX(Players!A:A,MATCH(E7,Players!F:F,0)) -> 65.35 | K7: 0 | M7: =INDEX(Table!L:L,MATCH(E7,Table!F:F,0)) -> 0 | N7: 0 | O7: 65.35 | P7: -5.73 | Q7: 1 | BX7: -5.73 | BY7: 1 | BZ7: 0
A8: 34 | B8: 33 | C8: 4 | D8: =INDEX(Players!B:B,MATCH(E8,Players!F:F,0)) -> B | E8: Andy White | F8: -5.181818182 | G8: 1 | H8: -5.181818182 | I8: 1 | J8: =INDEX(Players!A:A,MATCH(E8,Players!F:F,0)) -> 24.045 | K8: 0 | M8: =INDEX(Table!L:L,MATCH(E8,Table!F:F,0)) -> 0 | N8: 0 | O8: 24.045 | P8: -5.181818182 | Q8: 1 | BX8: -5.181818182 | BY8: 1 | BZ8: 0
A9: 47 | B9: 45 | C9: 15 | D9: =INDEX(Players!B:B,MATCH(E9,Players!F:F,0)) -> C | E9: Antony Robinson | F9: -5.857142857 | G9: 1 | H9: -5.857142857 | I9: 1 | J9: =INDEX(Players!A:A,MATCH(E9,Players!F:F,0)) -> -3.75 | K9: 0 | M9: =INDEX(Table!L:L,MATCH(E9,Table!F:F,0)) -> 0 | N9: 0 | O9: -3.75 | P9: -5.857142857 | Q9: 1 | BX9: -5.857142857 | BY9: 1 | BZ9: 0
A10: 49 | B10: 47 | C10: 25 | D10: =INDEX(Players!B:B,MATCH(E10,Players!F:F,0)) -> D | E10: Ashley Houghton | F10: -7 | G10: 0 | H10: -7 | I10: 0 | J10: =INDEX(Players!A:A,MATCH(E10,Players!F:F,0)) -> -35 | K10: 0 | M10: =INDEX(Table!L:L,MATCH(E10,Table!F:F,0)) -> 0 | N10: 0 | O10: -35 | P10: -7 | Q10: 0 | BX10: -7 | BY10: 0 | BZ10: 0
A11: 39 | B11: 37 | C11: 20 | D11: =INDEX(Players!B:B,MATCH(E11,Players!F:F,0)) -> A | E11: Barry Birchall | F11: -5.22 | G11: 1 | H11: -5.22 | I11: 1 | J11: =INDEX(Players!A:A,MATCH(E11,Players!F:F,0)) -> -20 | K11: 0 | M11: =INDEX(Table!L:L,MATCH(E11,Table!F:F,0)) -> 0 | N11: 0 | O11: -20 | P11: -5.22 | Q11: 1 | BX11: -5.22 | BY11: 1 | BZ11: 0
A12: 49 | B12: 47 | C12: 42 | D12: =INDEX(Players!B:B,MATCH(E12,Players!F:F,0)) -> C | E12: Ben Rosser | F12: -7 | G12: 0 | H12: -7 | I12: 0 | J12: =INDEX(Players!A:A,MATCH(E12,Players!F:F,0)) -> -40 | K12: 0 | M12: =INDEX(Table!L:L,MATCH(E12,Table!F:F,0)) -> 0 | N12: 0 | O12: -40 | P12: -7 | Q12: 0 | BX12: -7 | BY12: 0 | BZ12: 0
A13: 22 | B13: 21 | C13: 55 | D13: =INDEX(Players!B:B,MATCH(E13,Players!F:F,0)) -> C | E13: Charlie Griffiths | F13: -4.1 | G13: 1 | H13: -4.1 | I13: 1 | J13: =INDEX(Players!A:A,MATCH(E13,Players!F:F,0)) -> -31.355 | K13: 0 | M13: =INDEX(Table!L:L,MATCH(E13,Table!F:F,0)) -> 8.505 | N13: 8.505 | O13: -22.85 | P13: -4.1 | Q13: 1 | BX13: -4.1 | BY13: 1 | BZ13: 0
A14: 32 | B14: 31 | C14: 22 | D14: =INDEX(Players!B:B,MATCH(E14,Players!F:F,0)) -> D | E14: Chris Bow | F14: -5.090909091 | G14: 1 | H14: -5.090909091 | I14: 1 | J14: =INDEX(Players!A:A,MATCH(E14,Players!F:F,0)) -> -40 | K14: 0 | M14: =INDEX(Table!L:L,MATCH(E14,Table!F:F,0)) -> 0 | N14: 0 | O14: -40 | P14: -5.090909091 | Q14: 1 | BX14: -5.090909091 | BY14: 1 | BZ14: 0
A15: 39 | B15: 37 | C15: 17 | D15: =INDEX(Players!B:B,MATCH(E15,Players!F:F,0)) -> B | E15: Chris Griffin | F15: -5.22 | G15: 1 | H15: -5.22 | I15: 1 | J15: =INDEX(Players!A:A,MATCH(E15,Players!F:F,0)) -> -7.94 | K15: 0 | M15: =INDEX(Table!L:L,MATCH(E15,Table!F:F,0)) -> 0 | N15: 0 | O15: -7.94 | P15: -5.22 | Q15: 1 | BX15: -5.22 | BY15: 1 | BZ15: 0
A16: 49 | B16: 47 | C16: 35 | D16: =INDEX(Players!B:B,MATCH(E16,Players!F:F,0)) -> A | E16: Chris Luck | F16: -7 | G16: 0 | H16: -7 | I16: 0 | J16: =INDEX(Players!A:A,MATCH(E16,Players!F:F,0)) -> 147.985 | K16: 0 | M16: =INDEX(Table!L:L,MATCH(E16,Table!F:F,0)) -> 0 | N16: 0 | O16: 147.985 | P16: -7 | Q16: 0 | BX16: -7 | BY16: 0 | BZ16: 0
A17: 49 | B17: 47 | C17: 13 | D17: =INDEX(Players!B:B,MATCH(E17,Players!F:F,0)) -> C | E17: Chris Townsend | F17: -7 | G17: 0 | H17: -7 | I17: 0 | J17: =INDEX(Players!A:A,MATCH(E17,Players!F:F,0)) -> -26.675 | K17: 0 | M17: =INDEX(Table!L:L,MATCH(E17,Table!F:F,0)) -> 0 | N17: 0 | O17: -26.675 | P17: -7 | Q17: 0 | BX17: -7 | BY17: 0 | BZ17: 0
A18: 49 | B18: 47 | C18: 62 | D18: =INDEX(Players!B:B,MATCH(E18,Players!F:F,0)) -> D | E18: Dan Baxter | F18: -7 | G18: 0 | H18: -7 | I18: 0 | J18: =INDEX(Players!A:A,MATCH(E18,Players!F:F,0)) -> -35 | K18: 0 | M18: =INDEX(Table!L:L,MATCH(E18,Table!F:F,0)) -> 0 | N18: 0 | O18: -35 | P18: -7 | Q18: 0 | BX18: -7 | BY18: 0 | BZ18: 0
A19: 49 | B19: 47 | C19: 30 | D19: =INDEX(Players!B:B,MATCH(E19,Players!F:F,0)) -> D | E19: Dave Bell | F19: -7 | G19: 0 | H19: -7 | I19: 0 | J19: =INDEX(Players!A:A,MATCH(E19,Players!F:F,0)) -> 0 | K19: 0 | M19: =INDEX(Table!L:L,MATCH(E19,Table!F:F,0)) -> 0 | N19: 0 | O19: 0 | P19: -7 | Q19: 0 | BX19: -7 | BY19: 0 | BZ19: 0
A20: 32 | B20: 31 | C20: 43 | D20: =INDEX(Players!B:B,MATCH(E20,Players!F:F,0)) -> B | E20: Dave Orrell | F20: -5.090909091 | G20: 1 | H20: -5.090909091 | I20: 1 | J20: =INDEX(Players!A:A,MATCH(E20,Players!F:F,0)) -> -11.37 | K20: 0 | M20: =INDEX(Table!L:L,MATCH(E20,Table!F:F,0)) -> 0 | N20: 0 | O20: -11.37 | P20: -5.090909091 | Q20: 1 | BX20: -5.090909091 | BY20: 1 | BZ20: 0
A21: 34 | B21: 33 | C21: 14 | D21: =INDEX(Players!B:B,MATCH(E21,Players!F:F,0)) -> C | E21: David Dunn | F21: -5.181818182 | G21: 1 | H21: -5.181818182 | I21: 1 | J21: =INDEX(Players!A:A,MATCH(E21,Players!F:F,0)) -> -55 | K21: 0 | M21: =INDEX(Table!L:L,MATCH(E21,Table!F:F,0)) -> 0 | N21: 0 | O21: -55 | P21: -5.181818182 | Q21: 1 | BX21: -5.181818182 | BY21: 1 | BZ21: 0
A22: 10 | B22: 9 | C22: 2 | D22: =INDEX(Players!B:B,MATCH(E22,Players!F:F,0)) -> C | E22: Gareth Fallows | F22: 1.163636364 | G22: 2 | H22: 1.163636364 | I22: 2 | J22: =INDEX(Players!A:A,MATCH(E22,Players!F:F,0)) -> -40 | K22: 0 | M22: =INDEX(Table!L:L,MATCH(E22,Table!F:F,0)) -> 42.525 | N22: 42.525 | O22: 2.525 | P22: 1.163636364 | Q22: 2 | BX22: 1.163636364 | BY22: 2 | BZ22: 0
A23: 43 | B23: 41 | C23: 1 | D23: =INDEX(Players!B:B,MATCH(E23,Players!F:F,0)) -> D | E23: Gareth McGuire | F23: -5.333333333 | G23: 1 | H23: -5.333333333 | I23: 1 | J23: =INDEX(Players!A:A,MATCH(E23,Players!F:F,0)) -> 0 | K23: 0 | M23: =INDEX(Table!L:L,MATCH(E23,Table!F:F,0)) -> 0 | N23: 0 | O23: 0 | P23: -5.333333333 | Q23: 1 | BX23: -5.333333333 | BY23: 1 | BZ23: 0
A24: 30 | B24: 29 | C24: 6 | D24: =INDEX(Players!B:B,MATCH(E24,Players!F:F,0)) -> A | E24: Gareth Powell | F24: -4.95 | G24: 1 | H24: -4.95 | I24: 1 | J24: =INDEX(Players!A:A,MATCH(E24,Players!F:F,0)) -> -28.25 | K24: 0 | M24: =INDEX(Table!L:L,MATCH(E24,Table!F:F,0)) -> 0 | N24: 0 | O24: -28.25 | P24: -4.95 | Q24: 1 | BX24: -4.95 | BY24: 1 | BZ24: 0
A25: 23 | B25: 22 | C25: 51 | D25: =INDEX(Players!B:B,MATCH(E25,Players!F:F,0)) -> C | E25: Gerard Ventom | F25: -4.45 | G25: 1 | H25: -4.45 | I25: 1 | J25: =INDEX(Players!A:A,MATCH(E25,Players!F:F,0)) -> -12.94 | K25: 0 | M25: =INDEX(Table!L:L,MATCH(E25,Table!F:F,0)) -> 3.645 | N25: 3.645 | O25: -9.295 | P25: -4.45 | Q25: 1 | BX25: -4.45 | BY25: 1 | BZ25: 0
A26: 49 | B26: 47 | C26: 9 | D26: =INDEX(Players!B:B,MATCH(E26,Players!F:F,0)) -> C | E26: Graeme Holmes | F26: -7 | G26: 0 | H26: -7 | I26: 0 | J26: =INDEX(Players!A:A,MATCH(E26,Players!F:F,0)) -> -35 | K26: 0 | M26: =INDEX(Table!L:L,MATCH(E26,Table!F:F,0)) -> 0 | N26: 0 | O26: -35 | P26: -7 | Q26: 0 | BX26: -7 | BY26: 0 | BZ26: 0
A27: 8 | B27: 7 | C27: 49 | D27: =INDEX(Players!B:B,MATCH(E27,Players!F:F,0)) -> B | E27: Graham Miller | F27: 3.48 | G27: 2 | H27: 3.48 | I27: 2 | J27: =INDEX(Players!A:A,MATCH(E27,Players!F:F,0)) -> 13.74 | K27: 0 | M27: =INDEX(Table!L:L,MATCH(E27,Table!F:F,0)) -> 17.01 | N27: 17.01 | O27: 30.75 | P27: 3.48 | Q27: 2 | BX27: 3.48 | BY27: 2 | BZ27: 0
A28: 14 | B28: 13 | C28: 54 | D28: =INDEX(Players!B:B,MATCH(E28,Players!F:F,0)) -> C | E28: Howard Bradley | F28: 0.1333333333 | G28: 2 | H28: 0.1333333333 | I28: 2 | J28: =INDEX(Players!A:A,MATCH(E28,Players!F:F,0)) -> -0.625 | K28: 0 | M28: =INDEX(Table!L:L,MATCH(E28,Table!F:F,0)) -> 14.58 | N28: 14.58 | O28: 13.955 | P28: 0.1333333333 | Q28: 2 | BX28: 0.1333333333 | BY28: 2 | BZ28: 0
A29: 18 | B29: 17 | C29: 47 | D29: =INDEX(Players!B:B,MATCH(E29,Players!F:F,0)) -> D | E29: Ian Davies | F29: -3.636363636 | G29: 1 | H29: -3.636363636 | I29: 1 | J29: =INDEX(Players!A:A,MATCH(E29,Players!F:F,0)) -> -35 | K29: 0 | M29: =INDEX(Table!L:L,MATCH(E29,Table!F:F,0)) -> 20.25 | N29: 20.25 | O29: -14.75 | P29: -3.636363636 | Q29: 1 | BX29: -3.636363636 | BY29: 1 | BZ29: 0
A30: 49 | B30: 47 | C30: 40 | D30: =INDEX(Players!B:B,MATCH(E30,Players!F:F,0)) -> C | E30: Jack Walsh | F30: -7 | G30: 0 | H30: -7 | I30: 0 | J30: =INDEX(Players!A:A,MATCH(E30,Players!F:F,0)) -> 5 | K30: 0 | M30: =INDEX(Table!L:L,MATCH(E30,Table!F:F,0)) -> 0 | N30: 0 | O30: 5 | P30: -7 | Q30: 0 | BX30: -7 | BY30: 0 | BZ30: 0
A31: 49 | B31: 47 | C31: 21 | D31: =INDEX(Players!B:B,MATCH(E31,Players!F:F,0)) -> D | E31: James Bell | F31: -7 | G31: 0 | H31: -7 | I31: 0 | J31: =INDEX(Players!A:A,MATCH(E31,Players!F:F,0)) -> -35 | K31: 0 | M31: =INDEX(Table!L:L,MATCH(E31,Table!F:F,0)) -> 0 | N31: 0 | O31: -35 | P31: -7 | Q31: 0 | BX31: -7 | BY31: 0 | BZ31: 0
A32: 49 | B32: 47 | C32: 44 | D32: =INDEX(Players!B:B,MATCH(E32,Players!F:F,0)) -> D | E32: Joel Bent | F32: -7 | G32: 0 | H32: -7 | I32: 0 | J32: =INDEX(Players!A:A,MATCH(E32,Players!F:F,0)) -> 0 | K32: 0 | M32: =INDEX(Table!L:L,MATCH(E32,Table!F:F,0)) -> 0 | N32: 0 | O32: 0 | P32: -7 | Q32: 0 | BX32: -7 | BY32: 0 | BZ32: 0
A33: 43 | B33: 41 | C33: 60 | D33: =INDEX(Players!B:B,MATCH(E33,Players!F:F,0)) -> B | E33: John Evans | F33: -5.333333333 | G33: 1 | H33: -5.333333333 | I33: 1 | J33: =INDEX(Players!A:A,MATCH(E33,Players!F:F,0)) -> 88.13 | K33: 0 | M33: =INDEX(Table!L:L,MATCH(E33,Table!F:F,0)) -> 0 | N33: 0 | O33: 88.13 | P33: -5.333333333 | Q33: 1 | BX33: -5.333333333 | BY33: 1 | BZ33: 0
A34: =_xlfn.RANK.EQ(F34,totalscores,0) -> 12 | B34: =_xlfn.RANK.EQ(H34,thisweekscore,0) -> 11 | C34: 45 | D34: =INDEX(Players!B:B,MATCH(E34,Players!F:F,0)) -> C | E34: John Robinson | F34: =+P34+S34+V34+Y34+AB34+AE34+AH34+AK34+AN34+AQ34+AT34+AW34+AZ34+BC34+BF34+BI34+BL34+BO34+BR34+BU34 -> 1.018181818 | G34: =+Q34+T34+W34+Z34+AC34+AF34+AI34+AL34+AO34+AR34+AU34+AX34+BA34+BD34+BG34+BJ34+BM34+BP34+BS34+BV34 -> 2 | H34: 1.018181818 | I34: 2 | J34: =INDEX(Players!A:A,MATCH(E34,Players!F:F,0)) -> -10.31 | K34: 0 | M34: =INDEX(Table!L:L,MATCH(E34,Table!F:F,0)) -> 30.375 | N34: 30.375 | O34: =N34+J34 -> 20.065 | P34: 1.018181818 | Q34: 2 | BX34: =BU34+BR34+BO34+BL34+BI34+BF34+BC34+AZ34+AW34+AT34+AQ34+AN34+AK34+AH34+AE34+AB34+Y34+V34+S34+P34 -> 1.018181818 | BY34: =BV34+BS34+BP34+BM34+BJ34+BG34+BD34+BA34+AX34+AU34+AR34+AO34+AL34+AI34+AF34+AC34+Z34+W34+T34+Q34 -> 2 | BZ34: =BW34+BT34+BQ34+BN34+BK34+BH34+BE34+BB34+AY34+AV34+AS34+AP34+AM34+AJ34+AG34+AD34+AA34+X34+U34+R34 -> 0
A35: 21 | B35: 20 | C35: 36 | D35: =INDEX(Players!B:B,MATCH(E35,Players!F:F,0)) -> D | E35: John Ronan | F35: -3.9 | G35: 1 | H35: -3.9 | I35: 1 | J35: =INDEX(Players!A:A,MATCH(E35,Players!F:F,0)) -> -35 | K35: 0 | M35: =INDEX(Table!L:L,MATCH(E35,Table!F:F,0)) -> 5.67 | N35: 5.67 | O35: -29.33 | P35: -3.9 | Q35: 1 | BX35: -3.9 | BY35: 1 | BZ35: 0
A36: 5 | B36: 5 | C36: 46 | D36: =INDEX(Players!B:B,MATCH(E36,Players!F:F,0)) -> B | E36: Kei Lok Ma | F36: 7.265 | G36: 2 | H36: 7.265 | I36: 2 | J36: =INDEX(Players!A:A,MATCH(E36,Players!F:F,0)) -> 45.32 | K36: 0 | M36: =INDEX(Table!L:L,MATCH(E36,Table!F:F,0)) -> 43.74 | N36: 43.74 | O36: 89.06 | P36: 7.265 | Q36: 2 | BX36: 7.265 | BY36: 2 | BZ36: 0
A37: 49 | B37: 47 | C37: 38 | D37: =INDEX(Players!B:B,MATCH(E37,Players!F:F,0)) -> A | E37: Kevin Carter | F37: -7 | G37: 0 | H37: -7 | I37: 0 | J37: =INDEX(Players!A:A,MATCH(E37,Players!F:F,0)) -> 14.545 | K37: 0 | M37: =INDEX(Table!L:L,MATCH(E37,Table!F:F,0)) -> 0 | N37: 0 | O37: 14.545 | P37: -7 | Q37: 0 | BX37: -7 | BY37: 0 | BZ37: 0
A38: 29 | B38: 28 | C38: 37 | D38: =INDEX(Players!B:B,MATCH(E38,Players!F:F,0)) -> B | E38: Lennie Bow | F38: -4.846153846 | G38: 1 | H38: -4.846153846 | I38: 1 | J38: =INDEX(Players!A:A,MATCH(E38,Players!F:F,0)) -> 93.55 | K38: 0 | M38: =INDEX(Table!L:L,MATCH(E38,Table!F:F,0)) -> 0 | N38: 0 | O38: 93.55 | P38: -4.846153846 | Q38: 1 | BX38: -4.846153846 | BY38: 1 | BZ38: 0
A39: 43 | B39: 41 | C39: 52 | D39: =INDEX(Players!B:B,MATCH(E39,Players!F:F,0)) -> D | E39: Lewis Buckley | F39: -5.333333333 | G39: 1 | H39: -5.333333333 | I39: 1 | J39: =INDEX(Players!A:A,MATCH(E39,Players!F:F,0)) -> 0 | K39: 0 | M39: =INDEX(Table!L:L,MATCH(E39,Table!F:F,0)) -> 0 | N39: 0 | O39: 0 | P39: -5.333333333 | Q39: 1 | BX39: -5.333333333 | BY39: 1 | BZ39: 0
A40: 19 | B40: 18 | C40: 58 | D40: =INDEX(Players!B:B,MATCH(E40,Players!F:F,0)) -> D | E40: Liam Wah | F40: -3.7 | G40: 1 | H40: -3.7 | I40: 1 | J40: =INDEX(Players!A:A,MATCH(E40,Players!F:F,0)) -> -30 | K40: 0 | M40: =INDEX(Table!L:L,MATCH(E40,Table!F:F,0)) -> 9.72 | N40: 9.72 | O40: -20.28 | P40: -3.7 | Q40: 1 | BX40: -3.7 | BY40: 1 | BZ40: 0
A41: 15 | B41: 14 | C41: 41 | D41: =INDEX(Players!B:B,MATCH(E41,Players!F:F,0)) -> A | E41: Mal Stott | F41: -0.5333333333 | G41: 2 | H41: -0.5333333333 | I41: 2 | J41: =INDEX(Players!A:A,MATCH(E41,Players!F:F,0)) -> -20 | K41: 0 | M41: =INDEX(Table!L:L,MATCH(E41,Table!F:F,0)) -> 10.935 | N41: 10.935 | O41: -9.065 | P41: -0.5333333333 | Q41: 2 | BX41: -0.5333333333 | BY41: 2 | BZ41: 0
A42: 26 | B42: 25 | C42: 28 | D42: =INDEX(Players!B:B,MATCH(E42,Players!F:F,0)) -> C | E42: Mark Bunn | F42: -4.5 | G42: 1 | H42: -4.5 | I42: 1 | J42: =INDEX(Players!A:A,MATCH(E42,Players!F:F,0)) -> -7.38 | K42: 0 | M42: =INDEX(Table!L:L,MATCH(E42,Table!F:F,0)) -> 0 | N42: 0 | O42: -7.38 | P42: -4.5 | Q42: 1 | BX42: -4.5 | BY42: 1 | BZ42: 0
A43: 37 | B43: 36 | C43: 24 | D43: =INDEX(Players!B:B,MATCH(E43,Players!F:F,0)) -> B | E43: Mark Saunders | F43: -5.2 | G43: 1 | H43: -5.2 | I43: 1 | J43: =INDEX(Players!A:A,MATCH(E43,Players!F:F,0)) -> 22.66 | K43: 0 | M43: =INDEX(Table!L:L,MATCH(E43,Table!F:F,0)) -> 0 | N43: 0 | O43: 22.66 | P43: -5.2 | Q43: 1 | BX43: -5.2 | BY43: 1 | BZ43: 0
A44: 49 | B44: 47 | C44: 33 | D44: =INDEX(Players!B:B,MATCH(E44,Players!F:F,0)) -> C | E44: Martin Molyneux | F44: -7 | G44: 0 | H44: -7 | I44: 0 | J44: =INDEX(Players!A:A,MATCH(E44,Players!F:F,0)) -> -22.495 | K44: 0 | M44: =INDEX(Table!L:L,MATCH(E44,Table!F:F,0)) -> 0 | N44: 0 | O44: -22.495 | P44: -7 | Q44: 0 | BX44: -7 | BY44: 0 | BZ44: 0
A45: 16 | B45: 15 | C45: 11 | D45: =INDEX(Players!B:B,MATCH(E45,Players!F:F,0)) -> D | E45: Martin Tarbuck | F45: -0.9125 | G45: 2 | H45: -0.9125 | I45: 2 | J45: =INDEX(Players!A:A,MATCH(E45,Players!F:F,0)) -> -40 | K45: 0 | M45: =INDEX(Table!L:L,MATCH(E45,Table!F:F,0)) -> 28.35 | N45: 28.35 | O45: -11.65 | P45: -0.9125 | Q45: 2 | BX45: -0.9125 | BY45: 2 | BZ45: 0
A46: 9 | B46: 8 | C46: 16 | D46: =INDEX(Players!B:B,MATCH(E46,Players!F:F,0)) -> A | E46: Mike Penk | F46: 2.933333333 | G46: 2 | H46: 2.933333333 | I46: 2 | J46: =INDEX(Players!A:A,MATCH(E46,Players!F:F,0)) -> 0.055 | K46: 0 | M46: =INDEX(Table!L:L,MATCH(E46,Table!F:F,0)) -> 43.74 | N46: 43.74 | O46: 43.795 | P46: 2.933333333 | Q46: 2 | BX46: 2.933333333 | BY46: 2 | BZ46: 0
A47: 26 | B47: 25 | C47: 50 | D47: =INDEX(Players!B:B,MATCH(E47,Players!F:F,0)) -> B | E47: Mo Sudell | F47: -4.5 | G47: 1 | H47: -4.5 | I47: 1 | J47: =INDEX(Players!A:A,MATCH(E47,Players!F:F,0)) -> 33.375 | K47: 0 | M47: =INDEX(Table!L:L,MATCH(E47,Table!F:F,0)) -> 7.29 | N47: 7.29 | O47: 40.665 | P47: -4.5 | Q47: 1 | BX47: -4.5 | BY47: 1 | BZ47: 0
A48: 23 | B48: 22 | C48: 56 | D48: =INDEX(Players!B:B,MATCH(E48,Players!F:F,0)) -> C | E48: Nick Blocksidge | F48: -4.45 | G48: 1 | H48: -4.45 | I48: 1 | J48: =INDEX(Players!A:A,MATCH(E48,Players!F:F,0)) -> -40 | K48: 0 | M48: =INDEX(Table!L:L,MATCH(E48,Table!F:F,0)) -> 0 | N48: 0 | O48: -40 | P48: -4.45 | Q48: 1 | BX48: -4.45 | BY48: 1 | BZ48: 0
A49: 39 | B49: 37 | C49: 5 | D49: =INDEX(Players!B:B,MATCH(E49,Players!F:F,0)) -> A | E49: Nigel Heyes | F49: -5.22 | G49: 1 | H49: -5.22 | I49: 1 | J49: =INDEX(Players!A:A,MATCH(E49,Players!F:F,0)) -> 63.75 | K49: 0 | M49: =INDEX(Table!L:L,MATCH(E49,Table!F:F,0)) -> 0 | N49: 0 | O49: 63.75 | P49: -5.22 | Q49: 1 | BX49: -5.22 | BY49: 1 | BZ49: 0
A50: 49 | B50: 47 | C50: 65 | D50: =INDEX(Players!B:B,MATCH(E50,Players!F:F,0)) -> C | E50: Oscar Jackson | F50: -7 | G50: 0 | H50: -7 | I50: 0 | J50: =INDEX(Players!A:A,MATCH(E50,Players!F:F,0)) -> -30 | K50: 0 | M50: =INDEX(Table!L:L,MATCH(E50,Table!F:F,0)) -> 0 | N50: 0 | O50: -30 | P50: -7 | Q50: 0 | BX50: -7 | BY50: 0 | BZ50: 0
A51: 23 | B51: 22 | C51: 3 | D51: =INDEX(Players!B:B,MATCH(E51,Players!F:F,0)) -> D | E51: Paul Adderley | F51: -4.45 | G51: 1 | H51: -4.45 | I51: 1 | J51: =INDEX(Players!A:A,MATCH(E51,Players!F:F,0)) -> 18.33 | K51: 0 | M51: =INDEX(Table!L:L,MATCH(E51,Table!F:F,0)) -> 2.43 | N51: 2.43 | O51: 20.76 | P51: -4.45 | Q51: 1 | BX51: -4.45 | BY51: 1 | BZ51: 0
A52: 39 | B52: 37 | C52: 32 | D52: =INDEX(Players!B:B,MATCH(E52,Players!F:F,0)) -> B | E52: Paul Allen | F52: -5.22 | G52: 1 | H52: -5.22 | I52: 1 | J52: =INDEX(Players!A:A,MATCH(E52,Players!F:F,0)) -> 25.175 | K52: 0 | M52: =INDEX(Table!L:L,MATCH(E52,Table!F:F,0)) -> 0 | N52: 0 | O52: 25.175 | P52: -5.22 | Q52: 1 | BX52: -5.22 | BY52: 1 | BZ52: 0
A53: 49 | B53: 47 | C53: 10 | D53: =INDEX(Players!B:B,MATCH(E53,Players!F:F,0)) -> D | E53: Paul Barnes | F53: -7 | G53: 0 | H53: -7 | I53: 0 | J53: =INDEX(Players!A:A,MATCH(E53,Players!F:F,0)) -> -24.33 | K53: 0 | M53: =INDEX(Table!L:L,MATCH(E53,Table!F:F,0)) -> 0 | N53: 0 | O53: -24.33 | P53: -7 | Q53: 0 | BX53: -7 | BY53: 0 | BZ53: 0
A54: 6 | B54: 6 | C54: 26 | D54: =INDEX(Players!B:B,MATCH(E54,Players!F:F,0)) -> A | E54: Paul Fairhurst | F54: 3.954 | G54: 2 | H54: 3.954 | I54: 2 | J54: =INDEX(Players!A:A,MATCH(E54,Players!F:F,0)) -> 151.355 | K54: 0 | M54: =INDEX(Table!L:L,MATCH(E54,Table!F:F,0)) -> 65.61 | N54: 65.61 | O54: 216.965 | P54: 3.954 | Q54: 2 | BX54: 3.954 | BY54: 2 | BZ54: 0
A55: 30 | B55: 29 | C55: 34 | D55: =INDEX(Players!B:B,MATCH(E55,Players!F:F,0)) -> B | E55: Paul Fiddler | F55: -4.95 | G55: 1 | H55: -4.95 | I55: 1 | J55: =INDEX(Players!A:A,MATCH(E55,Players!F:F,0)) -> -10.93 | K55: 0 | M55: =INDEX(Table!L:L,MATCH(E55,Table!F:F,0)) -> 0 | N55: 0 | O55: -10.93 | P55: -4.95 | Q55: 1 | BX55: -4.95 | BY55: 1 | BZ55: 0
A56: 13 | B56: 12 | C56: 27 | D56: =INDEX(Players!B:B,MATCH(E56,Players!F:F,0)) -> C | E56: Paul Ridgeway | F56: 0.54 | G56: 2 | H56: 0.54 | I56: 2 | J56: =INDEX(Players!A:A,MATCH(E56,Players!F:F,0)) -> -40 | K56: 0 | M56: =INDEX(Table!L:L,MATCH(E56,Table!F:F,0)) -> 21.87 | N56: 21.87 | O56: -18.13 | P56: 0.54 | Q56: 2 | BX56: 0.54 | BY56: 2 | BZ56: 0
A57: 49 | B57: 47 | C57: 7 | D57: =INDEX(Players!B:B,MATCH(E57,Players!F:F,0)) -> A | E57: Pete Baron | F57: -7 | G57: 0 | H57: -7 | I57: 0 | J57: =INDEX(Players!A:A,MATCH(E57,Players!F:F,0)) -> -25 | K57: 0 | M57: =INDEX(Table!L:L,MATCH(E57,Table!F:F,0)) -> 0 | N57: 0 | O57: -25 | P57: -7 | Q57: 0 | BX57: -7 | BY57: 0 | BZ57: 0
A58: 17 | B58: 16 | C58: 61 | D58: =INDEX(Players!B:B,MATCH(E58,Players!F:F,0)) -> A | E58: Phil Miller | F58: -1.7 | G58: 2 | H58: -1.7 | I58: 2 | J58: =INDEX(Players!A:A,MATCH(E58,Players!F:F,0)) -> 51.265 | K58: 0 | M58: =INDEX(Table!L:L,MATCH(E58,Table!F:F,0)) -> 0 | N58: 0 | O58: 51.265 | P58: -1.7 | Q58: 2 | BX58: -1.7 | BY58: 2 | BZ58: 0
A59: 47 | B59: 45 | C59: 53 | D59: =INDEX(Players!B:B,MATCH(E59,Players!F:F,0)) -> B | E59: Rob England | F59: -5.857142857 | G59: 1 | H59: -5.857142857 | I59: 1 | J59: =INDEX(Players!A:A,MATCH(E59,Players!F:F,0)) -> -40 | K59: 0 | M59: =INDEX(Table!L:L,MATCH(E59,Table!F:F,0)) -> 0 | N59: 0 | O59: -40 | P59: -5.857142857 | Q59: 1 | BX59: -5.857142857 | BY59: 1 | BZ59: 0
A60: 19 | B60: 18 | C60: 19 | D60: =INDEX(Players!B:B,MATCH(E60,Players!F:F,0)) -> D | E60: Sally Williams | F60: -3.7 | G60: 1 | H60: -3.7 | I60: 1 | J60: =INDEX(Players!A:A,MATCH(E60,Players!F:F,0)) -> -20.28 | K60: 0 | M60: =INDEX(Table!L:L,MATCH(E60,Table!F:F,0)) -> 14.58 | N60: 14.58 | O60: -5.7 | P60: -3.7 | Q60: 1 | BX60: -3.7 | BY60: 1 | BZ60: 0
A61: 26 | B61: 25 | C61: 29 | D61: =INDEX(Players!B:B,MATCH(E61,Players!F:F,0)) -> D | E61: Simon Greenhalgh | F61: -4.5 | G61: 1 | H61: -4.5 | I61: 1 | J61: =INDEX(Players!A:A,MATCH(E61,Players!F:F,0)) -> 3.35 | K61: 0 | M61: =INDEX(Table!L:L,MATCH(E61,Table!F:F,0)) -> 0 | N61: 0 | O61: 3.35 | P61: -4.5 | Q61: 1 | BX61: -4.5 | BY61: 1 | BZ61: 0
A62: 49 | B62: =_xlfn.RANK.EQ(H62,thisweekscore,0) -> 47 | C62: 31 | D62: =INDEX(Players!B:B,MATCH(E62,Players!F:F,0)) -> A | E62: Ste Bentley | F62: =+P62+S62+V62+Y62+AB62+AE62+AH62+AK62+AN62+AQ62+AT62+AW62+AZ62+BC62+BF62+BI62+BL62+BO62+BR62+BU62 -> -7 | G62: 0 | H62: -7 | I62: 0 | J62: =INDEX(Players!A:A,MATCH(E62,Players!F:F,0)) -> -28.97 | K62: =R62+U62+X62+AA62+AD62+AG62+AJ62+AM62+AP62+AS62+AV62+AY62+BB62+BE62+BH62+BK62+BN62+BQ62+BT62+BW62 -> 0 | M62: =INDEX(Table!L:L,MATCH(E62,Table!F:F,0)) -> 0 | N62: =L62+K62+M62 -> 0 | O62: =N62+J62 -> -28.97 | P62: -7 | Q62: 0 | BX62: =BU62+BR62+BO62+BL62+BI62+BF62+BC62+AZ62+AW62+AT62+AQ62+AN62+AK62+AH62+AE62+AB62+Y62+V62+S62+P62 -> -7 | BY62: 0 | BZ62: 0
A63: 1 | B63: 1 | C63: 23 | D63: =INDEX(Players!B:B,MATCH(E63,Players!F:F,0)) -> A | E63: Stephen Barr | F63: 15.89536364 | G63: 3 | H63: 15.89536364 | I63: 3 | J63: =INDEX(Players!A:A,MATCH(E63,Players!F:F,0)) -> 11.18 | K63: =R63+U63+X63+AA63+AD63+AG63+AJ63+AM63+AP63+AS63+AV63+AY63+BB63+BE63+BH63+BK63+BN63+BQ63+BT63+BW63 -> 10 | M63: =INDEX(Table!L:L,MATCH(E63,Table!F:F,0)) -> 127.575 | N63: =L63+K63+M63 -> 137.575 | O63: =N63+J63 -> 148.755 | P63: 15.89536364 | Q63: 3 | R63: 10 | BX63: 15.89536364 | BY63: 3 | BZ63: 10
A64: 49 | B64: 47 | C64: 48 | D64: =INDEX(Players!B:B,MATCH(E64,Players!F:F,0)) -> A | E64: Stephen Troop | F64: -7 | G64: 0 | H64: -7 | I64: 0 | J64: =INDEX(Players!A:A,MATCH(E64,Players!F:F,0)) -> 44.845 | K64: =R64+U64+X64+AA64+AD64+AG64+AJ64+AM64+AP64+AS64+AV64+AY64+BB64+BE64+BH64+BK64+BN64+BQ64+BT64+BW64 -> 0 | M64: =INDEX(Table!L:L,MATCH(E64,Table!F:F,0)) -> 0 | N64: =L64+K64+M64 -> 0 | O64: =N64+J64 -> 44.845 | P64: -7 | Q64: 0 | BX64: -7 | BY64: 0 | BZ64: 0
A65: 4 | B65: 4 | C65: 39 | D65: =INDEX(Players!B:B,MATCH(E65,Players!F:F,0)) -> A | E65: Steve Baxter | F65: 7.808928571 | G65: 3 | H65: 7.808928571 | I65: 3 | J65: =INDEX(Players!A:A,MATCH(E65,Players!F:F,0)) -> 26.25 | K65: =R65+U65+X65+AA65+AD65+AG65+AJ65+AM65+AP65+AS65+AV65+AY65+BB65+BE65+BH65+BK65+BN65+BQ65+BT65+BW65 -> 5 | M65: =INDEX(Table!L:L,MATCH(E65,Table!F:F,0)) -> 91.125 | N65: =L65+K65+M65 -> 96.125 | O65: =N65+J65 -> 122.375 | P65: 7.808928571 | Q65: 3 | R65: 5 | BX65: 7.808928571 | BY65: 3 | BZ65: 5
A66: 34 | B66: 33 | C66: 59 | D66: =INDEX(Players!B:B,MATCH(E66,Players!F:F,0)) -> B | E66: Steve Carter | F66: -5.181818182 | G66: 1 | H66: -5.181818182 | I66: 1 | J66: =INDEX(Players!A:A,MATCH(E66,Players!F:F,0)) -> 73.84 | K66: =R66+U66+X66+AA66+AD66+AG66+AJ66+AM66+AP66+AS66+AV66+AY66+BB66+BE66+BH66+BK66+BN66+BQ66+BT66+BW66 -> 0 | M66: =INDEX(Table!L:L,MATCH(E66,Table!F:F,0)) -> 0 | N66: =L66+K66+M66 -> 0 | O66: =N66+J66 -> 73.84 | P66: -5.181818182 | Q66: 1 | BX66: -5.181818182 | BY66: 1 | BZ66: 0
A67: =_xlfn.RANK.EQ(F67,totalscores,0) -> 6 | B67: 6 | C67: 59 | D67: =INDEX(Players!B:B,MATCH(E67,Players!F:F,0)) -> B | E67: Tom Robinson | F67: =+P67+S67+V67+Y67+AB67+AE67+AH67+AK67+AN67+AQ67+AT67+AW67+AZ67+BC67+BF67+BI67+BL67+BO67+BR67+BU67 -> 3.954 | G67: =+Q67+T67+W67+Z67+AC67+AF67+AI67+AL67+AO67+AR67+AU67+AX67+BA67+BD67+BG67+BJ67+BM67+BP67+BS67+BV67 -> 2 | H67: 3.954 | I67: 2 | J67: =INDEX(Players!A:A,MATCH(E67,Players!F:F,0)) -> 47.775 | K67: =R67+U67+X67+AA67+AD67+AG67+AJ67+AM67+AP67+AS67+AV67+AY67+BB67+BE67+BH67+BK67+BN67+BQ67+BT67+BW67 -> 0 | M67: =INDEX(Table!L:L,MATCH(E67,Table!F:F,0)) -> 29.16 | N67: =L67+K67+M67 -> 29.16 | O67: =N67+J67 -> 76.935 | P67: 3.954 | Q67: 2 | BX67: =BU67+BR67+BO67+BL67+BI67+BF67+BC67+AZ67+AW67+AT67+AQ67+AN67+AK67+AH67+AE67+AB67+Y67+V67+S67+P67 -> 3.954 | BY67: =BV67+BS67+BP67+BM67+BJ67+BG67+BD67+BA67+AX67+AU67+AR67+AO67+AL67+AI67+AF67+AC67+Z67+W67+T67+Q67 -> 2 | BZ67: =BW67+BT67+BQ67+BN67+BK67+BH67+BE67+BB67+AY67+AV67+AS67+AP67+AM67+AJ67+AG67+AD67+AA67+X67+U67+R67 -> 0
A68: 37 | B68: 36 | C68: 59 | D68: =INDEX(Players!B:B,MATCH(E68,Players!F:F,0)) -> D | E68: Vinny Topping | F68: -5.2 | G68: 1 | H68: -5.2 | I68: 1 | J68: =INDEX(Players!A:A,MATCH(E68,Players!F:F,0)) -> 55.07 | K68: 0 | M68: =INDEX(Table!L:L,MATCH(E68,Table!F:F,0)) -> 0 | N68: 0 | O68: 55.07 | P68: -5.2 | Q68: 1 | BX68: -5.2 | BY68: 1 | BZ68: 0
A69: =_xlfn.RANK.EQ(F69,totalscores,0) -> 49 | B69: =_xlfn.RANK.EQ(H69,thisweekscore,0) -> 47 | C69: 59 | D69: =INDEX(Players!B:B,MATCH(E69,Players!F:F,0)) -> D | E69: Andy Clucas | F69: =+P69+S69+V69+Y69+AB69+AE69+AH69+AK69+AN69+AQ69+AT69+AW69+AZ69+BC69+BF69+BI69+BL69+BO69+BR69+BU69 -> -7 | G69: =+Q69+T69+W69+Z69+AC69+AF69+AI69+AL69+AO69+AR69+AU69+AX69+BA69+BD69+BG69+BJ69+BM69+BP69+BS69+BV69 -> 0 | H69: -7 | I69: 0 | J69: =INDEX(Players!A:A,MATCH(E69,Players!F:F,0)) -> 0 | K69: =R69+U69+X69+AA69+AD69+AG69+AJ69+AM69+AP69+AS69+AV69+AY69+BB69+BE69+BH69+BK69+BN69+BQ69+BT69+BW69 -> 0 | M69: =INDEX(Table!L:L,MATCH(E69,Table!F:F,0)) -> 0 | N69: =L69+K69+M69 -> 0 | O69: =N69+J69 -> 0 | P69: -7 | Q69: 0 | BX69: =BU69+BR69+BO69+BL69+BI69+BF69+BC69+AZ69+AW69+AT69+AQ69+AN69+AK69+AH69+AE69+AB69+Y69+V69+S69+P69 -> -7 | BY69: =BV69+BS69+BP69+BM69+BJ69+BG69+BD69+BA69+AX69+AU69+AR69+AO69+AL69+AI69+AF69+AC69+Z69+W69+T69+Q69 -> 0 | BZ69: =BW69+BT69+BQ69+BN69+BK69+BH69+BE69+BB69+AY69+AV69+AS69+AP69+AM69+AJ69+AG69+AD69+AA69+X69+U69+R69 -> 0
J71: =SUM(J2:J66) -> 249.375 | K71: =SUM(K2:K66) -> 25 | L71: =SUM(L2:L66) -> 0 | R71: =SUM(R2:R66) -> 25 | U71: =SUM(U2:U66) -> 0 | X71: =SUM(X2:X66) -> 0 | AA71: =SUM(AA2:AA66) -> 0 | AD71: =SUM(AD2:AD66) -> 0 | AG71: =SUM(AG2:AG66) -> 0 | AJ71: =SUM(AJ2:AJ66) -> 0 | AM71: =SUM(AM2:AM66) -> 0 | AP71: =SUM(AP2:AP66) -> 0 | AS71: =SUM(AS2:AS66) -> 0 | AV71: =SUM(AV2:AV66) -> 0 | AY71: =SUM(AY2:AY66) -> 0 | BB71: =SUM(BB2:BB66) -> 0 | BE71: =SUM(BE2:BE66) -> 0 | BH71: =SUM(BH2:BH66) -> 0 | BK71: =SUM(BK2:BK66) -> 0 | BN71: =SUM(BN2:BN66) -> 0 | BQ71: =SUM(BQ2:BQ66) -> 0 | BT71: =SUM(BT2:BT66) -> 0 | BW71: =SUM(BW2:BW66) -> 0 | BZ71: =SUM(BZ2:BZ66) -> 25

Sheet Pics
B1: Menu!A1
D2: Promotion/Prize Places (Top 6) In Division after Week 01 | K2: Weekly Top 12 for Week 01 | V2: League Standings after Week 01
C3: Pos | D3: Season Points | E3: Season Correct | F3: Name | G3: Week Points | H3: Week Correct | K3: Prize | L3: Name | M3: Points | P3: Division | Q3: Name | R3: Correct | S3: Points | V3: Division A | Y3: Division B | AB3: Division C | AE3: Division D
A4: A1 | B4: Division A | C4: =Table!D2 -> 1 | D4: =INDEX(Table!G:G,MATCH($A4,Table!$B:$B,0)) -> 15.89536364 | E4: =INDEX(Table!H:H,MATCH($A4,Table!$B:$B,0)) -> 3 | F4: =INDEX(Table!F:F,MATCH($A4,Table!$B:$B,0)) -> Stephen Barr | G4: =INDEX(Table!I:I,MATCH($A4,Table!$B:$B,0)) -> 15.89536364 | H4: =INDEX(Table!J:J,MATCH($A4,Table!$B:$B,0)) -> 3 | J4: 1 | K4: 10 | L4: =INDEX(Weekly!E:E,MATCH($J4,Weekly!B:B,0)) -> Stephen Barr | M4: =INDEX(Weekly!H:H,MATCH($J4,Weekly!B:B,0)) -> 15.89536364 | O4: 1 | U4: A1 | V4: =INDEX(Table!$F:$F,MATCH(U4,Table!$B:$B,0)) -> Stephen Barr | W4: =INDEX(Table!$G:$G,MATCH(U4,Table!$B:$B,0)) -> 15.89536364 | X4: B1 | Y4: =INDEX(Table!$F:$F,MATCH(X4,Table!$B:$B,0)) -> Alfie Davies | Z4: =INDEX(Table!$G:$G,MATCH(X4,Table!$B:$B,0)) -> 13.22597403 | AA4: C1 | AB4: =INDEX(Table!$F:$F,MATCH(AA4,Table!$B:$B,0)) -> Gareth Fallows | AC4: =INDEX(Table!$G:$G,MATCH(AA4,Table!$B:$B,0)) -> 1.163636364 | AD4: D1 | AE4: =INDEX(Table!$F:$F,MATCH(AD4,Table!$B:$B,0)) -> Martin Tarbuck | AF4: =INDEX(Table!$G:$G,MATCH(AD4,Table!$B:$B,0)) -> -0.9125
A5: A2 | C5: 2 | D5: =INDEX(Table!G:G,MATCH($A5,Table!$B:$B,0)) -> 7.808928571 | E5: =INDEX(Table!H:H,MATCH($A5,Table!$B:$B,0)) -> 3 | F5: =INDEX(Table!F:F,MATCH($A5,Table!$B:$B,0)) -> Steve Baxter | G5: =INDEX(Table!I:I,MATCH($A5,Table!$B:$B,0)) -> 7.808928571 | H5: =INDEX(Table!J:J,MATCH($A5,Table!$B:$B,0)) -> 3 | J5: 2 | K5: 5 | L5: =INDEX(Weekly!E:E,MATCH($J5,Weekly!B:B,0)) -> Alfie Davies | M5: =INDEX(Weekly!H:H,MATCH($J5,Weekly!B:B,0)) -> 13.22597403 | O5: 2 | U5: A2 | V5: =INDEX(Table!F:F,MATCH(U5,Table!$B:$B,0)) -> Steve Baxter | W5: =INDEX(Table!G:G,MATCH(U5,Table!$B:$B,0)) -> 7.808928571 | X5: B2 | Y5: =INDEX(Table!$F:$F,MATCH(X5,Table!$B:$B,0)) -> Alan Rogers | Z5: =INDEX(Table!$G:$G,MATCH(X5,Table!$B:$B,0)) -> 9.4375 | AA5: C2 | AB5: =INDEX(Table!$F:$F,MATCH(AA5,Table!$B:$B,0)) -> John Robinson | AC5: =INDEX(Table!$G:$G,MATCH(AA5,Table!$B:$B,0)) -> 1.018181818 | AD5: D2 | AE5: =INDEX(Table!$F:$F,MATCH(AD5,Table!$B:$B,0)) -> Ian Davies | AF5: =INDEX(Table!$G:$G,MATCH(AD5,Table!$B:$B,0)) -> -3.636363636
A6: A3 | C6: 3 | D6: =INDEX(Table!G:G,MATCH($A6,Table!$B:$B,0)) -> 3.954 | E6: =INDEX(Table!H:H,MATCH($A6,Table!$B:$B,0)) -> 2 | F6: =INDEX(Table!F:F,MATCH($A6,Table!$B:$B,0)) -> Paul Fairhurst | G6: =INDEX(Table!I:I,MATCH($A6,Table!$B:$B,0)) -> 3.954 | H6: =INDEX(Table!J:J,MATCH($A6,Table!$B:$B,0)) -> 2 | J6: 3 | K6: 5 | L6: =INDEX(Weekly!E:E,MATCH($J6,Weekly!B:B,0)) -> Alan Rogers | M6: =INDEX(Weekly!H:H,MATCH($J6,Weekly!B:B,0)) -> 9.4375 | O6: 3 | U6: A3 | V6: =INDEX(Table!F:F,MATCH(U6,Table!$B:$B,0)) -> Paul Fairhurst | W6: =INDEX(Table!G:G,MATCH(U6,Table!$B:$B,0)) -> 3.954 | X6: B3 | Y6: =INDEX(Table!$F:$F,MATCH(X6,Table!$B:$B,0)) -> Kei Lok Ma | Z6: =INDEX(Table!$G:$G,MATCH(X6,Table!$B:$B,0)) -> 7.265 | AA6: C3 | AB6: =INDEX(Table!$F:$F,MATCH(AA6,Table!$B:$B,0)) -> Paul Ridgeway | AC6: =INDEX(Table!$G:$G,MATCH(AA6,Table!$B:$B,0)) -> 0.54 | AD6: D3 | AE6: =INDEX(Table!$F:$F,MATCH(AD6,Table!$B:$B,0)) -> Sally Williams | AF6: =INDEX(Table!$G:$G,MATCH(AD6,Table!$B:$B,0)) -> -3.7
A7: A4 | C7: 4 | D7: =INDEX(Table!G:G,MATCH($A7,Table!$B:$B,0)) -> 2.933333333 | E7: =INDEX(Table!H:H,MATCH($A7,Table!$B:$B,0)) -> 2 | F7: =INDEX(Table!F:F,MATCH($A7,Table!$B:$B,0)) -> Mike Penk | G7: =INDEX(Table!I:I,MATCH($A7,Table!$B:$B,0)) -> 2.933333333 | H7: =INDEX(Table!J:J,MATCH($A7,Table!$B:$B,0)) -> 2 | J7: 4 | K7: 5 | L7: =INDEX(Weekly!E:E,MATCH($J7,Weekly!B:B,0)) -> Steve Baxter | M7: =INDEX(Weekly!H:H,MATCH($J7,Weekly!B:B,0)) -> 7.808928571 | O7: 4 | U7: A4 | V7: =INDEX(Table!F:F,MATCH(U7,Table!$B:$B,0)) -> Mike Penk | W7: =INDEX(Table!G:G,MATCH(U7,Table!$B:$B,0)) -> 2.933333333 | X7: B4 | Y7: =INDEX(Table!$F:$F,MATCH(X7,Table!$B:$B,0)) -> Tom Robinson | Z7: =INDEX(Table!$G:$G,MATCH(X7,Table!$B:$B,0)) -> 3.954 | AA7: C4 | AB7: =INDEX(Table!$F:$F,MATCH(AA7,Table!$B:$B,0)) -> Howard Bradley | AC7: =INDEX(Table!$G:$G,MATCH(AA7,Table!$B:$B,0)) -> 0.1333333333 | AD7: D4 | AE7: =INDEX(Table!$F:$F,MATCH(AD7,Table!$B:$B,0)) -> Liam Wah | AF7: =INDEX(Table!$G:$G,MATCH(AD7,Table!$B:$B,0)) -> -3.7
A8: A5 | C8: 5 | D8: =INDEX(Table!G:G,MATCH($A8,Table!$B:$B,0)) -> 1.163636364 | E8: =INDEX(Table!H:H,MATCH($A8,Table!$B:$B,0)) -> 2 | F8: =INDEX(Table!F:F,MATCH($A8,Table!$B:$B,0)) -> Alick Rocca | G8: =INDEX(Table!I:I,MATCH($A8,Table!$B:$B,0)) -> 1.163636364 | H8: =INDEX(Table!J:J,MATCH($A8,Table!$B:$B,0)) -> 2 | J8: 5 | L8: John Evans | M8: 25.97 | O8: 5 | U8: A5 | V8: =INDEX(Table!F:F,MATCH(U8,Table!$B:$B,0)) -> Alick Rocca | W8: =INDEX(Table!G:G,MATCH(U8,Table!$B:$B,0)) -> 1.163636364 | X8: B5 | Y8: =INDEX(Table!$F:$F,MATCH(X8,Table!$B:$B,0)) -> Graham Miller | Z8: =INDEX(Table!$G:$G,MATCH(X8,Table!$B:$B,0)) -> 3.48 | AA8: C5 | AB8: =INDEX(Table!$F:$F,MATCH(AA8,Table!$B:$B,0)) -> Charlie Griffiths | AC8: =INDEX(Table!$G:$G,MATCH(AA8,Table!$B:$B,0)) -> -4.1 | AD8: D5 | AE8: =INDEX(Table!$F:$F,MATCH(AD8,Table!$B:$B,0)) -> John Ronan | AF8: =INDEX(Table!$G:$G,MATCH(AD8,Table!$B:$B,0)) -> -3.9
A9: A6 | C9: 6 | D9: =INDEX(Table!G:G,MATCH($A9,Table!$B:$B,0)) -> -0.5333333333 | E9: =INDEX(Table!H:H,MATCH($A9,Table!$B:$B,0)) -> 2 | F9: =INDEX(Table!F:F,MATCH($A9,Table!$B:$B,0)) -> Mal Stott | G9: =INDEX(Table!I:I,MATCH($A9,Table!$B:$B,0)) -> -0.5333333333 | H9: =INDEX(Table!J:J,MATCH($A9,Table!$B:$B,0)) -> 2 | J9: 6 | L9: =INDEX(Weekly!E:E,MATCH($J9,Weekly!B:B,0)) -> Paul Fairhurst | M9: =INDEX(Weekly!H:H,MATCH($J9,Weekly!B:B,0)) -> 3.954 | O9: 6 | U9: A6 | V9: =INDEX(Table!F:F,MATCH(U9,Table!$B:$B,0)) -> Mal Stott | W9: =INDEX(Table!G:G,MATCH(U9,Table!$B:$B,0)) -> -0.5333333333 | X9: B6 | Y9: =INDEX(Table!$F:$F,MATCH(X9,Table!$B:$B,0)) -> Mo Sudell | Z9: =INDEX(Table!$G:$G,MATCH(X9,Table!$B:$B,0)) -> -4.5 | AA9: C6 | AB9: =INDEX(Table!$F:$F,MATCH(AA9,Table!$B:$B,0)) -> Gerard Ventom | AC9: =INDEX(Table!$G:$G,MATCH(AA9,Table!$B:$B,0)) -> -4.45 | AD9: D6 | AE9: =INDEX(Table!$F:$F,MATCH(AD9,Table!$B:$B,0)) -> Paul Adderley | AF9: =INDEX(Table!$G:$G,MATCH(AD9,Table!$B:$B,0)) -> -4.45
A10: B1 | B10: Division B | C10: 1 | D10: =INDEX(Table!G:G,MATCH($A10,Table!$B:$B,0)) -> 13.22597403 | E10: =INDEX(Table!H:H,MATCH($A10,Table!$B:$B,0)) -> 3 | F10: =INDEX(Table!F:F,MATCH($A10,Table!$B:$B,0)) -> Alfie Davies | G10: =INDEX(Table!I:I,MATCH($A10,Table!$B:$B,0)) -> 13.22597403 | H10: =INDEX(Table!J:J,MATCH($A10,Table!$B:$B,0)) -> 3 | J10: 7 | L10: =INDEX(Weekly!E:E,MATCH($J10,Weekly!B:B,0)) -> Graham Miller | M10: =INDEX(Weekly!H:H,MATCH($J10,Weekly!B:B,0)) -> 3.48 | O10: 7 | U10: A7 | V10: =INDEX(Table!F:F,MATCH(U10,Table!$B:$B,0)) -> Phil Miller | W10: =INDEX(Table!G:G,MATCH(U10,Table!$B:$B,0)) -> -1.7 | X10: B7 | Y10: =INDEX(Table!$F:$F,MATCH(X10,Table!$B:$B,0)) -> Lennie Bow | Z10: =INDEX(Table!$G:$G,MATCH(X10,Table!$B:$B,0)) -> -4.846153846 | AA10: C7 | AB10: =INDEX(Table!$F:$F,MATCH(AA10,Table!$B:$B,0)) -> Nick Blocksidge | AC10: =INDEX(Table!$G:$G,MATCH(AA10,Table!$B:$B,0)) -> -4.45 | AD10: D7 | AE10: =INDEX(Table!$F:$F,MATCH(AD10,Table!$B:$B,0)) -> Simon Greenhalgh | AF10: =INDEX(Table!$G:$G,MATCH(AD10,Table!$B:$B,0)) -> -4.5
A11: B2 | C11: 2 | D11: =INDEX(Table!G:G,MATCH($A11,Table!$B:$B,0)) -> 9.4375 | E11: =INDEX(Table!H:H,MATCH($A11,Table!$B:$B,0)) -> 2 | F11: =INDEX(Table!F:F,MATCH($A11,Table!$B:$B,0)) -> Alan Rogers | G11: =INDEX(Table!I:I,MATCH($A11,Table!$B:$B,0)) -> 9.4375 | H11: =INDEX(Table!J:J,MATCH($A11,Table!$B:$B,0)) -> 2 | J11: 8 | L11: =INDEX(Weekly!E:E,MATCH($J11,Weekly!B:B,0)) -> Mike Penk | M11: =INDEX(Weekly!H:H,MATCH($J11,Weekly!B:B,0)) -> 2.933333333 | O11: 8 | U11: A8 | V11: =INDEX(Table!F:F,MATCH(U11,Table!$B:$B,0)) -> Gareth Powell | W11: =INDEX(Table!G:G,MATCH(U11,Table!$B:$B,0)) -> -4.95 | X11: B8 | Y11: =INDEX(Table!$F:$F,MATCH(X11,Table!$B:$B,0)) -> Paul Fiddler | Z11: =INDEX(Table!$G:$G,MATCH(X11,Table!$B:$B,0)) -> -4.95 | AA11: C8 | AB11: =INDEX(Table!$F:$F,MATCH(AA11,Table!$B:$B,0)) -> Mark Bunn | AC11: =INDEX(Table!$G:$G,MATCH(AA11,Table!$B:$B,0)) -> -4.5 | AD11: D8 | AE11: =INDEX(Table!$F:$F,MATCH(AD11,Table!$B:$B,0)) -> Chris Bow | AF11: =INDEX(Table!$G:$G,MATCH(AD11,Table!$B:$B,0)) -> -5.090909091
A12: B3 | C12: 3 | D12: =INDEX(Table!G:G,MATCH($A12,Table!$B:$B,0)) -> 7.265 | E12: =INDEX(Table!H:H,MATCH($A12,Table!$B:$B,0)) -> 2 | F12: =INDEX(Table!F:F,MATCH($A12,Table!$B:$B,0)) -> Kei Lok Ma | G12: =INDEX(Table!I:I,MATCH($A12,Table!$B:$B,0)) -> 7.265 | H12: =INDEX(Table!J:J,MATCH($A12,Table!$B:$B,0)) -> 2 | J12: 9 | L12: =INDEX(Weekly!E:E,MATCH($J12,Weekly!B:B,0)) -> Alick Rocca | M12: =INDEX(Weekly!H:H,MATCH($J12,Weekly!B:B,0)) -> 1.163636364 | O12: 9 | U12: A9 | V12: =INDEX(Table!F:F,MATCH(U12,Table!$B:$B,0)) -> Barry Birchall | W12: =INDEX(Table!G:G,MATCH(U12,Table!$B:$B,0)) -> -5.22 | X12: B9 | Y12: =INDEX(Table!$F:$F,MATCH(X12,Table!$B:$B,0)) -> Dave Orrell | Z12: =INDEX(Table!$G:$G,MATCH(X12,Table!$B:$B,0)) -> -5.090909091 | AA12: C9 | AB12: =INDEX(Table!$F:$F,MATCH(AA12,Table!$B:$B,0)) -> David Dunn | AC12: =INDEX(Table!$G:$G,MATCH(AA12,Table!$B:$B,0)) -> -5.181818182 | AD12: D9 | AE12: =INDEX(Table!$F:$F,MATCH(AD12,Table!$B:$B,0)) -> Vinny Topping | AF12: =INDEX(Table!$G:$G,MATCH(AD12,Table!$B:$B,0)) -> -5.2
A13: B4 | C13: 4 | D13: =INDEX(Table!G:G,MATCH($A13,Table!$B:$B,0)) -> 3.954 | E13: =INDEX(Table!H:H,MATCH($A13,Table!$B:$B,0)) -> 2 | F13: =INDEX(Table!F:F,MATCH($A13,Table!$B:$B,0)) -> Tom Robinson | G13: =INDEX(Table!I:I,MATCH($A13,Table!$B:$B,0)) -> 3.954 | H13: =INDEX(Table!J:J,MATCH($A13,Table!$B:$B,0)) -> 2 | J13: 10 | L13: Gareth Fellows | M13: 1.16 | O13: 10 | U13: A10 | V13: =INDEX(Table!F:F,MATCH(U13,Table!$B:$B,0)) -> Nigel Heyes | W13: =INDEX(Table!G:G,MATCH(U13,Table!$B:$B,0)) -> -5.22 | X13: B10 | Y13: =INDEX(Table!$F:$F,MATCH(X13,Table!$B:$B,0)) -> Steve Carter | Z13: =INDEX(Table!$G:$G,MATCH(X13,Table!$B:$B,0)) -> -5.181818182 | AA13: C10 | AB13: =INDEX(Table!$F:$F,MATCH(AA13,Table!$B:$B,0)) -> Antony Robinson | AC13: =INDEX(Table!$G:$G,MATCH(AA13,Table!$B:$B,0)) -> -5.857142857 | AD13: D10 | AE13: =INDEX(Table!$F:$F,MATCH(AD13,Table!$B:$B,0)) -> Gareth McGuire | AF13: =INDEX(Table!$G:$G,MATCH(AD13,Table!$B:$B,0)) -> -5.333333333
A14: B5 | C14: 5 | D14: =INDEX(Table!G:G,MATCH($A14,Table!$B:$B,0)) -> 3.48 | E14: =INDEX(Table!H:H,MATCH($A14,Table!$B:$B,0)) -> 2 | F14: =INDEX(Table!F:F,MATCH($A14,Table!$B:$B,0)) -> Graham Miller | G14: =INDEX(Table!I:I,MATCH($A14,Table!$B:$B,0)) -> 3.48 | H14: =INDEX(Table!J:J,MATCH($A14,Table!$B:$B,0)) -> 2 | J14: 11 | L14: =INDEX(Weekly!E:E,MATCH($J14,Weekly!B:B,0)) -> John Robinson | M14: =INDEX(Weekly!H:H,MATCH($J14,Weekly!B:B,0)) -> 1.018181818 | O14: 11 | U14: A11 | V14: =INDEX(Table!F:F,MATCH(U14,Table!$B:$B,0)) -> Andy Charleston | W14: =INDEX(Table!G:G,MATCH(U14,Table!$B:$B,0)) -> -5.73 | X14: B11 | Y14: =INDEX(Table!$F:$F,MATCH(X14,Table!$B:$B,0)) -> Andy White | Z14: =INDEX(Table!$G:$G,MATCH(X14,Table!$B:$B,0)) -> -5.181818182 | AA14: C11 | AB14: =INDEX(Table!$F:$F,MATCH(AA14,Table!$B:$B,0)) -> Martin Molyneux | AC14: =INDEX(Table!$G:$G,MATCH(AA14,Table!$B:$B,0)) -> -7 | AD14: D11 | AE14: =INDEX(Table!$F:$F,MATCH(AD14,Table!$B:$B,0)) -> Lewis Buckley | AF14: =INDEX(Table!$G:$G,MATCH(AD14,Table!$B:$B,0)) -> -5.333333333
A15: B6 | C15: 6 | D15: =INDEX(Table!G:G,MATCH($A15,Table!$B:$B,0)) -> -4.5 | E15: =INDEX(Table!H:H,MATCH($A15,Table!$B:$B,0)) -> 1 | F15: =INDEX(Table!F:F,MATCH($A15,Table!$B:$B,0)) -> Mo Sudell | G15: =INDEX(Table!I:I,MATCH($A15,Table!$B:$B,0)) -> -4.5 | H15: =INDEX(Table!J:J,MATCH($A15,Table!$B:$B,0)) -> 1 | J15: 12 | L15: =INDEX(Weekly!E:E,MATCH($J15,Weekly!B:B,0)) -> Paul Ridgeway | M15: =INDEX(Weekly!H:H,MATCH($J15,Weekly!B:B,0)) -> 0.54 | O15: 12 | U15: A12 | V15: =INDEX(Table!F:F,MATCH(U15,Table!$B:$B,0)) -> Chris Luck | W15: =INDEX(Table!G:G,MATCH(U15,Table!$B:$B,0)) -> -7 | X15: B12 | Y15: =INDEX(Table!$F:$F,MATCH(X15,Table!$B:$B,0)) -> Mark Saunders | Z15: =INDEX(Table!$G:$G,MATCH(X15,Table!$B:$B,0)) -> -5.2 | AA15: C12 | AB15: =INDEX(Table!$F:$F,MATCH(AA15,Table!$B:$B,0)) -> Oscar Jackson | AC15: =INDEX(Table!$G:$G,MATCH(AA15,Table!$B:$B,0)) -> -7 | AD15: D12 | AE15: =INDEX(Table!$F:$F,MATCH(AD15,Table!$B:$B,0)) -> Paul Barnes | AF15: =INDEX(Table!$G:$G,MATCH(AD15,Table!$B:$B,0)) -> -7
A16: C1 | B16: Division C | C16: 1 | D16: =INDEX(Table!G:G,MATCH($A16,Table!$B:$B,0)) -> 1.163636364 | E16: =INDEX(Table!H:H,MATCH($A16,Table!$B:$B,0)) -> 2 | F16: =INDEX(Table!F:F,MATCH($A16,Table!$B:$B,0)) -> Gareth Fallows | G16: =INDEX(Table!I:I,MATCH($A16,Table!$B:$B,0)) -> 1.163636364 | H16: =INDEX(Table!J:J,MATCH($A16,Table!$B:$B,0)) -> 2 | O16: 13 | U16: A13 | V16: =INDEX(Table!F:F,MATCH(U16,Table!$B:$B,0)) -> Stephen Troop | W16: =INDEX(Table!G:G,MATCH(U16,Table!$B:$B,0)) -> -7 | X16: B13 | Y16: =INDEX(Table!$F:$F,MATCH(X16,Table!$B:$B,0)) -> Paul Allen | Z16: =INDEX(Table!$G:$G,MATCH(X16,Table!$B:$B,0)) -> -5.22 | AA16: C13 | AB16: =INDEX(Table!$F:$F,MATCH(AA16,Table!$B:$B,0)) -> Chris Townsend | AC16: =INDEX(Table!$G:$G,MATCH(AA16,Table!$B:$B,0)) -> -7 | AD16: D13 | AE16: =INDEX(Table!$F:$F,MATCH(AD16,Table!$B:$B,0)) -> Aaron Sudell | AF16: =INDEX(Table!$G:$G,MATCH(AD16,Table!$B:$B,0)) -> -7
A17: C2 | C17: 2 | D17: =INDEX(Table!G:G,MATCH($A17,Table!$B:$B,0)) -> 1.018181818 | E17: =INDEX(Table!H:H,MATCH($A17,Table!$B:$B,0)) -> 2 | F17: =INDEX(Table!F:F,MATCH($A17,Table!$B:$B,0)) -> John Robinson | G17: =INDEX(Table!I:I,MATCH($A17,Table!$B:$B,0)) -> 1.018181818 | H17: =INDEX(Table!J:J,MATCH($A17,Table!$B:$B,0)) -> 2 | K17: Popular bets | O17: 14 | U17: A14 | V17: =INDEX(Table!F:F,MATCH(U17,Table!$B:$B,0)) -> Kevin Carter | W17: =INDEX(Table!G:G,MATCH(U17,Table!$B:$B,0)) -> -7 | X17: B14 | Y17: =INDEX(Table!$F:$F,MATCH(X17,Table!$B:$B,0)) -> Chris Griffin | Z17: =INDEX(Table!$G:$G,MATCH(X17,Table!$B:$B,0)) -> -5.22 | AA17: C14 | AB17: =INDEX(Table!$F:$F,MATCH(AA17,Table!$B:$B,0)) -> Jack Walsh | AC17: =INDEX(Table!$G:$G,MATCH(AA17,Table!$B:$B,0)) -> -7 | AD17: D14 | AE17: =INDEX(Table!$F:$F,MATCH(AD17,Table!$B:$B,0)) -> Dan Baxter | AF17: =INDEX(Table!$G:$G,MATCH(AD17,Table!$B:$B,0)) -> -7
A18: C3 | C18: 3 | D18: =INDEX(Table!G:G,MATCH($A18,Table!$B:$B,0)) -> 0.54 | E18: =INDEX(Table!H:H,MATCH($A18,Table!$B:$B,0)) -> 2 | F18: =INDEX(Table!F:F,MATCH($A18,Table!$B:$B,0)) -> Paul Ridgeway | G18: =INDEX(Table!I:I,MATCH($A18,Table!$B:$B,0)) -> 0.54 | H18: =INDEX(Table!J:J,MATCH($A18,Table!$B:$B,0)) -> 2 | K18: Top Nap ↑ | L18: Portsmouth (4/6) / Cardiff (78/100) | M18: 6 | O18: 15 | U18: A15 | V18: =INDEX(Table!F:F,MATCH(U18,Table!$B:$B,0)) -> Ste Bentley | W18: =INDEX(Table!G:G,MATCH(U18,Table!$B:$B,0)) -> -7 | X18: B15 | Y18: =INDEX(Table!$F:$F,MATCH(X18,Table!$B:$B,0)) -> John Evans | Z18: =INDEX(Table!$G:$G,MATCH(X18,Table!$B:$B,0)) -> -5.333333333 | AA18: C15 | AB18: =INDEX(Table!$F:$F,MATCH(AA18,Table!$B:$B,0)) -> Graeme Holmes | AC18: =INDEX(Table!$G:$G,MATCH(AA18,Table!$B:$B,0)) -> -7 | AD18: D15 | AE18: =INDEX(Table!$F:$F,MATCH(AD18,Table!$B:$B,0)) -> Ashley Houghton | AF18: =INDEX(Table!$G:$G,MATCH(AD18,Table!$B:$B,0)) -> -7
A19: C4 | C19: 4 | D19: =INDEX(Table!G:G,MATCH($A19,Table!$B:$B,0)) -> 0.1333333333 | E19: =INDEX(Table!H:H,MATCH($A19,Table!$B:$B,0)) -> 2 | F19: =INDEX(Table!F:F,MATCH($A19,Table!$B:$B,0)) -> Howard Bradley | G19: =INDEX(Table!I:I,MATCH($A19,Table!$B:$B,0)) -> 0.1333333333 | H19: =INDEX(Table!J:J,MATCH($A19,Table!$B:$B,0)) -> 2 | K19: Coupon-Buster ↓ | L19: Watford (10/11) | M19: 11 | O19: 16 | U19: A16 | V19: =INDEX(Table!F:F,MATCH(U19,Table!$B:$B,0)) -> Pete Baron | W19: =INDEX(Table!G:G,MATCH(U19,Table!$B:$B,0)) -> -7 | X19: B16 | Y19: =INDEX(Table!$F:$F,MATCH(X19,Table!$B:$B,0)) -> Rob England | Z19: =INDEX(Table!$G:$G,MATCH(X19,Table!$B:$B,0)) -> -5.857142857 | AA19: C16 | AB19: =INDEX(Table!$F:$F,MATCH(AA19,Table!$B:$B,0)) -> Ben Rosser | AC19: =INDEX(Table!$G:$G,MATCH(AA19,Table!$B:$B,0)) -> -7 | AD19: D16 | AE19: =INDEX(Table!$F:$F,MATCH(AD19,Table!$B:$B,0)) -> James Bell | AF19: =INDEX(Table!$G:$G,MATCH(AD19,Table!$B:$B,0)) -> -7
A20: C5 | C20: 5 | D20: =INDEX(Table!G:G,MATCH($A20,Table!$B:$B,0)) -> -4.1 | E20: =INDEX(Table!H:H,MATCH($A20,Table!$B:$B,0)) -> 1 | F20: =INDEX(Table!F:F,MATCH($A20,Table!$B:$B,0)) -> Charlie Griffiths | G20: =INDEX(Table!I:I,MATCH($A20,Table!$B:$B,0)) -> -4.1 | H20: =INDEX(Table!J:J,MATCH($A20,Table!$B:$B,0)) -> 1 | K20: Long Shot | L20: Grimsby draw (5/2) - Alan Rogers | M20: 1 | O20: 17 | AD20: D17 | AE20: =INDEX(Table!$F:$F,MATCH(AD20,Table!$B:$B,0)) -> Dave Bell | AF20: =INDEX(Table!$G:$G,MATCH(AD20,Table!$B:$B,0)) -> -7
A21: C6 | C21: 6 | D21: =INDEX(Table!G:G,MATCH($A21,Table!$B:$B,0)) -> -4.45 | E21: =INDEX(Table!H:H,MATCH($A21,Table!$B:$B,0)) -> 1 | F21: =INDEX(Table!F:F,MATCH($A21,Table!$B:$B,0)) -> Gerard Ventom | G21: =INDEX(Table!I:I,MATCH($A21,Table!$B:$B,0)) -> -4.45 | H21: =INDEX(Table!J:J,MATCH($A21,Table!$B:$B,0)) -> 1 | K21: Bravest Max! | L21: Dave Bell (0 in) | M21: =MAX(Picks!AI:AI) -> 3112 | O21: 18 | AD21: D18 | AE21: =INDEX(Table!$F:$F,MATCH(AD21,Table!$B:$B,0)) -> Joel Bent | AF21: =INDEX(Table!$G:$G,MATCH(AD21,Table!$B:$B,0)) -> -7
A22: D1 | B22: Division D | C22: 1 | D22: =INDEX(Table!G:G,MATCH($A22,Table!$B:$B,0)) -> -0.9125 | E22: =INDEX(Table!H:H,MATCH($A22,Table!$B:$B,0)) -> 2 | F22: =INDEX(Table!F:F,MATCH($A22,Table!$B:$B,0)) -> Martin Tarbuck | G22: =INDEX(Table!I:I,MATCH($A22,Table!$B:$B,0)) -> -0.9125 | H22: =INDEX(Table!J:J,MATCH($A22,Table!$B:$B,0)) -> 2 | K22: Mardest Max! | L22: Steve Baxter (3 in) | M22: =MIN(Picks!AI:AI) -> 7.808928571 | O22: 19 | AD22: D19 | AE22: =INDEX(Table!$F:$F,MATCH(AD22,Table!$B:$B,0)) -> Alan White | AF22: =INDEX(Table!$G:$G,MATCH(AD22,Table!$B:$B,0)) -> -7
A23: D2 | C23: 2 | D23: =INDEX(Table!G:G,MATCH($A23,Table!$B:$B,0)) -> -3.636363636 | E23: =INDEX(Table!H:H,MATCH($A23,Table!$B:$B,0)) -> 1 | F23: =INDEX(Table!F:F,MATCH($A23,Table!$B:$B,0)) -> Ian Davies | G23: =INDEX(Table!I:I,MATCH($A23,Table!$B:$B,0)) -> -3.636363636 | H23: =INDEX(Table!J:J,MATCH($A23,Table!$B:$B,0)) -> 1 | O23: 20 | AD23: D20 | AE23: =INDEX(Table!$F:$F,MATCH(AD23,Table!$B:$B,0)) -> Andy Clucas | AF23: =INDEX(Table!$G:$G,MATCH(AD23,Table!$B:$B,0)) -> -7
A24: D3 | C24: 3 | D24: =INDEX(Table!G:G,MATCH($A24,Table!$B:$B,0)) -> -3.7 | E24: =INDEX(Table!H:H,MATCH($A24,Table!$B:$B,0)) -> 1 | F24: =INDEX(Table!F:F,MATCH($A24,Table!$B:$B,0)) -> Sally Williams | G24: =INDEX(Table!I:I,MATCH($A24,Table!$B:$B,0)) -> -3.7 | H24: =INDEX(Table!J:J,MATCH($A24,Table!$B:$B,0)) -> 1 | K24: How did we all do?
A25: D4 | C25: 4 | D25: =INDEX(Table!G:G,MATCH($A25,Table!$B:$B,0)) -> -3.7 | E25: =INDEX(Table!H:H,MATCH($A25,Table!$B:$B,0)) -> 1 | F25: =INDEX(Table!F:F,MATCH($A25,Table!$B:$B,0)) -> Liam Wah | G25: =INDEX(Table!I:I,MATCH($A25,Table!$B:$B,0)) -> -3.7 | H25: =INDEX(Table!J:J,MATCH($A25,Table!$B:$B,0)) -> 1 | K25: ='3of3'!$B$5 -> 3 | L25: got 3 correct
A26: D5 | C26: 5 | D26: =INDEX(Table!G:G,MATCH($A26,Table!$B:$B,0)) -> -3.9 | E26: =INDEX(Table!H:H,MATCH($A26,Table!$B:$B,0)) -> 1 | F26: =INDEX(Table!F:F,MATCH($A26,Table!$B:$B,0)) -> John Ronan | G26: =INDEX(Table!I:I,MATCH($A26,Table!$B:$B,0)) -> -3.9 | H26: =INDEX(Table!J:J,MATCH($A26,Table!$B:$B,0)) -> 1 | K26: ='3of3'!$B$6 -> 14 | L26: got 2 correct
A27: D6 | C27: 6 | D27: =INDEX(Table!G:G,MATCH($A27,Table!$B:$B,0)) -> -4.45 | E27: =INDEX(Table!H:H,MATCH($A27,Table!$B:$B,0)) -> 1 | F27: =INDEX(Table!F:F,MATCH($A27,Table!$B:$B,0)) -> Paul Adderley | G27: =INDEX(Table!I:I,MATCH($A27,Table!$B:$B,0)) -> -4.45 | H27: =INDEX(Table!J:J,MATCH($A27,Table!$B:$B,0)) -> 1 | K27: ='3of3'!$B$7 -> 31 | L27: got 1 correct
K28: ='3of3'!$B$8 -> 20 | L28: got 0 correct, of which…
K29: 4 | L29: … failed to submit

Sheet Match
A1: Date | B1: Sequence | C1: Comp | D1: Home | E1: Away | F1: Home score | G1: Away score | H1: H1 | I1: H2 | J1: D1 | K1: D2 | L1: A1 | M1: A2 | N1: Off | O1: Home Trim | P1: Away Trim | Q1: HS Trim | R1: AS Trim | S1: Match Odds | T1: Results | U1: Odds | V1: Home odds | W1: Draw Odds | X1: Away Odds | Y1: Home Dec | Z1: Draw Dec | AA1: Away Dec
A2: 2019-08-09 | B2: 10 | C2: Premier | D2: Liverpool | E2: Norwich | F2: 4 | G2: 1 | H2: 1 | I2: 7 | J2: 7 | K2: 1 | L2: 18 | M2: 1 | O2: =TRIM(D2) -> Liverpool | P2: =TRIM(E2) -> Norwich | Q2: =TRIM(F2) -> 4 | R2: =TRIM(G2) -> 1 | S2: =IF(A2="","",O2&" v "&P2&" "&U2) -> Liverpool v Norwich 1/7 7/1 18/1 | T2: =O2&" "&Q2&"-"&R2&" "&P2&" "&N2 -> Liverpool 4-1 Norwich | U2: =V2&" "&W2&" "&X2 -> 1/7 7/1 18/1 | V2: =CONCATENATE(H2,"/",I2) -> 1/7 | W2: =CONCATENATE(J2,"/",K2) -> 7/1 | X2: =CONCATENATE(L2,"/",M2) -> 18/1 | Y2: =IF(A2="","",1+(H2/I2)) -> 1.142857143 | Z2: =IF(C2="","",1+(J2/K2)) -> 8 | AA2: =IF(D2="","",1+(L2/M2)) -> 19
A3: 2019-08-10 | B3: 10 | C3: Premier | D3: Bournemouth | E3: Sheff U | F3: 1 | G3: 1 | H3: 10 | I3: 11 | J3: 13 | K3: 5 | L3: 3 | M3: 1 | O3: Bournemouth | P3: Sheff U | Q3: 1 | R3: 1 | S3: Bournemouth v Sheff U 10/11 13/5 3/1 | T3: Bournemouth 1-1 Sheff U | U3: =V3&" "&W3&" "&X3 -> 10/11 13/5 3/1 | V3: 10/11 | W3: 13/5 | X3: 3/1 | Y3: =IF(A3="","",1+(H3/I3)) -> 1.909090909 | Z3: =IF(C3="","",1+(J3/K3)) -> 3.6 | AA3: =IF(D3="","",1+(L3/M3)) -> 4
A4: 2019-08-10 | B4: 10 | C4: Premier | D4: Burnley | E4: Southampton | F4: 3 | G4: 0 | H4: 31 | I4: 20 | J4: 23 | K4: 10 | L4: 9 | M4: 5 | O4: Burnley | P4: Southampton | Q4: 3 | R4: 0 | S4: Burnley v Southampton 31/20 23/10 9/5 | T4: Burnley 3-0 Southampton | U4: 31/20 23/10 9/5 | V4: 31/20 | W4: 23/10 | X4: 9/5 | Y4: 2.55 | Z4: 3.3 | AA4: 2.8
A5: 2019-08-10 | B5: 10 | C5: Premier | D5: Palace | E5: Everton | F5: 0 | G5: 0 | H5: 19 | I5: 10 | J5: 23 | K5: 10 | L5: 6 | M5: 4 | O5: Palace | P5: Everton | Q5: 0 | R5: 0 | S5: Palace v Everton 19/10 23/10 6/4 | T5: Palace 0-0 Everton | U5: 19/10 23/10 6/4 | V5: 19/10 | W5: 23/10 | X5: 6/4 | Y5: 2.9 | Z5: 3.3 | AA5: 2.5
A6: 2019-08-10 | B6: 10 | C6: Premier | D6: Spurs | E6: Villa | F6: 3 | G6: 1 | H6: 27 | I6: 100 | J6: 24 | K6: 5 | L6: 10 | M6: 1 | O6: Spurs | P6: Villa | Q6: 3 | R6: 1 | S6: Spurs v Villa 27/100 24/5 10/1 | T6: Spurs 3-1 Villa | U6: 27/100 24/5 10/1 | V6: 27/100 | W6: 24/5 | X6: 10/1 | Y6: 1.27 | Z6: 5.8 | AA6: 11
A7: 2019-08-10 | B7: 10 | C7: Premier | D7: Watford | E7: Brighton | F7: 0 | G7: 3 | H7: 10 | I7: 11 | J7: 12 | K7: 5 | L7: 10 | M7: 3 | O7: =TRIM(D7) -> Watford | P7: Brighton | Q7: 0 | R7: 3 | S7: Watford v Brighton 10/11 12/5 10/3 | T7: Watford 0-3 Brighton | U7: 10/11 12/5 10/3 | V7: 10/11 | W7: 12/5 | X7: 10/3 | Y7: 1.909090909 | Z7: 3.4 | AA7: 4.333333333
A8: 2019-08-10 | B8: 10 | C8: Premier | D8: West Ham | E8: Man C | F8: 0 | G8: 5 | H8: 11 | I8: 1 | J8: 5 | K8: 1 | L8: 1 | M8: 4 | O8: West Ham | P8: Man C | Q8: 0 | R8: 5 | S8: West Ham v Man C 11/1 5/1 1/4 | T8: West Ham 0-5 Man C | U8: 11/1 5/1 1/4 | V8: 11/1 | W8: 5/1 | X8: 1/4 | Y8: 12 | Z8: 6 | AA8: 1.25
A9: 2019-08-10 | B9: 11 | C9: Champ | D9: Birmingham | E9: Bristol C | F9: 1 | G9: 1 | H9: 27 | I9: 20 | J9: 23 | K9: 10 | L9: 21 | M9: 10 | O9: Birmingham | P9: Bristol C | Q9: 1 | R9: 1 | S9: Birmingham v Bristol C 27/20 23/10 21/10 | T9: Birmingham 1-1 Bristol C | U9: 27/20 23/10 21/10 | V9: 27/20 | W9: 23/10 | X9: 21/10 | Y9: 2.35 | Z9: 3.3 | AA9: 3.1
A10: 2019-08-10 | B10: 11 | C10: Champ | D10: Cardiff | E10: Luton | F10: 2 | G10: 1 | H10: 78 | I10: 100 | J10: 13 | K10: 5 | L10: 19 | M10: 5 | O10: Cardiff | P10: Luton | Q10: 2 | R10: 1 | S10: Cardiff v Luton 78/100 13/5 19/5 | T10: Cardiff 2-1 Luton | U10: 78/100 13/5 19/5 | V10: 78/100 | W10: 13/5 | X10: 19/5 | Y10: 1.78 | Z10: 3.6 | AA10: 4.8
A11: 2019-08-10 | B11: 11 | C11: Champ | D11: Charlton | E11: Stoke | F11: 3 | G11: 1 | H11: 21 | I11: 10 | J11: 12 | K11: 5 | L11: 13 | M11: 10 | O11: Charlton | P11: Stoke | Q11: 3 | R11: 1 | S11: Charlton v Stoke 21/10 12/5 13/10 | T11: Charlton 3-1 Stoke | U11: 21/10 12/5 13/10 | V11: 21/10 | W11: 12/5 | X11: 13/10 | Y11: 3.1 | Z11: 3.4 | AA11: 2.3
A12: 2019-08-10 | B12: 11 | C12: Champ | D12: Derby | E12: Swansea | F12: 0 | G12: 0 | H12: 23 | I12: 20 | J12: 12 | K12: 5 | L12: 12 | M12: 5 | O12: Derby | P12: Swansea | Q12: 0 | R12: 0 | S12: Derby v Swansea 23/20 12/5 12/5 | T12: Derby 0-0 Swansea | U12: 23/20 12/5 12/5 | V12: 23/20 | W12: 12/5 | X12: 12/5 | Y12: 2.15 | Z12: 3.4 | AA12: 3.4
A13: 2019-08-10 | B13: 11 | C13: Champ | D13: Fulham | E13: Blackburn | F13: 2 | G13: 0 | H13: 4 | I13: 5 | J13: 11 | K13: 4 | L13: 17 | M13: 5 | O13: Fulham | P13: Blackburn | Q13: 2 | R13: 0 | S13: Fulham v Blackburn 4/5 11/4 17/5 | T13: Fulham 2-0 Blackburn | U13: 4/5 11/4 17/5 | V13: 4/5 | W13: 11/4 | X13: 17/5 | Y13: 1.8 | Z13: 3.75 | AA13: 4.4
A14: 2019-08-10 | B14: 11 | C14: Champ | D14: Hull | E14: Reading | F14: 2 | G14: 1 | H14: 21 | I14: 20 | J14: 12 | K14: 5 | L14: 27 | M14: 10 | O14: Hull | P14: Reading | Q14: 2 | R14: 1 | S14: Hull v Reading 21/20 12/5 27/10 | T14: Hull 2-1 Reading | U14: 21/20 12/5 27/10 | V14: 21/20 | W14: 12/5 | X14: 27/10 | Y14: 2.05 | Z14: 3.4 | AA14: 3.7
A15: 2019-08-10 | B15: 11 | C15: Champ | D15: Leeds | E15: Forest | F15: 1 | G15: 1 | H15: 7 | I15: 10 | J15: 14 | K15: 5 | L15: 4 | M15: 1 | O15: Leeds | P15: Forest | Q15: 1 | R15: 1 | S15: Leeds v Forest 7/10 14/5 4/1 | T15: Leeds 1-1 Forest | U15: 7/10 14/5 4/1 | V15: 7/10 | W15: 14/5 | X15: 4/1 | Y15: 1.7 | Z15: 3.8 | AA15: 5
A16: 2019-08-10 | B16: 11 | C16: Champ | D16: Middlesbro | E16: Brentford | F16: 0 | G16: 1 | H16: 13 | I16: 10 | J16: 12 | K16: 5 | L16: 21 | M16: 10 | O16: Middlesbro | P16: Brentford | Q16: 0 | R16: 1 | S16: Middlesbro v Brentford 13/10 12/5 21/10 | T16: Middlesbro 0-1 Brentford | U16: 13/10 12/5 21/10 | V16: 13/10 | W16: 12/5 | X16: 21/10 | Y16: 2.3 | Z16: 3.4 | AA16: 3.1
A17: 2019-08-10 | B17: 11 | C17: Champ | D17: Preston | E17: Wigan | F17: 3 | G17: 0 | H17: 11 | I17: 10 | J17: 23 | K17: 10 | L17: 27 | M17: 10 | O17: Preston | P17: Wigan | Q17: 3 | R17: 0 | S17: Preston v Wigan 11/10 23/10 27/10 | T17: Preston 3-0 Wigan | U17: 11/10 23/10 27/10 | V17: 11/10 | W17: 23/10 | X17: 27/10 | Y17: 2.1 | Z17: 3.3 | AA17: 3.7
A18: 2019-08-10 | B18: 11 | C18: Champ | D18: QPR | E18: Huddersfield | F18: 1 | G18: 1 | H18: 31 | I18: 20 | J18: 23 | K18: 10 | L18: 9 | M18: 5 | O18: QPR | P18: Huddersfield | Q18: 1 | R18: 1 | S18: QPR v Huddersfield 31/20 23/10 9/5 | T18: QPR 1-1 Huddersfield | U18: 31/20 23/10 9/5 | V18: 31/20 | W18: 23/10 | X18: 9/5 | Y18: 2.55 | Z18: 3.3 | AA18: 2.8
A19: 2019-08-10 | B19: 11 | C19: Champ | D19: Sheff W | E19: Barnsley | F19: 2 | G19: 0 | H19: 21 | I19: 20 | J19: 12 | K19: 5 | L19: 27 | M19: 10 | O19: Sheff W | P19: Barnsley | Q19: 2 | R19: 0 | S19: Sheff W v Barnsley 21/20 12/5 27/10 | T19: Sheff W 2-0 Barnsley | U19: 21/20 12/5 27/10 | V19: 21/20 | W19: 12/5 | X19: 27/10 | Y19: 2.05 | Z19: 3.4 | AA19: 3.7
A20: 2019-08-10 | B20: 11 | C20: Champ | D20: West Brom | E20: Millwall | F20: 1 | G20: 1 | H20: 7 | I20: 10 | J20: 11 | K20: 4 | L20: 17 | M20: 4 | O20: West Brom | P20: Millwall | Q20: 1 | R20: 1 | S20: West Brom v Millwall 7/10 11/4 17/4 | T20: West Brom 1-1 Millwall | U20: 7/10 11/4 17/4 | V20: 7/10 | W20: 11/4 | X20: 17/4 | Y20: 1.7 | Z20: 3.75 | AA20: 5.25
A21: 2019-08-10 | B21: 12 | C21: League 1 | D21: Bristol R | E21: Wycombe | F21: 0 | G21: 0 | H21: 6 | I21: 5 | J21: 23 | K21: 10 | L21: 21 | M21: 10 | O21: Bristol R | P21: Wycombe | Q21: 0 | R21: 0 | S21: Bristol R v Wycombe 6/5 23/10 21/10 | T21: Bristol R 0-0 Wycombe | U21: 6/5 23/10 21/10 | V21: 6/5 | W21: 23/10 | X21: 21/10 | Y21: 2.2 | Z21: 3.3 | AA21: 3.1
A22: 2019-08-10 | B22: 12 | C22: League 1 | D22: Fleetwood | E22: Wimbledon | F22: 2 | G22: 1 | H22: 10 | I22: 11 | J22: 23 | K22: 10 | L22: 3 | M22: 1 | O22: Fleetwood | P22: Wimbledon | Q22: 2 | R22: 1 | S22: Fleetwood v Wimbledon 10/11 23/10 3/1 | T22: Fleetwood 2-1 Wimbledon | U22: 10/11 23/10 3/1 | V22: 10/11 | W22: 23/10 | X22: 3/1 | Y22: 1.909090909 | Z22: 3.3 | AA22: 4
A23: 2019-08-10 | B23: 12 | C23: League 1 | D23: Gillingham | E23: Burton | F23: 1 | G23: 2 | H23: 13 | I23: 8 | J23: 23 | K23: 10 | L23: 6 | M23: 4 | O23: Gillingham | P23: Burton | Q23: 1 | R23: 2 | S23: Gillingham v Burton 13/8 23/10 6/4 | T23: Gillingham 1-2 Burton | U23: 13/8 23/10 6/4 | V23: 13/8 | W23: 23/10 | X23: 6/4 | Y23: 2.625 | Z23: 3.3 | AA23: 2.5
A24: 2019-08-10 | B24: 12 | C24: League 1 | D24: Ipswich | E24: Sunderland | F24: 1 | G24: 1 | H24: 7 | I24: 5 | J24: 23 | K24: 10 | L24: 9 | M24: 5 | O24: Ipswich | P24: Sunderland | Q24: 1 | R24: 1 | S24: Ipswich v Sunderland 7/5 23/10 9/5 | T24: Ipswich 1-1 Sunderland | U24: 7/5 23/10 9/5 | V24: 7/5 | W24: 23/10 | X24: 9/5 | Y24: 2.4 | Z24: 3.3 | AA24: 2.8
A25: 2019-08-10 | B25: 12 | C25: League 1 | D25: MK Dons | E25: Shrewsbury | F25: 1 | G25: 0 | H25: 15 | I25: 13 | J25: 23 | K25: 10 | L25: 11 | M25: 5 | O25: MK Dons | P25: Shrewsbury | Q25: 1 | R25: 0 | S25: MK Dons v Shrewsbury 15/13 23/10 11/5 | T25: MK Dons 1-0 Shrewsbury | U25: 15/13 23/10 11/5 | V25: 15/13 | W25: 23/10 | X25: 11/5 | Y25: 2.153846154 | Z25: 3.3 | AA25: 3.2
A26: 2019-08-10 | B26: 12 | C26: League 1 | D26: Oxford | E26: Peterborough | F26: 1 | G26: 0 | H26: 6 | I26: 4 | J26: 23 | K26: 10 | L26: 13 | M26: 8 | O26: Oxford | P26: Peterborough | Q26: 1 | R26: 0 | S26: Oxford v Peterborough 6/4 23/10 13/8 | T26: Oxford 1-0 Peterborough | U26: 6/4 23/10 13/8 | V26: 6/4 | W26: 23/10 | X26: 13/8 | Y26: 2.5 | Z26: 3.3 | AA26: 2.625
A27: 2019-08-10 | B27: 12 | C27: League 1 | D27: Portsmouth | E27: Tranmere | F27: 2 | G27: 0 | H27: 4 | I27: 6 | J27: 11 | K27: 4 | L27: 18 | M27: 5 | O27: Portsmouth | P27: Tranmere | Q27: 2 | R27: 0 | S27: Portsmouth v Tranmere 4/6 11/4 18/5 | T27: Portsmouth 2-0 Tranmere | U27: 4/6 11/4 18/5 | V27: 4/6 | W27: 11/4 | X27: 18/5 | Y27: 1.666666667 | Z27: 3.75 | AA27: 4.6
A28: 2019-08-10 | B28: 12 | C28: League 1 | D28: Rochdale | E28: Doncaster | F28: 1 | G28: 1 | H28: 13 | I28: 8 | J28: 23 | K28: 10 | L28: 6 | M28: 4 | O28: Rochdale | P28: Doncaster | Q28: 1 | R28: 1 | S28: Rochdale v Doncaster 13/8 23/10 6/4 | T28: Rochdale 1-1 Doncaster | U28: 13/8 23/10 6/4 | V28: 13/8 | W28: 23/10 | X28: 6/4 | Y28: 2.625 | Z28: 3.3 | AA28: 2.5
A29: 2019-08-10 | B29: 12 | C29: League 1 | D29: Rotherham | E29: Lincoln | F29: 0 | G29: 2 | H29: 11 | I29: 10 | J29: 23 | K29: 10 | L29: 23 | M29: 10 | O29: Rotherham | P29: Lincoln | Q29: 0 | R29: 2 | S29: Rotherham v Lincoln 11/10 23/10 23/10 | T29: Rotherham 0-2 Lincoln | U29: 11/10 23/10 23/10 | V29: 11/10 | W29: 23/10 | X29: 23/10 | Y29: 2.1 | Z29: 3.3 | AA29: 3.3
A30: 2019-08-10 | B30: 12 | C30: League 1 | D30: Southend | E30: Blackpool | F30: 1 | G30: 3 | H30: 13 | I30: 8 | J30: 23 | K30: 10 | L30: 6 | M30: 4 | O30: Southend | P30: Blackpool | Q30: 1 | R30: 3 | S30: Southend v Blackpool 13/8 23/10 6/4 | T30: Southend 1-3 Blackpool | U30: 13/8 23/10 6/4 | V30: 13/8 | W30: 23/10 | X30: 6/4 | Y30: 2.625 | Z30: 3.3 | AA30: 2.5
A31: 2019-08-10 | B31: 13 | C31: League 2 | D31: Cambridge | E31: Newport | F31: 0 | G31: 0 | H31: 17 | I31: 10 | J31: 5 | K31: 2 | L31: 13 | M31: 8 | O31: Cambridge | P31: Newport | Q31: 0 | R31: 0 | S31: Cambridge v Newport 17/10 5/2 13/8 | T31: Cambridge 0-0 Newport | U31: 17/10 5/2 13/8 | V31: 17/10 | W31: 5/2 | X31: 13/8 | Y31: 2.7 | Z31: 3.5 | AA31: 2.625
A32: 2019-08-10 | B32: 13 | C32: League 2 | D32: Cheltenham | E32: Scunthorpe | F32: 4 | G32: 1 | H32: 15 | I32: 8 | J32: 5 | K32: 2 | L32: 16 | M32: 11 | O32: Cheltenham | P32: Scunthorpe | Q32: 4 | R32: 1 | S32: Cheltenham v Scunthorpe 15/8 5/2 16/11 | T32: Cheltenham 4-1 Scunthorpe | U32: 15/8 5/2 16/11 | V32: 15/8 | W32: 5/2 | X32: 16/11 | Y32: 2.875 | Z32: 3.5 | AA32: 2.454545455
A33: 2019-08-10 | B33: 13 | C33: League 2 | D33: Crawley | E33: Salford | F33: 2 | G33: 0 | H33: 23 | I33: 10 | J33: 12 | K33: 5 | L33: 5 | M33: 4 | O33: =TRIM(D33) -> Crawley | P33: =TRIM(E33) -> Salford | Q33: =TRIM(F33) -> 2 | R33: =TRIM(G33) -> 0 | S33: Crawley v Salford 23/10 12/5 5/4 | T33: Crawley 2-0 Salford | U33: 23/10 12/5 5/4 | V33: =CONCATENATE(H33,"/",I33) -> 23/10 | W33: =CONCATENATE(J33,"/",K33) -> 12/5 | X33: =CONCATENATE(L33,"/",M33) -> 5/4 | Y33: 3.3 | Z33: 3.4 | AA33: 2.25
A34: 2019-08-10 | B34: 13 | C34: League 2 | D34: Grimsby | E34: Bradford | F34: 1 | G34: 1 | H34: 23 | I34: 10 | J34: 5 | K34: 2 | L34: 6 | M34: 5 | O34: Grimsby | P34: Bradford | Q34: 1 | R34: 1 | S34: Grimsby v Bradford 23/10 5/2 6/5 | T34: Grimsby 1-1 Bradford | U34: 23/10 5/2 6/5 | V34: 23/10 | W34: 5/2 | X34: 6/5 | Y34: 3.3 | Z34: 3.5 | AA34: 2.2
A35: 2019-08-10 | B35: 13 | C35: League 2 | D35: Macclesfield | E35: Orient | F35: 3 | G35: 0 | H35: 2 | I35: 1 | J35: 12 | K35: 5 | L35: 7 | M35: 5 | O35: Macclesfield | P35: Orient | Q35: 3 | R35: 0 | S35: Macclesfield v Orient 2/1 12/5 7/5 | T35: Macclesfield 3-0 Orient | U35: 2/1 12/5 7/5 | V35: 2/1 | W35: 12/5 | X35: 7/5 | Y35: 3 | Z35: 3.4 | AA35: 2.4
A36: 2019-08-10 | B36: 13 | C36: League 2 | D36: Mansfield | E36: Morecambe | F36: 2 | G36: 2 | H36: 7 | I36: 10 | J36: 3 | K36: 1 | L36: 22 | M36: 5 | O36: Mansfield | P36: Morecambe | Q36: 2 | R36: 2 | S36: Mansfield v Morecambe 7/10 3/1 22/5 | T36: Mansfield 2-2 Morecambe | U36: 7/10 3/1 22/5 | V36: 7/10 | W36: 3/1 | X36: 22/5 | Y36: 1.7 | Z36: 4 | AA36: 5.4
A37: 2019-08-10 | B37: 13 | C37: League 2 | D37: Oldham | E37: Crewe | F37: 1 | G37: 2 | H37: 7 | I37: 5 | J37: 13 | K37: 5 | L37: 19 | M37: 10 | O37: Oldham | P37: Crewe | Q37: 1 | R37: 2 | S37: Oldham v Crewe 7/5 13/5 19/10 | T37: Oldham 1-2 Crewe | U37: 7/5 13/5 19/10 | V37: 7/5 | W37: 13/5 | X37: 19/10 | Y37: 2.4 | Z37: 3.6 | AA37: 2.9
A38: 2019-08-10 | B38: 13 | C38: League 2 | D38: Plymouth | E38: Colchester | F38: 1 | G38: 0 | H38: 23 | I38: 20 | J38: 5 | K38: 2 | L38: 5 | M38: 2 | O38: Plymouth | P38: Colchester | Q38: 1 | R38: 0 | S38: Plymouth v Colchester 23/20 5/2 5/2 | T38: Plymouth 1-0 Colchester | U38: 23/20 5/2 5/2 | V38: 23/20 | W38: 5/2 | X38: 5/2 | Y38: 2.15 | Z38: 3.5 | AA38: 3.5
A39: 2019-08-10 | B39: 13 | C39: League 2 | D39: Port Vale | E39: Northampton | F39: 1 | G39: 1 | H39: 13 | I39: 8 | J39: 23 | K39: 10 | L39: 9 | M39: 5 | O39: Port Vale | P39: Northampton | Q39: 1 | R39: 1 | S39: Port Vale v Northampton 13/8 23/10 9/5 | T39: Port Vale 1-1 Northampton | U39: 13/8 23/10 9/5 | V39: 13/8 | W39: 23/10 | X39: 9/5 | Y39: 2.625 | Z39: 3.3 | AA39: 2.8
A40: 2019-08-10 | B40: 13 | C40: League 2 | D40: Stevenage | E40: Exeter | F40: 0 | G40: 1 | H40: 16 | I40: 11 | J40: 5 | K40: 2 | L40: 19 | M40: 10 | O40: Stevenage | P40: Exeter | Q40: 0 | R40: 1 | S40: Stevenage v Exeter 16/11 5/2 19/10 | T40: Stevenage 0-1 Exeter | U40: 16/11 5/2 19/10 | V40: 16/11 | W40: 5/2 | X40: 19/10 | Y40: 2.454545455 | Z40: 3.5 | AA40: 2.9
A41: 2019-08-10 | B41: 13 | C41: League 2 | D41: Swindon | E41: Carlisle | F41: 3 | G41: 2 | H41: 21 | I41: 20 | J41: 5 | K41: 2 | L41: 11 | M41: 4 | O41: Swindon | P41: Carlisle | Q41: 3 | R41: 2 | S41: Swindon v Carlisle 21/20 5/2 11/4 | T41: Swindon 3-2 Carlisle | U41: 21/20 5/2 11/4 | V41: 21/20 | W41: 5/2 | X41: 11/4 | Y41: 2.05 | Z41: 3.5 | AA41: 3.75
A42: 2019-08-10 | B42: 13 | C42: League 2 | D42: Walsall | E42: Forest Green | F42: 1 | G42: 1 | H42: 11 | I42: 8 | J42: 12 | K42: 5 | L42: 21 | M42: 10 | O42: Walsall | P42: Forest Green | Q42: 1 | R42: 1 | S42: Walsall v Forest Green 11/8 12/5 21/10 | T42: Walsall 1-1 Forest Green | U42: 11/8 12/5 21/10 | V42: 11/8 | W42: 12/5 | X42: 21/10 | Y42: 2.375 | Z42: 3.4 | AA42: 3.1
A43: 2019-08-11 | B43: 10 | C43: Premier | D43: Leicester | E43: Wolves | F43: 0 | G43: 0 | H43: 13 | I43: 10 | J43: 26 | K43: 11 | L43: 32 | M43: 13 | O43: Leicester | P43: Wolves | Q43: 0 | R43: 0 | S43: Leicester v Wolves 13/10 26/11 32/13 | T43: Leicester 0-0 Wolves | U43: 13/10 26/11 32/13 | V43: 13/10 | W43: 26/11 | X43: 32/13 | Y43: 2.3 | Z43: 3.363636364 | AA43: 3.461538462
A44: 2019-08-11 | B44: 10 | C44: Premier | D44: Man U | E44: Chelsea | F44: 4 | G44: 0 | H44: 5 | I44: 4 | J44: 32 | K44: 13 | L44: 13 | M44: 5 | O44: Man U | P44: Chelsea | Q44: 4 | R44: 0 | S44: Man U v Chelsea 5/4 32/13 13/5 | T44: Man U 4-0 Chelsea | U44: 5/4 32/13 13/5 | V44: 5/4 | W44: 32/13 | X44: 13/5 | Y44: 2.25 | Z44: 3.461538462 | AA44: 3.6
A45: 2019-08-11 | B45: 10 | C45: Premier | D45: Newcastle | E45: Arsenal | F45: 0 | G45: 1 | H45: 77 | I45: 19 | J45: 29 | K45: 10 | L45: 9 | M45: 11 | O45: Newcastle | P45: Arsenal | Q45: 0 | R45: 1 | S45: Newcastle v Arsenal 77/19 29/10 9/11 | T45: Newcastle 0-1 Arsenal | U45: =V45&" "&W45&" "&X45 -> 77/19 29/10 9/11 | V45: 77/19 | W45: 29/10 | X45: 9/11 | Y45: 5.052631579 | Z45: 3.9 | AA45: 1.818181818
T46: - | U46: =V46&" "&W46&" "&X46 -> / / / | V46: / | W46: / | X46: /
T47: =O47&" "&Q47&"-"&R47&" "&P47 -> - | U47: =V47&" "&W47&" "&X47 -> / / / | V47: / | W47: / | X47: /

Sheet Picks
A1: Player | B1: Prediction | C1: Fraction | D1: Decimal | E1: Bet in? | F1: Score | G1: Max | H1: =entrants-SUM(H2:H205) -> 4 | I1: Week Rank | J1: Week 1 | K1: Frac | L1: Dec | M1: Bet up | N1: Points | O1: Week 2 | P1: Results | R1: Choices | S1: Odds | T1: Up | U1: Home team | V1: H Score | W1: Away team | X1: A Score | AD1: This Week Actual Score | AE1: This Week Correct | AF1: Rank | AH1: Player | AI1: This Week Max Score | AJ1: This Week Correct | AK1: Rank
A2: =Results!B2 -> Aaron Sudell | B2: =IF(J2="","",J2) ->  | C2: =IF(J2="","",K2) ->  | D2: =IF(J2="","",L2) ->  | E2: =IF(J2="","",IF(M2=1,"√","x")) ->  | F2: =IF(J2="",-10,INDEX(Results!T:T,MATCH(A2,Results!V:V,0))) -> -10 | G2: =IF(J2="","",INDEX(Results!AI:AI,MATCH(A2,Results!V:V,0))) ->  | H2: =IF(G2="",0,1) -> 0 | I2: =INDEX(Picks!AF:AF,MATCH(A2,Picks!AC:AC,0)) -> 65 | K2: =INDEX(Odds!F:F,MATCH(J2,Odds!E:E,0)) ->  | L2: =INDEX(Odds!G:G,MATCH(J2,Odds!E:E,0)) ->  | M2: =INDEX(Odds!H:H,MATCH(J2,Odds!E:E,0)) ->  | N2: =L2*M2 ->  | P2: =IF(Match!A2="","",Match!T2) -> Liverpool 4-1 Norwich | R2: =IF(Odds!E2="","",Odds!E2) -> Liverpool | S2: =INDEX(Odds!F:F,MATCH(R2,Odds!E:E,0)) -> 1/7 | T2: =IF(V2>X2,1,0) -> 1 | U2: =INDEX(Match!O:O,MATCH(P2,Match!T:T,0)) -> Liverpool | V2: =INDEX(Match!F:F,MATCH(P2,Match!T:T,0)) -> 4 | W2: =INDEX(Match!P:P,MATCH(P2,Match!T:T,0)) -> Norwich | X2: =INDEX(Match!G:G,MATCH(P2,Match!T:T,0)) -> 1 | AC2: Stephen Barr | AD2: =INDEX(Picks!F:F,MATCH(AC2,Picks!A:A,0)) -> 15.89536364 | AE2: =INDEX(Weekly!I:I,MATCH(AC2,Weekly!E:E,0)) -> 3 | AF2: =IF(AD2="","",_xlfn.RANK.EQ(AD2,TopScores,0)) -> 1 | AH2: Aaron Sudell | AI2: =INDEX(Picks!G:G,MATCH(AH2,Picks!A:A,0)) ->  | AJ2: =INDEX(Weekly!I:I,MATCH(AH2,Weekly!E:E,0)) -> 0 | AK2: =IF(AI2="","",_xlfn.RANK.EQ(AI2,TopMaxScores,0)) -> 
A3: =A2 -> Aaron Sudell | B3: =IF(J3="","",J3) ->  | C3: =IF(J3="","",K3) ->  | D3: =IF(J3="","",L3) ->  | E3: =IF(J3="","",IF(M3=1,"√","x")) ->  | K3: =INDEX(Odds!F:F,MATCH(J3,Odds!E:E,0)) ->  | L3: =INDEX(Odds!G:G,MATCH(J3,Odds!E:E,0)) ->  | M3: =INDEX(Odds!H:H,MATCH(J3,Odds!E:E,0)) ->  | N3: =L3*M3 ->  | P3: =IF(Match!A3="","",Match!T3) -> Bournemouth 1-1 Sheff U | R3: =IF(Odds!E3="","",Odds!E3) -> Bournemouth | S3: =INDEX(Odds!F:F,MATCH(R3,Odds!E:E,0)) -> 10/11 | T3: 0 | U3: =INDEX(Match!O:O,MATCH(P3,Match!T:T,0)) -> Bournemouth | V3: =INDEX(Match!F:F,MATCH(P3,Match!T:T,0)) -> 1 | W3: =INDEX(Match!P:P,MATCH(P3,Match!T:T,0)) -> Sheff U | X3: =INDEX(Match!G:G,MATCH(P3,Match!T:T,0)) -> 1 | AC3: Alfie Davies | AD3: =INDEX(Picks!F:F,MATCH(AC3,Picks!A:A,0)) -> 13.22597403 | AE3: =INDEX(Weekly!I:I,MATCH(AC3,Weekly!E:E,0)) -> 3 | AF3: =IF(AD3="","",_xlfn.RANK.EQ(AD3,TopScores,0)) -> 2 | AH3: Paul Barnes | AI3: =INDEX(Picks!G:G,MATCH(AH3,Picks!A:A,0)) ->  | AJ3: =INDEX(Weekly!I:I,MATCH(AH3,Weekly!E:E,0)) -> 0 | AK3: =IF(AI3="","",_xlfn.RANK.EQ(AI3,TopMaxScores,0)) -> 
A4: =A2 -> Aaron Sudell | K4: =INDEX(Odds!F:F,MATCH(J4,Odds!E:E,0)) ->  | L4: =INDEX(Odds!G:G,MATCH(J4,Odds!E:E,0)) ->  | M4: =INDEX(Odds!H:H,MATCH(J4,Odds!E:E,0)) ->  | N4: =L4*M4 ->  | P4: =IF(Match!A4="","",Match!T4) -> Burnley 3-0 Southampton | R4: =IF(Odds!E4="","",Odds!E4) -> Burnley | S4: =INDEX(Odds!F:F,MATCH(R4,Odds!E:E,0)) -> 31/20 | T4: 1 | U4: =INDEX(Match!O:O,MATCH(P4,Match!T:T,0)) -> Burnley | V4: =INDEX(Match!F:F,MATCH(P4,Match!T:T,0)) -> 3 | W4: =INDEX(Match!P:P,MATCH(P4,Match!T:T,0)) -> Southampton | X4: =INDEX(Match!G:G,MATCH(P4,Match!T:T,0)) -> 0 | AC4: Alan Rogers | AD4: =INDEX(Picks!F:F,MATCH(AC4,Picks!A:A,0)) -> 9.4375 | AE4: =INDEX(Weekly!I:I,MATCH(AC4,Weekly!E:E,0)) -> 2 | AF4: =IF(AD4="","",_xlfn.RANK.EQ(AD4,TopScores,0)) -> 3 | AH4: Pete Baron | AI4: =INDEX(Picks!G:G,MATCH(AH4,Picks!A:A,0)) ->  | AJ4: =INDEX(Weekly!I:I,MATCH(AH4,Weekly!E:E,0)) -> 0 | AK4: =IF(AI4="","",_xlfn.RANK.EQ(AI4,TopMaxScores,0)) -> 
A5: =Results!B5 -> Alan Rogers | B5: =IF(J5="","",J5) -> Cheltenham | C5: 15/8 | D5: 2.875 | E5: √ | F5: =IF(J5="",-10,INDEX(Results!T:T,MATCH(A5,Results!V:V,0))) -> 9.4375 | G5: =IF(J5="","",INDEX(Results!AI:AI,MATCH(A5,Results!V:V,0))) -> 48.671875 | H5: =IF(G5="",0,1) -> 1 | I5: =INDEX(Picks!AF:AF,MATCH(A5,Picks!AC:AC,0)) -> 3 | J5: Cheltenham | K5: =INDEX(Odds!F:F,MATCH(J5,Odds!E:E,0)) -> 15/8 | L5: =INDEX(Odds!G:G,MATCH(J5,Odds!E:E,0)) -> 2.875 | M5: =INDEX(Odds!H:H,MATCH(J5,Odds!E:E,0)) -> 1 | N5: =L5*M5 -> 2.875 | P5: =IF(Match!A5="","",Match!T5) -> Palace 0-0 Everton | R5: =IF(Odds!E5="","",Odds!E5) -> Palace | S5: =INDEX(Odds!F:F,MATCH(R5,Odds!E:E,0)) -> 19/10 | T5: 0 | U5: =INDEX(Match!O:O,MATCH(P5,Match!T:T,0)) -> Palace | V5: =INDEX(Match!F:F,MATCH(P5,Match!T:T,0)) -> 0 | W5: =INDEX(Match!P:P,MATCH(P5,Match!T:T,0)) -> Everton | X5: =INDEX(Match!G:G,MATCH(P5,Match!T:T,0)) -> 0 | AC5: Steve Baxter | AD5: =INDEX(Picks!F:F,MATCH(AC5,Picks!A:A,0)) -> 7.808928571 | AE5: =INDEX(Weekly!I:I,MATCH(AC5,Weekly!E:E,0)) -> 3 | AF5: =IF(AD5="","",_xlfn.RANK.EQ(AD5,TopScores,0)) -> 4 | AH5: Ste Bentley | AI5: =INDEX(Picks!G:G,MATCH(AH5,Picks!A:A,0)) ->  | AJ5: =INDEX(Weekly!I:I,MATCH(AH5,Weekly!E:E,0)) -> 0 | AK5: =IF(AI5="","",_xlfn.RANK.EQ(AI5,TopMaxScores,0)) -> 
A6: =A5 -> Alan Rogers | B6: Salford | C6: 5/4 | D6: 2.25 | E6: x | J6: Salford | K6: =INDEX(Odds!F:F,MATCH(J6,Odds!E:E,0)) -> 5/4 | L6: =INDEX(Odds!G:G,MATCH(J6,Odds!E:E,0)) -> 2.25 | M6: =INDEX(Odds!H:H,MATCH(J6,Odds!E:E,0)) -> 0 | N6: 0 | P6: =IF(Match!A6="","",Match!T6) -> Spurs 3-1 Villa | R6: =IF(Odds!E6="","",Odds!E6) -> Spurs | S6: =INDEX(Odds!F:F,MATCH(R6,Odds!E:E,0)) -> 27/100 | T6: 1 | U6: =INDEX(Match!O:O,MATCH(P6,Match!T:T,0)) -> Spurs | V6: =INDEX(Match!F:F,MATCH(P6,Match!T:T,0)) -> 3 | W6: =INDEX(Match!P:P,MATCH(P6,Match!T:T,0)) -> Villa | X6: =INDEX(Match!G:G,MATCH(P6,Match!T:T,0)) -> 1 | AC6: Kei Lok Ma | AD6: =INDEX(Picks!F:F,MATCH(AC6,Picks!A:A,0)) -> 7.265 | AE6: =INDEX(Weekly!I:I,MATCH(AC6,Weekly!E:E,0)) -> 2 | AF6: =IF(AD6="","",_xlfn.RANK.EQ(AD6,TopScores,0)) -> 5 | AH6: Dave Bell | AI6: =INDEX(Picks!G:G,MATCH(AH6,Picks!A:A,0)) -> 3112 | AJ6: =INDEX(Weekly!I:I,MATCH(AH6,Weekly!E:E,0)) -> 0 | AK6: =IF(AI6="","",_xlfn.RANK.EQ(AI6,TopMaxScores,0)) -> 1
A7: =A5 -> Alan Rogers | B7: Grimsby draw | C7: 5/2 | D7: 3.5 | E7: √ | J7: Grimsby draw | K7: =INDEX(Odds!F:F,MATCH(J7,Odds!E:E,0)) -> 5/2 | L7: =INDEX(Odds!G:G,MATCH(J7,Odds!E:E,0)) -> 3.5 | M7: =INDEX(Odds!H:H,MATCH(J7,Odds!E:E,0)) -> 1 | N7: 3.5 | P7: =IF(Match!A7="","",Match!T7) -> Watford 0-3 Brighton | R7: =IF(Odds!E7="","",Odds!E7) -> Watford | S7: =INDEX(Odds!F:F,MATCH(R7,Odds!E:E,0)) -> 10/11 | T7: 0 | U7: =INDEX(Match!O:O,MATCH(P7,Match!T:T,0)) -> Watford | V7: =INDEX(Match!F:F,MATCH(P7,Match!T:T,0)) -> 0 | W7: =INDEX(Match!P:P,MATCH(P7,Match!T:T,0)) -> Brighton | X7: =INDEX(Match!G:G,MATCH(P7,Match!T:T,0)) -> 3 | AC7: Paul Fairhurst | AD7: =INDEX(Picks!F:F,MATCH(AC7,Picks!A:A,0)) -> 3.954 | AE7: =INDEX(Weekly!I:I,MATCH(AC7,Weekly!E:E,0)) -> 2 | AF7: =IF(AD7="","",_xlfn.RANK.EQ(AD7,TopScores,0)) -> 6 | AH7: Kevin Carter | AI7: =INDEX(Picks!G:G,MATCH(AH7,Picks!A:A,0)) -> 138.608 | AJ7: =INDEX(Weekly!I:I,MATCH(AH7,Weekly!E:E,0)) -> 0 | AK7: =IF(AI7="","",_xlfn.RANK.EQ(AI7,TopMaxScores,0)) -> 2
A8: =Results!B8 -> Alan White | B8: Watford | C8: 10/11 | D8: 1.909090909 | E8: x | F8: =IF(J8="",-10,INDEX(Results!T:T,MATCH(A8,Results!V:V,0))) -> -7 | G8: =IF(J8="","",INDEX(Results!AI:AI,MATCH(A8,Results!V:V,0))) -> 17.52727273 | H8: =IF(G8="",0,1) -> 1 | I8: =INDEX(Picks!AF:AF,MATCH(A8,Picks!AC:AC,0)) -> 49 | J8: Watford | K8: =INDEX(Odds!F:F,MATCH(J8,Odds!E:E,0)) -> 10/11 | L8: =INDEX(Odds!G:G,MATCH(J8,Odds!E:E,0)) -> 1.909090909 | M8: =INDEX(Odds!H:H,MATCH(J8,Odds!E:E,0)) -> 0 | N8: 0 | P8: =IF(Match!A8="","",Match!T8) -> West Ham 0-5 Man C | R8: =IF(Odds!E8="","",Odds!E8) -> West Ham | S8: =INDEX(Odds!F:F,MATCH(R8,Odds!E:E,0)) -> 11/1 | T8: 0 | U8: =INDEX(Match!O:O,MATCH(P8,Match!T:T,0)) -> West Ham | V8: =INDEX(Match!F:F,MATCH(P8,Match!T:T,0)) -> 0 | W8: =INDEX(Match!P:P,MATCH(P8,Match!T:T,0)) -> Man C | X8: =INDEX(Match!G:G,MATCH(P8,Match!T:T,0)) -> 5 | AC8: Tom Robinson | AD8: =INDEX(Picks!F:F,MATCH(AC8,Picks!A:A,0)) -> 3.954 | AE8: =INDEX(Weekly!I:I,MATCH(AC8,Weekly!E:E,0)) -> 2 | AF8: =IF(AD8="","",_xlfn.RANK.EQ(AD8,TopScores,0)) -> 6 | AH8: Joel Bent | AI8: =INDEX(Picks!G:G,MATCH(AH8,Picks!A:A,0)) -> 126.6625 | AJ8: =INDEX(Weekly!I:I,MATCH(AH8,Weekly!E:E,0)) -> 0 | AK8: =IF(AI8="","",_xlfn.RANK.EQ(AI8,TopMaxScores,0)) -> 3
A9: =A8 -> Alan White | B9: Leeds | C9: 7/10 | D9: 1.7 | E9: x | J9: Leeds | K9: =INDEX(Odds!F:F,MATCH(J9,Odds!E:E,0)) -> 7/10 | L9: =INDEX(Odds!G:G,MATCH(J9,Odds!E:E,0)) -> 1.7 | M9: =INDEX(Odds!H:H,MATCH(J9,Odds!E:E,0)) -> 0 | N9: 0 | P9: =IF(Match!A9="","",Match!T9) -> Birmingham 1-1 Bristol C | R9: =IF(Odds!E9="","",Odds!E9) -> Birmingham | S9: =INDEX(Odds!F:F,MATCH(R9,Odds!E:E,0)) -> 27/20 | T9: 0 | U9: =INDEX(Match!O:O,MATCH(P9,Match!T:T,0)) -> Birmingham | V9: =INDEX(Match!F:F,MATCH(P9,Match!T:T,0)) -> 1 | W9: =INDEX(Match!P:P,MATCH(P9,Match!T:T,0)) -> Bristol C | X9: =INDEX(Match!G:G,MATCH(P9,Match!T:T,0)) -> 1 | AC9: Graham Miller | AD9: =INDEX(Picks!F:F,MATCH(AC9,Picks!A:A,0)) -> 3.48 | AE9: =INDEX(Weekly!I:I,MATCH(AC9,Weekly!E:E,0)) -> 2 | AF9: =IF(AD9="","",_xlfn.RANK.EQ(AD9,TopScores,0)) -> 8 | AH9: James Bell | AI9: =INDEX(Picks!G:G,MATCH(AH9,Picks!A:A,0)) -> 114.3236842 | AJ9: =INDEX(Weekly!I:I,MATCH(AH9,Weekly!E:E,0)) -> 0 | AK9: =IF(AI9="","",_xlfn.RANK.EQ(AI9,TopMaxScores,0)) -> 4
A10: =A8 -> Alan White | B10: Salford | C10: =IF(J10="","",K10) -> 5/4 | D10: 2.25 | E10: x | J10: Salford | K10: =INDEX(Odds!F:F,MATCH(J10,Odds!E:E,0)) -> 5/4 | L10: =INDEX(Odds!G:G,MATCH(J10,Odds!E:E,0)) -> 2.25 | M10: =INDEX(Odds!H:H,MATCH(J10,Odds!E:E,0)) -> 0 | N10: 0 | P10: =IF(Match!A10="","",Match!T10) -> Cardiff 2-1 Luton | R10: =IF(Odds!E10="","",Odds!E10) -> Cardiff | S10: =INDEX(Odds!F:F,MATCH(R10,Odds!E:E,0)) -> 78/100 | T10: 1 | U10: =INDEX(Match!O:O,MATCH(P10,Match!T:T,0)) -> Cardiff | V10: =INDEX(Match!F:F,MATCH(P10,Match!T:T,0)) -> 2 | W10: =INDEX(Match!P:P,MATCH(P10,Match!T:T,0)) -> Luton | X10: =INDEX(Match!G:G,MATCH(P10,Match!T:T,0)) -> 1 | AC10: Mike Penk | AD10: =INDEX(Picks!F:F,MATCH(AC10,Picks!A:A,0)) -> 2.933333333 | AE10: =INDEX(Weekly!I:I,MATCH(AC10,Weekly!E:E,0)) -> 2 | AF10: =IF(AD10="","",_xlfn.RANK.EQ(AD10,TopScores,0)) -> 9 | AH10: Ben Rosser | AI10: =INDEX(Picks!G:G,MATCH(AH10,Picks!A:A,0)) -> 97.35 | AJ10: =INDEX(Weekly!I:I,MATCH(AH10,Weekly!E:E,0)) -> 0 | AK10: =IF(AI10="","",_xlfn.RANK.EQ(AI10,TopMaxScores,0)) -> 5
A11: =Results!B11 -> Alfie Davies | B11: Liverpool | C11: 1/7 | D11: 1.142857143 | E11: √ | F11: =IF(J11="",-10,INDEX(Results!T:T,MATCH(A11,Results!V:V,0))) -> 13.22597403 | G11: =IF(J11="","",INDEX(Results!AI:AI,MATCH(A11,Results!V:V,0))) -> 13.22597403 | H11: =IF(G11="",0,1) -> 1 | I11: =INDEX(Picks!AF:AF,MATCH(A11,Picks!AC:AC,0)) -> 2 | J11: Liverpool | K11: =INDEX(Odds!F:F,MATCH(J11,Odds!E:E,0)) -> 1/7 | L11: =INDEX(Odds!G:G,MATCH(J11,Odds!E:E,0)) -> 1.142857143 | M11: =INDEX(Odds!H:H,MATCH(J11,Odds!E:E,0)) -> 1 | N11: 1.142857143 | P11: =IF(Match!A11="","",Match!T11) -> Charlton 3-1 Stoke | R11: =IF(Odds!E11="","",Odds!E11) -> Charlton | S11: =INDEX(Odds!F:F,MATCH(R11,Odds!E:E,0)) -> 21/10 | T11: 1 | U11: =INDEX(Match!O:O,MATCH(P11,Match!T:T,0)) -> Charlton | V11: =INDEX(Match!F:F,MATCH(P11,Match!T:T,0)) -> 3 | W11: =INDEX(Match!P:P,MATCH(P11,Match!T:T,0)) -> Stoke | X11: =INDEX(Match!G:G,MATCH(P11,Match!T:T,0)) -> 1 | AC11: Alick Rocca | AD11: =INDEX(Picks!F:F,MATCH(AC11,Picks!A:A,0)) -> 1.163636364 | AE11: =INDEX(Weekly!I:I,MATCH(AC11,Weekly!E:E,0)) -> 2 | AF11: =IF(AD11="","",_xlfn.RANK.EQ(AD11,TopScores,0)) -> 10 | AH11: Chris Townsend | AI11: =INDEX(Picks!G:G,MATCH(AH11,Picks!A:A,0)) -> 89.196 | AJ11: =INDEX(Weekly!I:I,MATCH(AH11,Weekly!E:E,0)) -> 0 | AK11: =IF(AI11="","",_xlfn.RANK.EQ(AI11,TopMaxScores,0)) -> 6
A12: =A11 -> Alfie Davies | B12: Spurs | C12: 27/100 | D12: 1.27 | E12: √ | J12: Spurs | K12: =INDEX(Odds!F:F,MATCH(J12,Odds!E:E,0)) -> 27/100 | L12: =INDEX(Odds!G:G,MATCH(J12,Odds!E:E,0)) -> 1.27 | M12: =INDEX(Odds!H:H,MATCH(J12,Odds!E:E,0)) -> 1 | N12: 1.27 | P12: =IF(Match!A12="","",Match!T12) -> Derby 0-0 Swansea | R12: =IF(Odds!E12="","",Odds!E12) -> Derby | S12: =INDEX(Odds!F:F,MATCH(R12,Odds!E:E,0)) -> 23/20 | T12: 0 | U12: =INDEX(Match!O:O,MATCH(P12,Match!T:T,0)) -> Derby | V12: =INDEX(Match!F:F,MATCH(P12,Match!T:T,0)) -> 0 | W12: =INDEX(Match!P:P,MATCH(P12,Match!T:T,0)) -> Swansea | X12: =INDEX(Match!G:G,MATCH(P12,Match!T:T,0)) -> 0 | AC12: Gareth Fallows | AD12: =INDEX(Picks!F:F,MATCH(AC12,Picks!A:A,0)) -> 1.163636364 | AE12: =INDEX(Weekly!I:I,MATCH(AC12,Weekly!E:E,0)) -> 2 | AF12: =IF(AD12="","",_xlfn.RANK.EQ(AD12,TopScores,0)) -> 10 | AH12: Dan Baxter | AI12: =INDEX(Picks!G:G,MATCH(AH12,Picks!A:A,0)) -> 78.4 | AJ12: =INDEX(Weekly!I:I,MATCH(AH12,Weekly!E:E,0)) -> 0 | AK12: =IF(AI12="","",_xlfn.RANK.EQ(AI12,TopMaxScores,0)) -> 7
A13: =A11 -> Alfie Davies | B13: =IF(J13="","",J13) -> Leicester Draw | C13: 26/11 | D13: 3.363636364 | E13: √ | J13: Leicester Draw | K13: =INDEX(Odds!F:F,MATCH(J13,Odds!E:E,0)) -> 26/11 | L13: =INDEX(Odds!G:G,MATCH(J13,Odds!E:E,0)) -> 3.363636364 | M13: =INDEX(Odds!H:H,MATCH(J13,Odds!E:E,0)) -> 1 | N13: 3.363636364 | P13: =IF(Match!A13="","",Match!T13) -> Fulham 2-0 Blackburn | R13: =IF(Odds!E13="","",Odds!E13) -> Fulham | S13: =INDEX(Odds!F:F,MATCH(R13,Odds!E:E,0)) -> 4/5 | T13: 1 | U13: =INDEX(Match!O:O,MATCH(P13,Match!T:T,0)) -> Fulham | V13: =INDEX(Match!F:F,MATCH(P13,Match!T:T,0)) -> 2 | W13: =INDEX(Match!P:P,MATCH(P13,Match!T:T,0)) -> Blackburn | X13: =INDEX(Match!G:G,MATCH(P13,Match!T:T,0)) -> 0 | AC13: John Robinson | AD13: =INDEX(Picks!F:F,MATCH(AC13,Picks!A:A,0)) -> 1.018181818 | AE13: =INDEX(Weekly!I:I,MATCH(AC13,Weekly!E:E,0)) -> 2 | AF13: =IF(AD13="","",_xlfn.RANK.EQ(AD13,TopScores,0)) -> 12 | AH13: Sally Williams | AI13: =INDEX(Picks!G:G,MATCH(AH13,Picks!A:A,0)) -> 73.356 | AJ13: =INDEX(Weekly!I:I,MATCH(AH13,Weekly!E:E,0)) -> 1 | AK13: =IF(AI13="","",_xlfn.RANK.EQ(AI13,TopMaxScores,0)) -> 8
A14: =Results!B14 -> Alick Rocca | B14: Leeds | C14: 7/10 | D14: 1.7 | E14: x | F14: =IF(J14="",-10,INDEX(Results!T:T,MATCH(A14,Results!V:V,0))) -> 1.163636364 | G14: =IF(J14="","",INDEX(Results!AI:AI,MATCH(A14,Results!V:V,0))) -> 16.74181818 | H14: =IF(G14="",0,1) -> 1 | I14: =INDEX(Picks!AF:AF,MATCH(A14,Picks!AC:AC,0)) -> 10 | J14: Leeds | K14: =INDEX(Odds!F:F,MATCH(J14,Odds!E:E,0)) -> 7/10 | L14: =INDEX(Odds!G:G,MATCH(J14,Odds!E:E,0)) -> 1.7 | M14: =INDEX(Odds!H:H,MATCH(J14,Odds!E:E,0)) -> 0 | N14: 0 | P14: =IF(Match!A14="","",Match!T14) -> Hull 2-1 Reading | R14: =IF(Odds!E14="","",Odds!E14) -> Hull | S14: =INDEX(Odds!F:F,MATCH(R14,Odds!E:E,0)) -> 21/20 | T14: 1 | U14: =INDEX(Match!O:O,MATCH(P14,Match!T:T,0)) -> Hull | V14: =INDEX(Match!F:F,MATCH(P14,Match!T:T,0)) -> 2 | W14: =INDEX(Match!P:P,MATCH(P14,Match!T:T,0)) -> Reading | X14: =INDEX(Match!G:G,MATCH(P14,Match!T:T,0)) -> 1 | AC14: Paul Ridgeway | AD14: =INDEX(Picks!F:F,MATCH(AC14,Picks!A:A,0)) -> 0.54 | AE14: =INDEX(Weekly!I:I,MATCH(AC14,Weekly!E:E,0)) -> 2 | AF14: =IF(AD14="","",_xlfn.RANK.EQ(AD14,TopScores,0)) -> 13 | AH14: Liam Wah | AI14: =INDEX(Picks!G:G,MATCH(AH14,Picks!A:A,0)) -> 61.54423077 | AJ14: =INDEX(Weekly!I:I,MATCH(AH14,Weekly!E:E,0)) -> 1 | AK14: =IF(AI14="","",_xlfn.RANK.EQ(AI14,TopMaxScores,0)) -> 9
A15: =A14 -> Alick Rocca | B15: Fleetwood | C15: 10/11 | D15: 1.909090909 | E15: √ | J15: Fleetwood | K15: =INDEX(Odds!F:F,MATCH(J15,Odds!E:E,0)) -> 10/11 | L15: =INDEX(Odds!G:G,MATCH(J15,Odds!E:E,0)) -> 1.909090909 | M15: =INDEX(Odds!H:H,MATCH(J15,Odds!E:E,0)) -> 1 | N15: 1.909090909 | P15: =IF(Match!A15="","",Match!T15) -> Leeds 1-1 Forest | R15: =IF(Odds!E15="","",Odds!E15) -> Leeds | S15: =INDEX(Odds!F:F,MATCH(R15,Odds!E:E,0)) -> 7/10 | T15: 0 | U15: =INDEX(Match!O:O,MATCH(P15,Match!T:T,0)) -> Leeds | V15: =INDEX(Match!F:F,MATCH(P15,Match!T:T,0)) -> 1 | W15: =INDEX(Match!P:P,MATCH(P15,Match!T:T,0)) -> Forest | X15: =INDEX(Match!G:G,MATCH(P15,Match!T:T,0)) -> 1 | AC15: Howard Bradley | AD15: =INDEX(Picks!F:F,MATCH(AC15,Picks!A:A,0)) -> 0.1333333333 | AE15: =INDEX(Weekly!I:I,MATCH(AC15,Weekly!E:E,0)) -> 2 | AF15: =IF(AD15="","",_xlfn.RANK.EQ(AD15,TopScores,0)) -> 14 | AH15: Gerard Ventom | AI15: =INDEX(Picks!G:G,MATCH(AH15,Picks!A:A,0)) -> 55.403 | AJ15: =INDEX(Weekly!I:I,MATCH(AH15,Weekly!E:E,0)) -> 1 | AK15: =IF(AI15="","",_xlfn.RANK.EQ(AI15,TopMaxScores,0)) -> 10
A16: =A14 -> Alick Rocca | B16: Plymouth | C16: 23/20 | D16: 2.15 | E16: √ | J16: Plymouth | K16: =INDEX(Odds!F:F,MATCH(J16,Odds!E:E,0)) -> 23/20 | L16: =INDEX(Odds!G:G,MATCH(J16,Odds!E:E,0)) -> 2.15 | M16: =INDEX(Odds!H:H,MATCH(J16,Odds!E:E,0)) -> 1 | N16: 2.15 | P16: =IF(Match!A16="","",Match!T16) -> Middlesbro 0-1 Brentford | R16: =IF(Odds!E16="","",Odds!E16) -> Middlesbro | S16: =INDEX(Odds!F:F,MATCH(R16,Odds!E:E,0)) -> 13/10 | T16: 0 | U16: =INDEX(Match!O:O,MATCH(P16,Match!T:T,0)) -> Middlesbro | V16: =INDEX(Match!F:F,MATCH(P16,Match!T:T,0)) -> 0 | W16: =INDEX(Match!P:P,MATCH(P16,Match!T:T,0)) -> Brentford | X16: =INDEX(Match!G:G,MATCH(P16,Match!T:T,0)) -> 1 | AC16: Mal Stott | AD16: =INDEX(Picks!F:F,MATCH(AC16,Picks!A:A,0)) -> -0.5333333333 | AE16: =INDEX(Weekly!I:I,MATCH(AC16,Weekly!E:E,0)) -> 2 | AF16: =IF(AD16="","",_xlfn.RANK.EQ(AD16,TopScores,0)) -> 15 | AH16: John Robinson | AI16: =INDEX(Picks!G:G,MATCH(AH16,Picks!A:A,0)) -> 55.12727273 | AJ16: =INDEX(Weekly!I:I,MATCH(AH16,Weekly!E:E,0)) -> 2 | AK16: =IF(AI16="","",_xlfn.RANK.EQ(AI16,TopMaxScores,0)) -> 11
A17: =Results!B17 -> Andy Charleston | B17: Bournemouth | C17: 10/11 | D17: 1.909090909 | E17: x | F17: =IF(J17="",-10,INDEX(Results!T:T,MATCH(A17,Results!V:V,0))) -> -5.73 | G17: =IF(J17="","",INDEX(Results!AI:AI,MATCH(A17,Results!V:V,0))) -> 11.21057851 | H17: =IF(G17="",0,1) -> 1 | I17: =INDEX(Picks!AF:AF,MATCH(A17,Picks!AC:AC,0)) -> 46 | J17: Bournemouth | K17: =INDEX(Odds!F:F,MATCH(J17,Odds!E:E,0)) -> 10/11 | L17: =INDEX(Odds!G:G,MATCH(J17,Odds!E:E,0)) -> 1.909090909 | M17: =INDEX(Odds!H:H,MATCH(J17,Odds!E:E,0)) -> 0 | N17: 0 | P17: =IF(Match!A17="","",Match!T17) -> Preston 3-0 Wigan | R17: =IF(Odds!E17="","",Odds!E17) -> Preston | S17: =INDEX(Odds!F:F,MATCH(R17,Odds!E:E,0)) -> 11/10 | T17: 1 | U17: =INDEX(Match!O:O,MATCH(P17,Match!T:T,0)) -> Preston | V17: =INDEX(Match!F:F,MATCH(P17,Match!T:T,0)) -> 3 | W17: =INDEX(Match!P:P,MATCH(P17,Match!T:T,0)) -> Wigan | X17: =INDEX(Match!G:G,MATCH(P17,Match!T:T,0)) -> 0 | AC17: Martin Tarbuck | AD17: =INDEX(Picks!F:F,MATCH(AC17,Picks!A:A,0)) -> -0.9125 | AE17: =INDEX(Weekly!I:I,MATCH(AC17,Weekly!E:E,0)) -> 2 | AF17: =IF(AD17="","",_xlfn.RANK.EQ(AD17,TopScores,0)) -> 16 | AH17: Alan Rogers | AI17: =INDEX(Picks!G:G,MATCH(AH17,Picks!A:A,0)) -> 48.671875 | AJ17: =INDEX(Weekly!I:I,MATCH(AH17,Weekly!E:E,0)) -> 2 | AK17: =IF(AI17="","",_xlfn.RANK.EQ(AI17,TopMaxScores,0)) -> 12
A18: =A17 -> Andy Charleston | B18: =IF(J18="","",J18) -> Spurs | C18: 27/100 | D18: 1.27 | E18: √ | J18: Spurs | K18: =INDEX(Odds!F:F,MATCH(J18,Odds!E:E,0)) -> 27/100 | L18: =INDEX(Odds!G:G,MATCH(J18,Odds!E:E,0)) -> 1.27 | M18: =INDEX(Odds!H:H,MATCH(J18,Odds!E:E,0)) -> 1 | N18: 1.27 | P18: =IF(Match!A18="","",Match!T18) -> QPR 1-1 Huddersfield | R18: =IF(Odds!E18="","",Odds!E18) -> QPR | S18: =INDEX(Odds!F:F,MATCH(R18,Odds!E:E,0)) -> 31/20 | T18: 0 | U18: =INDEX(Match!O:O,MATCH(P18,Match!T:T,0)) -> QPR | V18: =INDEX(Match!F:F,MATCH(P18,Match!T:T,0)) -> 1 | W18: =INDEX(Match!P:P,MATCH(P18,Match!T:T,0)) -> Huddersfield | X18: =INDEX(Match!G:G,MATCH(P18,Match!T:T,0)) -> 1 | AC18: Phil Miller | AD18: =INDEX(Picks!F:F,MATCH(AC18,Picks!A:A,0)) -> -1.7 | AE18: =INDEX(Weekly!I:I,MATCH(AC18,Weekly!E:E,0)) -> 2 | AF18: =IF(AD18="","",_xlfn.RANK.EQ(AD18,TopScores,0)) -> 17 | AH18: Charlie Griffiths | AI18: =INDEX(Picks!G:G,MATCH(AH18,Picks!A:A,0)) -> 46.366 | AJ18: =INDEX(Weekly!I:I,MATCH(AH18,Weekly!E:E,0)) -> 1 | AK18: =IF(AI18="","",_xlfn.RANK.EQ(AI18,TopMaxScores,0)) -> 13
A19: =A17 -> Andy Charleston | B19: Watford | C19: 10/11 | D19: 1.909090909 | E19: x | J19: Watford | K19: =INDEX(Odds!F:F,MATCH(J19,Odds!E:E,0)) -> 10/11 | L19: =INDEX(Odds!G:G,MATCH(J19,Odds!E:E,0)) -> 1.909090909 | M19: =INDEX(Odds!H:H,MATCH(J19,Odds!E:E,0)) -> 0 | N19: 0 | P19: =IF(Match!A19="","",Match!T19) -> Sheff W 2-0 Barnsley | R19: =IF(Odds!E19="","",Odds!E19) -> Sheff W | S19: =INDEX(Odds!F:F,MATCH(R19,Odds!E:E,0)) -> 21/20 | T19: 1 | U19: =INDEX(Match!O:O,MATCH(P19,Match!T:T,0)) -> Sheff W | V19: =INDEX(Match!F:F,MATCH(P19,Match!T:T,0)) -> 2 | W19: =INDEX(Match!P:P,MATCH(P19,Match!T:T,0)) -> Barnsley | X19: =INDEX(Match!G:G,MATCH(P19,Match!T:T,0)) -> 0 | AC19: Ian Davies | AD19: =INDEX(Picks!F:F,MATCH(AC19,Picks!A:A,0)) -> -3.636363636 | AE19: =INDEX(Weekly!I:I,MATCH(AC19,Weekly!E:E,0)) -> 1 | AF19: =IF(AD19="","",_xlfn.RANK.EQ(AD19,TopScores,0)) -> 18 | AH19: John Ronan | AI19: =INDEX(Picks!G:G,MATCH(AH19,Picks!A:A,0)) -> 45.8765625 | AJ19: =INDEX(Weekly!I:I,MATCH(AH19,Weekly!E:E,0)) -> 1 | AK19: =IF(AI19="","",_xlfn.RANK.EQ(AI19,TopMaxScores,0)) -> 14
A20: =Results!B20 -> Andy White | B20: Watford | C20: 10/11 | D20: 1.909090909 | E20: x | F20: =IF(J20="",-10,INDEX(Results!T:T,MATCH(A20,Results!V:V,0))) -> -5.181818182 | G20: =IF(J20="","",INDEX(Results!AI:AI,MATCH(A20,Results!V:V,0))) -> 20.69421488 | H20: =IF(G20="",0,1) -> 1 | I20: =INDEX(Picks!AF:AF,MATCH(A20,Picks!AC:AC,0)) -> 34 | J20: Watford | K20: =INDEX(Odds!F:F,MATCH(J20,Odds!E:E,0)) -> 10/11 | L20: =INDEX(Odds!G:G,MATCH(J20,Odds!E:E,0)) -> 1.909090909 | M20: =INDEX(Odds!H:H,MATCH(J20,Odds!E:E,0)) -> 0 | N20: 0 | P20: =IF(Match!A20="","",Match!T20) -> West Brom 1-1 Millwall | R20: =IF(Odds!E20="","",Odds!E20) -> West Brom | S20: =INDEX(Odds!F:F,MATCH(R20,Odds!E:E,0)) -> 7/10 | T20: 0 | U20: =INDEX(Match!O:O,MATCH(P20,Match!T:T,0)) -> West Brom | V20: =INDEX(Match!F:F,MATCH(P20,Match!T:T,0)) -> 1 | W20: =INDEX(Match!P:P,MATCH(P20,Match!T:T,0)) -> Millwall | X20: =INDEX(Match!G:G,MATCH(P20,Match!T:T,0)) -> 1 | AC20: Liam Wah | AD20: =INDEX(Picks!F:F,MATCH(AC20,Picks!A:A,0)) -> -3.7 | AE20: =INDEX(Weekly!I:I,MATCH(AC20,Weekly!E:E,0)) -> 1 | AF20: =IF(AD20="","",_xlfn.RANK.EQ(AD20,TopScores,0)) -> 19 | AH20: Mike Penk | AI20: =INDEX(Picks!G:G,MATCH(AH20,Picks!A:A,0)) -> 43.38666667 | AJ20: =INDEX(Weekly!I:I,MATCH(AH20,Weekly!E:E,0)) -> 2 | AK20: =IF(AI20="","",_xlfn.RANK.EQ(AI20,TopMaxScores,0)) -> 15
A21: =A20 -> Andy White | B21: Everton | C21: 6/4 | D21: 2.5 | E21: x | J21: Everton | K21: =INDEX(Odds!F:F,MATCH(J21,Odds!E:E,0)) -> 6/4 | L21: =INDEX(Odds!G:G,MATCH(J21,Odds!E:E,0)) -> 2.5 | M21: =INDEX(Odds!H:H,MATCH(J21,Odds!E:E,0)) -> 0 | N21: 0 | P21: =IF(Match!A21="","",Match!T21) -> Bristol R 0-0 Wycombe | R21: =IF(Odds!E21="","",Odds!E21) -> Bristol R | S21: =INDEX(Odds!F:F,MATCH(R21,Odds!E:E,0)) -> 6/5 | T21: 0 | U21: =INDEX(Match!O:O,MATCH(P21,Match!T:T,0)) -> Bristol R | V21: =INDEX(Match!F:F,MATCH(P21,Match!T:T,0)) -> 0 | W21: =INDEX(Match!P:P,MATCH(P21,Match!T:T,0)) -> Wycombe | X21: =INDEX(Match!G:G,MATCH(P21,Match!T:T,0)) -> 0 | AC21: Sally Williams | AD21: =INDEX(Picks!F:F,MATCH(AC21,Picks!A:A,0)) -> -3.7 | AE21: =INDEX(Weekly!I:I,MATCH(AC21,Weekly!E:E,0)) -> 1 | AF21: =IF(AD21="","",_xlfn.RANK.EQ(AD21,TopScores,0)) -> 19 | AH21: Ian Davies | AI21: =INDEX(Picks!G:G,MATCH(AH21,Picks!A:A,0)) -> 42.66181818 | AJ21: =INDEX(Weekly!I:I,MATCH(AH21,Weekly!E:E,0)) -> 1 | AK21: =IF(AI21="","",_xlfn.RANK.EQ(AI21,TopMaxScores,0)) -> 16
A22: =A20 -> Andy White | B22: Arsenal | C22: 9/11 | D22: 1.818181818 | E22: √ | J22: Arsenal | K22: =INDEX(Odds!F:F,MATCH(J22,Odds!E:E,0)) -> 9/11 | L22: =INDEX(Odds!G:G,MATCH(J22,Odds!E:E,0)) -> 1.818181818 | M22: =INDEX(Odds!H:H,MATCH(J22,Odds!E:E,0)) -> 1 | N22: 1.818181818 | P22: =IF(Match!A22="","",Match!T22) -> Fleetwood 2-1 Wimbledon | R22: =IF(Odds!E22="","",Odds!E22) -> Fleetwood | S22: =INDEX(Odds!F:F,MATCH(R22,Odds!E:E,0)) -> 10/11 | T22: 1 | U22: =INDEX(Match!O:O,MATCH(P22,Match!T:T,0)) -> Fleetwood | V22: =INDEX(Match!F:F,MATCH(P22,Match!T:T,0)) -> 2 | W22: =INDEX(Match!P:P,MATCH(P22,Match!T:T,0)) -> Wimbledon | X22: =INDEX(Match!G:G,MATCH(P22,Match!T:T,0)) -> 1 | AC22: John Ronan | AD22: =INDEX(Picks!F:F,MATCH(AC22,Picks!A:A,0)) -> -3.9 | AE22: =INDEX(Weekly!I:I,MATCH(AC22,Weekly!E:E,0)) -> 1 | AF22: =IF(AD22="","",_xlfn.RANK.EQ(AD22,TopScores,0)) -> 21 | AH22: Kei Lok Ma | AI22: =INDEX(Picks!G:G,MATCH(AH22,Picks!A:A,0)) -> 42.3745 | AJ22: =INDEX(Weekly!I:I,MATCH(AH22,Weekly!E:E,0)) -> 2 | AK22: =IF(AI22="","",_xlfn.RANK.EQ(AI22,TopMaxScores,0)) -> 17
A23: =Results!B23 -> Antony Robinson | B23: Liverpool | C23: 1/7 | D23: 1.142857143 | E23: √ | F23: =IF(J23="",-10,INDEX(Results!T:T,MATCH(A23,Results!V:V,0))) -> -5.857142857 | G23: =IF(J23="","",INDEX(Results!AI:AI,MATCH(A23,Results!V:V,0))) -> 20.92857143 | H23: =IF(G23="",0,1) -> 1 | I23: =INDEX(Picks!AF:AF,MATCH(A23,Picks!AC:AC,0)) -> 47 | J23: Liverpool | K23: =INDEX(Odds!F:F,MATCH(J23,Odds!E:E,0)) -> 1/7 | L23: =INDEX(Odds!G:G,MATCH(J23,Odds!E:E,0)) -> 1.142857143 | M23: =INDEX(Odds!H:H,MATCH(J23,Odds!E:E,0)) -> 1 | N23: 1.142857143 | P23: =IF(Match!A23="","",Match!T23) -> Gillingham 1-2 Burton | R23: =IF(Odds!E23="","",Odds!E23) -> Gillingham | S23: =INDEX(Odds!F:F,MATCH(R23,Odds!E:E,0)) -> 13/8 | T23: 0 | U23: =INDEX(Match!O:O,MATCH(P23,Match!T:T,0)) -> Gillingham | V23: =INDEX(Match!F:F,MATCH(P23,Match!T:T,0)) -> 1 | W23: =INDEX(Match!P:P,MATCH(P23,Match!T:T,0)) -> Burton | X23: =INDEX(Match!G:G,MATCH(P23,Match!T:T,0)) -> 2 | AC23: Charlie Griffiths | AD23: =INDEX(Picks!F:F,MATCH(AC23,Picks!A:A,0)) -> -4.1 | AE23: =INDEX(Weekly!I:I,MATCH(AC23,Weekly!E:E,0)) -> 1 | AF23: =IF(AD23="","",_xlfn.RANK.EQ(AD23,TopScores,0)) -> 22 | AH23: Gareth Powell | AI23: =INDEX(Picks!G:G,MATCH(AH23,Picks!A:A,0)) -> 39.62692308 | AJ23: =INDEX(Weekly!I:I,MATCH(AH23,Weekly!E:E,0)) -> 1 | AK23: =IF(AI23="","",_xlfn.RANK.EQ(AI23,TopMaxScores,0)) -> 18
A24: =A23 -> Antony Robinson | B24: Sheff U | C24: 3/1 | D24: 4 | E24: x | J24: Sheff U | K24: =INDEX(Odds!F:F,MATCH(J24,Odds!E:E,0)) -> 3/1 | L24: =INDEX(Odds!G:G,MATCH(J24,Odds!E:E,0)) -> 4 | M24: =INDEX(Odds!H:H,MATCH(J24,Odds!E:E,0)) -> 0 | N24: 0 | P24: =IF(Match!A24="","",Match!T24) -> Ipswich 1-1 Sunderland | R24: =IF(Odds!E24="","",Odds!E24) -> Ipswich | S24: =INDEX(Odds!F:F,MATCH(R24,Odds!E:E,0)) -> 7/5 | T24: 0 | U24: =INDEX(Match!O:O,MATCH(P24,Match!T:T,0)) -> Ipswich | V24: =INDEX(Match!F:F,MATCH(P24,Match!T:T,0)) -> 1 | W24: =INDEX(Match!P:P,MATCH(P24,Match!T:T,0)) -> Sunderland | X24: =INDEX(Match!G:G,MATCH(P24,Match!T:T,0)) -> 1 | AC24: Gerard Ventom | AD24: =INDEX(Picks!F:F,MATCH(AC24,Picks!A:A,0)) -> -4.45 | AE24: =INDEX(Weekly!I:I,MATCH(AC24,Weekly!E:E,0)) -> 1 | AF24: =IF(AD24="","",_xlfn.RANK.EQ(AD24,TopScores,0)) -> 23 | AH24: Martin Molyneux | AI24: =INDEX(Picks!G:G,MATCH(AH24,Picks!A:A,0)) -> 38.37769231 | AJ24: =INDEX(Weekly!I:I,MATCH(AH24,Weekly!E:E,0)) -> 0 | AK24: =IF(AI24="","",_xlfn.RANK.EQ(AI24,TopMaxScores,0)) -> 19
A25: =A23 -> Antony Robinson | B25: Leeds | C25: 7/10 | D25: 1.7 | E25: x | J25: Leeds | K25: =INDEX(Odds!F:F,MATCH(J25,Odds!E:E,0)) -> 7/10 | L25: =INDEX(Odds!G:G,MATCH(J25,Odds!E:E,0)) -> 1.7 | M25: =INDEX(Odds!H:H,MATCH(J25,Odds!E:E,0)) -> 0 | N25: 0 | P25: =IF(Match!A25="","",Match!T25) -> MK Dons 1-0 Shrewsbury | R25: =IF(Odds!E25="","",Odds!E25) -> MK Dons | S25: =INDEX(Odds!F:F,MATCH(R25,Odds!E:E,0)) -> 15/13 | T25: 1 | U25: =INDEX(Match!O:O,MATCH(P25,Match!T:T,0)) -> MK Dons | V25: =INDEX(Match!F:F,MATCH(P25,Match!T:T,0)) -> 1 | W25: =INDEX(Match!P:P,MATCH(P25,Match!T:T,0)) -> Shrewsbury | X25: =INDEX(Match!G:G,MATCH(P25,Match!T:T,0)) -> 0 | AC25: Nick Blocksidge | AD25: =INDEX(Picks!F:F,MATCH(AC25,Picks!A:A,0)) -> -4.45 | AE25: =INDEX(Weekly!I:I,MATCH(AC25,Weekly!E:E,0)) -> 1 | AF25: =IF(AD25="","",_xlfn.RANK.EQ(AD25,TopScores,0)) -> 23 | AH25: Paul Fiddler | AI25: =INDEX(Picks!G:G,MATCH(AH25,Picks!A:A,0)) -> 37.15525 | AJ25: =INDEX(Weekly!I:I,MATCH(AH25,Weekly!E:E,0)) -> 1 | AK25: =IF(AI25="","",_xlfn.RANK.EQ(AI25,TopMaxScores,0)) -> 20
A26: =Results!B26 -> Ashley Houghton | B26: Watford | C26: 10/11 | D26: 1.909090909 | E26: x | F26: =IF(J26="",-10,INDEX(Results!T:T,MATCH(A26,Results!V:V,0))) -> -7 | G26: =IF(J26="","",INDEX(Results!AI:AI,MATCH(A26,Results!V:V,0))) -> 16.74181818 | H26: =IF(G26="",0,1) -> 1 | I26: =INDEX(Picks!AF:AF,MATCH(A26,Picks!AC:AC,0)) -> 49 | J26: Watford | K26: =INDEX(Odds!F:F,MATCH(J26,Odds!E:E,0)) -> 10/11 | L26: =INDEX(Odds!G:G,MATCH(J26,Odds!E:E,0)) -> 1.909090909 | M26: =INDEX(Odds!H:H,MATCH(J26,Odds!E:E,0)) -> 0 | N26: 0 | P26: =IF(Match!A26="","",Match!T26) -> Oxford 1-0 Peterborough | R26: =IF(Odds!E26="","",Odds!E26) -> Oxford | S26: =INDEX(Odds!F:F,MATCH(R26,Odds!E:E,0)) -> 6/4 | T26: 1 | U26: =INDEX(Match!O:O,MATCH(P26,Match!T:T,0)) -> Oxford | V26: =INDEX(Match!F:F,MATCH(P26,Match!T:T,0)) -> 1 | W26: =INDEX(Match!P:P,MATCH(P26,Match!T:T,0)) -> Peterborough | X26: =INDEX(Match!G:G,MATCH(P26,Match!T:T,0)) -> 0 | AC26: Paul Adderley | AD26: =INDEX(Picks!F:F,MATCH(AC26,Picks!A:A,0)) -> -4.45 | AE26: =INDEX(Weekly!I:I,MATCH(AC26,Weekly!E:E,0)) -> 1 | AF26: =IF(AD26="","",_xlfn.RANK.EQ(AD26,TopScores,0)) -> 23 | AH26: Chris Luck | AI26: =INDEX(Picks!G:G,MATCH(AH26,Picks!A:A,0)) -> 36.555 | AJ26: =INDEX(Weekly!I:I,MATCH(AH26,Weekly!E:E,0)) -> 0 | AK26: =IF(AI26="","",_xlfn.RANK.EQ(AI26,TopMaxScores,0)) -> 21
A27: =A26 -> Ashley Houghton | B27: Derby | C27: 23/20 | D27: 2.15 | E27: x | J27: Derby | K27: =INDEX(Odds!F:F,MATCH(J27,Odds!E:E,0)) -> 23/20 | L27: =INDEX(Odds!G:G,MATCH(J27,Odds!E:E,0)) -> 2.15 | M27: =INDEX(Odds!H:H,MATCH(J27,Odds!E:E,0)) -> 0 | N27: 0 | P27: =IF(Match!A27="","",Match!T27) -> Portsmouth 2-0 Tranmere | R27: =IF(Odds!E27="","",Odds!E27) -> Portsmouth | S27: =INDEX(Odds!F:F,MATCH(R27,Odds!E:E,0)) -> 4/6 | T27: 1 | U27: =INDEX(Match!O:O,MATCH(P27,Match!T:T,0)) -> Portsmouth | V27: =INDEX(Match!F:F,MATCH(P27,Match!T:T,0)) -> 2 | W27: =INDEX(Match!P:P,MATCH(P27,Match!T:T,0)) -> Tranmere | X27: =INDEX(Match!G:G,MATCH(P27,Match!T:T,0)) -> 0 | AC27: Mark Bunn | AD27: =INDEX(Picks!F:F,MATCH(AC27,Picks!A:A,0)) -> -4.5 | AE27: =INDEX(Weekly!I:I,MATCH(AC27,Weekly!E:E,0)) -> 1 | AF27: =IF(AD27="","",_xlfn.RANK.EQ(AD27,TopScores,0)) -> 26 | AH27: John Evans | AI27: =INDEX(Picks!G:G,MATCH(AH27,Picks!A:A,0)) -> 36.49333333 | AJ27: =INDEX(Weekly!I:I,MATCH(AH27,Weekly!E:E,0)) -> 1 | AK27: =IF(AI27="","",_xlfn.RANK.EQ(AI27,TopMaxScores,0)) -> 22
A28: =A26 -> Ashley Houghton | B28: Leeds | C28: 7/10 | D28: 1.7 | E28: x | J28: Leeds | K28: =INDEX(Odds!F:F,MATCH(J28,Odds!E:E,0)) -> 7/10 | L28: =INDEX(Odds!G:G,MATCH(J28,Odds!E:E,0)) -> 1.7 | M28: =INDEX(Odds!H:H,MATCH(J28,Odds!E:E,0)) -> 0 | N28: 0 | P28: =IF(Match!A28="","",Match!T28) -> Rochdale 1-1 Doncaster | R28: =IF(Odds!E28="","",Odds!E28) -> Rochdale | S28: =INDEX(Odds!F:F,MATCH(R28,Odds!E:E,0)) -> 13/8 | T28: 0 | U28: =INDEX(Match!O:O,MATCH(P28,Match!T:T,0)) -> Rochdale | V28: =INDEX(Match!F:F,MATCH(P28,Match!T:T,0)) -> 1 | W28: =INDEX(Match!P:P,MATCH(P28,Match!T:T,0)) -> Doncaster | X28: =INDEX(Match!G:G,MATCH(P28,Match!T:T,0)) -> 1 | AC28: Mo Sudell | AD28: =INDEX(Picks!F:F,MATCH(AC28,Picks!A:A,0)) -> -4.5 | AE28: =INDEX(Weekly!I:I,MATCH(AC28,Weekly!E:E,0)) -> 1 | AF28: =IF(AD28="","",_xlfn.RANK.EQ(AD28,TopScores,0)) -> 26 | AH28: Steve Carter | AI28: =INDEX(Picks!G:G,MATCH(AH28,Picks!A:A,0)) -> 36.00699301 | AJ28: =INDEX(Weekly!I:I,MATCH(AH28,Weekly!E:E,0)) -> 1 | AK28: =IF(AI28="","",_xlfn.RANK.EQ(AI28,TopMaxScores,0)) -> 23
A29: =Results!B29 -> Barry Birchall | B29: Watford | C29: 10/11 | D29: 1.909090909 | E29: x | F29: =IF(J29="",-10,INDEX(Results!T:T,MATCH(A29,Results!V:V,0))) -> -5.22 | G29: =IF(J29="","",INDEX(Results!AI:AI,MATCH(A29,Results!V:V,0))) -> 13.83563636 | H29: =IF(G29="",0,1) -> 1 | I29: =INDEX(Picks!AF:AF,MATCH(A29,Picks!AC:AC,0)) -> 39 | J29: Watford | K29: =INDEX(Odds!F:F,MATCH(J29,Odds!E:E,0)) -> 10/11 | L29: =INDEX(Odds!G:G,MATCH(J29,Odds!E:E,0)) -> 1.909090909 | M29: =INDEX(Odds!H:H,MATCH(J29,Odds!E:E,0)) -> 0 | N29: 0 | P29: =IF(Match!A29="","",Match!T29) -> Rotherham 0-2 Lincoln | R29: =IF(Odds!E29="","",Odds!E29) -> Rotherham | S29: =INDEX(Odds!F:F,MATCH(R29,Odds!E:E,0)) -> 11/10 | T29: 0 | U29: =INDEX(Match!O:O,MATCH(P29,Match!T:T,0)) -> Rotherham | V29: =INDEX(Match!F:F,MATCH(P29,Match!T:T,0)) -> 0 | W29: =INDEX(Match!P:P,MATCH(P29,Match!T:T,0)) -> Lincoln | X29: =INDEX(Match!G:G,MATCH(P29,Match!T:T,0)) -> 2 | AC29: Simon Greenhalgh | AD29: =INDEX(Picks!F:F,MATCH(AC29,Picks!A:A,0)) -> -4.5 | AE29: =INDEX(Weekly!I:I,MATCH(AC29,Weekly!E:E,0)) -> 1 | AF29: =IF(AD29="","",_xlfn.RANK.EQ(AD29,TopScores,0)) -> 26 | AH29: Nigel Heyes | AI29: =INDEX(Picks!G:G,MATCH(AH29,Picks!A:A,0)) -> 35.1178 | AJ29: =INDEX(Weekly!I:I,MATCH(AH29,Weekly!E:E,0)) -> 1 | AK29: =IF(AI29="","",_xlfn.RANK.EQ(AI29,TopMaxScores,0)) -> 24
A30: =A29 -> Barry Birchall | B30: Cardiff | C30: 78/100 | D30: 1.78 | E30: √ | J30: Cardiff | K30: =INDEX(Odds!F:F,MATCH(J30,Odds!E:E,0)) -> 78/100 | L30: =INDEX(Odds!G:G,MATCH(J30,Odds!E:E,0)) -> 1.78 | M30: =INDEX(Odds!H:H,MATCH(J30,Odds!E:E,0)) -> 1 | N30: 1.78 | P30: =IF(Match!A30="","",Match!T30) -> Southend 1-3 Blackpool | R30: =IF(Odds!E30="","",Odds!E30) -> Southend | S30: =INDEX(Odds!F:F,MATCH(R30,Odds!E:E,0)) -> 13/8 | T30: 0 | U30: =INDEX(Match!O:O,MATCH(P30,Match!T:T,0)) -> Southend | V30: =INDEX(Match!F:F,MATCH(P30,Match!T:T,0)) -> 1 | W30: =INDEX(Match!P:P,MATCH(P30,Match!T:T,0)) -> Blackpool | X30: =INDEX(Match!G:G,MATCH(P30,Match!T:T,0)) -> 3 | AC30: Lennie Bow | AD30: =INDEX(Picks!F:F,MATCH(AC30,Picks!A:A,0)) -> -4.846153846 | AE30: =INDEX(Weekly!I:I,MATCH(AC30,Weekly!E:E,0)) -> 1 | AF30: =IF(AD30="","",_xlfn.RANK.EQ(AD30,TopScores,0)) -> 29 | AH30: Simon Greenhalgh | AI30: =INDEX(Picks!G:G,MATCH(AH30,Picks!A:A,0)) -> 34.8203125 | AJ30: =INDEX(Weekly!I:I,MATCH(AH30,Weekly!E:E,0)) -> 1 | AK30: =IF(AI30="","",_xlfn.RANK.EQ(AI30,TopMaxScores,0)) -> 25
A31: =A29 -> Barry Birchall | B31: West Brom | C31: 7/10 | D31: 1.7 | E31: x | J31: West Brom | K31: =INDEX(Odds!F:F,MATCH(J31,Odds!E:E,0)) -> 7/10 | L31: =INDEX(Odds!G:G,MATCH(J31,Odds!E:E,0)) -> 1.7 | M31: =INDEX(Odds!H:H,MATCH(J31,Odds!E:E,0)) -> 0 | N31: 0 | P31: =IF(Match!A31="","",Match!T31) -> Cambridge 0-0 Newport | R31: =IF(Odds!E31="","",Odds!E31) -> Cambridge | S31: =INDEX(Odds!F:F,MATCH(R31,Odds!E:E,0)) -> 17/10 | T31: 0 | U31: =INDEX(Match!O:O,MATCH(P31,Match!T:T,0)) -> Cambridge | V31: =INDEX(Match!F:F,MATCH(P31,Match!T:T,0)) -> 0 | W31: =INDEX(Match!P:P,MATCH(P31,Match!T:T,0)) -> Newport | X31: =INDEX(Match!G:G,MATCH(P31,Match!T:T,0)) -> 0 | AC31: Gareth Powell | AD31: =INDEX(Picks!F:F,MATCH(AC31,Picks!A:A,0)) -> -4.95 | AE31: =INDEX(Weekly!I:I,MATCH(AC31,Weekly!E:E,0)) -> 1 | AF31: =IF(AD31="","",_xlfn.RANK.EQ(AD31,TopScores,0)) -> 30 | AH31: Oscar Jackson | AI31: =INDEX(Picks!G:G,MATCH(AH31,Picks!A:A,0)) -> 33.2425 | AJ31: =INDEX(Weekly!I:I,MATCH(AH31,Weekly!E:E,0)) -> 0 | AK31: =IF(AI31="","",_xlfn.RANK.EQ(AI31,TopMaxScores,0)) -> 26
A32: =Results!B32 -> Ben Rosser | B32: Burnley draw | C32: 23/10 | D32: 3.3 | E32: x | F32: =IF(J32="",-10,INDEX(Results!T:T,MATCH(A32,Results!V:V,0))) -> -7 | G32: =IF(J32="","",INDEX(Results!AI:AI,MATCH(A32,Results!V:V,0))) -> 97.35 | H32: =IF(G32="",0,1) -> 1 | I32: =INDEX(Picks!AF:AF,MATCH(A32,Picks!AC:AC,0)) -> 49 | J32: Burnley draw | K32: =INDEX(Odds!F:F,MATCH(J32,Odds!E:E,0)) -> 23/10 | L32: =INDEX(Odds!G:G,MATCH(J32,Odds!E:E,0)) -> 3.3 | M32: =INDEX(Odds!H:H,MATCH(J32,Odds!E:E,0)) -> 0 | N32: 0 | P32: =IF(Match!A32="","",Match!T32) -> Cheltenham 4-1 Scunthorpe | R32: =IF(Odds!E32="","",Odds!E32) -> Cheltenham | S32: =INDEX(Odds!F:F,MATCH(R32,Odds!E:E,0)) -> 15/8 | T32: 1 | U32: =INDEX(Match!O:O,MATCH(P32,Match!T:T,0)) -> Cheltenham | V32: =INDEX(Match!F:F,MATCH(P32,Match!T:T,0)) -> 4 | W32: =INDEX(Match!P:P,MATCH(P32,Match!T:T,0)) -> Scunthorpe | X32: =INDEX(Match!G:G,MATCH(P32,Match!T:T,0)) -> 1 | AC32: Paul Fiddler | AD32: =INDEX(Picks!F:F,MATCH(AC32,Picks!A:A,0)) -> -4.95 | AE32: =INDEX(Weekly!I:I,MATCH(AC32,Weekly!E:E,0)) -> 1 | AF32: =IF(AD32="","",_xlfn.RANK.EQ(AD32,TopScores,0)) -> 30 | AH32: Mark Bunn | AI32: =INDEX(Picks!G:G,MATCH(AH32,Picks!A:A,0)) -> 33.0025 | AJ32: =INDEX(Weekly!I:I,MATCH(AH32,Weekly!E:E,0)) -> 1 | AK32: =IF(AI32="","",_xlfn.RANK.EQ(AI32,TopMaxScores,0)) -> 27
A33: =A32 -> Ben Rosser | B33: Everton | C33: 6/4 | D33: 2.5 | E33: x | J33: Everton | K33: =INDEX(Odds!F:F,MATCH(J33,Odds!E:E,0)) -> 6/4 | L33: =INDEX(Odds!G:G,MATCH(J33,Odds!E:E,0)) -> 2.5 | M33: =INDEX(Odds!H:H,MATCH(J33,Odds!E:E,0)) -> 0 | N33: 0 | P33: =IF(Match!A33="","",Match!T33) -> Crawley 2-0 Salford | R33: =IF(Odds!E33="","",Odds!E33) -> Crawley | S33: =INDEX(Odds!F:F,MATCH(R33,Odds!E:E,0)) -> 23/10 | T33: 1 | U33: =INDEX(Match!O:O,MATCH(P33,Match!T:T,0)) -> Crawley | V33: =INDEX(Match!F:F,MATCH(P33,Match!T:T,0)) -> 2 | W33: =INDEX(Match!P:P,MATCH(P33,Match!T:T,0)) -> Salford | X33: =INDEX(Match!G:G,MATCH(P33,Match!T:T,0)) -> 0 | AC33: Chris Bow | AD33: =INDEX(Picks!F:F,MATCH(AC33,Picks!A:A,0)) -> -5.090909091 | AE33: =INDEX(Weekly!I:I,MATCH(AC33,Weekly!E:E,0)) -> 1 | AF33: =IF(AD33="","",_xlfn.RANK.EQ(AD33,TopScores,0)) -> 32 | AH33: Tom Robinson | AI33: =INDEX(Picks!G:G,MATCH(AH33,Picks!A:A,0)) -> 31.4482 | AJ33: =INDEX(Weekly!I:I,MATCH(AH33,Weekly!E:E,0)) -> 2 | AK33: =IF(AI33="","",_xlfn.RANK.EQ(AI33,TopMaxScores,0)) -> 28
A34: =A32 -> Ben Rosser | B34: West Ham draw | C34: 5/1 | D34: 6 | E34: x | J34: West Ham draw | K34: =INDEX(Odds!F:F,MATCH(J34,Odds!E:E,0)) -> 5/1 | L34: =INDEX(Odds!G:G,MATCH(J34,Odds!E:E,0)) -> 6 | M34: =INDEX(Odds!H:H,MATCH(J34,Odds!E:E,0)) -> 0 | N34: 0 | P34: =IF(Match!A34="","",Match!T34) -> Grimsby 1-1 Bradford | R34: =IF(Odds!E34="","",Odds!E34) -> Grimsby | S34: =INDEX(Odds!F:F,MATCH(R34,Odds!E:E,0)) -> 23/10 | T34: 0 | U34: =INDEX(Match!O:O,MATCH(P34,Match!T:T,0)) -> Grimsby | V34: =INDEX(Match!F:F,MATCH(P34,Match!T:T,0)) -> 1 | W34: =INDEX(Match!P:P,MATCH(P34,Match!T:T,0)) -> Bradford | X34: =INDEX(Match!G:G,MATCH(P34,Match!T:T,0)) -> 1 | AC34: Dave Orrell | AD34: =INDEX(Picks!F:F,MATCH(AC34,Picks!A:A,0)) -> -5.090909091 | AE34: =INDEX(Weekly!I:I,MATCH(AC34,Weekly!E:E,0)) -> 1 | AF34: =IF(AD34="","",_xlfn.RANK.EQ(AD34,TopScores,0)) -> 32 | AH34: Paul Fairhurst | AI34: =INDEX(Picks!G:G,MATCH(AH34,Picks!A:A,0)) -> 30.2528 | AJ34: =INDEX(Weekly!I:I,MATCH(AH34,Weekly!E:E,0)) -> 2 | AK34: =IF(AI34="","",_xlfn.RANK.EQ(AI34,TopMaxScores,0)) -> 29
A35: =Results!B35 -> Charlie Griffiths | B35: Wycombe | C35: 21/10 | D35: 3.1 | E35: x | F35: =IF(J35="",-10,INDEX(Results!T:T,MATCH(A35,Results!V:V,0))) -> -4.1 | G35: =IF(J35="","",INDEX(Results!AI:AI,MATCH(A35,Results!V:V,0))) -> 46.366 | H35: =IF(G35="",0,1) -> 1 | I35: =INDEX(Picks!AF:AF,MATCH(A35,Picks!AC:AC,0)) -> 22 | J35: Wycombe | K35: =INDEX(Odds!F:F,MATCH(J35,Odds!E:E,0)) -> 21/10 | L35: =INDEX(Odds!G:G,MATCH(J35,Odds!E:E,0)) -> 3.1 | M35: =INDEX(Odds!H:H,MATCH(J35,Odds!E:E,0)) -> 0 | N35: 0 | P35: =IF(Match!A35="","",Match!T35) -> Macclesfield 3-0 Orient | R35: =IF(Odds!E35="","",Odds!E35) -> Macclesfield | S35: =INDEX(Odds!F:F,MATCH(R35,Odds!E:E,0)) -> 2/1 | T35: 1 | U35: =INDEX(Match!O:O,MATCH(P35,Match!T:T,0)) -> Macclesfield | V35: =INDEX(Match!F:F,MATCH(P35,Match!T:T,0)) -> 3 | W35: =INDEX(Match!P:P,MATCH(P35,Match!T:T,0)) -> Orient | X35: =INDEX(Match!G:G,MATCH(P35,Match!T:T,0)) -> 0 | AC35: Andy White | AD35: =INDEX(Picks!F:F,MATCH(AC35,Picks!A:A,0)) -> -5.181818182 | AE35: =INDEX(Weekly!I:I,MATCH(AC35,Weekly!E:E,0)) -> 1 | AF35: =IF(AD35="","",_xlfn.RANK.EQ(AD35,TopScores,0)) -> 34 | AH35: Graham Miller | AI35: =INDEX(Picks!G:G,MATCH(AH35,Picks!A:A,0)) -> 29.884 | AJ35: =INDEX(Weekly!I:I,MATCH(AH35,Weekly!E:E,0)) -> 2 | AK35: =IF(AI35="","",_xlfn.RANK.EQ(AI35,TopMaxScores,0)) -> 30
A36: =A35 -> Charlie Griffiths | B36: Orient | C36: 7/5 | D36: 2.4 | E36: x | J36: Orient | K36: =INDEX(Odds!F:F,MATCH(J36,Odds!E:E,0)) -> 7/5 | L36: =INDEX(Odds!G:G,MATCH(J36,Odds!E:E,0)) -> 2.4 | M36: =INDEX(Odds!H:H,MATCH(J36,Odds!E:E,0)) -> 0 | N36: 0 | P36: =IF(Match!A36="","",Match!T36) -> Mansfield 2-2 Morecambe | R36: =IF(Odds!E36="","",Odds!E36) -> Mansfield | S36: =INDEX(Odds!F:F,MATCH(R36,Odds!E:E,0)) -> 7/10 | T36: 0 | U36: =INDEX(Match!O:O,MATCH(P36,Match!T:T,0)) -> Mansfield | V36: =INDEX(Match!F:F,MATCH(P36,Match!T:T,0)) -> 2 | W36: =INDEX(Match!P:P,MATCH(P36,Match!T:T,0)) -> Morecambe | X36: =INDEX(Match!G:G,MATCH(P36,Match!T:T,0)) -> 2 | AC36: David Dunn | AD36: =INDEX(Picks!F:F,MATCH(AC36,Picks!A:A,0)) -> -5.181818182 | AE36: =INDEX(Weekly!I:I,MATCH(AC36,Weekly!E:E,0)) -> 1 | AF36: =IF(AD36="","",_xlfn.RANK.EQ(AD36,TopScores,0)) -> 34 | AH36: Rob England | AI36: =INDEX(Picks!G:G,MATCH(AH36,Picks!A:A,0)) -> 29.77857143 | AJ36: =INDEX(Weekly!I:I,MATCH(AH36,Weekly!E:E,0)) -> 1 | AK36: =IF(AI36="","",_xlfn.RANK.EQ(AI36,TopMaxScores,0)) -> 31
A37: =A35 -> Charlie Griffiths | B37: Crewe | C37: 19/10 | D37: 2.9 | E37: √ | J37: Crewe | K37: =INDEX(Odds!F:F,MATCH(J37,Odds!E:E,0)) -> 19/10 | L37: =INDEX(Odds!G:G,MATCH(J37,Odds!E:E,0)) -> 2.9 | M37: =INDEX(Odds!H:H,MATCH(J37,Odds!E:E,0)) -> 1 | N37: 2.9 | P37: =IF(Match!A37="","",Match!T37) -> Oldham 1-2 Crewe | R37: =IF(Odds!E37="","",Odds!E37) -> Oldham | S37: =INDEX(Odds!F:F,MATCH(R37,Odds!E:E,0)) -> 7/5 | T37: 0 | U37: =INDEX(Match!O:O,MATCH(P37,Match!T:T,0)) -> Oldham | V37: =INDEX(Match!F:F,MATCH(P37,Match!T:T,0)) -> 1 | W37: =INDEX(Match!P:P,MATCH(P37,Match!T:T,0)) -> Crewe | X37: =INDEX(Match!G:G,MATCH(P37,Match!T:T,0)) -> 2 | AC37: Steve Carter | AD37: =INDEX(Picks!F:F,MATCH(AC37,Picks!A:A,0)) -> -5.181818182 | AE37: =INDEX(Weekly!I:I,MATCH(AC37,Weekly!E:E,0)) -> 1 | AF37: =IF(AD37="","",_xlfn.RANK.EQ(AD37,TopScores,0)) -> 34 | AH37: David Dunn | AI37: =INDEX(Picks!G:G,MATCH(AH37,Picks!A:A,0)) -> 29.71239669 | AJ37: =INDEX(Weekly!I:I,MATCH(AH37,Weekly!E:E,0)) -> 1 | AK37: =IF(AI37="","",_xlfn.RANK.EQ(AI37,TopMaxScores,0)) -> 32
A38: =Results!B38 -> Chris Bow | B38: Bournemouth | C38: 10/11 | D38: 1.909090909 | E38: x | F38: =IF(J38="",-10,INDEX(Results!T:T,MATCH(A38,Results!V:V,0))) -> -5.090909091 | G38: =IF(J38="","",INDEX(Results!AI:AI,MATCH(A38,Results!V:V,0))) -> 16.6190834 | H38: =IF(G38="",0,1) -> 1 | I38: =INDEX(Picks!AF:AF,MATCH(A38,Picks!AC:AC,0)) -> 32 | J38: Bournemouth | K38: =INDEX(Odds!F:F,MATCH(J38,Odds!E:E,0)) -> 10/11 | L38: =INDEX(Odds!G:G,MATCH(J38,Odds!E:E,0)) -> 1.909090909 | M38: =INDEX(Odds!H:H,MATCH(J38,Odds!E:E,0)) -> 0 | N38: 0 | P38: =IF(Match!A38="","",Match!T38) -> Plymouth 1-0 Colchester | R38: =IF(Odds!E38="","",Odds!E38) -> Plymouth | S38: =INDEX(Odds!F:F,MATCH(R38,Odds!E:E,0)) -> 23/20 | T38: 1 | U38: =INDEX(Match!O:O,MATCH(P38,Match!T:T,0)) -> Plymouth | V38: =INDEX(Match!F:F,MATCH(P38,Match!T:T,0)) -> 1 | W38: =INDEX(Match!P:P,MATCH(P38,Match!T:T,0)) -> Colchester | X38: =INDEX(Match!G:G,MATCH(P38,Match!T:T,0)) -> 0 | AC38: Mark Saunders | AD38: =INDEX(Picks!F:F,MATCH(AC38,Picks!A:A,0)) -> -5.2 | AE38: =INDEX(Weekly!I:I,MATCH(AC38,Weekly!E:E,0)) -> 1 | AF38: =IF(AD38="","",_xlfn.RANK.EQ(AD38,TopScores,0)) -> 37 | AH38: Jack Walsh | AI38: =INDEX(Picks!G:G,MATCH(AH38,Picks!A:A,0)) -> 28.14545455 | AJ38: =INDEX(Weekly!I:I,MATCH(AH38,Weekly!E:E,0)) -> 0 | AK38: =IF(AI38="","",_xlfn.RANK.EQ(AI38,TopMaxScores,0)) -> 33
A39: =A38 -> Chris Bow | B39: Watford | C39: 10/11 | D39: 1.909090909 | E39: x | J39: Watford | K39: =INDEX(Odds!F:F,MATCH(J39,Odds!E:E,0)) -> 10/11 | L39: =INDEX(Odds!G:G,MATCH(J39,Odds!E:E,0)) -> 1.909090909 | M39: =INDEX(Odds!H:H,MATCH(J39,Odds!E:E,0)) -> 0 | N39: 0 | P39: =IF(Match!A39="","",Match!T39) -> Port Vale 1-1 Northampton | R39: =IF(Odds!E39="","",Odds!E39) -> Port Vale | S39: =INDEX(Odds!F:F,MATCH(R39,Odds!E:E,0)) -> 13/8 | T39: 0 | U39: =INDEX(Match!O:O,MATCH(P39,Match!T:T,0)) -> Port Vale | V39: =INDEX(Match!F:F,MATCH(P39,Match!T:T,0)) -> 1 | W39: =INDEX(Match!P:P,MATCH(P39,Match!T:T,0)) -> Northampton | X39: =INDEX(Match!G:G,MATCH(P39,Match!T:T,0)) -> 1 | AC39: Vinny Topping | AD39: =INDEX(Picks!F:F,MATCH(AC39,Picks!A:A,0)) -> -5.2 | AE39: =INDEX(Weekly!I:I,MATCH(AC39,Weekly!E:E,0)) -> 1 | AF39: =IF(AD39="","",_xlfn.RANK.EQ(AD39,TopScores,0)) -> 37 | AH39: Graeme Holmes | AI39: =INDEX(Picks!G:G,MATCH(AH39,Picks!A:A,0)) -> 26.3035 | AJ39: =INDEX(Weekly!I:I,MATCH(AH39,Weekly!E:E,0)) -> 0 | AK39: =IF(AI39="","",_xlfn.RANK.EQ(AI39,TopMaxScores,0)) -> 34
A40: =A38 -> Chris Bow | B40: Fleetwood | C40: 10/11 | D40: 1.909090909 | E40: √ | J40: Fleetwood | K40: =INDEX(Odds!F:F,MATCH(J40,Odds!E:E,0)) -> 10/11 | L40: =INDEX(Odds!G:G,MATCH(J40,Odds!E:E,0)) -> 1.909090909 | M40: =INDEX(Odds!H:H,MATCH(J40,Odds!E:E,0)) -> 1 | N40: 1.909090909 | P40: =IF(Match!A40="","",Match!T40) -> Stevenage 0-1 Exeter | R40: =IF(Odds!E40="","",Odds!E40) -> Stevenage | S40: =INDEX(Odds!F:F,MATCH(R40,Odds!E:E,0)) -> 16/11 | T40: 0 | U40: =INDEX(Match!O:O,MATCH(P40,Match!T:T,0)) -> Stevenage | V40: =INDEX(Match!F:F,MATCH(P40,Match!T:T,0)) -> 0 | W40: =INDEX(Match!P:P,MATCH(P40,Match!T:T,0)) -> Exeter | X40: =INDEX(Match!G:G,MATCH(P40,Match!T:T,0)) -> 1 | AC40: Barry Birchall | AD40: =INDEX(Picks!F:F,MATCH(AC40,Picks!A:A,0)) -> -5.22 | AE40: =INDEX(Weekly!I:I,MATCH(AC40,Weekly!E:E,0)) -> 1 | AF40: =IF(AD40="","",_xlfn.RANK.EQ(AD40,TopScores,0)) -> 39 | AH40: Dave Orrell | AI40: =INDEX(Picks!G:G,MATCH(AH40,Picks!A:A,0)) -> 24.89090909 | AJ40: =INDEX(Weekly!I:I,MATCH(AH40,Weekly!E:E,0)) -> 1 | AK40: =IF(AI40="","",_xlfn.RANK.EQ(AI40,TopMaxScores,0)) -> 35
A41: =Results!B41 -> Chris Griffin | B41: Derby | C41: 23/20 | D41: 2.15 | E41: x | F41: =IF(J41="",-10,INDEX(Results!T:T,MATCH(A41,Results!V:V,0))) -> -5.22 | G41: =IF(J41="","",INDEX(Results!AI:AI,MATCH(A41,Results!V:V,0))) -> 15.6439 | H41: =IF(G41="",0,1) -> 1 | I41: =INDEX(Picks!AF:AF,MATCH(A41,Picks!AC:AC,0)) -> 39 | J41: Derby | K41: =INDEX(Odds!F:F,MATCH(J41,Odds!E:E,0)) -> 23/20 | L41: =INDEX(Odds!G:G,MATCH(J41,Odds!E:E,0)) -> 2.15 | M41: =INDEX(Odds!H:H,MATCH(J41,Odds!E:E,0)) -> 0 | N41: 0 | P41: =IF(Match!A41="","",Match!T41) -> Swindon 3-2 Carlisle | R41: =IF(Odds!E41="","",Odds!E41) -> Swindon | S41: =INDEX(Odds!F:F,MATCH(R41,Odds!E:E,0)) -> 21/20 | T41: 1 | U41: =INDEX(Match!O:O,MATCH(P41,Match!T:T,0)) -> Swindon | V41: =INDEX(Match!F:F,MATCH(P41,Match!T:T,0)) -> 3 | W41: =INDEX(Match!P:P,MATCH(P41,Match!T:T,0)) -> Carlisle | X41: =INDEX(Match!G:G,MATCH(P41,Match!T:T,0)) -> 2 | AC41: Chris Griffin | AD41: =INDEX(Picks!F:F,MATCH(AC41,Picks!A:A,0)) -> -5.22 | AE41: =INDEX(Weekly!I:I,MATCH(AC41,Weekly!E:E,0)) -> 1 | AF41: =IF(AD41="","",_xlfn.RANK.EQ(AD41,TopScores,0)) -> 39 | AH41: Nick Blocksidge | AI41: =INDEX(Picks!G:G,MATCH(AH41,Picks!A:A,0)) -> 24.53090909 | AJ41: =INDEX(Weekly!I:I,MATCH(AH41,Weekly!E:E,0)) -> 1 | AK41: =IF(AI41="","",_xlfn.RANK.EQ(AI41,TopMaxScores,0)) -> 36
A42: =A41 -> Chris Griffin | B42: West Brom | C42: 7/10 | D42: 1.7 | E42: x | J42: West Brom | K42: =INDEX(Odds!F:F,MATCH(J42,Odds!E:E,0)) -> 7/10 | L42: =INDEX(Odds!G:G,MATCH(J42,Odds!E:E,0)) -> 1.7 | M42: =INDEX(Odds!H:H,MATCH(J42,Odds!E:E,0)) -> 0 | N42: 0 | P42: =IF(Match!A42="","",Match!T42) -> Walsall 1-1 Forest Green | R42: =IF(Odds!E42="","",Odds!E42) -> Walsall | S42: =INDEX(Odds!F:F,MATCH(R42,Odds!E:E,0)) -> 11/8 | T42: 0 | U42: =INDEX(Match!O:O,MATCH(P42,Match!T:T,0)) -> Walsall | V42: =INDEX(Match!F:F,MATCH(P42,Match!T:T,0)) -> 1 | W42: =INDEX(Match!P:P,MATCH(P42,Match!T:T,0)) -> Forest Green | X42: =INDEX(Match!G:G,MATCH(P42,Match!T:T,0)) -> 1 | AC42: Nigel Heyes | AD42: =INDEX(Picks!F:F,MATCH(AC42,Picks!A:A,0)) -> -5.22 | AE42: =INDEX(Weekly!I:I,MATCH(AC42,Weekly!E:E,0)) -> 1 | AF42: =IF(AD42="","",_xlfn.RANK.EQ(AD42,TopScores,0)) -> 39 | AH42: Vinny Topping | AI42: =INDEX(Picks!G:G,MATCH(AH42,Picks!A:A,0)) -> 23.892 | AJ42: =INDEX(Weekly!I:I,MATCH(AH42,Weekly!E:E,0)) -> 1 | AK42: =IF(AI42="","",_xlfn.RANK.EQ(AI42,TopMaxScores,0)) -> 37
A43: =A41 -> Chris Griffin | B43: Cardiff | C43: 78/100 | D43: 1.78 | E43: √ | J43: Cardiff | K43: =INDEX(Odds!F:F,MATCH(J43,Odds!E:E,0)) -> 78/100 | L43: =INDEX(Odds!G:G,MATCH(J43,Odds!E:E,0)) -> 1.78 | M43: =INDEX(Odds!H:H,MATCH(J43,Odds!E:E,0)) -> 1 | N43: 1.78 | P43: =IF(Match!A43="","",Match!T43) -> Leicester 0-0 Wolves | R43: =IF(Odds!E43="","",Odds!E43) -> Leicester | S43: =INDEX(Odds!F:F,MATCH(R43,Odds!E:E,0)) -> 13/10 | T43: 0 | U43: =INDEX(Match!O:O,MATCH(P43,Match!T:T,0)) -> Leicester | V43: =INDEX(Match!F:F,MATCH(P43,Match!T:T,0)) -> 0 | W43: =INDEX(Match!P:P,MATCH(P43,Match!T:T,0)) -> Wolves | X43: =INDEX(Match!G:G,MATCH(P43,Match!T:T,0)) -> 0 | AC43: Paul Allen | AD43: =INDEX(Picks!F:F,MATCH(AC43,Picks!A:A,0)) -> -5.22 | AE43: =INDEX(Weekly!I:I,MATCH(AC43,Weekly!E:E,0)) -> 1 | AF43: =IF(AD43="","",_xlfn.RANK.EQ(AD43,TopScores,0)) -> 39 | AH43: Gareth Fallows | AI43: =INDEX(Picks!G:G,MATCH(AH43,Picks!A:A,0)) -> 22.69818182 | AJ43: =INDEX(Weekly!I:I,MATCH(AH43,Weekly!E:E,0)) -> 2 | AK43: =IF(AI43="","",_xlfn.RANK.EQ(AI43,TopMaxScores,0)) -> 38
A44: =Results!B44 -> Chris Luck | B44: Southampton | C44: 9/5 | D44: 2.8 | E44: x | F44: =IF(J44="",-10,INDEX(Results!T:T,MATCH(A44,Results!V:V,0))) -> -7 | G44: =IF(J44="","",INDEX(Results!AI:AI,MATCH(A44,Results!V:V,0))) -> 36.555 | H44: =IF(G44="",0,1) -> 1 | I44: =INDEX(Picks!AF:AF,MATCH(A44,Picks!AC:AC,0)) -> 49 | J44: Southampton | K44: =INDEX(Odds!F:F,MATCH(J44,Odds!E:E,0)) -> 9/5 | L44: =INDEX(Odds!G:G,MATCH(J44,Odds!E:E,0)) -> 2.8 | M44: =INDEX(Odds!H:H,MATCH(J44,Odds!E:E,0)) -> 0 | N44: 0 | P44: =IF(Match!A44="","",Match!T44) -> Man U 4-0 Chelsea | R44: =IF(Odds!E44="","",Odds!E44) -> Man U | S44: =INDEX(Odds!F:F,MATCH(R44,Odds!E:E,0)) -> 5/4 | T44: 1 | U44: =INDEX(Match!O:O,MATCH(P44,Match!T:T,0)) -> Man U | V44: =INDEX(Match!F:F,MATCH(P44,Match!T:T,0)) -> 4 | W44: =INDEX(Match!P:P,MATCH(P44,Match!T:T,0)) -> Chelsea | X44: =INDEX(Match!G:G,MATCH(P44,Match!T:T,0)) -> 0 | AC44: Gareth McGuire | AD44: =INDEX(Picks!F:F,MATCH(AC44,Picks!A:A,0)) -> -5.333333333 | AE44: =INDEX(Weekly!I:I,MATCH(AC44,Weekly!E:E,0)) -> 1 | AF44: =IF(AD44="","",_xlfn.RANK.EQ(AD44,TopScores,0)) -> 43 | AH44: Paul Adderley | AI44: =INDEX(Picks!G:G,MATCH(AH44,Picks!A:A,0)) -> 22.04297521 | AJ44: =INDEX(Weekly!I:I,MATCH(AH44,Weekly!E:E,0)) -> 1 | AK44: =IF(AI44="","",_xlfn.RANK.EQ(AI44,TopMaxScores,0)) -> 39
A45: =A44 -> Chris Luck | B45: Everton | C45: 6/4 | D45: 2.5 | E45: x | J45: Everton | K45: =INDEX(Odds!F:F,MATCH(J45,Odds!E:E,0)) -> 6/4 | L45: =INDEX(Odds!G:G,MATCH(J45,Odds!E:E,0)) -> 2.5 | M45: =INDEX(Odds!H:H,MATCH(J45,Odds!E:E,0)) -> 0 | N45: 0 | P45: =IF(Match!A45="","",Match!T45) -> Newcastle 0-1 Arsenal | R45: =IF(Odds!E45="","",Odds!E45) -> Newcastle | S45: =INDEX(Odds!F:F,MATCH(R45,Odds!E:E,0)) -> 77/19 | T45: 0 | U45: =INDEX(Match!O:O,MATCH(P45,Match!T:T,0)) -> Newcastle | V45: =INDEX(Match!F:F,MATCH(P45,Match!T:T,0)) -> 0 | W45: =INDEX(Match!P:P,MATCH(P45,Match!T:T,0)) -> Arsenal | X45: =INDEX(Match!G:G,MATCH(P45,Match!T:T,0)) -> 1 | AC45: John Evans | AD45: =INDEX(Picks!F:F,MATCH(AC45,Picks!A:A,0)) -> -5.333333333 | AE45: =INDEX(Weekly!I:I,MATCH(AC45,Weekly!E:E,0)) -> 1 | AF45: =IF(AD45="","",_xlfn.RANK.EQ(AD45,TopScores,0)) -> 43 | AH45: Antony Robinson | AI45: =INDEX(Picks!G:G,MATCH(AH45,Picks!A:A,0)) -> 20.92857143 | AJ45: =INDEX(Weekly!I:I,MATCH(AH45,Weekly!E:E,0)) -> 1 | AK45: =IF(AI45="","",_xlfn.RANK.EQ(AI45,TopMaxScores,0)) -> 40
A46: =A44 -> Chris Luck | B46: Birmingham | C46: 27/20 | D46: 2.35 | E46: x | J46: Birmingham | K46: =INDEX(Odds!F:F,MATCH(J46,Odds!E:E,0)) -> 27/20 | L46: =INDEX(Odds!G:G,MATCH(J46,Odds!E:E,0)) -> 2.35 | M46: =INDEX(Odds!H:H,MATCH(J46,Odds!E:E,0)) -> 0 | N46: 0 | P46: =IF(Match!A46="","",Match!T46) ->  | R46: =IF(Odds!E46="","",Odds!E46) ->  | S46: =INDEX(Odds!F:F,MATCH(R46,Odds!E:E,0)) ->  | U46: =INDEX(Match!O:O,MATCH(P46,Match!T:T,0)) ->  | V46: =INDEX(Match!F:F,MATCH(P46,Match!T:T,0)) ->  | W46: =INDEX(Match!P:P,MATCH(P46,Match!T:T,0)) ->  | X46: =INDEX(Match!G:G,MATCH(P46,Match!T:T,0)) ->  | AC46: Lewis Buckley | AD46: =INDEX(Picks!F:F,MATCH(AC46,Picks!A:A,0)) -> -5.333333333 | AE46: =INDEX(Weekly!I:I,MATCH(AC46,Weekly!E:E,0)) -> 1 | AF46: =IF(AD46="","",_xlfn.RANK.EQ(AD46,TopScores,0)) -> 43 | AH46: Andy White | AI46: =INDEX(Picks!G:G,MATCH(AH46,Picks!A:A,0)) -> 20.69421488 | AJ46: =INDEX(Weekly!I:I,MATCH(AH46,Weekly!E:E,0)) -> 1 | AK46: =IF(AI46="","",_xlfn.RANK.EQ(AI46,TopMaxScores,0)) -> 41
A47: =Results!B47 -> Chris Townsend | B47: Swansea | C47: 12/5 | D47: 3.4 | E47: x | F47: =IF(J47="",-10,INDEX(Results!T:T,MATCH(A47,Results!V:V,0))) -> -7 | G47: =IF(J47="","",INDEX(Results!AI:AI,MATCH(A47,Results!V:V,0))) -> 89.196 | H47: =IF(G47="",0,1) -> 1 | I47: =INDEX(Picks!AF:AF,MATCH(A47,Picks!AC:AC,0)) -> 49 | J47: Swansea | K47: =INDEX(Odds!F:F,MATCH(J47,Odds!E:E,0)) -> 12/5 | L47: =INDEX(Odds!G:G,MATCH(J47,Odds!E:E,0)) -> 3.4 | M47: =INDEX(Odds!H:H,MATCH(J47,Odds!E:E,0)) -> 0 | N47: 0 | P47: =IF(Match!A47="","",Match!T47) ->  | R47: =IF(Odds!E47="","",Odds!E47) ->  | S47: =INDEX(Odds!F:F,MATCH(R47,Odds!E:E,0)) ->  | T47: =IF(V47>X47,1,0) ->  | U47: =INDEX(Match!O:O,MATCH(P47,Match!T:T,0)) ->  | V47: =INDEX(Match!F:F,MATCH(P47,Match!T:T,0)) ->  | W47: =INDEX(Match!P:P,MATCH(P47,Match!T:T,0)) ->  | X47: =INDEX(Match!G:G,MATCH(P47,Match!T:T,0)) ->  | AC47: Andy Charleston | AD47: =INDEX(Picks!F:F,MATCH(AC47,Picks!A:A,0)) -> -5.73 | AE47: =INDEX(Weekly!I:I,MATCH(AC47,Weekly!E:E,0)) -> 1 | AF47: =IF(AD47="","",_xlfn.RANK.EQ(AD47,TopScores,0)) -> 46 | AH47: Stephen Troop | AI47: =INDEX(Picks!G:G,MATCH(AH47,Picks!A:A,0)) -> 19.216 | AJ47: =INDEX(Weekly!I:I,MATCH(AH47,Weekly!E:E,0)) -> 0 | AK47: =IF(AI47="","",_xlfn.RANK.EQ(AI47,TopMaxScores,0)) -> 42
A48: =A47 -> Chris Townsend | B48: Reading | C48: 27/10 | D48: 3.7 | E48: x | J48: Reading | K48: =INDEX(Odds!F:F,MATCH(J48,Odds!E:E,0)) -> 27/10 | L48: =INDEX(Odds!G:G,MATCH(J48,Odds!E:E,0)) -> 3.7 | M48: =INDEX(Odds!H:H,MATCH(J48,Odds!E:E,0)) -> 0 | N48: 0 | R48: =IF(Odds!E48="","",Odds!E48) -> Liverpool draw | S48: =INDEX(Odds!F:F,MATCH(R48,Odds!E:E,0)) -> 7/1 | T48: =IF(V2=X2,1,0) -> 0 | AC48: Antony Robinson | AD48: =INDEX(Picks!F:F,MATCH(AC48,Picks!A:A,0)) -> -5.857142857 | AE48: =INDEX(Weekly!I:I,MATCH(AC48,Weekly!E:E,0)) -> 1 | AF48: =IF(AD48="","",_xlfn.RANK.EQ(AD48,TopScores,0)) -> 47 | AH48: Paul Ridgeway | AI48: =INDEX(Picks!G:G,MATCH(AH48,Picks!A:A,0)) -> 18.901 | AJ48: =INDEX(Weekly!I:I,MATCH(AH48,Weekly!E:E,0)) -> 2 | AK48: =IF(AI48="","",_xlfn.RANK.EQ(AI48,TopMaxScores,0)) -> 43
A49: =A47 -> Chris Townsend | B49: Barnsley | C49: 27/10 | D49: 3.7 | E49: x | J49: Barnsley | K49: =INDEX(Odds!F:F,MATCH(J49,Odds!E:E,0)) -> 27/10 | L49: =INDEX(Odds!G:G,MATCH(J49,Odds!E:E,0)) -> 3.7 | M49: =INDEX(Odds!H:H,MATCH(J49,Odds!E:E,0)) -> 0 | N49: 0 | R49: =IF(Odds!E49="","",Odds!E49) -> Bournemouth draw | S49: =INDEX(Odds!F:F,MATCH(R49,Odds!E:E,0)) -> 13/5 | T49: 1 | AC49: Rob England | AD49: =INDEX(Picks!F:F,MATCH(AC49,Picks!A:A,0)) -> -5.857142857 | AE49: =INDEX(Weekly!I:I,MATCH(AC49,Weekly!E:E,0)) -> 1 | AF49: =IF(AD49="","",_xlfn.RANK.EQ(AD49,TopScores,0)) -> 47 | AH49: Mark Saunders | AI49: =INDEX(Picks!G:G,MATCH(AH49,Picks!A:A,0)) -> 18.88 | AJ49: =INDEX(Weekly!I:I,MATCH(AH49,Weekly!E:E,0)) -> 1 | AK49: =IF(AI49="","",_xlfn.RANK.EQ(AI49,TopMaxScores,0)) -> 44
A50: =Results!B50 -> Dan Baxter | B50: Liverpool draw | C50: 7/1 | D50: 8 | E50: x | F50: =IF(J50="",-10,INDEX(Results!T:T,MATCH(A50,Results!V:V,0))) -> -7 | G50: =IF(J50="","",INDEX(Results!AI:AI,MATCH(A50,Results!V:V,0))) -> 78.4 | H50: =IF(G50="",0,1) -> 1 | I50: =INDEX(Picks!AF:AF,MATCH(A50,Picks!AC:AC,0)) -> 49 | J50: Liverpool draw | K50: =INDEX(Odds!F:F,MATCH(J50,Odds!E:E,0)) -> 7/1 | L50: =INDEX(Odds!G:G,MATCH(J50,Odds!E:E,0)) -> 8 | M50: =INDEX(Odds!H:H,MATCH(J50,Odds!E:E,0)) -> 0 | N50: 0 | Q50: ` | R50: =IF(Odds!E50="","",Odds!E50) -> Burnley draw | S50: =INDEX(Odds!F:F,MATCH(R50,Odds!E:E,0)) -> 23/10 | T50: 0 | AC50: Alan White | AD50: =INDEX(Picks!F:F,MATCH(AC50,Picks!A:A,0)) -> -7 | AE50: =INDEX(Weekly!I:I,MATCH(AC50,Weekly!E:E,0)) -> 0 | AF50: =IF(AD50="","",_xlfn.RANK.EQ(AD50,TopScores,0)) -> 49 | AH50: Phil Miller | AI50: =INDEX(Picks!G:G,MATCH(AH50,Picks!A:A,0)) -> 17.83 | AJ50: =INDEX(Weekly!I:I,MATCH(AH50,Weekly!E:E,0)) -> 2 | AK50: =IF(AI50="","",_xlfn.RANK.EQ(AI50,TopMaxScores,0)) -> 45
A51: =A50 -> Dan Baxter | B51: Watford | C51: 10/11 | D51: 1.909090909 | E51: x | J51: Watford | K51: =INDEX(Odds!F:F,MATCH(J51,Odds!E:E,0)) -> 10/11 | L51: =INDEX(Odds!G:G,MATCH(J51,Odds!E:E,0)) -> 1.909090909 | M51: =INDEX(Odds!H:H,MATCH(J51,Odds!E:E,0)) -> 0 | N51: 0 | R51: =IF(Odds!E51="","",Odds!E51) -> Palace draw | S51: =INDEX(Odds!F:F,MATCH(R51,Odds!E:E,0)) -> 23/10 | T51: 1 | AC51: Ashley Houghton | AD51: =INDEX(Picks!F:F,MATCH(AC51,Picks!A:A,0)) -> -7 | AE51: =INDEX(Weekly!I:I,MATCH(AC51,Weekly!E:E,0)) -> 0 | AF51: =IF(AD51="","",_xlfn.RANK.EQ(AD51,TopScores,0)) -> 49 | AH51: Gareth McGuire | AI51: =INDEX(Picks!G:G,MATCH(AH51,Picks!A:A,0)) -> 17.6 | AJ51: =INDEX(Weekly!I:I,MATCH(AH51,Weekly!E:E,0)) -> 1 | AK51: =IF(AI51="","",_xlfn.RANK.EQ(AI51,TopMaxScores,0)) -> 46
A52: =A50 -> Dan Baxter | B52: Stoke | C52: 13/10 | D52: 2.3 | E52: x | J52: Stoke | K52: =INDEX(Odds!F:F,MATCH(J52,Odds!E:E,0)) -> 13/10 | L52: =INDEX(Odds!G:G,MATCH(J52,Odds!E:E,0)) -> 2.3 | M52: =INDEX(Odds!H:H,MATCH(J52,Odds!E:E,0)) -> 0 | N52: 0 | R52: =IF(Odds!E52="","",Odds!E52) -> Spurs draw | S52: =INDEX(Odds!F:F,MATCH(R52,Odds!E:E,0)) -> 24/5 | T52: 0 | AC52: Ben Rosser | AD52: =INDEX(Picks!F:F,MATCH(AC52,Picks!A:A,0)) -> -7 | AE52: =INDEX(Weekly!I:I,MATCH(AC52,Weekly!E:E,0)) -> 0 | AF52: =IF(AD52="","",_xlfn.RANK.EQ(AD52,TopScores,0)) -> 49 | AH52: Alan White | AI52: =INDEX(Picks!G:G,MATCH(AH52,Picks!A:A,0)) -> 17.52727273 | AJ52: =INDEX(Weekly!I:I,MATCH(AH52,Weekly!E:E,0)) -> 0 | AK52: =IF(AI52="","",_xlfn.RANK.EQ(AI52,TopMaxScores,0)) -> 47
A53: =Results!B53 -> Dave Bell | B53: Norwich | C53: 18/1 | D53: 19 | E53: x | F53: =IF(J53="",-10,INDEX(Results!T:T,MATCH(A53,Results!V:V,0))) -> -7 | G53: =IF(J53="","",INDEX(Results!AI:AI,MATCH(A53,Results!V:V,0))) -> 3112 | H53: =IF(G53="",0,1) -> 1 | I53: =INDEX(Picks!AF:AF,MATCH(A53,Picks!AC:AC,0)) -> 49 | J53: Norwich | K53: =INDEX(Odds!F:F,MATCH(J53,Odds!E:E,0)) -> 18/1 | L53: =INDEX(Odds!G:G,MATCH(J53,Odds!E:E,0)) -> 19 | M53: =INDEX(Odds!H:H,MATCH(J53,Odds!E:E,0)) -> 0 | N53: 0 | R53: =IF(Odds!E53="","",Odds!E53) -> Watford draw | S53: =INDEX(Odds!F:F,MATCH(R53,Odds!E:E,0)) -> 12/5 | T53: 0 | AC53: Chris Luck | AD53: =INDEX(Picks!F:F,MATCH(AC53,Picks!A:A,0)) -> -7 | AE53: =INDEX(Weekly!I:I,MATCH(AC53,Weekly!E:E,0)) -> 0 | AF53: =IF(AD53="","",_xlfn.RANK.EQ(AD53,TopScores,0)) -> 49 | AH53: Mo Sudell | AI53: =INDEX(Picks!G:G,MATCH(AH53,Picks!A:A,0)) -> 17.515 | AJ53: =INDEX(Weekly!I:I,MATCH(AH53,Weekly!E:E,0)) -> 1 | AK53: =IF(AI53="","",_xlfn.RANK.EQ(AI53,TopMaxScores,0)) -> 48
A54: =A53 -> Dave Bell | B54: Villa | C54: 10/1 | D54: 11 | E54: x | J54: Villa | K54: =INDEX(Odds!F:F,MATCH(J54,Odds!E:E,0)) -> 10/1 | L54: =INDEX(Odds!G:G,MATCH(J54,Odds!E:E,0)) -> 11 | M54: =INDEX(Odds!H:H,MATCH(J54,Odds!E:E,0)) -> 0 | N54: 0 | R54: =IF(Odds!E54="","",Odds!E54) -> West Ham draw | S54: =INDEX(Odds!F:F,MATCH(R54,Odds!E:E,0)) -> 5/1 | T54: 0 | AC54: Chris Townsend | AD54: =INDEX(Picks!F:F,MATCH(AC54,Picks!A:A,0)) -> -7 | AE54: =INDEX(Weekly!I:I,MATCH(AC54,Weekly!E:E,0)) -> 0 | AF54: =IF(AD54="","",_xlfn.RANK.EQ(AD54,TopScores,0)) -> 49 | AH54: Alick Rocca | AI54: =INDEX(Picks!G:G,MATCH(AH54,Picks!A:A,0)) -> 16.74181818 | AJ54: =INDEX(Weekly!I:I,MATCH(AH54,Weekly!E:E,0)) -> 2 | AK54: =IF(AI54="","",_xlfn.RANK.EQ(AI54,TopMaxScores,0)) -> 49
A55: =A53 -> Dave Bell | B55: West Ham | C55: 11/1 | D55: 12 | E55: x | J55: West Ham | K55: =INDEX(Odds!F:F,MATCH(J55,Odds!E:E,0)) -> 11/1 | L55: =INDEX(Odds!G:G,MATCH(J55,Odds!E:E,0)) -> 12 | M55: =INDEX(Odds!H:H,MATCH(J55,Odds!E:E,0)) -> 0 | N55: 0 | R55: =IF(Odds!E55="","",Odds!E55) -> Birmingham draw | S55: =INDEX(Odds!F:F,MATCH(R55,Odds!E:E,0)) -> 23/10 | T55: 1 | AC55: Dan Baxter | AD55: =INDEX(Picks!F:F,MATCH(AC55,Picks!A:A,0)) -> -7 | AE55: =INDEX(Weekly!I:I,MATCH(AC55,Weekly!E:E,0)) -> 0 | AF55: =IF(AD55="","",_xlfn.RANK.EQ(AD55,TopScores,0)) -> 49 | AH55: Ashley Houghton | AI55: =INDEX(Picks!G:G,MATCH(AH55,Picks!A:A,0)) -> 16.74181818 | AJ55: =INDEX(Weekly!I:I,MATCH(AH55,Weekly!E:E,0)) -> 0 | AK55: =IF(AI55="","",_xlfn.RANK.EQ(AI55,TopMaxScores,0)) -> 50
A56: =Results!B56 -> Dave Orrell | B56: Birmingham | C56: 27/20 | D56: 2.35 | E56: x | F56: =IF(J56="",-10,INDEX(Results!T:T,MATCH(A56,Results!V:V,0))) -> -5.090909091 | G56: =IF(J56="","",INDEX(Results!AI:AI,MATCH(A56,Results!V:V,0))) -> 24.89090909 | H56: =IF(G56="",0,1) -> 1 | I56: =INDEX(Picks!AF:AF,MATCH(A56,Picks!AC:AC,0)) -> 32 | J56: Birmingham | K56: =INDEX(Odds!F:F,MATCH(J56,Odds!E:E,0)) -> 27/20 | L56: =INDEX(Odds!G:G,MATCH(J56,Odds!E:E,0)) -> 2.35 | M56: =INDEX(Odds!H:H,MATCH(J56,Odds!E:E,0)) -> 0 | N56: 0 | R56: =IF(Odds!E56="","",Odds!E56) -> Cardiff draw | S56: =INDEX(Odds!F:F,MATCH(R56,Odds!E:E,0)) -> 13/5 | T56: 0 | AC56: Dave Bell | AD56: =INDEX(Picks!F:F,MATCH(AC56,Picks!A:A,0)) -> -7 | AE56: =INDEX(Weekly!I:I,MATCH(AC56,Weekly!E:E,0)) -> 0 | AF56: =IF(AD56="","",_xlfn.RANK.EQ(AD56,TopScores,0)) -> 49 | AH56: Chris Bow | AI56: =INDEX(Picks!G:G,MATCH(AH56,Picks!A:A,0)) -> 16.6190834 | AJ56: =INDEX(Weekly!I:I,MATCH(AH56,Weekly!E:E,0)) -> 1 | AK56: =IF(AI56="","",_xlfn.RANK.EQ(AI56,TopMaxScores,0)) -> 51
A57: =A56 -> Dave Orrell | B57: Fleetwood | C57: 10/11 | D57: 1.909090909 | E57: √ | J57: Fleetwood | K57: =INDEX(Odds!F:F,MATCH(J57,Odds!E:E,0)) -> 10/11 | L57: =INDEX(Odds!G:G,MATCH(J57,Odds!E:E,0)) -> 1.909090909 | M57: =INDEX(Odds!H:H,MATCH(J57,Odds!E:E,0)) -> 1 | N57: 1.909090909 | R57: =IF(Odds!E57="","",Odds!E57) -> Charlton draw | S57: =INDEX(Odds!F:F,MATCH(R57,Odds!E:E,0)) -> 12/5 | T57: 0 | AC57: Graeme Holmes | AD57: =INDEX(Picks!F:F,MATCH(AC57,Picks!A:A,0)) -> -7 | AE57: =INDEX(Weekly!I:I,MATCH(AC57,Weekly!E:E,0)) -> 0 | AF57: =IF(AD57="","",_xlfn.RANK.EQ(AD57,TopScores,0)) -> 49 | AH57: Martin Tarbuck | AI57: =INDEX(Picks!G:G,MATCH(AH57,Picks!A:A,0)) -> 15.9203125 | AJ57: =INDEX(Weekly!I:I,MATCH(AH57,Weekly!E:E,0)) -> 2 | AK57: =IF(AI57="","",_xlfn.RANK.EQ(AI57,TopMaxScores,0)) -> 52
A58: =A56 -> Dave Orrell | B58: Walsall | C58: 11/8 | D58: 2.375 | E58: x | J58: Walsall | K58: =INDEX(Odds!F:F,MATCH(J58,Odds!E:E,0)) -> 11/8 | L58: =INDEX(Odds!G:G,MATCH(J58,Odds!E:E,0)) -> 2.375 | M58: =INDEX(Odds!H:H,MATCH(J58,Odds!E:E,0)) -> 0 | N58: 0 | R58: =IF(Odds!E58="","",Odds!E58) -> Derby draw | S58: =INDEX(Odds!F:F,MATCH(R58,Odds!E:E,0)) -> 12/5 | T58: 1 | AC58: Jack Walsh | AD58: =INDEX(Picks!F:F,MATCH(AC58,Picks!A:A,0)) -> -7 | AE58: =INDEX(Weekly!I:I,MATCH(AC58,Weekly!E:E,0)) -> 0 | AF58: =IF(AD58="","",_xlfn.RANK.EQ(AD58,TopScores,0)) -> 49 | AH58: Stephen Barr | AI58: =INDEX(Picks!G:G,MATCH(AH58,Picks!A:A,0)) -> 15.89536364 | AJ58: =INDEX(Weekly!I:I,MATCH(AH58,Weekly!E:E,0)) -> 3 | AK58: =IF(AI58="","",_xlfn.RANK.EQ(AI58,TopMaxScores,0)) -> 53
A59: =Results!B59 -> David Dunn | B59: Chelsea | C59: 13/5 | D59: 3.6 | E59: x | F59: =IF(J59="",-10,INDEX(Results!T:T,MATCH(A59,Results!V:V,0))) -> -5.181818182 | G59: =IF(J59="","",INDEX(Results!AI:AI,MATCH(A59,Results!V:V,0))) -> 29.71239669 | H59: =IF(G59="",0,1) -> 1 | I59: =INDEX(Picks!AF:AF,MATCH(A59,Picks!AC:AC,0)) -> 34 | J59: Chelsea | K59: =INDEX(Odds!F:F,MATCH(J59,Odds!E:E,0)) -> 13/5 | L59: =INDEX(Odds!G:G,MATCH(J59,Odds!E:E,0)) -> 3.6 | M59: =INDEX(Odds!H:H,MATCH(J59,Odds!E:E,0)) -> 0 | N59: 0 | R59: =IF(Odds!E59="","",Odds!E59) -> Fulham draw | S59: =INDEX(Odds!F:F,MATCH(R59,Odds!E:E,0)) -> 11/4 | T59: 0 | AC59: James Bell | AD59: =INDEX(Picks!F:F,MATCH(AC59,Picks!A:A,0)) -> -7 | AE59: =INDEX(Weekly!I:I,MATCH(AC59,Weekly!E:E,0)) -> 0 | AF59: =IF(AD59="","",_xlfn.RANK.EQ(AD59,TopScores,0)) -> 49 | AH59: Mal Stott | AI59: =INDEX(Picks!G:G,MATCH(AH59,Picks!A:A,0)) -> 15.89333333 | AJ59: =INDEX(Weekly!I:I,MATCH(AH59,Weekly!E:E,0)) -> 2 | AK59: =IF(AI59="","",_xlfn.RANK.EQ(AI59,TopMaxScores,0)) -> 54
A60: =A59 -> David Dunn | B60: =IF(J60="","",J60) -> Arsenal | C60: 9/11 | D60: 1.818181818 | E60: √ | J60: Arsenal | K60: =INDEX(Odds!F:F,MATCH(J60,Odds!E:E,0)) -> 9/11 | L60: =INDEX(Odds!G:G,MATCH(J60,Odds!E:E,0)) -> 1.818181818 | M60: =INDEX(Odds!H:H,MATCH(J60,Odds!E:E,0)) -> 1 | N60: 1.818181818 | R60: =IF(Odds!E60="","",Odds!E60) -> Hull draw | S60: =INDEX(Odds!F:F,MATCH(R60,Odds!E:E,0)) -> 12/5 | T60: 0 | AC60: Joel Bent | AD60: =INDEX(Picks!F:F,MATCH(AC60,Picks!A:A,0)) -> -7 | AE60: =INDEX(Weekly!I:I,MATCH(AC60,Weekly!E:E,0)) -> 0 | AF60: =IF(AD60="","",_xlfn.RANK.EQ(AD60,TopScores,0)) -> 49 | AH60: Chris Griffin | AI60: =INDEX(Picks!G:G,MATCH(AH60,Picks!A:A,0)) -> 15.6439 | AJ60: =INDEX(Weekly!I:I,MATCH(AH60,Weekly!E:E,0)) -> 1 | AK60: =IF(AI60="","",_xlfn.RANK.EQ(AI60,TopMaxScores,0)) -> 55
A61: =A59 -> David Dunn | B61: =IF(J61="","",J61) -> Bournemouth | C61: =IF(J61="","",K61) -> 10/11 | D61: =IF(J61="","",L61) -> 1.909090909 | E61: x | J61: Bournemouth | K61: =INDEX(Odds!F:F,MATCH(J61,Odds!E:E,0)) -> 10/11 | L61: =INDEX(Odds!G:G,MATCH(J61,Odds!E:E,0)) -> 1.909090909 | M61: =INDEX(Odds!H:H,MATCH(J61,Odds!E:E,0)) -> 0 | N61: 0 | R61: =IF(Odds!E61="","",Odds!E61) -> Leeds draw | S61: =INDEX(Odds!F:F,MATCH(R61,Odds!E:E,0)) -> 14/5 | T61: 1 | AC61: Kevin Carter | AD61: =INDEX(Picks!F:F,MATCH(AC61,Picks!A:A,0)) -> -7 | AE61: =INDEX(Weekly!I:I,MATCH(AC61,Weekly!E:E,0)) -> 0 | AF61: =IF(AD61="","",_xlfn.RANK.EQ(AD61,TopScores,0)) -> 49 | AH61: Paul Allen | AI61: =INDEX(Picks!G:G,MATCH(AH61,Picks!A:A,0)) -> 15.52661157 | AJ61: =INDEX(Weekly!I:I,MATCH(AH61,Weekly!E:E,0)) -> 1 | AK61: =IF(AI61="","",_xlfn.RANK.EQ(AI61,TopMaxScores,0)) -> 56
A62: =Results!B62 -> Gareth Fallows | B62: Birmingham | C62: 27/20 | D62: 2.35 | E62: x | F62: =IF(J62="",-10,INDEX(Results!T:T,MATCH(A62,Results!V:V,0))) -> 1.163636364 | G62: =IF(J62="","",INDEX(Results!AI:AI,MATCH(A62,Results!V:V,0))) -> 22.69818182 | H62: =IF(G62="",0,1) -> 1 | I62: =INDEX(Picks!AF:AF,MATCH(A62,Picks!AC:AC,0)) -> 10 | J62: Birmingham | K62: =INDEX(Odds!F:F,MATCH(J62,Odds!E:E,0)) -> 27/20 | L62: =INDEX(Odds!G:G,MATCH(J62,Odds!E:E,0)) -> 2.35 | M62: =INDEX(Odds!H:H,MATCH(J62,Odds!E:E,0)) -> 0 | N62: =L62*M62 -> 0 | R62: =IF(Odds!E62="","",Odds!E62) -> Middlesbro draw | S62: =INDEX(Odds!F:F,MATCH(R62,Odds!E:E,0)) -> 12/5 | T62: 0 | AC62: Martin Molyneux | AD62: =INDEX(Picks!F:F,MATCH(AC62,Picks!A:A,0)) -> -7 | AE62: =INDEX(Weekly!I:I,MATCH(AC62,Weekly!E:E,0)) -> 0 | AF62: =IF(AD62="","",_xlfn.RANK.EQ(AD62,TopScores,0)) -> 49 | AH62: Lennie Bow | AI62: =INDEX(Picks!G:G,MATCH(AH62,Picks!A:A,0)) -> 14.99153846 | AJ62: =INDEX(Weekly!I:I,MATCH(AH62,Weekly!E:E,0)) -> 1 | AK62: =IF(AI62="","",_xlfn.RANK.EQ(AI62,TopMaxScores,0)) -> 57
A63: =A62 -> Gareth Fallows | B63: =IF(J63="","",J63) -> Fleetwood | C63: =IF(J63="","",K63) -> 10/11 | D63: =IF(J63="","",L63) -> 1.909090909 | E63: =IF(J63="","",IF(M63=1,"√","x")) -> √ | J63: Fleetwood | K63: =INDEX(Odds!F:F,MATCH(J63,Odds!E:E,0)) -> 10/11 | L63: =INDEX(Odds!G:G,MATCH(J63,Odds!E:E,0)) -> 1.909090909 | M63: =INDEX(Odds!H:H,MATCH(J63,Odds!E:E,0)) -> 1 | N63: 1.909090909 | R63: =IF(Odds!E63="","",Odds!E63) -> Preston draw | S63: =INDEX(Odds!F:F,MATCH(R63,Odds!E:E,0)) -> 23/10 | T63: 0 | AC63: Oscar Jackson | AD63: =INDEX(Picks!F:F,MATCH(AC63,Picks!A:A,0)) -> -7 | AE63: =INDEX(Weekly!I:I,MATCH(AC63,Weekly!E:E,0)) -> 0 | AF63: =IF(AD63="","",_xlfn.RANK.EQ(AD63,TopScores,0)) -> 49 | AH63: Howard Bradley | AI63: =INDEX(Picks!G:G,MATCH(AH63,Picks!A:A,0)) -> 13.96 | AJ63: =INDEX(Weekly!I:I,MATCH(AH63,Weekly!E:E,0)) -> 2 | AK63: =IF(AI63="","",_xlfn.RANK.EQ(AI63,TopMaxScores,0)) -> 58
A64: =A62 -> Gareth Fallows | B64: Plymouth | C64: 23/20 | D64: 2.15 | E64: √ | J64: Plymouth | K64: =INDEX(Odds!F:F,MATCH(J64,Odds!E:E,0)) -> 23/20 | L64: =INDEX(Odds!G:G,MATCH(J64,Odds!E:E,0)) -> 2.15 | M64: =INDEX(Odds!H:H,MATCH(J64,Odds!E:E,0)) -> 1 | N64: 2.15 | R64: =IF(Odds!E64="","",Odds!E64) -> QPR draw | S64: =INDEX(Odds!F:F,MATCH(R64,Odds!E:E,0)) -> 23/10 | T64: 1 | AC64: Stephen Troop | AD64: =INDEX(Picks!F:F,MATCH(AC64,Picks!A:A,0)) -> -7 | AE64: =INDEX(Weekly!I:I,MATCH(AC64,Weekly!E:E,0)) -> 0 | AF64: =IF(AD64="","",_xlfn.RANK.EQ(AD64,TopScores,0)) -> 49 | AH64: Barry Birchall | AI64: =INDEX(Picks!G:G,MATCH(AH64,Picks!A:A,0)) -> 13.83563636 | AJ64: =INDEX(Weekly!I:I,MATCH(AH64,Weekly!E:E,0)) -> 1 | AK64: =IF(AI64="","",_xlfn.RANK.EQ(AI64,TopMaxScores,0)) -> 59
A65: =Results!B65 -> Gareth McGuire | B65: Watford | C65: 10/11 | D65: 1.909090909 | E65: x | F65: =IF(J65="",-10,INDEX(Results!T:T,MATCH(A65,Results!V:V,0))) -> -5.333333333 | G65: =IF(J65="","",INDEX(Results!AI:AI,MATCH(A65,Results!V:V,0))) -> 17.6 | H65: =IF(G65="",0,1) -> 1 | I65: =INDEX(Picks!AF:AF,MATCH(A65,Picks!AC:AC,0)) -> 43 | J65: Watford | K65: =INDEX(Odds!F:F,MATCH(J65,Odds!E:E,0)) -> 10/11 | L65: =INDEX(Odds!G:G,MATCH(J65,Odds!E:E,0)) -> 1.909090909 | M65: =INDEX(Odds!H:H,MATCH(J65,Odds!E:E,0)) -> 0 | N65: 0 | R65: =IF(Odds!E65="","",Odds!E65) -> Sheff W draw | S65: =INDEX(Odds!F:F,MATCH(R65,Odds!E:E,0)) -> 12/5 | T65: 0 | AC65: Andy Clucas | AD65: =INDEX(Picks!F:F,MATCH(AC65,Picks!A:A,0)) -> -7 | AE65: =INDEX(Weekly!I:I,MATCH(AC65,Weekly!E:E,0)) -> 0 | AF65: =IF(AD65="","",_xlfn.RANK.EQ(AD65,TopScores,0)) -> 49 | AH65: Alfie Davies | AI65: =INDEX(Picks!G:G,MATCH(AH65,Picks!A:A,0)) -> 13.22597403 | AJ65: =INDEX(Weekly!I:I,MATCH(AH65,Weekly!E:E,0)) -> 3 | AK65: =IF(AI65="","",_xlfn.RANK.EQ(AI65,TopMaxScores,0)) -> 60
A66: =A65 -> Gareth McGuire | B66: Middlesbro | C66: 13/10 | D66: 2.3 | E66: x | J66: Middlesbro | K66: =INDEX(Odds!F:F,MATCH(J66,Odds!E:E,0)) -> 13/10 | L66: =INDEX(Odds!G:G,MATCH(J66,Odds!E:E,0)) -> 2.3 | M66: =INDEX(Odds!H:H,MATCH(J66,Odds!E:E,0)) -> 0 | N66: 0 | R66: =IF(Odds!E66="","",Odds!E66) -> West Brom draw | S66: =INDEX(Odds!F:F,MATCH(R66,Odds!E:E,0)) -> 11/4 | T66: 1 | AC66: Aaron Sudell | AD66: =INDEX(Picks!F:F,MATCH(AC66,Picks!A:A,0)) -> -10 | AE66: =INDEX(Weekly!I:I,MATCH(AC66,Weekly!E:E,0)) -> 0 | AF66: =IF(AD66="","",_xlfn.RANK.EQ(AD66,TopScores,0)) -> 65 | AH66: Andy Clucas | AI66: =INDEX(Picks!G:G,MATCH(AH66,Picks!A:A,0)) -> 13.20727273 | AJ66: =INDEX(Weekly!I:I,MATCH(AH66,Weekly!E:E,0)) -> 0 | AK66: =IF(AI66="","",_xlfn.RANK.EQ(AI66,TopMaxScores,0)) -> 61
A67: =A65 -> Gareth McGuire | B67: Portsmouth | C67: 4/6 | D67: 1.666666667 | E67: =IF(J67="","",IF(M67=1,"√","x")) -> √ | J67: Portsmouth | K67: =INDEX(Odds!F:F,MATCH(J67,Odds!E:E,0)) -> 4/6 | L67: =INDEX(Odds!G:G,MATCH(J67,Odds!E:E,0)) -> 1.666666667 | M67: =INDEX(Odds!H:H,MATCH(J67,Odds!E:E,0)) -> 1 | N67: 1.666666667 | R67: =IF(Odds!E67="","",Odds!E67) -> Bristol R draw | S67: =INDEX(Odds!F:F,MATCH(R67,Odds!E:E,0)) -> 23/10 | T67: 1 | AC67: Paul Barnes | AD67: =INDEX(Picks!F:F,MATCH(AC67,Picks!A:A,0)) -> -10 | AE67: =INDEX(Weekly!I:I,MATCH(AC67,Weekly!E:E,0)) -> 0 | AF67: =IF(AD67="","",_xlfn.RANK.EQ(AD67,TopScores,0)) -> 65 | AH67: Lewis Buckley | AI67: =INDEX(Picks!G:G,MATCH(AH67,Picks!A:A,0)) -> 12.94545455 | AJ67: =INDEX(Weekly!I:I,MATCH(AH67,Weekly!E:E,0)) -> 1 | AK67: =IF(AI67="","",_xlfn.RANK.EQ(AI67,TopMaxScores,0)) -> 62
A68: =Results!B68 -> Gareth Powell | B68: Man U draw | C68: 32/13 | D68: 3.461538462 | E68: x | F68: =IF(J68="",-10,INDEX(Results!T:T,MATCH(A68,Results!V:V,0))) -> -4.95 | G68: =IF(J68="","",INDEX(Results!AI:AI,MATCH(A68,Results!V:V,0))) -> 39.62692308 | H68: =IF(G68="",0,1) -> 1 | I68: =INDEX(Picks!AF:AF,MATCH(A68,Picks!AC:AC,0)) -> 30 | J68: Man U draw | K68: =INDEX(Odds!F:F,MATCH(J68,Odds!E:E,0)) -> 32/13 | L68: =INDEX(Odds!G:G,MATCH(J68,Odds!E:E,0)) -> 3.461538462 | M68: =INDEX(Odds!H:H,MATCH(J68,Odds!E:E,0)) -> 0 | N68: 0 | R68: =IF(Odds!E68="","",Odds!E68) -> Fleetwood draw | S68: =INDEX(Odds!F:F,MATCH(R68,Odds!E:E,0)) -> 23/10 | T68: 0 | AC68: Pete Baron | AD68: =INDEX(Picks!F:F,MATCH(AC68,Picks!A:A,0)) -> -10 | AE68: =INDEX(Weekly!I:I,MATCH(AC68,Weekly!E:E,0)) -> 0 | AF68: =IF(AD68="","",_xlfn.RANK.EQ(AD68,TopScores,0)) -> 65 | AH68: Andy Charleston | AI68: =INDEX(Picks!G:G,MATCH(AH68,Picks!A:A,0)) -> 11.21057851 | AJ68: =INDEX(Weekly!I:I,MATCH(AH68,Weekly!E:E,0)) -> 1 | AK68: =IF(AI68="","",_xlfn.RANK.EQ(AI68,TopMaxScores,0)) -> 63
A69: =A68 -> Gareth Powell | B69: Sheff W | C69: 21/20 | D69: 2.05 | E69: √ | J69: Sheff W | K69: =INDEX(Odds!F:F,MATCH(J69,Odds!E:E,0)) -> 21/20 | L69: =INDEX(Odds!G:G,MATCH(J69,Odds!E:E,0)) -> 2.05 | M69: =INDEX(Odds!H:H,MATCH(J69,Odds!E:E,0)) -> 1 | N69: 2.05 | R69: =IF(Odds!E69="","",Odds!E69) -> Gillingham draw | S69: =INDEX(Odds!F:F,MATCH(R69,Odds!E:E,0)) -> 23/10 | T69: 0 | AC69: Ste Bentley | AD69: =INDEX(Picks!F:F,MATCH(AC69,Picks!A:A,0)) -> -10 | AE69: =INDEX(Weekly!I:I,MATCH(AC69,Weekly!E:E,0)) -> 0 | AF69: =IF(AD69="","",_xlfn.RANK.EQ(AD69,TopScores,0)) -> 65 | AH69: Steve Baxter | AI69: =INDEX(Picks!G:G,MATCH(AH69,Picks!A:A,0)) -> 7.808928571 | AJ69: =INDEX(Weekly!I:I,MATCH(AH69,Weekly!E:E,0)) -> 3 | AK69: =IF(AI69="","",_xlfn.RANK.EQ(AI69,TopMaxScores,0)) -> 64
A70: =A68 -> Gareth Powell | B70: Everton | C70: 6/4 | D70: 2.5 | E70: x | J70: Everton | K70: =INDEX(Odds!F:F,MATCH(J70,Odds!E:E,0)) -> 6/4 | L70: =INDEX(Odds!G:G,MATCH(J70,Odds!E:E,0)) -> 2.5 | M70: =INDEX(Odds!H:H,MATCH(J70,Odds!E:E,0)) -> 0 | N70: 0 | R70: =IF(Odds!E70="","",Odds!E70) -> Ipswich draw | S70: =INDEX(Odds!F:F,MATCH(R70,Odds!E:E,0)) -> 23/10 | T70: 1
A71: =Results!B71 -> Gerard Ventom | B71: =IF(J71="","",J71) -> Burnley | C71: =IF(J71="","",K71) -> 31/20 | D71: =IF(J71="","",L71) -> 2.55 | E71: =IF(J71="","",IF(M71=1,"√","x")) -> √ | F71: =IF(J71="",-10,INDEX(Results!T:T,MATCH(A71,Results!V:V,0))) -> -4.45 | G71: =IF(J71="","",INDEX(Results!AI:AI,MATCH(A71,Results!V:V,0))) -> 55.403 | H71: =IF(G71="",0,1) -> 1 | I71: =INDEX(Picks!AF:AF,MATCH(A71,Picks!AC:AC,0)) -> 23 | J71: Burnley | K71: =INDEX(Odds!F:F,MATCH(J71,Odds!E:E,0)) -> 31/20 | L71: =INDEX(Odds!G:G,MATCH(J71,Odds!E:E,0)) -> 2.55 | M71: =INDEX(Odds!H:H,MATCH(J71,Odds!E:E,0)) -> 1 | N71: 2.55 | R71: =IF(Odds!E71="","",Odds!E71) -> MK Dons draw | S71: =INDEX(Odds!F:F,MATCH(R71,Odds!E:E,0)) -> 23/10 | T71: 0
A72: =A71 -> Gerard Ventom | B72: Huddersfield | C72: 9/5 | D72: 2.8 | E72: x | J72: Huddersfield | K72: =INDEX(Odds!F:F,MATCH(J72,Odds!E:E,0)) -> 9/5 | L72: =INDEX(Odds!G:G,MATCH(J72,Odds!E:E,0)) -> 2.8 | M72: =INDEX(Odds!H:H,MATCH(J72,Odds!E:E,0)) -> 0 | N72: 0 | R72: =IF(Odds!E72="","",Odds!E72) -> Oxford draw | S72: =INDEX(Odds!F:F,MATCH(R72,Odds!E:E,0)) -> 23/10 | T72: 0
A73: =A71 -> Gerard Ventom | B73: Barnsley | C73: 27/10 | D73: 3.7 | E73: x | J73: Barnsley | K73: =INDEX(Odds!F:F,MATCH(J73,Odds!E:E,0)) -> 27/10 | L73: =INDEX(Odds!G:G,MATCH(J73,Odds!E:E,0)) -> 3.7 | M73: =INDEX(Odds!H:H,MATCH(J73,Odds!E:E,0)) -> 0 | N73: 0 | R73: =IF(Odds!E73="","",Odds!E73) -> Portsmouth draw | S73: =INDEX(Odds!F:F,MATCH(R73,Odds!E:E,0)) -> 11/4 | T73: 0
A74: =Results!B74 -> Graeme Holmes | B74: Derby | C74: 23/20 | D74: 2.15 | E74: x | F74: =IF(J74="",-10,INDEX(Results!T:T,MATCH(A74,Results!V:V,0))) -> -7 | G74: =IF(J74="","",INDEX(Results!AI:AI,MATCH(A74,Results!V:V,0))) -> 26.3035 | H74: =IF(G74="",0,1) -> 1 | I74: =INDEX(Picks!AF:AF,MATCH(A74,Picks!AC:AC,0)) -> 49 | J74: Derby | K74: =INDEX(Odds!F:F,MATCH(J74,Odds!E:E,0)) -> 23/20 | L74: =INDEX(Odds!G:G,MATCH(J74,Odds!E:E,0)) -> 2.15 | M74: =INDEX(Odds!H:H,MATCH(J74,Odds!E:E,0)) -> 0 | N74: 0 | R74: =IF(Odds!E74="","",Odds!E74) -> Rochdale draw | S74: =INDEX(Odds!F:F,MATCH(R74,Odds!E:E,0)) -> 23/10 | T74: 1
A75: =A74 -> Graeme Holmes | B75: Middlesbro | C75: 13/10 | D75: 2.3 | E75: x | J75: Middlesbro | K75: =INDEX(Odds!F:F,MATCH(J75,Odds!E:E,0)) -> 13/10 | L75: =INDEX(Odds!G:G,MATCH(J75,Odds!E:E,0)) -> 2.3 | M75: =INDEX(Odds!H:H,MATCH(J75,Odds!E:E,0)) -> 0 | N75: 0 | R75: =IF(Odds!E75="","",Odds!E75) -> Rotherham draw | S75: =INDEX(Odds!F:F,MATCH(R75,Odds!E:E,0)) -> 23/10 | T75: 0
A76: =A74 -> Graeme Holmes | B76: Leicester | C76: 13/10 | D76: 2.3 | E76: x | J76: Leicester | K76: =INDEX(Odds!F:F,MATCH(J76,Odds!E:E,0)) -> 13/10 | L76: =INDEX(Odds!G:G,MATCH(J76,Odds!E:E,0)) -> 2.3 | M76: =INDEX(Odds!H:H,MATCH(J76,Odds!E:E,0)) -> 0 | N76: 0 | R76: =IF(Odds!E76="","",Odds!E76) -> Southend draw | S76: =INDEX(Odds!F:F,MATCH(R76,Odds!E:E,0)) -> 23/10 | T76: 0
A77: =Results!B77 -> Graham Miller | B77: Charlton | C77: 21/10 | D77: 3.1 | E77: √ | F77: =IF(J77="",-10,INDEX(Results!T:T,MATCH(A77,Results!V:V,0))) -> 3.48 | G77: =IF(J77="","",INDEX(Results!AI:AI,MATCH(A77,Results!V:V,0))) -> 29.884 | H77: =IF(G77="",0,1) -> 1 | I77: =INDEX(Picks!AF:AF,MATCH(A77,Picks!AC:AC,0)) -> 8 | J77: Charlton | K77: =INDEX(Odds!F:F,MATCH(J77,Odds!E:E,0)) -> 21/10 | L77: =INDEX(Odds!G:G,MATCH(J77,Odds!E:E,0)) -> 3.1 | M77: =INDEX(Odds!H:H,MATCH(J77,Odds!E:E,0)) -> 1 | N77: 3.1 | R77: =IF(Odds!E77="","",Odds!E77) -> Cambridge draw | S77: =INDEX(Odds!F:F,MATCH(R77,Odds!E:E,0)) -> 5/2 | T77: 1
A78: =A77 -> Graham Miller | B78: Fulham | C78: 4/5 | D78: 1.8 | E78: √ | J78: Fulham | K78: =INDEX(Odds!F:F,MATCH(J78,Odds!E:E,0)) -> 4/5 | L78: =INDEX(Odds!G:G,MATCH(J78,Odds!E:E,0)) -> 1.8 | M78: =INDEX(Odds!H:H,MATCH(J78,Odds!E:E,0)) -> 1 | N78: 1.8 | R78: =IF(Odds!E78="","",Odds!E78) -> Cheltenham draw | S78: =INDEX(Odds!F:F,MATCH(R78,Odds!E:E,0)) -> 5/2 | T78: 0
A79: =A77 -> Graham Miller | B79: Middlesbro | C79: 13/10 | D79: 2.3 | E79: x | J79: Middlesbro | K79: =INDEX(Odds!F:F,MATCH(J79,Odds!E:E,0)) -> 13/10 | L79: =INDEX(Odds!G:G,MATCH(J79,Odds!E:E,0)) -> 2.3 | M79: =INDEX(Odds!H:H,MATCH(J79,Odds!E:E,0)) -> 0 | N79: 0 | R79: =IF(Odds!E79="","",Odds!E79) -> Crawley draw | S79: =INDEX(Odds!F:F,MATCH(R79,Odds!E:E,0)) -> 12/5 | T79: 0
A80: =Results!B80 -> Howard Bradley | B80: West Brom | C80: 7/10 | D80: 1.7 | E80: x | F80: =IF(J80="",-10,INDEX(Results!T:T,MATCH(A80,Results!V:V,0))) -> 0.1333333333 | G80: =IF(J80="","",INDEX(Results!AI:AI,MATCH(A80,Results!V:V,0))) -> 13.96 | H80: =IF(G80="",0,1) -> 1 | I80: =INDEX(Picks!AF:AF,MATCH(A80,Picks!AC:AC,0)) -> 14 | J80: West Brom | K80: =INDEX(Odds!F:F,MATCH(J80,Odds!E:E,0)) -> 7/10 | L80: =INDEX(Odds!G:G,MATCH(J80,Odds!E:E,0)) -> 1.7 | M80: =INDEX(Odds!H:H,MATCH(J80,Odds!E:E,0)) -> 0 | N80: 0 | R80: =IF(Odds!E80="","",Odds!E80) -> Grimsby draw | S80: =INDEX(Odds!F:F,MATCH(R80,Odds!E:E,0)) -> 5/2 | T80: 1
A81: =A80 -> Howard Bradley | B81: Portsmouth | C81: 4/6 | D81: 1.666666667 | E81: √ | J81: Portsmouth | K81: =INDEX(Odds!F:F,MATCH(J81,Odds!E:E,0)) -> 4/6 | L81: =INDEX(Odds!G:G,MATCH(J81,Odds!E:E,0)) -> 1.666666667 | M81: =INDEX(Odds!H:H,MATCH(J81,Odds!E:E,0)) -> 1 | N81: 1.666666667 | R81: =IF(Odds!E81="","",Odds!E81) -> Macclesfield draw | S81: =INDEX(Odds!F:F,MATCH(R81,Odds!E:E,0)) -> 12/5 | T81: 0
A82: =A80 -> Howard Bradley | B82: Sheff W | C82: 21/20 | D82: 2.05 | E82: √ | J82: Sheff W | K82: =INDEX(Odds!F:F,MATCH(J82,Odds!E:E,0)) -> 21/20 | L82: =INDEX(Odds!G:G,MATCH(J82,Odds!E:E,0)) -> 2.05 | M82: =INDEX(Odds!H:H,MATCH(J82,Odds!E:E,0)) -> 1 | N82: 2.05 | R82: =IF(Odds!E82="","",Odds!E82) -> Mansfield draw | S82: =INDEX(Odds!F:F,MATCH(R82,Odds!E:E,0)) -> 3/1 | T82: 1
A83: =Results!B83 -> Ian Davies | B83: Burnley draw | C83: 23/10 | D83: 3.3 | E83: x | F83: =IF(J83="",-10,INDEX(Results!T:T,MATCH(A83,Results!V:V,0))) -> -3.636363636 | G83: =IF(J83="","",INDEX(Results!AI:AI,MATCH(A83,Results!V:V,0))) -> 42.66181818 | H83: =IF(G83="",0,1) -> 1 | I83: =INDEX(Picks!AF:AF,MATCH(A83,Picks!AC:AC,0)) -> 18 | J83: Burnley draw | K83: =INDEX(Odds!F:F,MATCH(J83,Odds!E:E,0)) -> 23/10 | L83: =INDEX(Odds!G:G,MATCH(J83,Odds!E:E,0)) -> 3.3 | M83: =INDEX(Odds!H:H,MATCH(J83,Odds!E:E,0)) -> 0 | N83: 0 | R83: =IF(Odds!E83="","",Odds!E83) -> Oldham draw | S83: =INDEX(Odds!F:F,MATCH(R83,Odds!E:E,0)) -> 13/5 | T83: 0
A84: =A83 -> Ian Davies | B84: Leeds | C84: 7/10 | D84: 1.7 | E84: x | J84: Leeds | K84: =INDEX(Odds!F:F,MATCH(J84,Odds!E:E,0)) -> 7/10 | L84: =INDEX(Odds!G:G,MATCH(J84,Odds!E:E,0)) -> 1.7 | M84: =INDEX(Odds!H:H,MATCH(J84,Odds!E:E,0)) -> 0 | N84: 0 | R84: =IF(Odds!E84="","",Odds!E84) -> Plymouth draw | S84: =INDEX(Odds!F:F,MATCH(R84,Odds!E:E,0)) -> 5/2 | T84: 0
A85: =A83 -> Ian Davies | B85: Leicester draw | C85: 26/11 | D85: 3.363636364 | E85: √ | J85: Leicester draw | K85: =INDEX(Odds!F:F,MATCH(J85,Odds!E:E,0)) -> 26/11 | L85: =INDEX(Odds!G:G,MATCH(J85,Odds!E:E,0)) -> 3.363636364 | M85: =INDEX(Odds!H:H,MATCH(J85,Odds!E:E,0)) -> 1 | N85: 3.363636364 | R85: =IF(Odds!E85="","",Odds!E85) -> Port Vale draw | S85: =INDEX(Odds!F:F,MATCH(R85,Odds!E:E,0)) -> 23/10 | T85: 1
A86: =Results!B86 -> Jack Walsh | B86: QPR | C86: 31/20 | D86: 2.55 | E86: x | F86: =IF(J86="",-10,INDEX(Results!T:T,MATCH(A86,Results!V:V,0))) -> -7 | G86: =IF(J86="","",INDEX(Results!AI:AI,MATCH(A86,Results!V:V,0))) -> 28.14545455 | H86: =IF(G86="",0,1) -> 1 | I86: =INDEX(Picks!AF:AF,MATCH(A86,Picks!AC:AC,0)) -> 49 | J86: QPR | K86: =INDEX(Odds!F:F,MATCH(J86,Odds!E:E,0)) -> 31/20 | L86: =INDEX(Odds!G:G,MATCH(J86,Odds!E:E,0)) -> 2.55 | M86: =INDEX(Odds!H:H,MATCH(J86,Odds!E:E,0)) -> 0 | N86: 0 | R86: =IF(Odds!E86="","",Odds!E86) -> Stevenage draw | S86: =INDEX(Odds!F:F,MATCH(R86,Odds!E:E,0)) -> 5/2 | T86: 0
A87: =A86 -> Jack Walsh | B87: Everton | C87: 6/4 | D87: 2.5 | E87: x | J87: Everton | K87: =INDEX(Odds!F:F,MATCH(J87,Odds!E:E,0)) -> 6/4 | L87: =INDEX(Odds!G:G,MATCH(J87,Odds!E:E,0)) -> 2.5 | M87: =INDEX(Odds!H:H,MATCH(J87,Odds!E:E,0)) -> 0 | N87: 0 | R87: =IF(Odds!E87="","",Odds!E87) -> Swindon draw | S87: =INDEX(Odds!F:F,MATCH(R87,Odds!E:E,0)) -> 5/2 | T87: 0
A88: =A86 -> Jack Walsh | B88: Watford | C88: 10/11 | D88: 1.909090909 | E88: x | J88: Watford | K88: =INDEX(Odds!F:F,MATCH(J88,Odds!E:E,0)) -> 10/11 | L88: =INDEX(Odds!G:G,MATCH(J88,Odds!E:E,0)) -> 1.909090909 | M88: =INDEX(Odds!H:H,MATCH(J88,Odds!E:E,0)) -> 0 | N88: 0 | R88: =IF(Odds!E88="","",Odds!E88) -> Walsall draw | S88: =INDEX(Odds!F:F,MATCH(R88,Odds!E:E,0)) -> 12/5 | T88: 1
A89: =Results!B89 -> James Bell | B89: Newcastle | C89: 77/19 | D89: 5.052631579 | E89: x | F89: =IF(J89="",-10,INDEX(Results!T:T,MATCH(A89,Results!V:V,0))) -> -7 | G89: =IF(J89="","",INDEX(Results!AI:AI,MATCH(A89,Results!V:V,0))) -> 114.3236842 | H89: =IF(G89="",0,1) -> 1 | I89: =INDEX(Picks!AF:AF,MATCH(A89,Picks!AC:AC,0)) -> 49 | J89: Newcastle | K89: =INDEX(Odds!F:F,MATCH(J89,Odds!E:E,0)) -> 77/19 | L89: =INDEX(Odds!G:G,MATCH(J89,Odds!E:E,0)) -> 5.052631579 | M89: =INDEX(Odds!H:H,MATCH(J89,Odds!E:E,0)) -> 0 | N89: 0 | R89: =IF(Odds!E89="","",Odds!E89) -> Leicester draw | S89: =INDEX(Odds!F:F,MATCH(R89,Odds!E:E,0)) -> 26/11 | T89: 1
A90: =A89 -> James Bell | B90: Grimsby | C90: 23/10 | D90: 3.3 | E90: x | J90: Grimsby | K90: =INDEX(Odds!F:F,MATCH(J90,Odds!E:E,0)) -> 23/10 | L90: =INDEX(Odds!G:G,MATCH(J90,Odds!E:E,0)) -> 3.3 | M90: =INDEX(Odds!H:H,MATCH(J90,Odds!E:E,0)) -> 0 | N90: 0 | R90: =IF(Odds!E90="","",Odds!E90) -> Man U draw | S90: =INDEX(Odds!F:F,MATCH(R90,Odds!E:E,0)) -> 32/13 | T90: 0
A91: =A89 -> James Bell | B91: Wigan | C91: 27/10 | D91: 3.7 | E91: x | J91: Wigan | K91: =INDEX(Odds!F:F,MATCH(J91,Odds!E:E,0)) -> 27/10 | L91: =INDEX(Odds!G:G,MATCH(J91,Odds!E:E,0)) -> 3.7 | M91: =INDEX(Odds!H:H,MATCH(J91,Odds!E:E,0)) -> 0 | N91: 0 | R91: =IF(Odds!E91="","",Odds!E91) -> Newcastle draw | S91: =INDEX(Odds!F:F,MATCH(R91,Odds!E:E,0)) -> 29/10 | T91: 0
A92: =Results!B92 -> Joel Bent | B92: Liverpool draw | C92: 7/1 | D92: 8 | E92: x | F92: =IF(J92="",-10,INDEX(Results!T:T,MATCH(A92,Results!V:V,0))) -> -7 | G92: =IF(J92="","",INDEX(Results!AI:AI,MATCH(A92,Results!V:V,0))) -> 126.6625 | H92: =IF(G92="",0,1) -> 1 | I92: =INDEX(Picks!AF:AF,MATCH(A92,Picks!AC:AC,0)) -> 49 | J92: Liverpool draw | K92: =INDEX(Odds!F:F,MATCH(J92,Odds!E:E,0)) -> 7/1 | L92: =INDEX(Odds!G:G,MATCH(J92,Odds!E:E,0)) -> 8 | M92: =INDEX(Odds!H:H,MATCH(J92,Odds!E:E,0)) -> 0 | N92: 0 | R92: =IF(Odds!E92="","",Odds!E92) ->  | S92: =INDEX(Odds!F:F,MATCH(R92,Odds!E:E,0)) -> 
A93: =A92 -> Joel Bent | B93: Carlisle | C93: 11/4 | D93: 3.75 | E93: x | J93: Carlisle | K93: =INDEX(Odds!F:F,MATCH(J93,Odds!E:E,0)) -> 11/4 | L93: =INDEX(Odds!G:G,MATCH(J93,Odds!E:E,0)) -> 3.75 | M93: =INDEX(Odds!H:H,MATCH(J93,Odds!E:E,0)) -> 0 | N93: 0 | R93: =IF(Odds!E93="","",Odds!E93) ->  | S93: =INDEX(Odds!F:F,MATCH(R93,Odds!E:E,0)) -> 
A94: =A92 -> Joel Bent | B94: Derby | C94: 23/20 | D94: 2.15 | E94: x | J94: Derby | K94: =INDEX(Odds!F:F,MATCH(J94,Odds!E:E,0)) -> 23/20 | L94: =INDEX(Odds!G:G,MATCH(J94,Odds!E:E,0)) -> 2.15 | M94: =INDEX(Odds!H:H,MATCH(J94,Odds!E:E,0)) -> 0 | N94: 0 | R94: =IF(Odds!E94="","",Odds!E94) -> Norwich | S94: =INDEX(Odds!F:F,MATCH(R94,Odds!E:E,0)) -> 18/1 | T94: =IF(V2<X2,1,0) -> 0
A95: =Results!B95 -> John Evans | B95: Wigan | C95: 27/10 | D95: 3.7 | E95: x | F95: =IF(J95="",-10,INDEX(Results!T:T,MATCH(A95,Results!V:V,0))) -> -5.333333333 | G95: =IF(J95="","",INDEX(Results!AI:AI,MATCH(A95,Results!V:V,0))) -> 36.49333333 | H95: =IF(G95="",0,1) -> 1 | I95: =INDEX(Picks!AF:AF,MATCH(A95,Picks!AC:AC,0)) -> 43 | J95: Wigan | K95: =INDEX(Odds!F:F,MATCH(J95,Odds!E:E,0)) -> 27/10 | L95: =INDEX(Odds!G:G,MATCH(J95,Odds!E:E,0)) -> 3.7 | M95: =INDEX(Odds!H:H,MATCH(J95,Odds!E:E,0)) -> 0 | N95: 0 | R95: =IF(Odds!E95="","",Odds!E95) -> Sheff U | S95: =INDEX(Odds!F:F,MATCH(R95,Odds!E:E,0)) -> 3/1 | T95: 0
A96: =A95 -> John Evans | B96: QPR | C96: 31/20 | D96: 2.55 | E96: x | J96: QPR | K96: =INDEX(Odds!F:F,MATCH(J96,Odds!E:E,0)) -> 31/20 | L96: =INDEX(Odds!G:G,MATCH(J96,Odds!E:E,0)) -> 2.55 | M96: =INDEX(Odds!H:H,MATCH(J96,Odds!E:E,0)) -> 0 | N96: 0 | R96: =IF(Odds!E96="","",Odds!E96) -> Southampton | S96: =INDEX(Odds!F:F,MATCH(R96,Odds!E:E,0)) -> 9/5 | T96: 0
A97: =A95 -> John Evans | B97: Portsmouth | C97: 4/6 | D97: 1.666666667 | E97: √ | J97: Portsmouth | K97: =INDEX(Odds!F:F,MATCH(J97,Odds!E:E,0)) -> 4/6 | L97: =INDEX(Odds!G:G,MATCH(J97,Odds!E:E,0)) -> 1.666666667 | M97: =INDEX(Odds!H:H,MATCH(J97,Odds!E:E,0)) -> 1 | N97: 1.666666667 | R97: =IF(Odds!E97="","",Odds!E97) -> Everton | S97: =INDEX(Odds!F:F,MATCH(R97,Odds!E:E,0)) -> 6/4 | T97: 0
A98: =Results!B98 -> John Robinson | B98: West Ham draw | C98: 5/1 | D98: 6 | E98: x | F98: =IF(J98="",-10,INDEX(Results!T:T,MATCH(A98,Results!V:V,0))) -> 1.018181818 | G98: =IF(J98="","",INDEX(Results!AI:AI,MATCH(A98,Results!V:V,0))) -> 55.12727273 | H98: =IF(G98="",0,1) -> 1 | I98: =INDEX(Picks!AF:AF,MATCH(A98,Picks!AC:AC,0)) -> 12 | J98: West Ham draw | K98: =INDEX(Odds!F:F,MATCH(J98,Odds!E:E,0)) -> 5/1 | L98: =INDEX(Odds!G:G,MATCH(J98,Odds!E:E,0)) -> 6 | M98: =INDEX(Odds!H:H,MATCH(J98,Odds!E:E,0)) -> 0 | N98: =L98*M98 -> 0 | R98: =IF(Odds!E98="","",Odds!E98) -> Villa | S98: =INDEX(Odds!F:F,MATCH(R98,Odds!E:E,0)) -> 10/1 | T98: 0
A99: =A98 -> John Robinson | B99: Preston | C99: 11/10 | D99: 2.1 | E99: √ | J99: Preston | K99: =INDEX(Odds!F:F,MATCH(J99,Odds!E:E,0)) -> 11/10 | L99: =INDEX(Odds!G:G,MATCH(J99,Odds!E:E,0)) -> 2.1 | M99: =INDEX(Odds!H:H,MATCH(J99,Odds!E:E,0)) -> 1 | N99: 2.1 | R99: =IF(Odds!E99="","",Odds!E99) -> Brighton | S99: =INDEX(Odds!F:F,MATCH(R99,Odds!E:E,0)) -> 10/3 | T99: 1
A100: =A98 -> John Robinson | B100: Fleetwood | C100: 10/11 | D100: 1.909090909 | E100: √ | J100: Fleetwood | K100: =INDEX(Odds!F:F,MATCH(J100,Odds!E:E,0)) -> 10/11 | L100: =INDEX(Odds!G:G,MATCH(J100,Odds!E:E,0)) -> 1.909090909 | M100: =INDEX(Odds!H:H,MATCH(J100,Odds!E:E,0)) -> 1 | N100: 1.909090909 | R100: =IF(Odds!E100="","",Odds!E100) -> Man C | S100: =INDEX(Odds!F:F,MATCH(R100,Odds!E:E,0)) -> 1/4 | T100: 1
A101: =Results!B101 -> John Ronan | B101: Charlton | C101: 21/10 | D101: 3.1 | E101: √ | F101: =IF(J101="",-10,INDEX(Results!T:T,MATCH(A101,Results!V:V,0))) -> -3.9 | G101: =IF(J101="","",INDEX(Results!AI:AI,MATCH(A101,Results!V:V,0))) -> 45.8765625 | H101: =IF(G101="",0,1) -> 1 | I101: =INDEX(Picks!AF:AF,MATCH(A101,Picks!AC:AC,0)) -> 21 | J101: Charlton | K101: =INDEX(Odds!F:F,MATCH(J101,Odds!E:E,0)) -> 21/10 | L101: =INDEX(Odds!G:G,MATCH(J101,Odds!E:E,0)) -> 3.1 | M101: =INDEX(Odds!H:H,MATCH(J101,Odds!E:E,0)) -> 1 | N101: 3.1 | R101: =IF(Odds!E101="","",Odds!E101) -> Bristol C | S101: =INDEX(Odds!F:F,MATCH(R101,Odds!E:E,0)) -> 21/10 | T101: 0
A102: =A101 -> John Ronan | B102: Gillingham | C102: 13/8 | D102: 2.625 | E102: x | J102: Gillingham | K102: =INDEX(Odds!F:F,MATCH(J102,Odds!E:E,0)) -> 13/8 | L102: =INDEX(Odds!G:G,MATCH(J102,Odds!E:E,0)) -> 2.625 | M102: =INDEX(Odds!H:H,MATCH(J102,Odds!E:E,0)) -> 0 | N102: 0 | R102: =IF(Odds!E102="","",Odds!E102) -> Luton | S102: =INDEX(Odds!F:F,MATCH(R102,Odds!E:E,0)) -> 19/5 | T102: 0
A103: =A101 -> John Ronan | B103: Southend | C103: 13/8 | D103: 2.625 | E103: x | J103: Southend | K103: =INDEX(Odds!F:F,MATCH(J103,Odds!E:E,0)) -> 13/8 | L103: =INDEX(Odds!G:G,MATCH(J103,Odds!E:E,0)) -> 2.625 | M103: =INDEX(Odds!H:H,MATCH(J103,Odds!E:E,0)) -> 0 | N103: 0 | R103: =IF(Odds!E103="","",Odds!E103) -> Stoke | S103: =INDEX(Odds!F:F,MATCH(R103,Odds!E:E,0)) -> 13/10 | T103: 0
A104: =Results!B104 -> Kei Lok Ma | B104: Burnley | C104: 31/20 | D104: 2.55 | E104: √ | F104: =IF(J104="",-10,INDEX(Results!T:T,MATCH(A104,Results!V:V,0))) -> 7.265 | G104: =IF(J104="","",INDEX(Results!AI:AI,MATCH(A104,Results!V:V,0))) -> 42.3745 | H104: =IF(G104="",0,1) -> 1 | I104: =INDEX(Picks!AF:AF,MATCH(A104,Picks!AC:AC,0)) -> 5 | J104: Burnley | K104: =INDEX(Odds!F:F,MATCH(J104,Odds!E:E,0)) -> 31/20 | L104: =INDEX(Odds!G:G,MATCH(J104,Odds!E:E,0)) -> 2.55 | M104: =INDEX(Odds!H:H,MATCH(J104,Odds!E:E,0)) -> 1 | N104: 2.55 | R104: =IF(Odds!E104="","",Odds!E104) -> Swansea | S104: =INDEX(Odds!F:F,MATCH(R104,Odds!E:E,0)) -> 12/5 | T104: 0
A105: =A104 -> Kei Lok Ma | B105: Palace draw | C105: 23/10 | D105: 3.3 | E105: √ | J105: Palace draw | K105: =INDEX(Odds!F:F,MATCH(J105,Odds!E:E,0)) -> 23/10 | L105: =INDEX(Odds!G:G,MATCH(J105,Odds!E:E,0)) -> 3.3 | M105: =INDEX(Odds!H:H,MATCH(J105,Odds!E:E,0)) -> 1 | N105: 3.3 | R105: =IF(Odds!E105="","",Odds!E105) -> Blackburn | S105: =INDEX(Odds!F:F,MATCH(R105,Odds!E:E,0)) -> 17/5 | T105: 0
A106: =A104 -> Kei Lok Ma | B106: Leicester | C106: 13/10 | D106: 2.3 | E106: x | J106: Leicester | K106: =INDEX(Odds!F:F,MATCH(J106,Odds!E:E,0)) -> 13/10 | L106: =INDEX(Odds!G:G,MATCH(J106,Odds!E:E,0)) -> 2.3 | M106: =INDEX(Odds!H:H,MATCH(J106,Odds!E:E,0)) -> 0 | N106: 0 | R106: =IF(Odds!E106="","",Odds!E106) -> Reading | S106: =INDEX(Odds!F:F,MATCH(R106,Odds!E:E,0)) -> 27/10 | T106: 0
A107: =Results!B107 -> Kevin Carter | B107: Spurs draw | C107: 24/5 | D107: 5.8 | E107: x | F107: =IF(J107="",-10,INDEX(Results!T:T,MATCH(A107,Results!V:V,0))) -> -7 | G107: =IF(J107="","",INDEX(Results!AI:AI,MATCH(A107,Results!V:V,0))) -> 138.608 | H107: =IF(G107="",0,1) -> 1 | I107: =INDEX(Picks!AF:AF,MATCH(A107,Picks!AC:AC,0)) -> 49 | J107: Spurs draw | K107: =INDEX(Odds!F:F,MATCH(J107,Odds!E:E,0)) -> 24/5 | L107: =INDEX(Odds!G:G,MATCH(J107,Odds!E:E,0)) -> 5.8 | M107: =INDEX(Odds!H:H,MATCH(J107,Odds!E:E,0)) -> 0 | N107: 0 | R107: =IF(Odds!E107="","",Odds!E107) -> Forest | S107: =INDEX(Odds!F:F,MATCH(R107,Odds!E:E,0)) -> 4/1 | T107: 0
A108: =A107 -> Kevin Carter | B108: Watford draw | C108: 12/5 | D108: 3.4 | E108: x | J108: Watford draw | K108: =INDEX(Odds!F:F,MATCH(J108,Odds!E:E,0)) -> 12/5 | L108: =INDEX(Odds!G:G,MATCH(J108,Odds!E:E,0)) -> 3.4 | M108: =INDEX(Odds!H:H,MATCH(J108,Odds!E:E,0)) -> 0 | N108: 0 | R108: =IF(Odds!E108="","",Odds!E108) -> Brentford | S108: =INDEX(Odds!F:F,MATCH(R108,Odds!E:E,0)) -> 21/10 | T108: 1
A109: =A107 -> Kevin Carter | B109: Newcastle draw | C109: 29/10 | D109: 3.9 | E109: x | J109: Newcastle draw | K109: =INDEX(Odds!F:F,MATCH(J109,Odds!E:E,0)) -> 29/10 | L109: =INDEX(Odds!G:G,MATCH(J109,Odds!E:E,0)) -> 3.9 | M109: =INDEX(Odds!H:H,MATCH(J109,Odds!E:E,0)) -> 0 | N109: 0 | R109: =IF(Odds!E109="","",Odds!E109) -> Wigan | S109: =INDEX(Odds!F:F,MATCH(R109,Odds!E:E,0)) -> 27/10 | T109: 0
A110: =Results!B110 -> Lennie Bow | B110: =IF(J110="","",J110) -> West Brom | C110: =IF(J110="","",K110) -> 7/10 | D110: =IF(J110="","",L110) -> 1.7 | E110: x | F110: =IF(J110="",-10,INDEX(Results!T:T,MATCH(A110,Results!V:V,0))) -> -4.846153846 | G110: =IF(J110="","",INDEX(Results!AI:AI,MATCH(A110,Results!V:V,0))) -> 14.99153846 | H110: =IF(G110="",0,1) -> 1 | I110: =INDEX(Picks!AF:AF,MATCH(A110,Picks!AC:AC,0)) -> 29 | J110: West Brom | K110: =INDEX(Odds!F:F,MATCH(J110,Odds!E:E,0)) -> 7/10 | L110: =INDEX(Odds!G:G,MATCH(J110,Odds!E:E,0)) -> 1.7 | M110: =INDEX(Odds!H:H,MATCH(J110,Odds!E:E,0)) -> 0 | N110: 0 | R110: =IF(Odds!E110="","",Odds!E110) -> Huddersfield | S110: =INDEX(Odds!F:F,MATCH(R110,Odds!E:E,0)) -> 9/5 | T110: 0
A111: =A110 -> Lennie Bow | B111: MK Dons | C111: 15/13 | D111: 2.153846154 | E111: √ | J111: MK Dons | K111: =INDEX(Odds!F:F,MATCH(J111,Odds!E:E,0)) -> 15/13 | L111: =INDEX(Odds!G:G,MATCH(J111,Odds!E:E,0)) -> 2.153846154 | M111: =INDEX(Odds!H:H,MATCH(J111,Odds!E:E,0)) -> 1 | N111: 2.153846154 | R111: =IF(Odds!E111="","",Odds!E111) -> Barnsley | S111: =INDEX(Odds!F:F,MATCH(R111,Odds!E:E,0)) -> 27/10 | T111: 0
A112: =A110 -> Lennie Bow | B112: Mansfield | C112: 7/10 | D112: 1.7 | E112: x | J112: Mansfield | K112: =INDEX(Odds!F:F,MATCH(J112,Odds!E:E,0)) -> 7/10 | L112: =INDEX(Odds!G:G,MATCH(J112,Odds!E:E,0)) -> 1.7 | M112: =INDEX(Odds!H:H,MATCH(J112,Odds!E:E,0)) -> 0 | N112: 0 | R112: =IF(Odds!E112="","",Odds!E112) -> Millwall | S112: =INDEX(Odds!F:F,MATCH(R112,Odds!E:E,0)) -> 17/4 | T112: 0
A113: =Results!B113 -> Lewis Buckley | B113: Bournemouth | C113: 10/11 | D113: 1.909090909 | E113: x | F113: =IF(J113="",-10,INDEX(Results!T:T,MATCH(A113,Results!V:V,0))) -> -5.333333333 | G113: =IF(J113="","",INDEX(Results!AI:AI,MATCH(A113,Results!V:V,0))) -> 12.94545455 | H113: =IF(G113="",0,1) -> 1 | I113: =INDEX(Picks!AF:AF,MATCH(A113,Picks!AC:AC,0)) -> 43 | J113: Bournemouth | K113: =INDEX(Odds!F:F,MATCH(J113,Odds!E:E,0)) -> 10/11 | L113: =INDEX(Odds!G:G,MATCH(J113,Odds!E:E,0)) -> 1.909090909 | M113: =INDEX(Odds!H:H,MATCH(J113,Odds!E:E,0)) -> 0 | N113: 0 | R113: =IF(Odds!E113="","",Odds!E113) -> Wycombe | S113: =INDEX(Odds!F:F,MATCH(R113,Odds!E:E,0)) -> 21/10 | T113: 0
A114: =A113 -> Lewis Buckley | B114: West Brom | C114: 7/10 | D114: 1.7 | E114: x | J114: West Brom | K114: =INDEX(Odds!F:F,MATCH(J114,Odds!E:E,0)) -> 7/10 | L114: =INDEX(Odds!G:G,MATCH(J114,Odds!E:E,0)) -> 1.7 | M114: =INDEX(Odds!H:H,MATCH(J114,Odds!E:E,0)) -> 0 | N114: 0 | R114: =IF(Odds!E114="","",Odds!E114) -> Wimbledon | S114: =INDEX(Odds!F:F,MATCH(R114,Odds!E:E,0)) -> 3/1 | T114: 0
A115: =A113 -> Lewis Buckley | B115: Portsmouth | C115: 4/6 | D115: 1.666666667 | E115: √ | J115: Portsmouth | K115: =INDEX(Odds!F:F,MATCH(J115,Odds!E:E,0)) -> 4/6 | L115: =INDEX(Odds!G:G,MATCH(J115,Odds!E:E,0)) -> 1.666666667 | M115: =INDEX(Odds!H:H,MATCH(J115,Odds!E:E,0)) -> 1 | N115: 1.666666667 | R115: =IF(Odds!E115="","",Odds!E115) -> Burton | S115: =INDEX(Odds!F:F,MATCH(R115,Odds!E:E,0)) -> 6/4 | T115: 1
A116: =Results!B116 -> Liam Wah | B116: Palace draw | C116: 23/10 | D116: 3.3 | E116: √ | F116: =IF(J116="",-10,INDEX(Results!T:T,MATCH(A116,Results!V:V,0))) -> -3.7 | G116: =IF(J116="","",INDEX(Results!AI:AI,MATCH(A116,Results!V:V,0))) -> 61.54423077 | H116: =IF(G116="",0,1) -> 1 | I116: =INDEX(Picks!AF:AF,MATCH(A116,Picks!AC:AC,0)) -> 19 | J116: Palace draw | K116: =INDEX(Odds!F:F,MATCH(J116,Odds!E:E,0)) -> 23/10 | L116: =INDEX(Odds!G:G,MATCH(J116,Odds!E:E,0)) -> 3.3 | M116: =INDEX(Odds!H:H,MATCH(J116,Odds!E:E,0)) -> 1 | N116: 3.3 | R116: =IF(Odds!E116="","",Odds!E116) -> Sunderland | S116: =INDEX(Odds!F:F,MATCH(R116,Odds!E:E,0)) -> 9/5 | T116: 0
A117: =A116 -> Liam Wah | B117: Rochdale | C117: 13/8 | D117: 2.625 | E117: x | J117: Rochdale | K117: =INDEX(Odds!F:F,MATCH(J117,Odds!E:E,0)) -> 13/8 | L117: =INDEX(Odds!G:G,MATCH(J117,Odds!E:E,0)) -> 2.625 | M117: =INDEX(Odds!H:H,MATCH(J117,Odds!E:E,0)) -> 0 | N117: 0 | R117: =IF(Odds!E117="","",Odds!E117) -> Shrewsbury | S117: =INDEX(Odds!F:F,MATCH(R117,Odds!E:E,0)) -> 11/5 | T117: 0
A118: =A116 -> Liam Wah | B118: Man U draw | C118: 32/13 | D118: 3.461538462 | E118: x | J118: Man U draw | K118: =INDEX(Odds!F:F,MATCH(J118,Odds!E:E,0)) -> 32/13 | L118: =INDEX(Odds!G:G,MATCH(J118,Odds!E:E,0)) -> 3.461538462 | M118: =INDEX(Odds!H:H,MATCH(J118,Odds!E:E,0)) -> 0 | N118: 0 | R118: =IF(Odds!E118="","",Odds!E118) -> Peterborough | S118: =INDEX(Odds!F:F,MATCH(R118,Odds!E:E,0)) -> 13/8 | T118: 0
A119: =Results!B119 -> Mal Stott | B119: Bristol r | C119: 6/5 | D119: 2.2 | E119: x | F119: =IF(J119="",-10,INDEX(Results!T:T,MATCH(A119,Results!V:V,0))) -> -0.5333333333 | G119: =IF(J119="","",INDEX(Results!AI:AI,MATCH(A119,Results!V:V,0))) -> 15.89333333 | H119: =IF(G119="",0,1) -> 1 | I119: =INDEX(Picks!AF:AF,MATCH(A119,Picks!AC:AC,0)) -> 15 | J119: Bristol r | K119: =INDEX(Odds!F:F,MATCH(J119,Odds!E:E,0)) -> 6/5 | L119: =INDEX(Odds!G:G,MATCH(J119,Odds!E:E,0)) -> 2.2 | M119: =INDEX(Odds!H:H,MATCH(J119,Odds!E:E,0)) -> 0 | N119: 0 | R119: =IF(Odds!E119="","",Odds!E119) -> Tranmere | S119: =INDEX(Odds!F:F,MATCH(R119,Odds!E:E,0)) -> 18/5 | T119: 0
A120: =A119 -> Mal Stott | B120: Portsmouth | C120: 4/6 | D120: 1.666666667 | E120: √ | J120: Portsmouth | K120: =INDEX(Odds!F:F,MATCH(J120,Odds!E:E,0)) -> 4/6 | L120: =INDEX(Odds!G:G,MATCH(J120,Odds!E:E,0)) -> 1.666666667 | M120: =INDEX(Odds!H:H,MATCH(J120,Odds!E:E,0)) -> 1 | N120: 1.666666667 | R120: =IF(Odds!E120="","",Odds!E120) -> Doncaster | S120: =INDEX(Odds!F:F,MATCH(R120,Odds!E:E,0)) -> 6/4 | T120: 0
A121: =A119 -> Mal Stott | B121: Fulham | C121: 4/5 | D121: 1.8 | E121: √ | J121: Fulham | K121: =INDEX(Odds!F:F,MATCH(J121,Odds!E:E,0)) -> 4/5 | L121: =INDEX(Odds!G:G,MATCH(J121,Odds!E:E,0)) -> 1.8 | M121: =INDEX(Odds!H:H,MATCH(J121,Odds!E:E,0)) -> 1 | N121: 1.8 | R121: =IF(Odds!E121="","",Odds!E121) -> Lincoln | S121: =INDEX(Odds!F:F,MATCH(R121,Odds!E:E,0)) -> 23/10 | T121: 1
A122: =Results!B122 -> Mark Bunn | B122: Middlesbro | C122: 13/10 | D122: 2.3 | E122: x | F122: =IF(J122="",-10,INDEX(Results!T:T,MATCH(A122,Results!V:V,0))) -> -4.5 | G122: =IF(J122="","",INDEX(Results!AI:AI,MATCH(A122,Results!V:V,0))) -> 33.0025 | H122: =IF(G122="",0,1) -> 1 | I122: =INDEX(Picks!AF:AF,MATCH(A122,Picks!AC:AC,0)) -> 26 | J122: Middlesbro | K122: =INDEX(Odds!F:F,MATCH(J122,Odds!E:E,0)) -> 13/10 | L122: =INDEX(Odds!G:G,MATCH(J122,Odds!E:E,0)) -> 2.3 | M122: =INDEX(Odds!H:H,MATCH(J122,Odds!E:E,0)) -> 0 | N122: 0 | R122: =IF(Odds!E122="","",Odds!E122) -> Blackpool | S122: =INDEX(Odds!F:F,MATCH(R122,Odds!E:E,0)) -> 6/4 | T122: 1
A123: =A122 -> Mark Bunn | B123: QPR | C123: 31/20 | D123: 2.55 | E123: x | J123: QPR | K123: =INDEX(Odds!F:F,MATCH(J123,Odds!E:E,0)) -> 31/20 | L123: =INDEX(Odds!G:G,MATCH(J123,Odds!E:E,0)) -> 2.55 | M123: =INDEX(Odds!H:H,MATCH(J123,Odds!E:E,0)) -> 0 | N123: 0 | R123: =IF(Odds!E123="","",Odds!E123) -> Newport | S123: =INDEX(Odds!F:F,MATCH(R123,Odds!E:E,0)) -> 13/8 | T123: 0
A124: =A122 -> Mark Bunn | B124: Oxford | C124: 6/4 | D124: 2.5 | E124: √ | J124: Oxford | K124: =INDEX(Odds!F:F,MATCH(J124,Odds!E:E,0)) -> 6/4 | L124: =INDEX(Odds!G:G,MATCH(J124,Odds!E:E,0)) -> 2.5 | M124: =INDEX(Odds!H:H,MATCH(J124,Odds!E:E,0)) -> 1 | N124: 2.5 | R124: =IF(Odds!E124="","",Odds!E124) -> Scunthorpe | S124: =INDEX(Odds!F:F,MATCH(R124,Odds!E:E,0)) -> 16/11 | T124: 0
A125: =Results!B125 -> Mark Saunders | B125: Bournemouth | C125: 10/11 | D125: 1.909090909 | E125: x | F125: =IF(J125="",-10,INDEX(Results!T:T,MATCH(A125,Results!V:V,0))) -> -5.2 | G125: =IF(J125="","",INDEX(Results!AI:AI,MATCH(A125,Results!V:V,0))) -> 18.88 | H125: =IF(G125="",0,1) -> 1 | I125: =INDEX(Picks!AF:AF,MATCH(A125,Picks!AC:AC,0)) -> 37 | J125: Bournemouth | K125: =INDEX(Odds!F:F,MATCH(J125,Odds!E:E,0)) -> 10/11 | L125: =INDEX(Odds!G:G,MATCH(J125,Odds!E:E,0)) -> 1.909090909 | M125: =INDEX(Odds!H:H,MATCH(J125,Odds!E:E,0)) -> 0 | N125: 0 | R125: =IF(Odds!E125="","",Odds!E125) -> Salford | S125: =INDEX(Odds!F:F,MATCH(R125,Odds!E:E,0)) -> 5/4 | T125: 0
A126: =A125 -> Mark Saunders | B126: Fulham | C126: 4/5 | D126: 1.8 | E126: √ | J126: Fulham | K126: =INDEX(Odds!F:F,MATCH(J126,Odds!E:E,0)) -> 4/5 | L126: =INDEX(Odds!G:G,MATCH(J126,Odds!E:E,0)) -> 1.8 | M126: =INDEX(Odds!H:H,MATCH(J126,Odds!E:E,0)) -> 1 | N126: 1.8 | R126: =IF(Odds!E126="","",Odds!E126) -> Bradford | S126: =INDEX(Odds!F:F,MATCH(R126,Odds!E:E,0)) -> 6/5 | T126: 0
A127: =A125 -> Mark Saunders | B127: Middlesbro | C127: 13/10 | D127: 2.3 | E127: x | J127: Middlesbro | K127: =INDEX(Odds!F:F,MATCH(J127,Odds!E:E,0)) -> 13/10 | L127: =INDEX(Odds!G:G,MATCH(J127,Odds!E:E,0)) -> 2.3 | M127: =INDEX(Odds!H:H,MATCH(J127,Odds!E:E,0)) -> 0 | N127: 0 | R127: =IF(Odds!E127="","",Odds!E127) -> Orient | S127: =INDEX(Odds!F:F,MATCH(R127,Odds!E:E,0)) -> 7/5 | T127: 0
A128: =Results!B128 -> Martin Molyneux | B128: Leicester | C128: 13/10 | D128: 2.3 | E128: x | F128: =IF(J128="",-10,INDEX(Results!T:T,MATCH(A128,Results!V:V,0))) -> -7 | G128: =IF(J128="","",INDEX(Results!AI:AI,MATCH(A128,Results!V:V,0))) -> 38.37769231 | H128: =IF(G128="",0,1) -> 1 | I128: =INDEX(Picks!AF:AF,MATCH(A128,Picks!AC:AC,0)) -> 49 | J128: Leicester | K128: =INDEX(Odds!F:F,MATCH(J128,Odds!E:E,0)) -> 13/10 | L128: =INDEX(Odds!G:G,MATCH(J128,Odds!E:E,0)) -> 2.3 | M128: =INDEX(Odds!H:H,MATCH(J128,Odds!E:E,0)) -> 0 | N128: 0 | R128: =IF(Odds!E128="","",Odds!E128) -> Morecambe | S128: =INDEX(Odds!F:F,MATCH(R128,Odds!E:E,0)) -> 22/5 | T128: 0
A129: =A128 -> Martin Molyneux | B129: Derby | C129: 23/20 | D129: 2.15 | E129: x | J129: Derby | K129: =INDEX(Odds!F:F,MATCH(J129,Odds!E:E,0)) -> 23/20 | L129: =INDEX(Odds!G:G,MATCH(J129,Odds!E:E,0)) -> 2.15 | M129: =INDEX(Odds!H:H,MATCH(J129,Odds!E:E,0)) -> 0 | N129: 0 | R129: =IF(Odds!E129="","",Odds!E129) -> Crewe | S129: =INDEX(Odds!F:F,MATCH(R129,Odds!E:E,0)) -> 19/10 | T129: 1
A130: =A128 -> Martin Molyneux | B130: Man U Draw | C130: 32/13 | D130: 3.461538462 | E130: x | J130: Man U Draw | K130: =INDEX(Odds!F:F,MATCH(J130,Odds!E:E,0)) -> 32/13 | L130: =INDEX(Odds!G:G,MATCH(J130,Odds!E:E,0)) -> 3.461538462 | M130: =INDEX(Odds!H:H,MATCH(J130,Odds!E:E,0)) -> 0 | N130: 0 | R130: =IF(Odds!E130="","",Odds!E130) -> Colchester | S130: =INDEX(Odds!F:F,MATCH(R130,Odds!E:E,0)) -> 5/2 | T130: 0
A131: =Results!B131 -> Martin Tarbuck | B131: Walsall | C131: 11/8 | D131: 2.375 | E131: =IF(J131="","",IF(M131=1,"√","x")) -> x | F131: =IF(J131="",-10,INDEX(Results!T:T,MATCH(A131,Results!V:V,0))) -> -0.9125 | G131: =IF(J131="","",INDEX(Results!AI:AI,MATCH(A131,Results!V:V,0))) -> 15.9203125 | H131: =IF(G131="",0,1) -> 1 | I131: =INDEX(Picks!AF:AF,MATCH(A131,Picks!AC:AC,0)) -> 16 | J131: Walsall | K131: =INDEX(Odds!F:F,MATCH(J131,Odds!E:E,0)) -> 11/8 | L131: =INDEX(Odds!G:G,MATCH(J131,Odds!E:E,0)) -> 2.375 | M131: =INDEX(Odds!H:H,MATCH(J131,Odds!E:E,0)) -> 0 | N131: 0 | R131: =IF(Odds!E131="","",Odds!E131) -> Northampton | S131: =INDEX(Odds!F:F,MATCH(R131,Odds!E:E,0)) -> 9/5 | T131: 0
A132: =A131 -> Martin Tarbuck | B132: Plymouth | C132: 23/20 | D132: 2.15 | E132: √ | J132: Plymouth | K132: =INDEX(Odds!F:F,MATCH(J132,Odds!E:E,0)) -> 23/20 | L132: =INDEX(Odds!G:G,MATCH(J132,Odds!E:E,0)) -> 2.15 | M132: =INDEX(Odds!H:H,MATCH(J132,Odds!E:E,0)) -> 1 | N132: 2.15 | R132: =IF(Odds!E132="","",Odds!E132) -> Exeter | S132: =INDEX(Odds!F:F,MATCH(R132,Odds!E:E,0)) -> 19/10 | T132: 1
A133: =A131 -> Martin Tarbuck | B133: Man C | C133: 1/4 | D133: 1.25 | E133: √ | J133: Man C | K133: =INDEX(Odds!F:F,MATCH(J133,Odds!E:E,0)) -> 1/4 | L133: =INDEX(Odds!G:G,MATCH(J133,Odds!E:E,0)) -> 1.25 | M133: =INDEX(Odds!H:H,MATCH(J133,Odds!E:E,0)) -> 1 | N133: 1.25 | R133: =IF(Odds!E133="","",Odds!E133) -> Carlisle | S133: =INDEX(Odds!F:F,MATCH(R133,Odds!E:E,0)) -> 11/4 | T133: 0
A134: =Results!B134 -> Mike Penk | B134: Portsmouth | C134: 4/6 | D134: 1.666666667 | E134: √ | F134: =IF(J134="",-10,INDEX(Results!T:T,MATCH(A134,Results!V:V,0))) -> 2.933333333 | G134: =IF(J134="","",INDEX(Results!AI:AI,MATCH(A134,Results!V:V,0))) -> 43.38666667 | H134: =IF(G134="",0,1) -> 1 | I134: =INDEX(Picks!AF:AF,MATCH(A134,Picks!AC:AC,0)) -> 9 | J134: Portsmouth | K134: =INDEX(Odds!F:F,MATCH(J134,Odds!E:E,0)) -> 4/6 | L134: =INDEX(Odds!G:G,MATCH(J134,Odds!E:E,0)) -> 1.666666667 | M134: =INDEX(Odds!H:H,MATCH(J134,Odds!E:E,0)) -> 1 | N134: 1.666666667 | R134: =IF(Odds!E134="","",Odds!E134) -> Forest Green | S134: =INDEX(Odds!F:F,MATCH(R134,Odds!E:E,0)) -> 21/10 | T134: 0
A135: =A134 -> Mike Penk | B135: Wigan | C135: 27/10 | D135: 3.7 | E135: x | J135: Wigan | K135: =INDEX(Odds!F:F,MATCH(J135,Odds!E:E,0)) -> 27/10 | L135: =INDEX(Odds!G:G,MATCH(J135,Odds!E:E,0)) -> 3.7 | M135: =INDEX(Odds!H:H,MATCH(J135,Odds!E:E,0)) -> 0 | N135: 0 | R135: =IF(Odds!E135="","",Odds!E135) -> Wolves | S135: =INDEX(Odds!F:F,MATCH(R135,Odds!E:E,0)) -> 32/13 | T135: 0
A136: =A134 -> Mike Penk | B136: Charlton | C136: 21/10 | D136: 3.1 | E136: √ | J136: Charlton | K136: =INDEX(Odds!F:F,MATCH(J136,Odds!E:E,0)) -> 21/10 | L136: =INDEX(Odds!G:G,MATCH(J136,Odds!E:E,0)) -> 3.1 | M136: =INDEX(Odds!H:H,MATCH(J136,Odds!E:E,0)) -> 1 | N136: 3.1 | R136: =IF(Odds!E136="","",Odds!E136) -> Chelsea | S136: =INDEX(Odds!F:F,MATCH(R136,Odds!E:E,0)) -> 13/5 | T136: 0
A137: =Results!B137 -> Mo Sudell | B137: Blackpool | C137: 6/4 | D137: 2.5 | E137: √ | F137: =IF(J137="",-10,INDEX(Results!T:T,MATCH(A137,Results!V:V,0))) -> -4.5 | G137: =IF(J137="","",INDEX(Results!AI:AI,MATCH(A137,Results!V:V,0))) -> 17.515 | H137: =IF(G137="",0,1) -> 1 | I137: =INDEX(Picks!AF:AF,MATCH(A137,Picks!AC:AC,0)) -> 26 | J137: Blackpool | K137: =INDEX(Odds!F:F,MATCH(J137,Odds!E:E,0)) -> 6/4 | L137: =INDEX(Odds!G:G,MATCH(J137,Odds!E:E,0)) -> 2.5 | M137: =INDEX(Odds!H:H,MATCH(J137,Odds!E:E,0)) -> 1 | N137: 2.5 | R137: =IF(Odds!E137="","",Odds!E137) -> Arsenal | S137: =INDEX(Odds!F:F,MATCH(R137,Odds!E:E,0)) -> 9/11 | T137: 1
A138: =A137 -> Mo Sudell | B138: West Brom | C138: 7/10 | D138: 1.7 | E138: x | J138: West Brom | K138: =INDEX(Odds!F:F,MATCH(J138,Odds!E:E,0)) -> 7/10 | L138: =INDEX(Odds!G:G,MATCH(J138,Odds!E:E,0)) -> 1.7 | M138: =INDEX(Odds!H:H,MATCH(J138,Odds!E:E,0)) -> 0 | N138: 0 | R138: =IF(Odds!E138="","",Odds!E138) ->  | S138: =INDEX(Odds!F:F,MATCH(R138,Odds!E:E,0)) -> 
A139: =A137 -> Mo Sudell | B139: Leeds | C139: 7/10 | D139: 1.7 | E139: x | J139: Leeds | K139: =INDEX(Odds!F:F,MATCH(J139,Odds!E:E,0)) -> 7/10 | L139: =INDEX(Odds!G:G,MATCH(J139,Odds!E:E,0)) -> 1.7 | M139: =INDEX(Odds!H:H,MATCH(J139,Odds!E:E,0)) -> 0 | N139: 0 | R139: =IF(Odds!E139="","",Odds!E139) ->  | S139: =INDEX(Odds!F:F,MATCH(R139,Odds!E:E,0)) -> 
A140: =Results!B140 -> Nick Blocksidge | B140: Bournemouth | C140: 10/11 | D140: 1.909090909 | E140: x | F140: =IF(J140="",-10,INDEX(Results!T:T,MATCH(A140,Results!V:V,0))) -> -4.45 | G140: =IF(J140="","",INDEX(Results!AI:AI,MATCH(A140,Results!V:V,0))) -> 24.53090909 | H140: =IF(G140="",0,1) -> 1 | I140: =INDEX(Picks!AF:AF,MATCH(A140,Picks!AC:AC,0)) -> 23 | J140: Bournemouth | K140: =INDEX(Odds!F:F,MATCH(J140,Odds!E:E,0)) -> 10/11 | L140: =INDEX(Odds!G:G,MATCH(J140,Odds!E:E,0)) -> 1.909090909 | M140: =INDEX(Odds!H:H,MATCH(J140,Odds!E:E,0)) -> 0 | N140: 0
A141: =A140 -> Nick Blocksidge | B141: Burnley | C141: 31/20 | D141: 2.55 | E141: √ | J141: Burnley | K141: =INDEX(Odds!F:F,MATCH(J141,Odds!E:E,0)) -> 31/20 | L141: =INDEX(Odds!G:G,MATCH(J141,Odds!E:E,0)) -> 2.55 | M141: =INDEX(Odds!H:H,MATCH(J141,Odds!E:E,0)) -> 1 | N141: 2.55
A142: =A140 -> Nick Blocksidge | B142: Derby | C142: 23/20 | D142: 2.15 | E142: x | J142: Derby | K142: =INDEX(Odds!F:F,MATCH(J142,Odds!E:E,0)) -> 23/20 | L142: =INDEX(Odds!G:G,MATCH(J142,Odds!E:E,0)) -> 2.15 | M142: =INDEX(Odds!H:H,MATCH(J142,Odds!E:E,0)) -> 0 | N142: 0
A143: =Results!B143 -> Nigel Heyes | B143: Cardiff | C143: 78/100 | D143: 1.78 | E143: √ | F143: =IF(J143="",-10,INDEX(Results!T:T,MATCH(A143,Results!V:V,0))) -> -5.22 | G143: =IF(J143="","",INDEX(Results!AI:AI,MATCH(A143,Results!V:V,0))) -> 35.1178 | H143: =IF(G143="",0,1) -> 1 | I143: =INDEX(Picks!AF:AF,MATCH(A143,Picks!AC:AC,0)) -> 39 | J143: Cardiff | K143: =INDEX(Odds!F:F,MATCH(J143,Odds!E:E,0)) -> 78/100 | L143: =INDEX(Odds!G:G,MATCH(J143,Odds!E:E,0)) -> 1.78 | M143: =INDEX(Odds!H:H,MATCH(J143,Odds!E:E,0)) -> 1 | N143: 1.78
A144: =A143 -> Nigel Heyes | B144: Middlesbro | C144: 13/10 | D144: 2.3 | E144: x | J144: Middlesbro | K144: =INDEX(Odds!F:F,MATCH(J144,Odds!E:E,0)) -> 13/10 | L144: =INDEX(Odds!G:G,MATCH(J144,Odds!E:E,0)) -> 2.3 | M144: =INDEX(Odds!H:H,MATCH(J144,Odds!E:E,0)) -> 0 | N144: 0
A145: =A143 -> Nigel Heyes | B145: Wigan | C145: 27/10 | D145: 3.7 | E145: x | J145: Wigan | K145: =INDEX(Odds!F:F,MATCH(J145,Odds!E:E,0)) -> 27/10 | L145: =INDEX(Odds!G:G,MATCH(J145,Odds!E:E,0)) -> 3.7 | M145: =INDEX(Odds!H:H,MATCH(J145,Odds!E:E,0)) -> 0 | N145: 0
A146: =Results!B146 -> Oscar Jackson | B146: Reading | C146: 27/10 | D146: 3.7 | E146: x | F146: =IF(J146="",-10,INDEX(Results!T:T,MATCH(A146,Results!V:V,0))) -> -7 | G146: =IF(J146="","",INDEX(Results!AI:AI,MATCH(A146,Results!V:V,0))) -> 33.2425 | H146: =IF(G146="",0,1) -> 1 | I146: =INDEX(Picks!AF:AF,MATCH(A146,Picks!AC:AC,0)) -> 49 | J146: Reading | K146: =INDEX(Odds!F:F,MATCH(J146,Odds!E:E,0)) -> 27/10 | L146: =INDEX(Odds!G:G,MATCH(J146,Odds!E:E,0)) -> 3.7 | M146: =INDEX(Odds!H:H,MATCH(J146,Odds!E:E,0)) -> 0 | N146: 0
A147: =A146 -> Oscar Jackson | B147: Salford | C147: 5/4 | D147: 2.25 | E147: x | J147: Salford | K147: =INDEX(Odds!F:F,MATCH(J147,Odds!E:E,0)) -> 5/4 | L147: =INDEX(Odds!G:G,MATCH(J147,Odds!E:E,0)) -> 2.25 | M147: =INDEX(Odds!H:H,MATCH(J147,Odds!E:E,0)) -> 0 | N147: 0
A148: =A146 -> Oscar Jackson | B148: Mansfield | C148: 7/10 | D148: 1.7 | E148: x | J148: Mansfield | K148: =INDEX(Odds!F:F,MATCH(J148,Odds!E:E,0)) -> 7/10 | L148: =INDEX(Odds!G:G,MATCH(J148,Odds!E:E,0)) -> 1.7 | M148: =INDEX(Odds!H:H,MATCH(J148,Odds!E:E,0)) -> 0 | N148: 0
A149: =Results!B149 -> Paul Adderley | B149: Bournemouth | C149: 10/11 | D149: 1.909090909 | E149: x | F149: =IF(J149="",-10,INDEX(Results!T:T,MATCH(A149,Results!V:V,0))) -> -4.45 | G149: =IF(J149="","",INDEX(Results!AI:AI,MATCH(A149,Results!V:V,0))) -> 22.04297521 | H149: =IF(G149="",0,1) -> 1 | I149: =INDEX(Picks!AF:AF,MATCH(A149,Picks!AC:AC,0)) -> 23 | J149: Bournemouth | K149: =INDEX(Odds!F:F,MATCH(J149,Odds!E:E,0)) -> 10/11 | L149: =INDEX(Odds!G:G,MATCH(J149,Odds!E:E,0)) -> 1.909090909 | M149: =INDEX(Odds!H:H,MATCH(J149,Odds!E:E,0)) -> 0 | N149: =L149*M149 -> 0
A150: =A149 -> Paul Adderley | B150: Burnley | C150: 31/20 | D150: 2.55 | E150: √ | J150: Burnley | K150: =INDEX(Odds!F:F,MATCH(J150,Odds!E:E,0)) -> 31/20 | L150: =INDEX(Odds!G:G,MATCH(J150,Odds!E:E,0)) -> 2.55 | M150: =INDEX(Odds!H:H,MATCH(J150,Odds!E:E,0)) -> 1 | N150: 2.55
A151: =A149 -> Paul Adderley | B151: Watford | C151: 10/11 | D151: 1.909090909 | E151: x | J151: Watford | K151: =INDEX(Odds!F:F,MATCH(J151,Odds!E:E,0)) -> 10/11 | L151: =INDEX(Odds!G:G,MATCH(J151,Odds!E:E,0)) -> 1.909090909 | M151: =INDEX(Odds!H:H,MATCH(J151,Odds!E:E,0)) -> 0 | N151: 0
A152: =Results!B152 -> Paul Allen | B152: Bournemouth | C152: 10/11 | D152: 1.909090909 | E152: x | F152: =IF(J152="",-10,INDEX(Results!T:T,MATCH(A152,Results!V:V,0))) -> -5.22 | G152: =IF(J152="","",INDEX(Results!AI:AI,MATCH(A152,Results!V:V,0))) -> 15.52661157 | H152: =IF(G152="",0,1) -> 1 | I152: =INDEX(Picks!AF:AF,MATCH(A152,Picks!AC:AC,0)) -> 39 | J152: Bournemouth | K152: =INDEX(Odds!F:F,MATCH(J152,Odds!E:E,0)) -> 10/11 | L152: =INDEX(Odds!G:G,MATCH(J152,Odds!E:E,0)) -> 1.909090909 | M152: =INDEX(Odds!H:H,MATCH(J152,Odds!E:E,0)) -> 0 | N152: 0
A153: =A152 -> Paul Allen | B153: Watford | C153: 10/11 | D153: 1.909090909 | E153: x | J153: Watford | K153: =INDEX(Odds!F:F,MATCH(J153,Odds!E:E,0)) -> 10/11 | L153: =INDEX(Odds!G:G,MATCH(J153,Odds!E:E,0)) -> 1.909090909 | M153: =INDEX(Odds!H:H,MATCH(J153,Odds!E:E,0)) -> 0 | N153: 0
A154: =A152 -> Paul Allen | B154: Cardiff | C154: 78/100 | D154: 1.78 | E154: √ | J154: Cardiff | K154: =INDEX(Odds!F:F,MATCH(J154,Odds!E:E,0)) -> 78/100 | L154: =INDEX(Odds!G:G,MATCH(J154,Odds!E:E,0)) -> 1.78 | M154: =INDEX(Odds!H:H,MATCH(J154,Odds!E:E,0)) -> 1 | N154: 1.78
A155: =Results!B155 -> Paul Barnes | F155: =IF(J155="",-10,INDEX(Results!T:T,MATCH(A155,Results!V:V,0))) -> -10 | G155: =IF(J155="","",INDEX(Results!AI:AI,MATCH(A155,Results!V:V,0))) ->  | H155: =IF(G155="",0,1) -> 0 | I155: =INDEX(Picks!AF:AF,MATCH(A155,Picks!AC:AC,0)) -> 65 | K155: =INDEX(Odds!F:F,MATCH(J155,Odds!E:E,0)) ->  | L155: =INDEX(Odds!G:G,MATCH(J155,Odds!E:E,0)) ->  | M155: =INDEX(Odds!H:H,MATCH(J155,Odds!E:E,0)) -> 
A156: =A155 -> Paul Barnes | K156: =INDEX(Odds!F:F,MATCH(J156,Odds!E:E,0)) ->  | L156: =INDEX(Odds!G:G,MATCH(J156,Odds!E:E,0)) ->  | M156: =INDEX(Odds!H:H,MATCH(J156,Odds!E:E,0)) -> 
A157: =A155 -> Paul Barnes | K157: =INDEX(Odds!F:F,MATCH(J157,Odds!E:E,0)) ->  | L157: =INDEX(Odds!G:G,MATCH(J157,Odds!E:E,0)) ->  | M157: =INDEX(Odds!H:H,MATCH(J157,Odds!E:E,0)) -> 
A158: =Results!B158 -> Paul Fairhurst | B158: Cardiff | C158: 78/100 | D158: 1.78 | E158: √ | F158: =IF(J158="",-10,INDEX(Results!T:T,MATCH(A158,Results!V:V,0))) -> 3.954 | G158: =IF(J158="","",INDEX(Results!AI:AI,MATCH(A158,Results!V:V,0))) -> 30.2528 | H158: =IF(G158="",0,1) -> 1 | I158: =INDEX(Picks!AF:AF,MATCH(A158,Picks!AC:AC,0)) -> 6 | J158: Cardiff | K158: =INDEX(Odds!F:F,MATCH(J158,Odds!E:E,0)) -> 78/100 | L158: =INDEX(Odds!G:G,MATCH(J158,Odds!E:E,0)) -> 1.78 | M158: =INDEX(Odds!H:H,MATCH(J158,Odds!E:E,0)) -> 1 | N158: 1.78
A159: =A158 -> Paul Fairhurst | B159: Ipswich draw | C159: 23/10 | D159: 3.3 | E159: √ | J159: Ipswich draw | K159: =INDEX(Odds!F:F,MATCH(J159,Odds!E:E,0)) -> 23/10 | L159: =INDEX(Odds!G:G,MATCH(J159,Odds!E:E,0)) -> 3.3 | M159: =INDEX(Odds!H:H,MATCH(J159,Odds!E:E,0)) -> 1 | N159: 3.3
A160: =A158 -> Paul Fairhurst | B160: Bradford | C160: 6/5 | D160: 2.2 | E160: x | J160: Bradford | K160: =INDEX(Odds!F:F,MATCH(J160,Odds!E:E,0)) -> 6/5 | L160: =INDEX(Odds!G:G,MATCH(J160,Odds!E:E,0)) -> 2.2 | M160: =INDEX(Odds!H:H,MATCH(J160,Odds!E:E,0)) -> 0 | N160: 0
A161: =Results!B161 -> Paul Fiddler | B161: Sheff W | C161: 21/20 | D161: 2.05 | E161: √ | F161: =IF(J161="",-10,INDEX(Results!T:T,MATCH(A161,Results!V:V,0))) -> -4.95 | G161: =IF(J161="","",INDEX(Results!AI:AI,MATCH(A161,Results!V:V,0))) -> 37.15525 | H161: =IF(G161="",0,1) -> 1 | I161: =INDEX(Picks!AF:AF,MATCH(A161,Picks!AC:AC,0)) -> 30 | J161: Sheff W | K161: =INDEX(Odds!F:F,MATCH(J161,Odds!E:E,0)) -> 21/20 | L161: =INDEX(Odds!G:G,MATCH(J161,Odds!E:E,0)) -> 2.05 | M161: =INDEX(Odds!H:H,MATCH(J161,Odds!E:E,0)) -> 1 | N161: 2.05
A162: =A161 -> Paul Fiddler | B162: Derby | C162: 23/20 | D162: 2.15 | E162: x | J162: Derby | K162: =INDEX(Odds!F:F,MATCH(J162,Odds!E:E,0)) -> 23/20 | L162: =INDEX(Odds!G:G,MATCH(J162,Odds!E:E,0)) -> 2.15 | M162: =INDEX(Odds!H:H,MATCH(J162,Odds!E:E,0)) -> 0 | N162: 0
A163: =A161 -> Paul Fiddler | B163: Wigan | C163: 27/10 | D163: 3.7 | E163: x | J163: Wigan | K163: =INDEX(Odds!F:F,MATCH(J163,Odds!E:E,0)) -> 27/10 | L163: =INDEX(Odds!G:G,MATCH(J163,Odds!E:E,0)) -> 3.7 | M163: =INDEX(Odds!H:H,MATCH(J163,Odds!E:E,0)) -> 0 | N163: 0
A164: =Results!B164 -> Paul Ridgeway | B164: =IF(J164="","",J164) -> Derby | C164: =IF(J164="","",K164) -> 23/20 | D164: =IF(J164="","",L164) -> 2.15 | E164: x | F164: =IF(J164="",-10,INDEX(Results!T:T,MATCH(A164,Results!V:V,0))) -> 0.54 | G164: =IF(J164="","",INDEX(Results!AI:AI,MATCH(A164,Results!V:V,0))) -> 18.901 | H164: =IF(G164="",0,1) -> 1 | I164: =INDEX(Picks!AF:AF,MATCH(A164,Picks!AC:AC,0)) -> 13 | J164: Derby | K164: =INDEX(Odds!F:F,MATCH(J164,Odds!E:E,0)) -> 23/20 | L164: =INDEX(Odds!G:G,MATCH(J164,Odds!E:E,0)) -> 2.15 | M164: =INDEX(Odds!H:H,MATCH(J164,Odds!E:E,0)) -> 0 | N164: 0
A165: =A164 -> Paul Ridgeway | B165: Fulham | C165: 4/5 | D165: 1.8 | E165: √ | J165: Fulham | K165: =INDEX(Odds!F:F,MATCH(J165,Odds!E:E,0)) -> 4/5 | L165: =INDEX(Odds!G:G,MATCH(J165,Odds!E:E,0)) -> 1.8 | M165: =INDEX(Odds!H:H,MATCH(J165,Odds!E:E,0)) -> 1 | N165: 1.8
A166: =A164 -> Paul Ridgeway | B166: Hull | C166: 21/20 | D166: 2.05 | E166: √ | J166: Hull | K166: =INDEX(Odds!F:F,MATCH(J166,Odds!E:E,0)) -> 21/20 | L166: =INDEX(Odds!G:G,MATCH(J166,Odds!E:E,0)) -> 2.05 | M166: =INDEX(Odds!H:H,MATCH(J166,Odds!E:E,0)) -> 1 | N166: 2.05
A167: =Results!B167 -> Pete Baron | F167: =IF(J167="",-10,INDEX(Results!T:T,MATCH(A167,Results!V:V,0))) -> -10 | G167: =IF(J167="","",INDEX(Results!AI:AI,MATCH(A167,Results!V:V,0))) ->  | H167: =IF(G167="",0,1) -> 0 | I167: =INDEX(Picks!AF:AF,MATCH(A167,Picks!AC:AC,0)) -> 65 | K167: =INDEX(Odds!F:F,MATCH(J167,Odds!E:E,0)) ->  | L167: =INDEX(Odds!G:G,MATCH(J167,Odds!E:E,0)) ->  | M167: =INDEX(Odds!H:H,MATCH(J167,Odds!E:E,0)) -> 
A168: =A167 -> Pete Baron | K168: =INDEX(Odds!F:F,MATCH(J168,Odds!E:E,0)) ->  | L168: =INDEX(Odds!G:G,MATCH(J168,Odds!E:E,0)) ->  | M168: =INDEX(Odds!H:H,MATCH(J168,Odds!E:E,0)) -> 
A169: =A167 -> Pete Baron | K169: =INDEX(Odds!F:F,MATCH(J169,Odds!E:E,0)) ->  | L169: =INDEX(Odds!G:G,MATCH(J169,Odds!E:E,0)) ->  | M169: =INDEX(Odds!H:H,MATCH(J169,Odds!E:E,0)) -> 
A170: =Results!B170 -> Phil Miller | B170: Bristol C | C170: 21/10 | D170: 3.1 | E170: x | F170: =IF(J170="",-10,INDEX(Results!T:T,MATCH(A170,Results!V:V,0))) -> -1.7 | G170: =IF(J170="","",INDEX(Results!AI:AI,MATCH(A170,Results!V:V,0))) -> 17.83 | H170: =IF(G170="",0,1) -> 1 | I170: =INDEX(Picks!AF:AF,MATCH(A170,Picks!AC:AC,0)) -> 17 | J170: Bristol C | K170: =INDEX(Odds!F:F,MATCH(J170,Odds!E:E,0)) -> 21/10 | L170: =INDEX(Odds!G:G,MATCH(J170,Odds!E:E,0)) -> 3.1 | M170: =INDEX(Odds!H:H,MATCH(J170,Odds!E:E,0)) -> 0 | N170: 0
A171: =A170 -> Phil Miller | B171: Man C | C171: 1/4 | D171: 1.25 | E171: √ | J171: Man C | K171: =INDEX(Odds!F:F,MATCH(J171,Odds!E:E,0)) -> 1/4 | L171: =INDEX(Odds!G:G,MATCH(J171,Odds!E:E,0)) -> 1.25 | M171: =INDEX(Odds!H:H,MATCH(J171,Odds!E:E,0)) -> 1 | N171: 1.25
A172: =A170 -> Phil Miller | B172: Fulham | C172: 4/5 | D172: 1.8 | E172: √ | J172: Fulham | K172: =INDEX(Odds!F:F,MATCH(J172,Odds!E:E,0)) -> 4/5 | L172: =INDEX(Odds!G:G,MATCH(J172,Odds!E:E,0)) -> 1.8 | M172: =INDEX(Odds!H:H,MATCH(J172,Odds!E:E,0)) -> 1 | N172: 1.8
A173: =Results!B173 -> Rob England | B173: Liverpool | C173: 1/7 | D173: 1.142857143 | E173: √ | F173: =IF(J173="",-10,INDEX(Results!T:T,MATCH(A173,Results!V:V,0))) -> -5.857142857 | G173: =IF(J173="","",INDEX(Results!AI:AI,MATCH(A173,Results!V:V,0))) -> 29.77857143 | H173: =IF(G173="",0,1) -> 1 | I173: =INDEX(Picks!AF:AF,MATCH(A173,Picks!AC:AC,0)) -> 47 | J173: Liverpool | K173: =INDEX(Odds!F:F,MATCH(J173,Odds!E:E,0)) -> 1/7 | L173: =INDEX(Odds!G:G,MATCH(J173,Odds!E:E,0)) -> 1.142857143 | M173: =INDEX(Odds!H:H,MATCH(J173,Odds!E:E,0)) -> 1 | N173: 1.142857143
A174: =A173 -> Rob England | B174: Wycombe | C174: 21/10 | D174: 3.1 | E174: x | J174: Wycombe | K174: =INDEX(Odds!F:F,MATCH(J174,Odds!E:E,0)) -> 21/10 | L174: =INDEX(Odds!G:G,MATCH(J174,Odds!E:E,0)) -> 3.1 | M174: =INDEX(Odds!H:H,MATCH(J174,Odds!E:E,0)) -> 0 | N174: 0
A175: =A173 -> Rob England | B175: Grimsby | C175: 23/10 | D175: 3.3 | E175: x | J175: Grimsby | K175: =INDEX(Odds!F:F,MATCH(J175,Odds!E:E,0)) -> 23/10 | L175: =INDEX(Odds!G:G,MATCH(J175,Odds!E:E,0)) -> 3.3 | M175: =INDEX(Odds!H:H,MATCH(J175,Odds!E:E,0)) -> 0 | N175: 0
A176: =Results!B176 -> Sally Williams | B176: Charlton draw | C176: 12/5 | D176: 3.4 | E176: x | F176: =IF(J176="",-10,INDEX(Results!T:T,MATCH(A176,Results!V:V,0))) -> -3.7 | G176: =IF(J176="","",INDEX(Results!AI:AI,MATCH(A176,Results!V:V,0))) -> 73.356 | H176: =IF(G176="",0,1) -> 1 | I176: =INDEX(Picks!AF:AF,MATCH(A176,Picks!AC:AC,0)) -> 19 | J176: Charlton draw | K176: =INDEX(Odds!F:F,MATCH(J176,Odds!E:E,0)) -> 12/5 | L176: =INDEX(Odds!G:G,MATCH(J176,Odds!E:E,0)) -> 3.4 | M176: =INDEX(Odds!H:H,MATCH(J176,Odds!E:E,0)) -> 0 | N176: 0
A177: =A176 -> Sally Williams | B177: Preston draw | C177: 23/10 | D177: 3.3 | E177: x | J177: Preston draw | K177: =INDEX(Odds!F:F,MATCH(J177,Odds!E:E,0)) -> 23/10 | L177: =INDEX(Odds!G:G,MATCH(J177,Odds!E:E,0)) -> 3.3 | M177: =INDEX(Odds!H:H,MATCH(J177,Odds!E:E,0)) -> 0 | N177: 0
A178: =A176 -> Sally Williams | B178: QPR draw | C178: 23/10 | D178: 3.3 | E178: √ | J178: QPR draw | K178: =INDEX(Odds!F:F,MATCH(J178,Odds!E:E,0)) -> 23/10 | L178: =INDEX(Odds!G:G,MATCH(J178,Odds!E:E,0)) -> 3.3 | M178: =INDEX(Odds!H:H,MATCH(J178,Odds!E:E,0)) -> 1 | N178: 3.3
A179: =Results!B179 -> Simon Greenhalgh | B179: Oxford | C179: 6/4 | D179: 2.5 | E179: √ | F179: =IF(J179="",-10,INDEX(Results!T:T,MATCH(A179,Results!V:V,0))) -> -4.5 | G179: =IF(J179="","",INDEX(Results!AI:AI,MATCH(A179,Results!V:V,0))) -> 34.8203125 | H179: =IF(G179="",0,1) -> 1 | I179: =INDEX(Picks!AF:AF,MATCH(A179,Picks!AC:AC,0)) -> 26 | J179: Oxford | K179: =INDEX(Odds!F:F,MATCH(J179,Odds!E:E,0)) -> 6/4 | L179: =INDEX(Odds!G:G,MATCH(J179,Odds!E:E,0)) -> 2.5 | M179: =INDEX(Odds!H:H,MATCH(J179,Odds!E:E,0)) -> 1 | N179: 2.5
A180: =A179 -> Simon Greenhalgh | B180: Rochdale | C180: 13/8 | D180: 2.625 | E180: x | J180: Rochdale | K180: =INDEX(Odds!F:F,MATCH(J180,Odds!E:E,0)) -> 13/8 | L180: =INDEX(Odds!G:G,MATCH(J180,Odds!E:E,0)) -> 2.625 | M180: =INDEX(Odds!H:H,MATCH(J180,Odds!E:E,0)) -> 0 | N180: 0
A181: =A179 -> Simon Greenhalgh | B181: Walsall | C181: 11/8 | D181: 2.375 | E181: x | J181: Walsall | K181: =INDEX(Odds!F:F,MATCH(J181,Odds!E:E,0)) -> 11/8 | L181: =INDEX(Odds!G:G,MATCH(J181,Odds!E:E,0)) -> 2.375 | M181: =INDEX(Odds!H:H,MATCH(J181,Odds!E:E,0)) -> 0 | N181: 0
A182: =Results!B182 -> Ste Bentley | F182: =IF(J182="",-10,INDEX(Results!T:T,MATCH(A182,Results!V:V,0))) -> -10 | G182: =IF(J182="","",INDEX(Results!AI:AI,MATCH(A182,Results!V:V,0))) ->  | H182: =IF(G182="",0,1) -> 0 | I182: =INDEX(Picks!AF:AF,MATCH(A182,Picks!AC:AC,0)) -> 65 | K182: =INDEX(Odds!F:F,MATCH(J182,Odds!E:E,0)) ->  | L182: =INDEX(Odds!G:G,MATCH(J182,Odds!E:E,0)) ->  | M182: =INDEX(Odds!H:H,MATCH(J182,Odds!E:E,0)) -> 
A183: =A182 -> Ste Bentley | K183: =INDEX(Odds!F:F,MATCH(J183,Odds!E:E,0)) ->  | L183: =INDEX(Odds!G:G,MATCH(J183,Odds!E:E,0)) ->  | M183: =INDEX(Odds!H:H,MATCH(J183,Odds!E:E,0)) -> 
A184: =A182 -> Ste Bentley | K184: =INDEX(Odds!F:F,MATCH(J184,Odds!E:E,0)) ->  | L184: =INDEX(Odds!G:G,MATCH(J184,Odds!E:E,0)) ->  | M184: =INDEX(Odds!H:H,MATCH(J184,Odds!E:E,0)) -> 
A185: =Results!B185 -> Stephen Barr | B185: =IF(J185="","",J185) -> Arsenal | C185: =IF(J185="","",K185) -> 9/11 | D185: =IF(J185="","",L185) -> 1.818181818 | E185: √ | F185: =IF(J185="",-10,INDEX(Results!T:T,MATCH(A185,Results!V:V,0))) -> 15.89536364 | G185: =IF(J185="","",INDEX(Results!AI:AI,MATCH(A185,Results!V:V,0))) -> 15.89536364 | H185: =IF(G185="",0,1) -> 1 | I185: =INDEX(Picks!AF:AF,MATCH(A185,Picks!AC:AC,0)) -> 1 | J185: Arsenal | K185: =INDEX(Odds!F:F,MATCH(J185,Odds!E:E,0)) -> 9/11 | L185: =INDEX(Odds!G:G,MATCH(J185,Odds!E:E,0)) -> 1.818181818 | M185: =INDEX(Odds!H:H,MATCH(J185,Odds!E:E,0)) -> 1 | N185: =L185*M185 -> 1.818181818
A186: =A185 -> Stephen Barr | B186: =IF(J186="","",J186) -> Cardiff | C186: =IF(J186="","",K186) -> 78/100 | D186: =IF(J186="","",L186) -> 1.78 | E186: √ | J186: Cardiff | K186: =INDEX(Odds!F:F,MATCH(J186,Odds!E:E,0)) -> 78/100 | L186: =INDEX(Odds!G:G,MATCH(J186,Odds!E:E,0)) -> 1.78 | M186: =INDEX(Odds!H:H,MATCH(J186,Odds!E:E,0)) -> 1 | N186: 1.78
A187: =A185 -> Stephen Barr | B187: =IF(J187="","",J187) -> Sheff w | C187: =IF(J187="","",K187) -> 21/20 | D187: =IF(J187="","",L187) -> 2.05 | E187: √ | J187: Sheff w | K187: =INDEX(Odds!F:F,MATCH(J187,Odds!E:E,0)) -> 21/20 | L187: =INDEX(Odds!G:G,MATCH(J187,Odds!E:E,0)) -> 2.05 | M187: =INDEX(Odds!H:H,MATCH(J187,Odds!E:E,0)) -> 1 | N187: 2.05
A188: =Results!B188 -> Stephen Troop | B188: =IF(J188="","",J188) -> Derby | C188: =IF(J188="","",K188) -> 23/20 | D188: =IF(J188="","",L188) -> 2.15 | E188: x | F188: =IF(J188="",-10,INDEX(Results!T:T,MATCH(A188,Results!V:V,0))) -> -7 | G188: =IF(J188="","",INDEX(Results!AI:AI,MATCH(A188,Results!V:V,0))) -> 19.216 | H188: =IF(G188="",0,1) -> 1 | I188: =INDEX(Picks!AF:AF,MATCH(A188,Picks!AC:AC,0)) -> 49 | J188: Derby | K188: =INDEX(Odds!F:F,MATCH(J188,Odds!E:E,0)) -> 23/20 | L188: =INDEX(Odds!G:G,MATCH(J188,Odds!E:E,0)) -> 2.15 | M188: =INDEX(Odds!H:H,MATCH(J188,Odds!E:E,0)) -> 0 | N188: 0
A189: =A188 -> Stephen Troop | B189: Bristol R | C189: 6/5 | D189: 2.2 | E189: x | J189: Bristol R | K189: =INDEX(Odds!F:F,MATCH(J189,Odds!E:E,0)) -> 6/5 | L189: =INDEX(Odds!G:G,MATCH(J189,Odds!E:E,0)) -> 2.2 | M189: =INDEX(Odds!H:H,MATCH(J189,Odds!E:E,0)) -> 0 | N189: 0
A190: =A188 -> Stephen Troop | B190: Leeds | C190: 7/10 | D190: 1.7 | E190: x | J190: Leeds | K190: =INDEX(Odds!F:F,MATCH(J190,Odds!E:E,0)) -> 7/10 | L190: =INDEX(Odds!G:G,MATCH(J190,Odds!E:E,0)) -> 1.7 | M190: =INDEX(Odds!H:H,MATCH(J190,Odds!E:E,0)) -> 0 | N190: 0
A191: =Results!B191 -> Steve Baxter | B191: Liverpool | C191: 1/7 | D191: 1.142857143 | E191: √ | F191: =IF(J191="",-10,INDEX(Results!T:T,MATCH(A191,Results!V:V,0))) -> 7.808928571 | G191: =IF(J191="","",INDEX(Results!AI:AI,MATCH(A191,Results!V:V,0))) -> 7.808928571 | H191: =IF(G191="",0,1) -> 1 | I191: =INDEX(Picks!AF:AF,MATCH(A191,Picks!AC:AC,0)) -> 4 | J191: Liverpool | K191: =INDEX(Odds!F:F,MATCH(J191,Odds!E:E,0)) -> 1/7 | L191: =INDEX(Odds!G:G,MATCH(J191,Odds!E:E,0)) -> 1.142857143 | M191: =INDEX(Odds!H:H,MATCH(J191,Odds!E:E,0)) -> 1 | N191: 1.142857143
A192: =A191 -> Steve Baxter | B192: Man U | C192: 5/4 | D192: 2.25 | E192: √ | J192: Man U | K192: =INDEX(Odds!F:F,MATCH(J192,Odds!E:E,0)) -> 5/4 | L192: =INDEX(Odds!G:G,MATCH(J192,Odds!E:E,0)) -> 2.25 | M192: =INDEX(Odds!H:H,MATCH(J192,Odds!E:E,0)) -> 1 | N192: 2.25
A193: =A191 -> Steve Baxter | B193: Spurs | C193: 27/100 | D193: 1.27 | E193: √ | J193: Spurs | K193: =INDEX(Odds!F:F,MATCH(J193,Odds!E:E,0)) -> 27/100 | L193: =INDEX(Odds!G:G,MATCH(J193,Odds!E:E,0)) -> 1.27 | M193: =INDEX(Odds!H:H,MATCH(J193,Odds!E:E,0)) -> 1 | N193: 1.27
A194: =Results!B194 -> Steve Carter | B194: Everton | C194: 6/4 | D194: 2.5 | E194: x | F194: =IF(J194="",-10,INDEX(Results!T:T,MATCH(A194,Results!V:V,0))) -> -5.181818182 | G194: =IF(J194="","",INDEX(Results!AI:AI,MATCH(A194,Results!V:V,0))) -> 36.00699301 | H194: =IF(G194="",0,1) -> 1 | I194: =INDEX(Picks!AF:AF,MATCH(A194,Picks!AC:AC,0)) -> 34 | J194: Everton | K194: =INDEX(Odds!F:F,MATCH(J194,Odds!E:E,0)) -> 6/4 | L194: =INDEX(Odds!G:G,MATCH(J194,Odds!E:E,0)) -> 2.5 | M194: =INDEX(Odds!H:H,MATCH(J194,Odds!E:E,0)) -> 0 | N194: 0
A195: =A194 -> Steve Carter | B195: Arsenal | C195: 9/11 | D195: 1.818181818 | E195: =IF(J195="","",IF(M195=1,"√","x")) -> √ | J195: Arsenal | K195: =INDEX(Odds!F:F,MATCH(J195,Odds!E:E,0)) -> 9/11 | L195: =INDEX(Odds!G:G,MATCH(J195,Odds!E:E,0)) -> 1.818181818 | M195: =INDEX(Odds!H:H,MATCH(J195,Odds!E:E,0)) -> 1 | N195: 1.818181818
A196: =A194 -> Steve Carter | B196: Man U draw | C196: 32/13 | D196: 3.461538462 | E196: =IF(J196="","",IF(M196=1,"√","x")) -> x | J196: Man U draw | K196: =INDEX(Odds!F:F,MATCH(J196,Odds!E:E,0)) -> 32/13 | L196: =INDEX(Odds!G:G,MATCH(J196,Odds!E:E,0)) -> 3.461538462 | M196: =INDEX(Odds!H:H,MATCH(J196,Odds!E:E,0)) -> 0 | N196: 0
A197: =Results!B197 -> Tom Robinson | B197: =IF(J197="","",J197) -> Cardiff | C197: =IF(J197="","",K197) -> 78/100 | D197: =IF(J197="","",L197) -> 1.78 | E197: =IF(J197="","",IF(M197=1,"√","x")) -> √ | F197: =IF(J197="",-10,INDEX(Results!T:T,MATCH(A197,Results!V:V,0))) -> 3.954 | G197: =IF(J197="","",INDEX(Results!AI:AI,MATCH(A197,Results!V:V,0))) -> 31.4482 | H197: =IF(G197="",0,1) -> 1 | I197: =INDEX(Picks!AF:AF,MATCH(A197,Picks!AC:AC,0)) -> 6 | J197: Cardiff | K197: =INDEX(Odds!F:F,MATCH(J197,Odds!E:E,0)) -> 78/100 | L197: =INDEX(Odds!G:G,MATCH(J197,Odds!E:E,0)) -> 1.78 | M197: =INDEX(Odds!H:H,MATCH(J197,Odds!E:E,0)) -> 1 | N197: =L197*M197 -> 1.78
A198: =A197 -> Tom Robinson | B198: Stoke | C198: 13/10 | D198: 2.3 | E198: =IF(J198="","",IF(M198=1,"√","x")) -> x | J198: Stoke | K198: =INDEX(Odds!F:F,MATCH(J198,Odds!E:E,0)) -> 13/10 | L198: =INDEX(Odds!G:G,MATCH(J198,Odds!E:E,0)) -> 2.3 | M198: =INDEX(Odds!H:H,MATCH(J198,Odds!E:E,0)) -> 0 | N198: 0
A199: =A197 -> Tom Robinson | B199: Rochdale draw | C199: 23/10 | D199: 3.3 | E199: =IF(J199="","",IF(M199=1,"√","x")) -> √ | J199: Rochdale draw | K199: =INDEX(Odds!F:F,MATCH(J199,Odds!E:E,0)) -> 23/10 | L199: =INDEX(Odds!G:G,MATCH(J199,Odds!E:E,0)) -> 3.3 | M199: =INDEX(Odds!H:H,MATCH(J199,Odds!E:E,0)) -> 1 | N199: 3.3
A200: =Results!B200 -> Vinny Topping | B200: Birmingham | C200: 27/20 | D200: 2.35 | E200: =IF(J200="","",IF(M200=1,"√","x")) -> x | F200: =IF(J200="",-10,INDEX(Results!T:T,MATCH(A200,Results!V:V,0))) -> -5.2 | G200: =IF(J200="","",INDEX(Results!AI:AI,MATCH(A200,Results!V:V,0))) -> 23.892 | H200: =IF(G200="",0,1) -> 1 | I200: =INDEX(Picks!AF:AF,MATCH(A200,Picks!AC:AC,0)) -> 37 | J200: Birmingham | K200: =INDEX(Odds!F:F,MATCH(J200,Odds!E:E,0)) -> 27/20 | L200: =INDEX(Odds!G:G,MATCH(J200,Odds!E:E,0)) -> 2.35 | M200: =INDEX(Odds!H:H,MATCH(J200,Odds!E:E,0)) -> 0 | N200: 0
... 5 more rows

Sheet Results
A1: stake | C1: team | D1: frac | E1: dec | F1: played | G1: bet up | H1: win | I1: Entrants | J1: Bet1 | K1: Bet2 | L1: Bet3 | M1: single 1 | N1: single 2 | O1: single 3 | P1: double 1 | Q1: double 2 | R1: double 3 | S1: treble | T1: total | U1: bets in | V1: Entrants | W1: played | X1: Max | Y1: Pred1 | Z1: Pred2 | AA1: Pred3 | AB1: single 1 | AC1: single 2 | AD1: single 3 | AE1: double 1 | AF1: double 2 | AG1: double 3 | AH1: treble | AI1: total
A2: 1 | B2: =$V2 -> Aaron Sudell | C2: =Picks!B2 ->  | D2: =Picks!C2 ->  | E2: =Picks!D2 ->  | F2: 1 | G2: =Picks!M2 ->  | H2: =+((E2-1)*G2*F2*A$2) ->  | I2: =IF(V2="","",V2) -> Aaron Sudell | J2: =H2 ->  | K2: =H3 ->  | L2: =H4 ->  | M2: =IF(J2=0,0,1)+J2 ->  | N2: =IF(K2=0,0,1)+K2 ->  | O2: =IF(L2=0,0,1)+L2 ->  | P2: =IF(K2=0,0,(M2*K2)+M2) ->  | Q2: =IF(L2=0,0,(N2*L2)+N2) ->  | R2: =IF(J2=0,0,(O2*J2)+O2) ->  | S2: =IF(L2=0,0,(P2*L2)+P2) ->  | T2: =SUM(M2:S2)-(IF(W2=1,A$2*1,0))-(IF(W2=2,A$2*3,0))-(IF(W2=3,A$2*7,0)) ->  | U2: =SUM(G2:G4) ->  | V2: Aaron Sudell | W2: =SUM(F2:F4) -> 3 | X2: =+((E2-1)*F2*A$2) ->  | Y2: =X2 ->  | Z2: =X3 ->  | AA2: =X4 ->  | AB2: =IF(Y2=0,0,1)+Y2 ->  | AC2: =IF(Z2=0,0,1)+Z2 ->  | AD2: =IF(AA2=0,0,1)+AA2 ->  | AE2: =IF(Z2=0,0,(AB2*Z2)+AB2) ->  | AF2: =IF(AA2=0,0,(AC2*AA2)+AC2) ->  | AG2: =IF(Y2=0,0,(AD2*Y2)+AD2) ->  | AH2: =IF(AA2=0,0,(AE2*AA2)+AE2) ->  | AI2: =SUM(AB2:AH2)-7 ->  | AJ2: =$V2 -> Aaron Sudell
C3: =Picks!B3 ->  | D3: =Picks!C3 ->  | E3: =Picks!D3 ->  | F3: 1 | G3: =Picks!M3 ->  | I3: =IF(V3="","",V3) -> Alan Rogers | J3: =H5 -> 1.875 | K3: =H6 -> 0 | L3: =H7 -> 2.5 | M3: 2.875 | N3: 0 | O3: 3.5 | P3: =IF(K3=0,0,(M3*K3)+M3) -> 0 | Q3: =IF(L3=0,0,(N3*L3)+N3) -> 0 | R3: =IF(J3=0,0,(O3*J3)+O3) -> 10.0625 | S3: =IF(L3=0,0,(P3*L3)+P3) -> 0 | T3: =SUM(M3:S3)-(IF(W3=1,A$2*1,0))-(IF(W3=2,A$2*3,0))-(IF(W3=3,A$2*7,0)) -> 9.4375 | U3: =SUM(G5:G7) -> 2 | V3: Alan Rogers | W3: =SUM(F5:F7) -> 3 | Y3: =X5 -> 1.875 | Z3: =X6 -> 1.25 | AA3: =X7 -> 2.5 | AB3: =IF(Y3=0,0,1)+Y3 -> 2.875 | AC3: =IF(Z3=0,0,1)+Z3 -> 2.25 | AD3: =IF(AA3=0,0,1)+AA3 -> 3.5 | AE3: =IF(Z3=0,0,(AB3*Z3)+AB3) -> 6.46875 | AF3: =IF(AA3=0,0,(AC3*AA3)+AC3) -> 7.875 | AG3: =IF(Y3=0,0,(AD3*Y3)+AD3) -> 10.0625 | AH3: =IF(AA3=0,0,(AE3*AA3)+AE3) -> 22.640625 | AI3: =SUM(AB3:AH3)-7 -> 48.671875 | AJ3: =$V3 -> Alan Rogers
C4: =Picks!B4 ->  | D4: =Picks!C4 ->  | E4: =Picks!D4 ->  | F4: 1 | G4: =Picks!M4 ->  | I4: Alan White | J4: =H8 -> 0 | K4: =H9 -> 0 | L4: =H10 -> 0 | M4: 0 | N4: 0 | O4: 0 | P4: 0 | Q4: 0 | R4: 0 | S4: =IF(L4=0,0,(P4*L4)+P4) -> 0 | T4: -7 | U4: =SUM(G8:G10) -> 0 | V4: Alan White | W4: =SUM(F8:F10) -> 3 | Y4: =X8 -> 0.9090909091 | Z4: =X9 -> 0.7 | AA4: =X10 -> 1.25 | AB4: 1.909090909 | AC4: 1.7 | AD4: 2.25 | AE4: =IF(Z4=0,0,(AB4*Z4)+AB4) -> 3.245454545 | AF4: =IF(AA4=0,0,(AC4*AA4)+AC4) -> 3.825 | AG4: =IF(Y4=0,0,(AD4*Y4)+AD4) -> 4.295454545 | AH4: =IF(AA4=0,0,(AE4*AA4)+AE4) -> 7.302272727 | AI4: =SUM(AB4:AH4)-7 -> 17.52727273 | AJ4: Alan White
B5: =$V3 -> Alan Rogers | C5: =Picks!B5 -> Cheltenham | D5: =Picks!C5 -> 15/8 | E5: =Picks!D5 -> 2.875 | F5: 1 | G5: =Picks!M5 -> 1 | H5: 1.875 | I5: Alfie Davies | J5: =H11 -> 0.1428571429 | K5: =H12 -> 0.27 | L5: =H13 -> 2.363636364 | M5: 1.142857143 | N5: 1.27 | O5: 3.363636364 | P5: 1.451428571 | Q5: 4.271818182 | R5: 3.844155844 | S5: 4.882077922 | T5: 13.22597403 | U5: =SUM(G11:G13) -> 3 | V5: Alfie Davies | W5: =SUM(F11:F13) -> 3 | X5: 1.875 | Y5: =X11 -> 0.1428571429 | Z5: =X12 -> 0.27 | AA5: =X13 -> 2.363636364 | AB5: 1.142857143 | AC5: 1.27 | AD5: 3.363636364 | AE5: 1.451428571 | AF5: 4.271818182 | AG5: 3.844155844 | AH5: 4.882077922 | AI5: 13.22597403 | AJ5: Alfie Davies
C6: =Picks!B6 -> Salford | D6: =Picks!C6 -> 5/4 | E6: =Picks!D6 -> 2.25 | F6: 1 | G6: =Picks!M6 -> 0 | H6: 0 | I6: Alick Rocca | J6: =H14 -> 0 | K6: =H15 -> 0.9090909091 | L6: =H16 -> 1.15 | M6: 0 | N6: 1.909090909 | O6: 2.15 | P6: 0 | Q6: 4.104545455 | R6: 0 | S6: 0 | T6: 1.163636364 | U6: =SUM(G14:G16) -> 2 | V6: Alick Rocca | W6: =SUM(F14:F16) -> 3 | X6: 1.25 | Y6: =X14 -> 0.7 | Z6: =X15 -> 0.9090909091 | AA6: =X16 -> 1.15 | AB6: 1.7 | AC6: 1.909090909 | AD6: 2.15 | AE6: 3.245454545 | AF6: 4.104545455 | AG6: 3.655 | AH6: 6.977727273 | AI6: 16.74181818 | AJ6: Alick Rocca
C7: =Picks!B7 -> Grimsby draw | D7: =Picks!C7 -> 5/2 | E7: =Picks!D7 -> 3.5 | F7: 1 | G7: =Picks!M7 -> 1 | H7: 2.5 | I7: Andy Charleston | J7: =H17 -> 0 | K7: =H18 -> 0.27 | L7: =H19 -> 0 | M7: 0 | N7: 1.27 | O7: 0 | P7: 0 | Q7: 0 | R7: 0 | S7: 0 | T7: -5.73 | U7: =SUM(G17:G19) -> 1 | V7: Andy Charleston | W7: =SUM(F17:F19) -> 3 | X7: 2.5 | Y7: =X17 -> 0.9090909091 | Z7: =X18 -> 0.27 | AA7: =X19 -> 0.9090909091 | AB7: 1.909090909 | AC7: 1.27 | AD7: 1.909090909 | AE7: 2.424545455 | AF7: 2.424545455 | AG7: 3.644628099 | AH7: 4.628677686 | AI7: 11.21057851 | AJ7: Andy Charleston
B8: =$V4 -> Alan White | C8: =Picks!B8 -> Watford | D8: =Picks!C8 -> 10/11 | E8: =Picks!D8 -> 1.909090909 | F8: 1 | G8: =Picks!M8 -> 0 | H8: 0 | I8: Andy White | J8: =H20 -> 0 | K8: =H21 -> 0 | L8: =H22 -> 0.8181818182 | M8: 0 | N8: 0 | O8: 1.818181818 | P8: 0 | Q8: 0 | R8: 0 | S8: 0 | T8: -5.181818182 | U8: =SUM(G20:G22) -> 1 | V8: Andy White | W8: =SUM(F20:F22) -> 3 | X8: 0.9090909091 | Y8: =X20 -> 0.9090909091 | Z8: =X21 -> 1.5 | AA8: =X22 -> 0.8181818182 | AB8: 1.909090909 | AC8: 2.5 | AD8: 1.818181818 | AE8: 4.772727273 | AF8: 4.545454545 | AG8: 3.47107438 | AH8: 8.67768595 | AI8: 20.69421488 | AJ8: Andy White
C9: =Picks!B9 -> Leeds | D9: =Picks!C9 -> 7/10 | E9: =Picks!D9 -> 1.7 | F9: 1 | G9: =Picks!M9 -> 0 | H9: 0 | I9: Antony Robinson | J9: =H23 -> 0.1428571429 | K9: =H24 -> 0 | L9: =H25 -> 0 | M9: 1.142857143 | N9: 0 | O9: 0 | P9: 0 | Q9: 0 | R9: 0 | S9: 0 | T9: -5.857142857 | U9: =SUM(G23:G25) -> 1 | V9: Antony Robinson | W9: =SUM(F23:F25) -> 3 | X9: 0.7 | Y9: =X23 -> 0.1428571429 | Z9: =X24 -> 3 | AA9: =X25 -> 0.7 | AB9: 1.142857143 | AC9: 4 | AD9: 1.7 | AE9: 4.571428571 | AF9: 6.8 | AG9: 1.942857143 | AH9: 7.771428571 | AI9: 20.92857143 | AJ9: Antony Robinson
C10: =Picks!B10 -> Salford | D10: =Picks!C10 -> 5/4 | E10: =Picks!D10 -> 2.25 | F10: 1 | G10: =Picks!M10 -> 0 | H10: 0 | I10: Ashley Houghton | J10: =H26 -> 0 | K10: =H27 -> 0 | L10: =H28 -> 0 | M10: 0 | N10: 0 | O10: 0 | P10: 0 | Q10: 0 | R10: 0 | S10: 0 | T10: -7 | U10: =SUM(G26:G28) -> 0 | V10: Ashley Houghton | W10: =SUM(F26:F28) -> 3 | X10: 1.25 | Y10: =X26 -> 0.9090909091 | Z10: =X27 -> 1.15 | AA10: =X28 -> 0.7 | AB10: 1.909090909 | AC10: 2.15 | AD10: 1.7 | AE10: 4.104545455 | AF10: 3.655 | AG10: 3.245454545 | AH10: 6.977727273 | AI10: 16.74181818 | AJ10: Ashley Houghton
B11: =$V5 -> Alfie Davies | C11: =Picks!B11 -> Liverpool | D11: =Picks!C11 -> 1/7 | E11: =Picks!D11 -> 1.142857143 | F11: 1 | G11: =Picks!M11 -> 1 | H11: 0.1428571429 | I11: Barry Birchall | J11: =H29 -> 0 | K11: =H30 -> 0.78 | L11: =H31 -> 0 | M11: 0 | N11: 1.78 | O11: 0 | P11: 0 | Q11: 0 | R11: 0 | S11: 0 | T11: -5.22 | U11: =SUM(G29:G31) -> 1 | V11: Barry Birchall | W11: =SUM(F29:F31) -> 3 | X11: 0.1428571429 | Y11: =X29 -> 0.9090909091 | Z11: =X30 -> 0.78 | AA11: =X31 -> 0.7 | AB11: 1.909090909 | AC11: 1.78 | AD11: 1.7 | AE11: 3.398181818 | AF11: 3.026 | AG11: 3.245454545 | AH11: 5.776909091 | AI11: 13.83563636 | AJ11: Barry Birchall
C12: =Picks!B12 -> Spurs | D12: =Picks!C12 -> 27/100 | E12: =Picks!D12 -> 1.27 | F12: 1 | G12: =Picks!M12 -> 1 | H12: 0.27 | I12: Ben Rosser | J12: =H32 -> 0 | K12: =H33 -> 0 | L12: =H34 -> 0 | M12: 0 | N12: 0 | O12: 0 | P12: 0 | Q12: 0 | R12: 0 | S12: 0 | T12: -7 | U12: =SUM(G32:G34) -> 0 | V12: Ben Rosser | W12: =SUM(F32:F34) -> 3 | X12: 0.27 | Y12: =X32 -> 2.3 | Z12: =X33 -> 1.5 | AA12: =X34 -> 5 | AB12: 3.3 | AC12: 2.5 | AD12: 6 | AE12: 8.25 | AF12: 15 | AG12: 19.8 | AH12: 49.5 | AI12: 97.35 | AJ12: Ben Rosser
C13: =Picks!B13 -> Leicester Draw | D13: =Picks!C13 -> 26/11 | E13: =Picks!D13 -> 3.363636364 | F13: 1 | G13: =Picks!M13 -> 1 | H13: 2.363636364 | I13: Charlie Griffiths | J13: =H35 -> 0 | K13: =H36 -> 0 | L13: =H37 -> 1.9 | M13: 0 | N13: 0 | O13: 2.9 | P13: 0 | Q13: 0 | R13: 0 | S13: 0 | T13: -4.1 | U13: =SUM(G35:G37) -> 1 | V13: Charlie Griffiths | W13: =SUM(F35:F37) -> 3 | X13: 2.363636364 | Y13: =X35 -> 2.1 | Z13: =X36 -> 1.4 | AA13: =X37 -> 1.9 | AB13: 3.1 | AC13: 2.4 | AD13: 2.9 | AE13: 7.44 | AF13: 6.96 | AG13: 8.99 | AH13: 21.576 | AI13: 46.366 | AJ13: Charlie Griffiths
B14: =$V6 -> Alick Rocca | C14: =Picks!B14 -> Leeds | D14: =Picks!C14 -> 7/10 | E14: =Picks!D14 -> 1.7 | F14: 1 | G14: =Picks!M14 -> 0 | H14: 0 | I14: Chris Bow | J14: =H38 -> 0 | K14: =H39 -> 0 | L14: =H40 -> 0.9090909091 | M14: 0 | N14: 0 | O14: 1.909090909 | P14: 0 | Q14: 0 | R14: 0 | S14: 0 | T14: -5.090909091 | U14: =SUM(G38:G40) -> 1 | V14: Chris Bow | W14: =SUM(F38:F40) -> 3 | X14: 0.7 | Y14: =X38 -> 0.9090909091 | Z14: =X39 -> 0.9090909091 | AA14: =X40 -> 0.9090909091 | AB14: 1.909090909 | AC14: 1.909090909 | AD14: 1.909090909 | AE14: 3.644628099 | AF14: 3.644628099 | AG14: 3.644628099 | AH14: 6.957926371 | AI14: 16.6190834 | AJ14: Chris Bow
C15: =Picks!B15 -> Fleetwood | D15: =Picks!C15 -> 10/11 | E15: =Picks!D15 -> 1.909090909 | F15: 1 | G15: =Picks!M15 -> 1 | H15: 0.9090909091 | I15: Chris Griffin | J15: =H41 -> 0 | K15: =H42 -> 0 | L15: =H43 -> 0.78 | M15: 0 | N15: 0 | O15: 1.78 | P15: 0 | Q15: 0 | R15: 0 | S15: 0 | T15: -5.22 | U15: =SUM(G41:G43) -> 1 | V15: Chris Griffin | W15: =SUM(F41:F43) -> 3 | X15: 0.9090909091 | Y15: =X41 -> 1.15 | Z15: =X42 -> 0.7 | AA15: =X43 -> 0.78 | AB15: 2.15 | AC15: 1.7 | AD15: 1.78 | AE15: 3.655 | AF15: 3.026 | AG15: 3.827 | AH15: 6.5059 | AI15: 15.6439 | AJ15: Chris Griffin
C16: =Picks!B16 -> Plymouth | D16: =Picks!C16 -> 23/20 | E16: =Picks!D16 -> 2.15 | F16: 1 | G16: =Picks!M16 -> 1 | H16: 1.15 | I16: Chris Luck | J16: =H44 -> 0 | K16: =H45 -> 0 | L16: =H46 -> 0 | M16: 0 | N16: 0 | O16: 0 | P16: 0 | Q16: 0 | R16: 0 | S16: 0 | T16: -7 | U16: =SUM(G44:G46) -> 0 | V16: Chris Luck | W16: =SUM(F44:F46) -> 3 | X16: 1.15 | Y16: =X44 -> 1.8 | Z16: =X45 -> 1.5 | AA16: =X46 -> 1.35 | AB16: 2.8 | AC16: 2.5 | AD16: 2.35 | AE16: 7 | AF16: 5.875 | AG16: 6.58 | AH16: 16.45 | AI16: 36.555 | AJ16: Chris Luck
B17: =$V7 -> Andy Charleston | C17: =Picks!B17 -> Bournemouth | D17: =Picks!C17 -> 10/11 | E17: =Picks!D17 -> 1.909090909 | F17: 1 | G17: =Picks!M17 -> 0 | H17: 0 | I17: Chris Townsend | J17: =H47 -> 0 | K17: =H48 -> 0 | L17: =H49 -> 0 | M17: 0 | N17: 0 | O17: 0 | P17: 0 | Q17: 0 | R17: 0 | S17: 0 | T17: -7 | U17: =SUM(G47:G49) -> 0 | V17: Chris Townsend | W17: =SUM(F47:F49) -> 3 | X17: 0.9090909091 | Y17: =X47 -> 2.4 | Z17: =X48 -> 2.7 | AA17: =X49 -> 2.7 | AB17: 3.4 | AC17: 3.7 | AD17: 3.7 | AE17: 12.58 | AF17: 13.69 | AG17: 12.58 | AH17: 46.546 | AI17: 89.196 | AJ17: Chris Townsend
C18: =Picks!B18 -> Spurs | D18: =Picks!C18 -> 27/100 | E18: =Picks!D18 -> 1.27 | F18: 1 | G18: =Picks!M18 -> 1 | H18: 0.27 | I18: Dan Baxter | J18: =H50 -> 0 | K18: =H51 -> 0 | L18: =H52 -> 0 | M18: 0 | N18: 0 | O18: 0 | P18: 0 | Q18: 0 | R18: 0 | S18: 0 | T18: -7 | U18: =SUM(G50:G52) -> 0 | V18: Dan Baxter | W18: =SUM(F50:F52) -> 3 | X18: 0.27 | Y18: =X50 -> 7 | Z18: =X51 -> 0.9090909091 | AA18: =X52 -> 1.3 | AB18: 8 | AC18: 1.909090909 | AD18: 2.3 | AE18: 15.27272727 | AF18: 4.390909091 | AG18: 18.4 | AH18: 35.12727273 | AI18: 78.4 | AJ18: Dan Baxter
C19: =Picks!B19 -> Watford | D19: =Picks!C19 -> 10/11 | E19: =Picks!D19 -> 1.909090909 | F19: 1 | G19: =Picks!M19 -> 0 | H19: 0 | I19: Dave Bell | J19: =H53 -> 0 | K19: =H54 -> 0 | L19: =H55 -> 0 | M19: 0 | N19: 0 | O19: 0 | P19: 0 | Q19: 0 | R19: 0 | S19: 0 | T19: -7 | U19: =SUM(G53:G55) -> 0 | V19: Dave Bell | W19: =SUM(F53:F55) -> 3 | X19: 0.9090909091 | Y19: =X53 -> 18 | Z19: =X54 -> 10 | AA19: =X55 -> 11 | AB19: 19 | AC19: 11 | AD19: 12 | AE19: 209 | AF19: 132 | AG19: 228 | AH19: 2508 | AI19: 3112 | AJ19: Dave Bell
B20: =$V8 -> Andy White | C20: =Picks!B20 -> Watford | D20: =Picks!C20 -> 10/11 | E20: =Picks!D20 -> 1.909090909 | F20: 1 | G20: =Picks!M20 -> 0 | H20: 0 | I20: Dave Orrell | J20: =H56 -> 0 | K20: =H57 -> 0.9090909091 | L20: =H58 -> 0 | M20: 0 | N20: 1.909090909 | O20: 0 | P20: 0 | Q20: 0 | R20: 0 | S20: 0 | T20: -5.090909091 | U20: =SUM(G56:G58) -> 1 | V20: Dave Orrell | W20: =SUM(F56:F58) -> 3 | X20: 0.9090909091 | Y20: =X56 -> 1.35 | Z20: =X57 -> 0.9090909091 | AA20: =X58 -> 1.375 | AB20: 2.35 | AC20: 1.909090909 | AD20: 2.375 | AE20: 4.486363636 | AF20: 4.534090909 | AG20: 5.58125 | AH20: 10.65511364 | AI20: 24.89090909 | AJ20: Dave Orrell
C21: =Picks!B21 -> Everton | D21: =Picks!C21 -> 6/4 | E21: =Picks!D21 -> 2.5 | F21: 1 | G21: =Picks!M21 -> 0 | H21: 0 | I21: David Dunn | J21: =H59 -> 0 | K21: =H60 -> 0.8181818182 | L21: =H61 -> 0 | M21: 0 | N21: 1.818181818 | O21: 0 | P21: 0 | Q21: 0 | R21: 0 | S21: 0 | T21: -5.181818182 | U21: =SUM(G59:G61) -> 1 | V21: David Dunn | W21: =SUM(F59:F61) -> 3 | X21: 1.5 | Y21: =X59 -> 2.6 | Z21: =X60 -> 0.8181818182 | AA21: =X61 -> 0.9090909091 | AB21: 3.6 | AC21: 1.818181818 | AD21: 1.909090909 | AE21: 6.545454545 | AF21: 3.47107438 | AG21: 6.872727273 | AH21: 12.49586777 | AI21: 29.71239669 | AJ21: David Dunn
C22: =Picks!B22 -> Arsenal | D22: =Picks!C22 -> 9/11 | E22: =Picks!D22 -> 1.818181818 | F22: 1 | G22: =Picks!M22 -> 1 | H22: 0.8181818182 | I22: Gareth Fallows | J22: =H62 -> 0 | K22: =H63 -> 0.9090909091 | L22: =H64 -> 1.15 | M22: 0 | N22: 1.909090909 | O22: 2.15 | P22: 0 | Q22: 4.104545455 | R22: 0 | S22: 0 | T22: 1.163636364 | U22: =SUM(G62:G64) -> 2 | V22: Gareth Fallows | W22: =SUM(F62:F64) -> 3 | X22: 0.8181818182 | Y22: =X62 -> 1.35 | Z22: =X63 -> 0.9090909091 | AA22: =X64 -> 1.15 | AB22: 2.35 | AC22: 1.909090909 | AD22: 2.15 | AE22: 4.486363636 | AF22: 4.104545455 | AG22: 5.0525 | AH22: 9.645681818 | AI22: 22.69818182 | AJ22: Gareth Fallows
B23: =$V9 -> Antony Robinson | C23: =Picks!B23 -> Liverpool | D23: =Picks!C23 -> 1/7 | E23: =Picks!D23 -> 1.142857143 | F23: 1 | G23: =Picks!M23 -> 1 | H23: 0.1428571429 | I23: Gareth McGuire | J23: =H65 -> 0 | K23: =H66 -> 0 | L23: =H67 -> 0.6666666667 | M23: 0 | N23: 0 | O23: 1.666666667 | P23: 0 | Q23: 0 | R23: 0 | S23: 0 | T23: -5.333333333 | U23: =SUM(G65:G67) -> 1 | V23: Gareth McGuire | W23: =SUM(F65:F67) -> 3 | X23: 0.1428571429 | Y23: =X65 -> 0.9090909091 | Z23: =X66 -> 1.3 | AA23: =X67 -> 0.6666666667 | AB23: 1.909090909 | AC23: 2.3 | AD23: 1.666666667 | AE23: 4.390909091 | AF23: 3.833333333 | AG23: 3.181818182 | AH23: 7.318181818 | AI23: 17.6 | AJ23: Gareth McGuire
C24: =Picks!B24 -> Sheff U | D24: =Picks!C24 -> 3/1 | E24: =Picks!D24 -> 4 | F24: 1 | G24: =Picks!M24 -> 0 | H24: 0 | I24: Gareth Powell | J24: =H68 -> 0 | K24: =H69 -> 1.05 | L24: =H70 -> 0 | M24: 0 | N24: 2.05 | O24: 0 | P24: 0 | Q24: 0 | R24: 0 | S24: 0 | T24: -4.95 | U24: =SUM(G68:G70) -> 1 | V24: Gareth Powell | W24: =SUM(F68:F70) -> 3 | X24: 3 | Y24: =X68 -> 2.461538462 | Z24: =X69 -> 1.05 | AA24: =X70 -> 1.5 | AB24: 3.461538462 | AC24: 2.05 | AD24: 2.5 | AE24: 7.096153846 | AF24: 5.125 | AG24: 8.653846154 | AH24: 17.74038462 | AI24: 39.62692308 | AJ24: Gareth Powell
C25: =Picks!B25 -> Leeds | D25: =Picks!C25 -> 7/10 | E25: =Picks!D25 -> 1.7 | F25: 1 | G25: =Picks!M25 -> 0 | H25: 0 | I25: Gerard Ventom | J25: =H71 -> 1.55 | K25: =H72 -> 0 | L25: =H73 -> 0 | M25: 2.55 | N25: 0 | O25: 0 | P25: 0 | Q25: 0 | R25: 0 | S25: 0 | T25: -4.45 | U25: =SUM(G71:G73) -> 1 | V25: Gerard Ventom | W25: =SUM(F71:F73) -> 3 | X25: 0.7 | Y25: =X71 -> 1.55 | Z25: =X72 -> 1.8 | AA25: =X73 -> 2.7 | AB25: 2.55 | AC25: 2.8 | AD25: 3.7 | AE25: 7.14 | AF25: 10.36 | AG25: 9.435 | AH25: 26.418 | AI25: 55.403 | AJ25: Gerard Ventom
B26: =$V10 -> Ashley Houghton | C26: =Picks!B26 -> Watford | D26: =Picks!C26 -> 10/11 | E26: =Picks!D26 -> 1.909090909 | F26: 1 | G26: =Picks!M26 -> 0 | H26: 0 | I26: Graeme Holmes | J26: =H74 -> 0 | K26: =H75 -> 0 | L26: =H76 -> 0 | M26: 0 | N26: 0 | O26: 0 | P26: 0 | Q26: 0 | R26: 0 | S26: 0 | T26: -7 | U26: =SUM(G74:G76) -> 0 | V26: Graeme Holmes | W26: =SUM(F74:F76) -> 3 | X26: 0.9090909091 | Y26: =X74 -> 1.15 | Z26: =X75 -> 1.3 | AA26: =X76 -> 1.3 | AB26: 2.15 | AC26: 2.3 | AD26: 2.3 | AE26: 4.945 | AF26: 5.29 | AG26: 4.945 | AH26: 11.3735 | AI26: 26.3035 | AJ26: Graeme Holmes
C27: =Picks!B27 -> Derby | D27: =Picks!C27 -> 23/20 | E27: =Picks!D27 -> 2.15 | F27: 1 | G27: =Picks!M27 -> 0 | H27: 0 | I27: Graham Miller | J27: =H77 -> 2.1 | K27: =H78 -> 0.8 | L27: =H79 -> 0 | M27: 3.1 | N27: 1.8 | O27: 0 | P27: 5.58 | Q27: 0 | R27: 0 | S27: 0 | T27: 3.48 | U27: =SUM(G77:G79) -> 2 | V27: Graham Miller | W27: =SUM(F77:F79) -> 3 | X27: 1.15 | Y27: =X77 -> 2.1 | Z27: =X78 -> 0.8 | AA27: =X79 -> 1.3 | AB27: 3.1 | AC27: 1.8 | AD27: 2.3 | AE27: 5.58 | AF27: 4.14 | AG27: 7.13 | AH27: 12.834 | AI27: 29.884 | AJ27: Graham Miller
C28: =Picks!B28 -> Leeds | D28: =Picks!C28 -> 7/10 | E28: =Picks!D28 -> 1.7 | F28: 1 | G28: =Picks!M28 -> 0 | H28: 0 | I28: Howard Bradley | J28: =H80 -> 0 | K28: =H81 -> 0.6666666667 | L28: =H82 -> 1.05 | M28: 0 | N28: 1.666666667 | O28: 2.05 | P28: 0 | Q28: 3.416666667 | R28: 0 | S28: 0 | T28: 0.1333333333 | U28: =SUM(G80:G82) -> 2 | V28: Howard Bradley | W28: =SUM(F80:F82) -> 3 | X28: 0.7 | Y28: =X80 -> 0.7 | Z28: =X81 -> 0.6666666667 | AA28: =X82 -> 1.05 | AB28: 1.7 | AC28: 1.666666667 | AD28: 2.05 | AE28: 2.833333333 | AF28: 3.416666667 | AG28: 3.485 | AH28: 5.808333333 | AI28: 13.96 | AJ28: Howard Bradley
B29: =$V11 -> Barry Birchall | C29: =Picks!B29 -> Watford | D29: =Picks!C29 -> 10/11 | E29: =Picks!D29 -> 1.909090909 | F29: 1 | G29: =Picks!M29 -> 0 | H29: 0 | I29: Ian Davies | J29: =H83 -> 0 | K29: =H84 -> 0 | L29: =H85 -> 2.363636364 | M29: 0 | N29: 0 | O29: 3.363636364 | P29: 0 | Q29: 0 | R29: 0 | S29: 0 | T29: -3.636363636 | U29: =SUM(G83:G85) -> 1 | V29: Ian Davies | W29: =SUM(F83:F85) -> 3 | X29: 0.9090909091 | Y29: =X83 -> 2.3 | Z29: =X84 -> 0.7 | AA29: =X85 -> 2.363636364 | AB29: 3.3 | AC29: 1.7 | AD29: 3.363636364 | AE29: 5.61 | AF29: 5.718181818 | AG29: 11.1 | AH29: 18.87 | AI29: 42.66181818 | AJ29: Ian Davies
C30: =Picks!B30 -> Cardiff | D30: =Picks!C30 -> 78/100 | E30: =Picks!D30 -> 1.78 | F30: 1 | G30: =Picks!M30 -> 1 | H30: 0.78 | I30: Jack Walsh | J30: =H86 -> 0 | K30: =H87 -> 0 | L30: =H88 -> 0 | M30: 0 | N30: 0 | O30: 0 | P30: 0 | Q30: 0 | R30: 0 | S30: 0 | T30: -7 | U30: =SUM(G86:G88) -> 0 | V30: Jack Walsh | W30: =SUM(F86:F88) -> 3 | X30: 0.78 | Y30: =X86 -> 1.55 | Z30: =X87 -> 1.5 | AA30: =X88 -> 0.9090909091 | AB30: 2.55 | AC30: 2.5 | AD30: 1.909090909 | AE30: 6.375 | AF30: 4.772727273 | AG30: 4.868181818 | AH30: 12.17045455 | AI30: 28.14545455 | AJ30: Jack Walsh
C31: =Picks!B31 -> West Brom | D31: =Picks!C31 -> 7/10 | E31: =Picks!D31 -> 1.7 | F31: 1 | G31: =Picks!M31 -> 0 | H31: 0 | I31: James Bell | J31: =H89 -> 0 | K31: =H90 -> 0 | L31: =H91 -> 0 | M31: 0 | N31: 0 | O31: 0 | P31: 0 | Q31: 0 | R31: 0 | S31: 0 | T31: -7 | U31: =SUM(G89:G91) -> 0 | V31: James Bell | W31: =SUM(F89:F91) -> 3 | X31: 0.7 | Y31: =X89 -> 4.052631579 | Z31: =X90 -> 2.3 | AA31: =X91 -> 2.7 | AB31: 5.052631579 | AC31: 3.3 | AD31: 3.7 | AE31: 16.67368421 | AF31: 12.21 | AG31: 18.69473684 | AH31: 61.69263158 | AI31: 114.3236842 | AJ31: James Bell
B32: =$V12 -> Ben Rosser | C32: =Picks!B32 -> Burnley draw | D32: =Picks!C32 -> 23/10 | E32: =Picks!D32 -> 3.3 | F32: 1 | G32: =Picks!M32 -> 0 | H32: 0 | I32: Joel Bent | J32: =H92 -> 0 | K32: =H93 -> 0 | L32: =H94 -> 0 | M32: =IF(J32=0,0,1)+J32 -> 0 | N32: =IF(K32=0,0,1)+K32 -> 0 | O32: 0 | P32: 0 | Q32: 0 | R32: 0 | S32: 0 | T32: -7 | U32: =SUM(G92:G94) -> 0 | V32: Joel Bent | W32: =SUM(F92:F94) -> 3 | X32: 2.3 | Y32: =X92 -> 7 | Z32: =X93 -> 2.75 | AA32: =X94 -> 1.15 | AB32: 8 | AC32: 3.75 | AD32: 2.15 | AE32: 30 | AF32: 8.0625 | AG32: 17.2 | AH32: 64.5 | AI32: 126.6625 | AJ32: Joel Bent
C33: =Picks!B33 -> Everton | D33: =Picks!C33 -> 6/4 | E33: =Picks!D33 -> 2.5 | F33: 1 | G33: =Picks!M33 -> 0 | H33: 0 | I33: John Evans | J33: =H95 -> 0 | K33: =H96 -> 0 | L33: =H97 -> 0.6666666667 | M33: 0 | N33: 0 | O33: 1.666666667 | P33: 0 | Q33: 0 | R33: 0 | S33: 0 | T33: -5.333333333 | U33: =SUM(G95:G97) -> 1 | V33: John Evans | W33: =SUM(F95:F97) -> 3 | X33: 1.5 | Y33: =X95 -> 2.7 | Z33: =X96 -> 1.55 | AA33: =X97 -> 0.6666666667 | AB33: 3.7 | AC33: 2.55 | AD33: 1.666666667 | AE33: 9.435 | AF33: 4.25 | AG33: 6.166666667 | AH33: 15.725 | AI33: 36.49333333 | AJ33: John Evans
C34: =Picks!B34 -> West Ham draw | D34: =Picks!C34 -> 5/1 | E34: =Picks!D34 -> 6 | F34: 1 | G34: =Picks!M34 -> 0 | H34: =+((E34-1)*G34*F34*A$2) -> 0 | I34: John Robinson | J34: =H98 -> 0 | K34: =H99 -> 1.1 | L34: =H100 -> 0.9090909091 | M34: 0 | N34: 2.1 | O34: 1.909090909 | P34: 0 | Q34: 4.009090909 | R34: 0 | S34: 0 | T34: 1.018181818 | U34: =SUM(G98:G100) -> 2 | V34: John Robinson | W34: =SUM(F98:F100) -> 3 | X34: =+((E34-1)*F34*A$2) -> 5 | Y34: =X98 -> 5 | Z34: =X99 -> 1.1 | AA34: =X100 -> 0.9090909091 | AB34: 6 | AC34: 2.1 | AD34: 1.909090909 | AE34: 12.6 | AF34: 4.009090909 | AG34: 11.45454545 | AH34: 24.05454545 | AI34: 55.12727273 | AJ34: John Robinson
B35: =$V13 -> Charlie Griffiths | C35: =Picks!B35 -> Wycombe | D35: =Picks!C35 -> 21/10 | E35: =Picks!D35 -> 3.1 | F35: 1 | G35: =Picks!M35 -> 0 | H35: 0 | I35: John Ronan | J35: =H101 -> 2.1 | K35: =H102 -> 0 | L35: =H103 -> 0 | M35: 3.1 | N35: 0 | O35: 0 | P35: 0 | Q35: 0 | R35: 0 | S35: 0 | T35: -3.9 | U35: =SUM(G101:G103) -> 1 | V35: John Ronan | W35: =SUM(F101:F103) -> 3 | X35: 2.1 | Y35: =X101 -> 2.1 | Z35: =X102 -> 1.625 | AA35: =X103 -> 1.625 | AB35: 3.1 | AC35: 2.625 | AD35: 2.625 | AE35: 8.1375 | AF35: 6.890625 | AG35: 8.1375 | AH35: 21.3609375 | AI35: 45.8765625 | AJ35: John Ronan
C36: =Picks!B36 -> Orient | D36: =Picks!C36 -> 7/5 | E36: =Picks!D36 -> 2.4 | F36: 1 | G36: =Picks!M36 -> 0 | H36: 0 | I36: Kei Lok Ma | J36: =H104 -> 1.55 | K36: =H105 -> 2.3 | L36: =H106 -> 0 | M36: 2.55 | N36: 3.3 | O36: 0 | P36: 8.415 | Q36: 0 | R36: 0 | S36: 0 | T36: 7.265 | U36: =SUM(G104:G106) -> 2 | V36: Kei Lok Ma | W36: =SUM(F104:F106) -> 3 | X36: 1.4 | Y36: =X104 -> 1.55 | Z36: =X105 -> 2.3 | AA36: =X106 -> 1.3 | AB36: 2.55 | AC36: 3.3 | AD36: 2.3 | AE36: 8.415 | AF36: 7.59 | AG36: 5.865 | AH36: 19.3545 | AI36: 42.3745 | AJ36: Kei Lok Ma
C37: =Picks!B37 -> Crewe | D37: =Picks!C37 -> 19/10 | E37: =Picks!D37 -> 2.9 | F37: 1 | G37: =Picks!M37 -> 1 | H37: 1.9 | I37: Kevin Carter | J37: =H107 -> 0 | K37: =H108 -> 0 | L37: =H109 -> 0 | M37: 0 | N37: 0 | O37: 0 | P37: 0 | Q37: 0 | R37: 0 | S37: 0 | T37: -7 | U37: =SUM(G107:G109) -> 0 | V37: Kevin Carter | W37: =SUM(F107:F109) -> 3 | X37: 1.9 | Y37: =X107 -> 4.8 | Z37: =X108 -> 2.4 | AA37: =X109 -> 2.9 | AB37: 5.8 | AC37: 3.4 | AD37: 3.9 | AE37: 19.72 | AF37: 13.26 | AG37: 22.62 | AH37: 76.908 | AI37: 138.608 | AJ37: Kevin Carter
B38: =$V14 -> Chris Bow | C38: =Picks!B38 -> Bournemouth | D38: =Picks!C38 -> 10/11 | E38: =Picks!D38 -> 1.909090909 | F38: 1 | G38: =Picks!M38 -> 0 | H38: 0 | I38: Lennie Bow | J38: =H110 -> 0 | K38: =H111 -> 1.153846154 | L38: =H112 -> 0 | M38: 0 | N38: 2.153846154 | O38: 0 | P38: 0 | Q38: 0 | R38: 0 | S38: 0 | T38: -4.846153846 | U38: =SUM(G110:G112) -> 1 | V38: Lennie Bow | W38: =SUM(F110:F112) -> 3 | X38: 0.9090909091 | Y38: =X110 -> 0.7 | Z38: =X111 -> 1.153846154 | AA38: =X112 -> 0.7 | AB38: 1.7 | AC38: 2.153846154 | AD38: 1.7 | AE38: 3.661538462 | AF38: 3.661538462 | AG38: 2.89 | AH38: 6.224615385 | AI38: 14.99153846 | AJ38: Lennie Bow
C39: =Picks!B39 -> Watford | D39: =Picks!C39 -> 10/11 | E39: =Picks!D39 -> 1.909090909 | F39: 1 | G39: =Picks!M39 -> 0 | H39: 0 | I39: Lewis Buckley | J39: =H113 -> 0 | K39: =H114 -> 0 | L39: =H115 -> 0.6666666667 | M39: 0 | N39: 0 | O39: 1.666666667 | P39: 0 | Q39: 0 | R39: 0 | S39: 0 | T39: -5.333333333 | U39: =SUM(G113:G115) -> 1 | V39: Lewis Buckley | W39: =SUM(F113:F115) -> 3 | X39: 0.9090909091 | Y39: =X113 -> 0.9090909091 | Z39: =X114 -> 0.7 | AA39: =X115 -> 0.6666666667 | AB39: 1.909090909 | AC39: 1.7 | AD39: 1.666666667 | AE39: 3.245454545 | AF39: 2.833333333 | AG39: 3.181818182 | AH39: 5.409090909 | AI39: 12.94545455 | AJ39: Lewis Buckley
C40: =Picks!B40 -> Fleetwood | D40: =Picks!C40 -> 10/11 | E40: =Picks!D40 -> 1.909090909 | F40: 1 | G40: =Picks!M40 -> 1 | H40: 0.9090909091 | I40: Liam Wah | J40: =H116 -> 2.3 | K40: =H117 -> 0 | L40: =H118 -> 0 | M40: 3.3 | N40: 0 | O40: 0 | P40: 0 | Q40: 0 | R40: 0 | S40: 0 | T40: -3.7 | U40: =SUM(G116:G118) -> 1 | V40: Liam Wah | W40: =SUM(F116:F118) -> 3 | X40: 0.9090909091 | Y40: =X116 -> 2.3 | Z40: =X117 -> 1.625 | AA40: =X118 -> 2.461538462 | AB40: 3.3 | AC40: 2.625 | AD40: 3.461538462 | AE40: 8.6625 | AF40: 9.086538462 | AG40: 11.42307692 | AH40: 29.98557692 | AI40: 61.54423077 | AJ40: Liam Wah
B41: =$V15 -> Chris Griffin | C41: =Picks!B41 -> Derby | D41: =Picks!C41 -> 23/20 | E41: =Picks!D41 -> 2.15 | F41: 1 | G41: =Picks!M41 -> 0 | H41: 0 | I41: Mal Stott | J41: =H119 -> 0 | K41: =H120 -> 0.6666666667 | L41: =H121 -> 0.8 | M41: 0 | N41: 1.666666667 | O41: 1.8 | P41: 0 | Q41: 3 | R41: 0 | S41: 0 | T41: -0.5333333333 | U41: =SUM(G119:G121) -> 2 | V41: Mal Stott | W41: =SUM(F119:F121) -> 3 | X41: 1.15 | Y41: =X119 -> 1.2 | Z41: =X120 -> 0.6666666667 | AA41: =X121 -> 0.8 | AB41: 2.2 | AC41: 1.666666667 | AD41: 1.8 | AE41: 3.666666667 | AF41: 3 | AG41: 3.96 | AH41: 6.6 | AI41: 15.89333333 | AJ41: Mal Stott
C42: =Picks!B42 -> West Brom | D42: =Picks!C42 -> 7/10 | E42: =Picks!D42 -> 1.7 | F42: 1 | G42: =Picks!M42 -> 0 | H42: 0 | I42: Mark Bunn | J42: =H122 -> 0 | K42: =H123 -> 0 | L42: =H124 -> 1.5 | M42: 0 | N42: 0 | O42: 2.5 | P42: 0 | Q42: 0 | R42: 0 | S42: 0 | T42: -4.5 | U42: =SUM(G122:G124) -> 1 | V42: Mark Bunn | W42: =SUM(F122:F124) -> 3 | X42: 0.7 | Y42: =X122 -> 1.3 | Z42: =X123 -> 1.55 | AA42: =X124 -> 1.5 | AB42: 2.3 | AC42: 2.55 | AD42: 2.5 | AE42: 5.865 | AF42: 6.375 | AG42: 5.75 | AH42: 14.6625 | AI42: 33.0025 | AJ42: Mark Bunn
C43: =Picks!B43 -> Cardiff | D43: =Picks!C43 -> 78/100 | E43: =Picks!D43 -> 1.78 | F43: 1 | G43: =Picks!M43 -> 1 | H43: 0.78 | I43: Mark Saunders | J43: =H125 -> 0 | K43: =H126 -> 0.8 | L43: =H127 -> 0 | M43: 0 | N43: 1.8 | O43: 0 | P43: 0 | Q43: 0 | R43: 0 | S43: 0 | T43: -5.2 | U43: =SUM(G125:G127) -> 1 | V43: Mark Saunders | W43: =SUM(F125:F127) -> 3 | X43: 0.78 | Y43: =X125 -> 0.9090909091 | Z43: =X126 -> 0.8 | AA43: =X127 -> 1.3 | AB43: 1.909090909 | AC43: 1.8 | AD43: 2.3 | AE43: 3.436363636 | AF43: 4.14 | AG43: 4.390909091 | AH43: 7.903636364 | AI43: 18.88 | AJ43: Mark Saunders
B44: =$V16 -> Chris Luck | C44: =Picks!B44 -> Southampton | D44: =Picks!C44 -> 9/5 | E44: =Picks!D44 -> 2.8 | F44: 1 | G44: =Picks!M44 -> 0 | H44: =+((E44-1)*G44*F44*A$2) -> 0 | I44: Martin Molyneux | J44: =H128 -> 0 | K44: =H129 -> 0 | L44: =H130 -> 0 | M44: 0 | N44: 0 | O44: 0 | P44: 0 | Q44: 0 | R44: 0 | S44: 0 | T44: =SUM(M44:S44)-(IF(W44=1,A$2*1,0))-(IF(W44=2,A$2*3,0))-(IF(W44=3,A$2*7,0)) -> -7 | U44: =SUM(G128:G130) -> 0 | V44: Martin Molyneux | W44: =SUM(F128:F130) -> 3 | X44: 1.8 | Y44: =X128 -> 1.3 | Z44: =X129 -> 1.15 | AA44: =X130 -> 2.461538462 | AB44: 2.3 | AC44: 2.15 | AD44: 3.461538462 | AE44: 4.945 | AF44: 7.442307692 | AG44: 7.961538462 | AH44: 17.11730769 | AI44: 38.37769231 | AJ44: Martin Molyneux
C45: =Picks!B45 -> Everton | D45: =Picks!C45 -> 6/4 | E45: =Picks!D45 -> 2.5 | F45: 1 | G45: =Picks!M45 -> 0 | H45: 0 | I45: Martin Tarbuck | J45: =H131 -> 0 | K45: =H132 -> 1.15 | L45: =H133 -> 0.25 | M45: 0 | N45: 2.15 | O45: 1.25 | P45: 0 | Q45: 2.6875 | R45: 0 | S45: 0 | T45: -0.9125 | U45: =SUM(G131:G133) -> 2 | V45: Martin Tarbuck | W45: =SUM(F131:F133) -> 3 | X45: 1.5 | Y45: =X131 -> 1.375 | Z45: =X132 -> 1.15 | AA45: =X133 -> 0.25 | AB45: 2.375 | AC45: 2.15 | AD45: 1.25 | AE45: 5.10625 | AF45: 2.6875 | AG45: 2.96875 | AH45: 6.3828125 | AI45: 15.9203125 | AJ45: Martin Tarbuck
C46: =Picks!B46 -> Birmingham | D46: =Picks!C46 -> 27/20 | E46: =Picks!D46 -> 2.35 | F46: 1 | G46: =Picks!M46 -> 0 | H46: 0 | I46: Mike Penk | J46: =H134 -> 0.6666666667 | K46: =H135 -> 0 | L46: =H136 -> 2.1 | M46: 1.666666667 | N46: 0 | O46: 3.1 | P46: 0 | Q46: 0 | R46: 5.166666667 | S46: 0 | T46: 2.933333333 | U46: =SUM(G134:G136) -> 2 | V46: Mike Penk | W46: =SUM(F134:F136) -> 3 | X46: 1.35 | Y46: =X134 -> 0.6666666667 | Z46: =X135 -> 2.7 | AA46: =X136 -> 2.1 | AB46: 1.666666667 | AC46: 3.7 | AD46: 3.1 | AE46: 6.166666667 | AF46: 11.47 | AG46: 5.166666667 | AH46: 19.11666667 | AI46: 43.38666667 | AJ46: Mike Penk
B47: =$V17 -> Chris Townsend | C47: =Picks!B47 -> Swansea | D47: =Picks!C47 -> 12/5 | E47: =Picks!D47 -> 3.4 | F47: 1 | G47: =Picks!M47 -> 0 | H47: 0 | I47: Mo Sudell | J47: =H137 -> 1.5 | K47: =H138 -> 0 | L47: =H139 -> 0 | M47: 2.5 | N47: 0 | O47: 0 | P47: 0 | Q47: 0 | R47: 0 | S47: 0 | T47: -4.5 | U47: =SUM(G137:G139) -> 1 | V47: Mo Sudell | W47: =SUM(F137:F139) -> 3 | X47: 2.4 | Y47: =X137 -> 1.5 | Z47: =X138 -> 0.7 | AA47: =X139 -> 0.7 | AB47: 2.5 | AC47: 1.7 | AD47: 1.7 | AE47: 4.25 | AF47: 2.89 | AG47: 4.25 | AH47: 7.225 | AI47: 17.515 | AJ47: Mo Sudell
C48: =Picks!B48 -> Reading | D48: =Picks!C48 -> 27/10 | E48: =Picks!D48 -> 3.7 | F48: 1 | G48: =Picks!M48 -> 0 | H48: 0 | I48: Nick Blocksidge | J48: =H140 -> 0 | K48: =H141 -> 1.55 | L48: =H142 -> 0 | M48: 0 | N48: 2.55 | O48: 0 | P48: 0 | Q48: 0 | R48: 0 | S48: 0 | T48: -4.45 | U48: =SUM(G140:G142) -> 1 | V48: Nick Blocksidge | W48: =SUM(F140:F142) -> 3 | X48: 2.7 | Y48: =X140 -> 0.9090909091 | Z48: =X141 -> 1.55 | AA48: =X142 -> 1.15 | AB48: 1.909090909 | AC48: 2.55 | AD48: 2.15 | AE48: 4.868181818 | AF48: 5.4825 | AG48: 4.104545455 | AH48: 10.46659091 | AI48: 24.53090909 | AJ48: Nick Blocksidge
C49: =Picks!B49 -> Barnsley | D49: =Picks!C49 -> 27/10 | E49: =Picks!D49 -> 3.7 | F49: 1 | G49: =Picks!M49 -> 0 | H49: 0 | I49: Nigel Heyes | J49: =H143 -> 0.78 | K49: =H144 -> 0 | L49: =H145 -> 0 | M49: 1.78 | N49: 0 | O49: 0 | P49: 0 | Q49: 0 | R49: 0 | S49: 0 | T49: -5.22 | U49: =SUM(G143:G145) -> 1 | V49: Nigel Heyes | W49: =SUM(F143:F145) -> 3 | X49: 2.7 | Y49: =X143 -> 0.78 | Z49: =X144 -> 1.3 | AA49: =X145 -> 2.7 | AB49: 1.78 | AC49: 2.3 | AD49: 3.7 | AE49: 4.094 | AF49: 8.51 | AG49: 6.586 | AH49: 15.1478 | AI49: 35.1178 | AJ49: Nigel Heyes
B50: =$V18 -> Dan Baxter | C50: =Picks!B50 -> Liverpool draw | D50: =Picks!C50 -> 7/1 | E50: =Picks!D50 -> 8 | F50: 1 | G50: =Picks!M50 -> 0 | H50: 0 | I50: Oscar Jackson | J50: =H146 -> 0 | K50: =H147 -> 0 | L50: =H148 -> 0 | M50: 0 | N50: 0 | O50: 0 | P50: 0 | Q50: 0 | R50: 0 | S50: 0 | T50: -7 | U50: =SUM(G146:G148) -> 0 | V50: Oscar Jackson | W50: =SUM(F146:F148) -> 3 | X50: 7 | Y50: =X146 -> 2.7 | Z50: =X147 -> 1.25 | AA50: =X148 -> 0.7 | AB50: 3.7 | AC50: 2.25 | AD50: 1.7 | AE50: 8.325 | AF50: 3.825 | AG50: 6.29 | AH50: 14.1525 | AI50: 33.2425 | AJ50: Oscar Jackson
C51: =Picks!B51 -> Watford | D51: =Picks!C51 -> 10/11 | E51: =Picks!D51 -> 1.909090909 | F51: 1 | G51: =Picks!M51 -> 0 | H51: 0 | I51: Paul Adderley | J51: =H149 -> 0 | K51: =H150 -> 1.55 | L51: =H151 -> 0 | M51: 0 | N51: 2.55 | O51: 0 | P51: 0 | Q51: 0 | R51: 0 | S51: 0 | T51: -4.45 | U51: =SUM(G149:G151) -> 1 | V51: Paul Adderley | W51: =SUM(F149:F151) -> 3 | X51: 0.9090909091 | Y51: =X149 -> 0.9090909091 | Z51: =X150 -> 1.55 | AA51: =X151 -> 0.9090909091 | AB51: 1.909090909 | AC51: 2.55 | AD51: 1.909090909 | AE51: 4.868181818 | AF51: 4.868181818 | AG51: 3.644628099 | AH51: 9.293801653 | AI51: 22.04297521 | AJ51: Paul Adderley
C52: =Picks!B52 -> Stoke | D52: =Picks!C52 -> 13/10 | E52: =Picks!D52 -> 2.3 | F52: 1 | G52: =Picks!M52 -> 0 | H52: 0 | I52: Paul Allen | J52: =H152 -> 0 | K52: =H153 -> 0 | L52: =H154 -> 0.78 | M52: 0 | N52: 0 | O52: 1.78 | P52: 0 | Q52: 0 | R52: 0 | S52: 0 | T52: -5.22 | U52: =SUM(G152:G154) -> 1 | V52: Paul Allen | W52: =SUM(F152:F154) -> 3 | X52: 1.3 | Y52: =X152 -> 0.9090909091 | Z52: =X153 -> 0.9090909091 | AA52: =X154 -> 0.78 | AB52: 1.909090909 | AC52: 1.909090909 | AD52: 1.78 | AE52: 3.644628099 | AF52: 3.398181818 | AG52: 3.398181818 | AH52: 6.487438017 | AI52: 15.52661157 | AJ52: Paul Allen
B53: =$V19 -> Dave Bell | C53: =Picks!B53 -> Norwich | D53: =Picks!C53 -> 18/1 | E53: =Picks!D53 -> 19 | F53: 1 | G53: =Picks!M53 -> 0 | H53: 0 | I53: Paul Barnes | J53: =H155 ->  | K53: =H156 ->  | L53: =H157 ->  | U53: =SUM(G155:G157) ->  | V53: Paul Barnes | W53: =SUM(F155:F157) -> 3 | X53: 18 | Y53: =X155 ->  | Z53: =X156 ->  | AA53: =X157 ->  | AJ53: Paul Barnes
C54: =Picks!B54 -> Villa | D54: =Picks!C54 -> 10/1 | E54: =Picks!D54 -> 11 | F54: 1 | G54: =Picks!M54 -> 0 | H54: 0 | I54: Paul Fairhurst | J54: =H158 -> 0.78 | K54: =H159 -> 2.3 | L54: =H160 -> 0 | M54: 1.78 | N54: 3.3 | O54: 0 | P54: 5.874 | Q54: 0 | R54: 0 | S54: 0 | T54: 3.954 | U54: =SUM(G158:G160) -> 2 | V54: Paul Fairhurst | W54: =SUM(F158:F160) -> 3 | X54: 10 | Y54: =X158 -> 0.78 | Z54: =X159 -> 2.3 | AA54: =X160 -> 1.2 | AB54: 1.78 | AC54: 3.3 | AD54: 2.2 | AE54: 5.874 | AF54: 7.26 | AG54: 3.916 | AH54: 12.9228 | AI54: 30.2528 | AJ54: Paul Fairhurst
C55: =Picks!B55 -> West Ham | D55: =Picks!C55 -> 11/1 | E55: =Picks!D55 -> 12 | F55: 1 | G55: =Picks!M55 -> 0 | H55: 0 | I55: Paul Fiddler | J55: =H161 -> 1.05 | K55: =H162 -> 0 | L55: =H163 -> 0 | M55: 2.05 | N55: 0 | O55: 0 | P55: 0 | Q55: 0 | R55: 0 | S55: 0 | T55: -4.95 | U55: =SUM(G161:G163) -> 1 | V55: Paul Fiddler | W55: =SUM(F161:F163) -> 3 | X55: 11 | Y55: =X161 -> 1.05 | Z55: =X162 -> 1.15 | AA55: =X163 -> 2.7 | AB55: 2.05 | AC55: 2.15 | AD55: 3.7 | AE55: 4.4075 | AF55: 7.955 | AG55: 7.585 | AH55: 16.30775 | AI55: 37.15525 | AJ55: Paul Fiddler
B56: =$V20 -> Dave Orrell | C56: =Picks!B56 -> Birmingham | D56: =Picks!C56 -> 27/20 | E56: =Picks!D56 -> 2.35 | F56: 1 | G56: =Picks!M56 -> 0 | H56: 0 | I56: Paul Ridgeway | J56: =H164 -> 0 | K56: =H165 -> 0.8 | L56: =H166 -> 1.05 | M56: 0 | N56: 1.8 | O56: 2.05 | P56: 0 | Q56: 3.69 | R56: 0 | S56: 0 | T56: 0.54 | U56: =SUM(G164:G166) -> 2 | V56: Paul Ridgeway | W56: =SUM(F164:F166) -> 3 | X56: 1.35 | Y56: =X164 -> 1.15 | Z56: =X165 -> 0.8 | AA56: =X166 -> 1.05 | AB56: 2.15 | AC56: 1.8 | AD56: 2.05 | AE56: 3.87 | AF56: 3.69 | AG56: 4.4075 | AH56: 7.9335 | AI56: 18.901 | AJ56: Paul Ridgeway
C57: =Picks!B57 -> Fleetwood | D57: =Picks!C57 -> 10/11 | E57: =Picks!D57 -> 1.909090909 | F57: 1 | G57: =Picks!M57 -> 1 | H57: 0.9090909091 | I57: Pete Baron | J57: =H167 ->  | K57: =H168 ->  | L57: =H169 ->  | U57: =SUM(G167:G169) ->  | V57: Pete Baron | W57: =SUM(F167:F169) -> 3 | X57: 0.9090909091 | Y57: =X167 ->  | Z57: =X168 ->  | AA57: =X169 ->  | AJ57: Pete Baron
C58: =Picks!B58 -> Walsall | D58: =Picks!C58 -> 11/8 | E58: =Picks!D58 -> 2.375 | F58: 1 | G58: =Picks!M58 -> 0 | H58: 0 | I58: Phil Miller | J58: =H170 -> 0 | K58: =H171 -> 0.25 | L58: =H172 -> 0.8 | M58: 0 | N58: 1.25 | O58: 1.8 | P58: 0 | Q58: 2.25 | R58: 0 | S58: 0 | T58: -1.7 | U58: =SUM(G170:G172) -> 2 | V58: Phil Miller | W58: =SUM(F170:F172) -> 3 | X58: 1.375 | Y58: =X170 -> 2.1 | Z58: =X171 -> 0.25 | AA58: =X172 -> 0.8 | AB58: 3.1 | AC58: 1.25 | AD58: 1.8 | AE58: 3.875 | AF58: 2.25 | AG58: 5.58 | AH58: 6.975 | AI58: 17.83 | AJ58: Phil Miller
B59: =$V21 -> David Dunn | C59: =Picks!B59 -> Chelsea | D59: =Picks!C59 -> 13/5 | E59: =Picks!D59 -> 3.6 | F59: 1 | G59: =Picks!M59 -> 0 | H59: 0 | I59: Rob England | J59: =H173 -> 0.1428571429 | K59: =H174 -> 0 | L59: =H175 -> 0 | M59: 1.142857143 | N59: 0 | O59: 0 | P59: 0 | Q59: 0 | R59: 0 | S59: 0 | T59: -5.857142857 | U59: =SUM(G173:G175) -> 1 | V59: Rob England | W59: =SUM(F173:F175) -> 3 | X59: 2.6 | Y59: =X173 -> 0.1428571429 | Z59: =X174 -> 2.1 | AA59: =X175 -> 2.3 | AB59: 1.142857143 | AC59: 3.1 | AD59: 3.3 | AE59: 3.542857143 | AF59: 10.23 | AG59: 3.771428571 | AH59: 11.69142857 | AI59: 29.77857143 | AJ59: Rob England
C60: =Picks!B60 -> Arsenal | D60: =Picks!C60 -> 9/11 | E60: =Picks!D60 -> 1.818181818 | F60: 1 | G60: =Picks!M60 -> 1 | H60: 0.8181818182 | I60: Sally Williams | J60: =H176 -> 0 | K60: =H177 -> 0 | L60: =H178 -> 2.3 | M60: 0 | N60: 0 | O60: 3.3 | P60: 0 | Q60: 0 | R60: 0 | S60: 0 | T60: -3.7 | U60: =SUM(G176:G178) -> 1 | V60: Sally Williams | W60: =SUM(F176:F178) -> 3 | X60: 0.8181818182 | Y60: =X176 -> 2.4 | Z60: =X177 -> 2.3 | AA60: =X178 -> 2.3 | AB60: 3.4 | AC60: 3.3 | AD60: 3.3 | AE60: 11.22 | AF60: 10.89 | AG60: 11.22 | AH60: 37.026 | AI60: 73.356 | AJ60: Sally Williams
C61: =Picks!B61 -> Bournemouth | D61: =Picks!C61 -> 10/11 | E61: =Picks!D61 -> 1.909090909 | F61: 1 | G61: =Picks!M61 -> 0 | H61: 0 | I61: Simon Greenhalgh | J61: =H179 -> 1.5 | K61: =H180 -> 0 | L61: =H181 -> 0 | M61: 2.5 | N61: 0 | O61: 0 | P61: 0 | Q61: 0 | R61: 0 | S61: 0 | T61: -4.5 | U61: =SUM(G179:G181) -> 1 | V61: Simon Greenhalgh | W61: =SUM(F179:F181) -> 3 | X61: 0.9090909091 | Y61: =X179 -> 1.5 | Z61: =X180 -> 1.625 | AA61: =X181 -> 1.375 | AB61: 2.5 | AC61: 2.625 | AD61: 2.375 | AE61: 6.5625 | AF61: 6.234375 | AG61: 5.9375 | AH61: 15.5859375 | AI61: 34.8203125 | AJ61: Simon Greenhalgh
B62: =$V22 -> Gareth Fallows | C62: =Picks!B62 -> Birmingham | D62: =Picks!C62 -> 27/20 | E62: =Picks!D62 -> 2.35 | F62: 1 | G62: =Picks!M62 -> 0 | H62: 0 | I62: Ste Bentley | J62: =H182 ->  | K62: =H183 ->  | L62: =H184 ->  | U62: =SUM(G182:G184) ->  | V62: Ste Bentley | W62: =SUM(F182:F184) -> 3 | X62: 1.35 | Y62: =X182 ->  | Z62: =X183 ->  | AA62: =X184 ->  | AJ62: Ste Bentley
C63: =Picks!B63 -> Fleetwood | D63: =Picks!C63 -> 10/11 | E63: =Picks!D63 -> 1.909090909 | F63: 1 | G63: =Picks!M63 -> 1 | H63: =+((E63-1)*G63*F63*A$2) -> 0.9090909091 | I63: Stephen Barr | J63: =H185 -> 0.8181818182 | K63: =H186 -> 0.78 | L63: =H187 -> 1.05 | M63: 1.818181818 | N63: 1.78 | O63: 2.05 | P63: 3.236363636 | Q63: 3.649 | R63: 3.727272727 | S63: 6.634545455 | T63: 15.89536364 | U63: =SUM(G185:G187) -> 3 | V63: Stephen Barr | W63: =SUM(F185:F187) -> 3 | X63: 0.9090909091 | Y63: =X185 -> 0.8181818182 | Z63: =X186 -> 0.78 | AA63: =X187 -> 1.05 | AB63: 1.818181818 | AC63: 1.78 | AD63: 2.05 | AE63: 3.236363636 | AF63: 3.649 | AG63: 3.727272727 | AH63: 6.634545455 | AI63: 15.89536364 | AJ63: Stephen Barr
C64: =Picks!B64 -> Plymouth | D64: =Picks!C64 -> 23/20 | E64: =Picks!D64 -> 2.15 | F64: 1 | G64: =Picks!M64 -> 1 | H64: 1.15 | I64: Stephen Troop | J64: =H188 -> 0 | K64: =H189 -> 0 | L64: =H190 -> 0 | M64: 0 | N64: 0 | O64: 0 | P64: 0 | Q64: 0 | R64: 0 | S64: 0 | T64: -7 | U64: =SUM(G188:G190) -> 0 | V64: Stephen Troop | W64: =SUM(F188:F190) -> 3 | X64: 1.15 | Y64: =X188 -> 1.15 | Z64: =X189 -> 1.2 | AA64: =X190 -> 0.7 | AB64: 2.15 | AC64: 2.2 | AD64: 1.7 | AE64: 4.73 | AF64: 3.74 | AG64: 3.655 | AH64: 8.041 | AI64: 19.216 | AJ64: Stephen Troop
B65: =$V23 -> Gareth McGuire | C65: =Picks!B65 -> Watford | D65: =Picks!C65 -> 10/11 | E65: =Picks!D65 -> 1.909090909 | F65: 1 | G65: =Picks!M65 -> 0 | H65: 0 | I65: Steve Baxter | J65: =H191 -> 0.1428571429 | K65: =H192 -> 1.25 | L65: =H193 -> 0.27 | M65: 1.142857143 | N65: 2.25 | O65: 1.27 | P65: 2.571428571 | Q65: 2.8575 | R65: 1.451428571 | S65: 3.265714286 | T65: 7.808928571 | U65: =SUM(G191:G193) -> 3 | V65: Steve Baxter | W65: =SUM(F191:F193) -> 3 | X65: 0.9090909091 | Y65: =X191 -> 0.1428571429 | Z65: =X192 -> 1.25 | AA65: =X193 -> 0.27 | AB65: 1.142857143 | AC65: 2.25 | AD65: 1.27 | AE65: 2.571428571 | AF65: 2.8575 | AG65: 1.451428571 | AH65: 3.265714286 | AI65: 7.808928571 | AJ65: Steve Baxter
C66: =Picks!B66 -> Middlesbro | D66: =Picks!C66 -> 13/10 | E66: =Picks!D66 -> 2.3 | F66: 1 | G66: =Picks!M66 -> 0 | H66: 0 | I66: Steve Carter | J66: =H194 -> 0 | K66: =H195 -> 0.8181818182 | L66: =H196 -> 0 | M66: =IF(J66=0,0,1)+J66 -> 0 | N66: 1.818181818 | O66: 0 | P66: 0 | Q66: 0 | R66: 0 | S66: 0 | T66: -5.181818182 | U66: =SUM(G194:G196) -> 1 | V66: Steve Carter | W66: =SUM(F194:F196) -> 3 | X66: =+((E66-1)*F66*A$2) -> 1.3 | Y66: =X194 -> 1.5 | Z66: =X195 -> 0.8181818182 | AA66: =X196 -> 2.461538462 | AB66: 2.5 | AC66: 1.818181818 | AD66: 3.461538462 | AE66: 4.545454545 | AF66: 6.293706294 | AG66: 8.653846154 | AH66: 15.73426573 | AI66: 36.00699301 | AJ66: Steve Carter
C67: =Picks!B67 -> Portsmouth | D67: =Picks!C67 -> 4/6 | E67: =Picks!D67 -> 1.666666667 | F67: 1 | G67: =Picks!M67 -> 1 | H67: 0.6666666667 | I67: =IF(V67="","",V67) -> Tom Robinson | J67: =H197 -> 0.78 | K67: =H198 -> 0 | L67: =H199 -> 2.3 | M67: =IF(J67=0,0,1)+J67 -> 1.78 | N67: =IF(K67=0,0,1)+K67 -> 0 | O67: =IF(L67=0,0,1)+L67 -> 3.3 | P67: =IF(K67=0,0,(M67*K67)+M67) -> 0 | Q67: =IF(L67=0,0,(N67*L67)+N67) -> 0 | R67: =IF(J67=0,0,(O67*J67)+O67) -> 5.874 | S67: =IF(L67=0,0,(P67*L67)+P67) -> 0 | T67: =SUM(M67:S67)-(IF(W67=1,A$2*1,0))-(IF(W67=2,A$2*3,0))-(IF(W67=3,A$2*7,0)) -> 3.954 | U67: =SUM(G197:G199) -> 2 | V67: Tom Robinson | W67: =SUM(F197:F199) -> 3 | X67: 0.6666666667 | Y67: =X197 -> 0.78 | Z67: =X198 -> 1.3 | AA67: =X199 -> 2.3 | AB67: =IF(Y67=0,0,1)+Y67 -> 1.78 | AC67: =IF(Z67=0,0,1)+Z67 -> 2.3 | AD67: =IF(AA67=0,0,1)+AA67 -> 3.3 | AE67: =IF(Z67=0,0,(AB67*Z67)+AB67) -> 4.094 | AF67: =IF(AA67=0,0,(AC67*AA67)+AC67) -> 7.59 | AG67: =IF(Y67=0,0,(AD67*Y67)+AD67) -> 5.874 | AH67: =IF(AA67=0,0,(AE67*AA67)+AE67) -> 13.5102 | AI67: =SUM(AB67:AH67)-7 -> 31.4482 | AJ67: Tom Robinson
B68: =$V24 -> Gareth Powell | C68: =Picks!B68 -> Man U draw | D68: =Picks!C68 -> 32/13 | E68: =Picks!D68 -> 3.461538462 | F68: 1 | G68: =Picks!M68 -> 0 | H68: 0 | I68: Vinny Topping | J68: =H200 -> 0 | K68: =H201 -> 0.8 | L68: =H202 -> 0 | M68: =IF(J68=0,0,1)+J68 -> 0 | N68: 1.8 | O68: 0 | P68: 0 | Q68: 0 | R68: 0 | S68: 0 | T68: -5.2 | U68: =SUM(G200:G202) -> 1 | V68: Vinny Topping | W68: =SUM(F200:F202) -> 3 | X68: 2.461538462 | Y68: =X200 -> 1.35 | Z68: =X201 -> 0.8 | AA68: =X202 -> 1.4 | AB68: 2.35 | AC68: 1.8 | AD68: 2.4 | AE68: 4.23 | AF68: 4.32 | AG68: 5.64 | AH68: 10.152 | AI68: 23.892 | AJ68: =$V68 -> Vinny Topping
C69: =Picks!B69 -> Sheff W | D69: =Picks!C69 -> 21/20 | E69: =Picks!D69 -> 2.05 | F69: 1 | G69: =Picks!M69 -> 1 | H69: 1.05 | I69: Andy Clucas | J69: =H203 -> 0 | K69: =H204 -> 0 | L69: =H205 -> 0 | M69: =IF(J69=0,0,1)+J69 -> 0 | N69: =IF(K69=0,0,1)+K69 -> 0 | O69: =IF(L69=0,0,1)+L69 -> 0 | P69: =IF(K69=0,0,(M69*K69)+M69) -> 0 | Q69: =IF(L69=0,0,(N69*L69)+N69) -> 0 | R69: =IF(J69=0,0,(O69*J69)+O69) -> 0 | S69: =IF(L69=0,0,(P69*L69)+P69) -> 0 | T69: =SUM(M69:S69)-(IF(W69=1,A$2*1,0))-(IF(W69=2,A$2*3,0))-(IF(W69=3,A$2*7,0)) -> -7 | U69: =SUM(G203:G205) -> 0 | V69: Andy Clucas | W69: =SUM(F203:F205) -> 3 | X69: 1.05 | Y69: =X203 -> 0.9090909091 | Z69: =X204 -> 0.7 | AA69: =X205 -> 0.7 | AB69: =IF(Y69=0,0,1)+Y69 -> 1.909090909 | AC69: =IF(Z69=0,0,1)+Z69 -> 1.7 | AD69: =IF(AA69=0,0,1)+AA69 -> 1.7 | AE69: =IF(Z69=0,0,(AB69*Z69)+AB69) -> 3.245454545 | AF69: =IF(AA69=0,0,(AC69*AA69)+AC69) -> 2.89 | AG69: =IF(Y69=0,0,(AD69*Y69)+AD69) -> 3.245454545 | AH69: =IF(AA69=0,0,(AE69*AA69)+AE69) -> 5.517272727 | AI69: =SUM(AB69:AH69)-7 -> 13.20727273 | AJ69: Andy Clucas
C70: =Picks!B70 -> Everton | D70: =Picks!C70 -> 6/4 | E70: =Picks!D70 -> 2.5 | F70: 1 | G70: =Picks!M70 -> 0 | H70: 0 | X70: 1.5
B71: =$V25 -> Gerard Ventom | C71: =Picks!B71 -> Burnley | D71: =Picks!C71 -> 31/20 | E71: =Picks!D71 -> 2.55 | F71: 1 | G71: =Picks!M71 -> 1 | H71: 1.55 | X71: 1.55
C72: =Picks!B72 -> Huddersfield | D72: =Picks!C72 -> 9/5 | E72: =Picks!D72 -> 2.8 | F72: 1 | G72: =Picks!M72 -> 0 | H72: 0 | X72: 1.8
C73: =Picks!B73 -> Barnsley | D73: =Picks!C73 -> 27/10 | E73: =Picks!D73 -> 3.7 | F73: 1 | G73: =Picks!M73 -> 0 | H73: 0 | X73: 2.7
B74: =$V26 -> Graeme Holmes | C74: =Picks!B74 -> Derby | D74: =Picks!C74 -> 23/20 | E74: =Picks!D74 -> 2.15 | F74: 1 | G74: =Picks!M74 -> 0 | H74: 0 | X74: 1.15
C75: =Picks!B75 -> Middlesbro | D75: =Picks!C75 -> 13/10 | E75: =Picks!D75 -> 2.3 | F75: 1 | G75: =Picks!M75 -> 0 | H75: 0 | X75: 1.3
C76: =Picks!B76 -> Leicester | D76: =Picks!C76 -> 13/10 | E76: =Picks!D76 -> 2.3 | F76: 1 | G76: =Picks!M76 -> 0 | H76: 0 | X76: 1.3
B77: =$V27 -> Graham Miller | C77: =Picks!B77 -> Charlton | D77: =Picks!C77 -> 21/10 | E77: =Picks!D77 -> 3.1 | F77: 1 | G77: =Picks!M77 -> 1 | H77: 2.1 | X77: 2.1
C78: =Picks!B78 -> Fulham | D78: =Picks!C78 -> 4/5 | E78: =Picks!D78 -> 1.8 | F78: 1 | G78: =Picks!M78 -> 1 | H78: 0.8 | X78: 0.8
C79: =Picks!B79 -> Middlesbro | D79: =Picks!C79 -> 13/10 | E79: =Picks!D79 -> 2.3 | F79: 1 | G79: =Picks!M79 -> 0 | H79: 0 | X79: 1.3
B80: =$V28 -> Howard Bradley | C80: =Picks!B80 -> West Brom | D80: =Picks!C80 -> 7/10 | E80: =Picks!D80 -> 1.7 | F80: 1 | G80: =Picks!M80 -> 0 | H80: 0 | X80: 0.7
C81: =Picks!B81 -> Portsmouth | D81: =Picks!C81 -> 4/6 | E81: =Picks!D81 -> 1.666666667 | F81: 1 | G81: =Picks!M81 -> 1 | H81: 0.6666666667 | X81: 0.6666666667
C82: =Picks!B82 -> Sheff W | D82: =Picks!C82 -> 21/20 | E82: =Picks!D82 -> 2.05 | F82: 1 | G82: =Picks!M82 -> 1 | H82: 1.05 | X82: 1.05
B83: =$V29 -> Ian Davies | C83: =Picks!B83 -> Burnley draw | D83: =Picks!C83 -> 23/10 | E83: =Picks!D83 -> 3.3 | F83: 1 | G83: =Picks!M83 -> 0 | H83: 0 | X83: 2.3
C84: =Picks!B84 -> Leeds | D84: =Picks!C84 -> 7/10 | E84: =Picks!D84 -> 1.7 | F84: 1 | G84: =Picks!M84 -> 0 | H84: 0 | X84: 0.7
C85: =Picks!B85 -> Leicester draw | D85: =Picks!C85 -> 26/11 | E85: =Picks!D85 -> 3.363636364 | F85: 1 | G85: =Picks!M85 -> 1 | H85: 2.363636364 | X85: 2.363636364
B86: =$V30 -> Jack Walsh | C86: =Picks!B86 -> QPR | D86: =Picks!C86 -> 31/20 | E86: =Picks!D86 -> 2.55 | F86: 1 | G86: =Picks!M86 -> 0 | H86: 0 | X86: 1.55
C87: =Picks!B87 -> Everton | D87: =Picks!C87 -> 6/4 | E87: =Picks!D87 -> 2.5 | F87: 1 | G87: =Picks!M87 -> 0 | H87: 0 | X87: 1.5
C88: =Picks!B88 -> Watford | D88: =Picks!C88 -> 10/11 | E88: =Picks!D88 -> 1.909090909 | F88: 1 | G88: =Picks!M88 -> 0 | H88: 0 | X88: 0.9090909091
B89: =$V31 -> James Bell | C89: =Picks!B89 -> Newcastle | D89: =Picks!C89 -> 77/19 | E89: =Picks!D89 -> 5.052631579 | F89: 1 | G89: =Picks!M89 -> 0 | H89: 0 | X89: 4.052631579
C90: =Picks!B90 -> Grimsby | D90: =Picks!C90 -> 23/10 | E90: =Picks!D90 -> 3.3 | F90: 1 | G90: =Picks!M90 -> 0 | H90: 0 | X90: 2.3
C91: =Picks!B91 -> Wigan | D91: =Picks!C91 -> 27/10 | E91: =Picks!D91 -> 3.7 | F91: 1 | G91: =Picks!M91 -> 0 | H91: 0 | X91: 2.7
B92: =$V32 -> Joel Bent | C92: =Picks!B92 -> Liverpool draw | D92: =Picks!C92 -> 7/1 | E92: =Picks!D92 -> 8 | F92: 1 | G92: =Picks!M92 -> 0 | H92: =+((E92-1)*G92*F92*A$2) -> 0 | X92: 7
C93: =Picks!B93 -> Carlisle | D93: =Picks!C93 -> 11/4 | E93: =Picks!D93 -> 3.75 | F93: 1 | G93: =Picks!M93 -> 0 | H93: 0 | X93: 2.75
C94: =Picks!B94 -> Derby | D94: =Picks!C94 -> 23/20 | E94: =Picks!D94 -> 2.15 | F94: 1 | G94: =Picks!M94 -> 0 | H94: 0 | X94: 1.15
B95: =$V33 -> John Evans | C95: =Picks!B95 -> Wigan | D95: =Picks!C95 -> 27/10 | E95: =Picks!D95 -> 3.7 | F95: 1 | G95: =Picks!M95 -> 0 | H95: 0 | X95: 2.7
C96: =Picks!B96 -> QPR | D96: =Picks!C96 -> 31/20 | E96: =Picks!D96 -> 2.55 | F96: 1 | G96: =Picks!M96 -> 0 | H96: 0 | X96: 1.55
C97: =Picks!B97 -> Portsmouth | D97: =Picks!C97 -> 4/6 | E97: =Picks!D97 -> 1.666666667 | F97: 1 | G97: =Picks!M97 -> 1 | H97: 0.6666666667 | X97: 0.6666666667
B98: =$V34 -> John Robinson | C98: =Picks!B98 -> West Ham draw | D98: =Picks!C98 -> 5/1 | E98: =Picks!D98 -> 6 | F98: 1 | G98: =Picks!M98 -> 0 | H98: 0 | X98: =+((E98-1)*F98*A$2) -> 5
C99: =Picks!B99 -> Preston | D99: =Picks!C99 -> 11/10 | E99: =Picks!D99 -> 2.1 | F99: 1 | G99: =Picks!M99 -> 1 | H99: 1.1 | X99: 1.1
C100: =Picks!B100 -> Fleetwood | D100: =Picks!C100 -> 10/11 | E100: =Picks!D100 -> 1.909090909 | F100: 1 | G100: =Picks!M100 -> 1 | H100: 0.9090909091 | X100: 0.9090909091
B101: =$V35 -> John Ronan | C101: =Picks!B101 -> Charlton | D101: =Picks!C101 -> 21/10 | E101: =Picks!D101 -> 3.1 | F101: 1 | G101: =Picks!M101 -> 1 | H101: 2.1 | X101: 2.1
C102: =Picks!B102 -> Gillingham | D102: =Picks!C102 -> 13/8 | E102: =Picks!D102 -> 2.625 | F102: 1 | G102: =Picks!M102 -> 0 | H102: 0 | X102: 1.625
C103: =Picks!B103 -> Southend | D103: =Picks!C103 -> 13/8 | E103: =Picks!D103 -> 2.625 | F103: 1 | G103: =Picks!M103 -> 0 | H103: 0 | X103: 1.625
B104: =$V36 -> Kei Lok Ma | C104: =Picks!B104 -> Burnley | D104: =Picks!C104 -> 31/20 | E104: =Picks!D104 -> 2.55 | F104: 1 | G104: =Picks!M104 -> 1 | H104: 1.55 | X104: 1.55
C105: =Picks!B105 -> Palace draw | D105: =Picks!C105 -> 23/10 | E105: =Picks!D105 -> 3.3 | F105: 1 | G105: =Picks!M105 -> 1 | H105: 2.3 | X105: 2.3
C106: =Picks!B106 -> Leicester | D106: =Picks!C106 -> 13/10 | E106: =Picks!D106 -> 2.3 | F106: 1 | G106: =Picks!M106 -> 0 | H106: 0 | X106: 1.3
B107: =$V37 -> Kevin Carter | C107: =Picks!B107 -> Spurs draw | D107: =Picks!C107 -> 24/5 | E107: =Picks!D107 -> 5.8 | F107: 1 | G107: =Picks!M107 -> 0 | H107: 0 | X107: 4.8
C108: =Picks!B108 -> Watford draw | D108: =Picks!C108 -> 12/5 | E108: =Picks!D108 -> 3.4 | F108: 1 | G108: =Picks!M108 -> 0 | H108: 0 | X108: 2.4
C109: =Picks!B109 -> Newcastle draw | D109: =Picks!C109 -> 29/10 | E109: =Picks!D109 -> 3.9 | F109: 1 | G109: =Picks!M109 -> 0 | H109: 0 | X109: 2.9
B110: =$V38 -> Lennie Bow | C110: =Picks!B110 -> West Brom | D110: =Picks!C110 -> 7/10 | E110: =Picks!D110 -> 1.7 | F110: 1 | G110: =Picks!M110 -> 0 | H110: 0 | X110: 0.7
C111: =Picks!B111 -> MK Dons | D111: =Picks!C111 -> 15/13 | E111: =Picks!D111 -> 2.153846154 | F111: 1 | G111: =Picks!M111 -> 1 | H111: 1.153846154 | X111: 1.153846154
C112: =Picks!B112 -> Mansfield | D112: =Picks!C112 -> 7/10 | E112: =Picks!D112 -> 1.7 | F112: 1 | G112: =Picks!M112 -> 0 | H112: 0 | X112: 0.7
B113: =$V39 -> Lewis Buckley | C113: =Picks!B113 -> Bournemouth | D113: =Picks!C113 -> 10/11 | E113: =Picks!D113 -> 1.909090909 | F113: 1 | G113: =Picks!M113 -> 0 | H113: 0 | X113: 0.9090909091
C114: =Picks!B114 -> West Brom | D114: =Picks!C114 -> 7/10 | E114: =Picks!D114 -> 1.7 | F114: 1 | G114: =Picks!M114 -> 0 | H114: 0 | X114: 0.7
C115: =Picks!B115 -> Portsmouth | D115: =Picks!C115 -> 4/6 | E115: =Picks!D115 -> 1.666666667 | F115: 1 | G115: =Picks!M115 -> 1 | H115: 0.6666666667 | X115: 0.6666666667
B116: =$V40 -> Liam Wah | C116: =Picks!B116 -> Palace draw | D116: =Picks!C116 -> 23/10 | E116: =Picks!D116 -> 3.3 | F116: 1 | G116: =Picks!M116 -> 1 | H116: 2.3 | X116: 2.3
C117: =Picks!B117 -> Rochdale | D117: =Picks!C117 -> 13/8 | E117: =Picks!D117 -> 2.625 | F117: 1 | G117: =Picks!M117 -> 0 | H117: 0 | X117: 1.625
C118: =Picks!B118 -> Man U draw | D118: =Picks!C118 -> 32/13 | E118: =Picks!D118 -> 3.461538462 | F118: 1 | G118: =Picks!M118 -> 0 | H118: 0 | X118: 2.461538462
B119: =$V41 -> Mal Stott | C119: =Picks!B119 -> Bristol r | D119: =Picks!C119 -> 6/5 | E119: =Picks!D119 -> 2.2 | F119: 1 | G119: =Picks!M119 -> 0 | H119: 0 | X119: 1.2
C120: =Picks!B120 -> Portsmouth | D120: =Picks!C120 -> 4/6 | E120: =Picks!D120 -> 1.666666667 | F120: 1 | G120: =Picks!M120 -> 1 | H120: 0.6666666667 | X120: 0.6666666667
C121: =Picks!B121 -> Fulham | D121: =Picks!C121 -> 4/5 | E121: =Picks!D121 -> 1.8 | F121: 1 | G121: =Picks!M121 -> 1 | H121: =+((E121-1)*G121*F121*A$2) -> 0.8 | X121: 0.8
B122: =$V42 -> Mark Bunn | C122: =Picks!B122 -> Middlesbro | D122: =Picks!C122 -> 13/10 | E122: =Picks!D122 -> 2.3 | F122: 1 | G122: =Picks!M122 -> 0 | H122: 0 | X122: 1.3
C123: =Picks!B123 -> QPR | D123: =Picks!C123 -> 31/20 | E123: =Picks!D123 -> 2.55 | F123: 1 | G123: =Picks!M123 -> 0 | H123: 0 | X123: 1.55
C124: =Picks!B124 -> Oxford | D124: =Picks!C124 -> 6/4 | E124: =Picks!D124 -> 2.5 | F124: 1 | G124: =Picks!M124 -> 1 | H124: 1.5 | X124: 1.5
B125: =$V43 -> Mark Saunders | C125: =Picks!B125 -> Bournemouth | D125: =Picks!C125 -> 10/11 | E125: =Picks!D125 -> 1.909090909 | F125: 1 | G125: =Picks!M125 -> 0 | H125: 0 | X125: 0.9090909091
C126: =Picks!B126 -> Fulham | D126: =Picks!C126 -> 4/5 | E126: =Picks!D126 -> 1.8 | F126: 1 | G126: =Picks!M126 -> 1 | H126: 0.8 | X126: 0.8
C127: =Picks!B127 -> Middlesbro | D127: =Picks!C127 -> 13/10 | E127: =Picks!D127 -> 2.3 | F127: 1 | G127: =Picks!M127 -> 0 | H127: 0 | X127: 1.3
B128: =$V44 -> Martin Molyneux | C128: =Picks!B128 -> Leicester | D128: =Picks!C128 -> 13/10 | E128: =Picks!D128 -> 2.3 | F128: 1 | G128: =Picks!M128 -> 0 | H128: 0 | I128: =IF(V128="","",V128) ->  | X128: 1.3
C129: =Picks!B129 -> Derby | D129: =Picks!C129 -> 23/20 | E129: =Picks!D129 -> 2.15 | F129: 1 | G129: =Picks!M129 -> 0 | H129: 0 | X129: 1.15
C130: =Picks!B130 -> Man U Draw | D130: =Picks!C130 -> 32/13 | E130: =Picks!D130 -> 3.461538462 | F130: 1 | G130: =Picks!M130 -> 0 | H130: 0 | X130: 2.461538462
